Workbook

Sheet Activity-Material_Codes
A1: Item | B1: Activity | C1: Description
A2: - | B2: - | C2: Place holder for item
A3: A | B3: Grade | C3: Rough grading original material or fine grading cover material
A4: B | B4: Dozer Assist | C4: Dozer is used to assist loader or shovel at cover stockpile or assist scrapers during rough grading
A5: C | B5: Load | C5: Cover material is loaded at borrow areas onto haul trucks
A6: D | B6: Haul | C6: Haul trucks transport cover material from borrow areas to destination stockpiles
A7: E | B7: Rip | C7: Tops of stockpiles are ripped before placing cover to compensate for compaction of soil during rough grading. Stockpiles are also ripped before rough grading with a scraper. Borrow stockpile ripped before revegetation.
A8: F | B8: Grade Benches | C8: Benches are graded at stockpiles and tailings after fine grading
A9: G | B9: Construct Downdrains | C9: Downdrains are constructed after fine grading and consist of articulated concrete blocks (ACB's)
A10: Gb | B10: Construct Downdrain Dissipators | C10: Energy dissipators are specified as part of the downdrains
A11: H | B11: Construct Channels w/ Riprap | C11: Channels are constructed after final grading. Construction includes excavation and wasting, riprap production, riprap and filter placement, and final grading.
A12: Hb | B12: Construct Channels w/o Riprap | C12: Channels are constructed after final grading. Construction includes excavation and wasting and final grading.
A13: I | B13: Construct Top/Outslope Channels | C13: Top and outslope channels are included with H and Hb for this RCE
A14: J | B14: Revegetate | C14: Occurs after final grading and channel construction and includes tractor rental and maintenance, fuel, scarifying, discing, drill seeding, mulching, crimping, seed, and mulch
A15: Jb | B15: Manual Seeding | C15: Seeding for areas inaccesible by heavy equipment
A16: K | B16: Perforate Liner | C16: Reservoir liners are perforated prior to reclamation
A17: L | B17: Replace Infrastructure | C17: Replacing infrastructure is not part of this RCE
A18: M | B18: Post-Closure O&M | C18: Includes vegetation maintenance for 12 years after reclamation and erosion control, road maintenance, and groundwater monitoring for 100 years after reclamation
A19: N | B19: Plug and Abandon Well | C19: Well borehole is backfilled with cement grout
A20: O | B20: Replace Well | C20: Includes borehole drilling, casing, and cementing
A21: P | B21: Road Maintenance | C21: Dust suppression and road maintenance with water truck and motor grader
A22: Q | B22: Construct Haul Road | C22: For shorter hauls etc.
A23: R | B23: Construct Berms | C23: Berming for stormwater runoff control
A24: Sa | B24: Chain Link Fence | C24: Fencing for pit area
A25: Sb | B25: Livestock Fence | C25: Temporary fencing for revegetated areas
A26: T | B26: Build Grade Control Walls | C26: Grade control in each drainage of Tailing Launder Line removal
A27: U | B27: Vehicle Gates | C27: Limited access around open pits
A28: V | B28: Signs Every 500 ft | C28: Warning signs posted every 500 feet around open pits
A29: W | B29: Deadman Diversion Channel | C29: Used to construct Deadman Diversion
A30: X | B30: Compaction | C30: Dozer and water truck used for compaction of fill at Deadman Diversion
A33: Item | B33: Material | C33: Description
A34: - | B34: - | C34: Placeholder
A35: a | B35: Existing Ground | C35: Existing ground before rough grading
A36: b | B36: Cover | C36: Cover material from cover stockpiles, before being placed at destination location
A37: c | B37: Rough Graded Material | C37: Exisiting ground after rough grading
A38: d | B38: Placed Cover | C38: Cover material after being placed at destination location
A39: e | B39: Final Grade | C39: Facility material and cover material after rough grading and fine grading
A40: f | B40: Fill/Stockpile Material | C40: Material used to construct Deadman Diversion. May also include material used backfill pit/ponds or stockpile material used in pullback.
A43: Not all activites are used in this RCE. Other activities are kept for alternatives and testing purposes and to maintain spreadsheet integrity

Sheet Quantities
O1: Segment 1 | Q1: Segment 2 | S1: Segment 3
A2: 1 | B2: 2 | C2: 3 | D2: 4 | E2: 5 | F2: 6 | G2: 7 | H2: 8 | I2: 9 | J2: 10 | K2: 11 | L2: 12 | M2: 13 | N2: 14 | O2: 15 | P2: 16 | Q2: 17 | R2: 18 | S2: 19 | T2: 20 | U2: 21 | V2: 22 | W2: 23 | X2: 24 | Y2: 25 | Z2: 26 | AA2: 27 | AB2: 28 | AC2: 29 | AD2: 30 | AE2: 31 | AF2: 32 | AG2: 33 | AH2: 34 | AI2: 35 | AJ2: 36 | AK2: 37 | AL2: 38 | AM2: 39 | AN2: 40
A3: Item | B3: Facility | C3: Sub Area or Destination for Cover Material | D3: Description | E3: Area (sf) | F3: Volume (cy) | G3: Push Distance (ft) | H3: Coarse Regrading and Fine Grading (%) | I3: One-Way Scraper Haul (ft) | J3: Scraper Grade (%) | K3: Down Drains (ft) | L3: Downdrain Dissipater (ea) | M3: Channels (ft) | N3: Bench Grading (ft) | O3: Distance (ft) | P3: Average Grade (%) | Q3: Distance (ft) | R3: Average Grade (%) | S3: Distance (ft) | T3: Average Grade (%) | U3: Cover Depth (In) | V3: Swell Factor (%) | W3: Material Factor for Coarse Regrading | X3: Material Factor for Fine Grading Cover | Y3: Material Weight for Coarse Regrading (lb/cy) | Z3: Material Weight for Fine Grading Cover (lb/cy) | AA3: Ripping Length (ft) | AB3: Breach Dams (cy) | AC3: Start of Reclamation Year | AD3: Reclamation Complete | AE3: Temporary Fence (ft) | AF3: Berm (ft) | AG3: Chain Link Fence (ft) | AH3: Vehicle Gates | AI3: Signs Posted Every 500 ft | AJ3: Grade Control Wall (cy concrete) | AK3: Deadman Diversion Channel | AL3: Replace Infrastructure | AM3: Plug and Abandon Well (ft) | AN3: Replace Well (ft)
A4: 1000 | B4: West In-Pit Waste | C4: WIP-0 | D4: Entire Stockpile | E4: =SUM(E5:E6) -> 2144516 | F4: =SUM(F5:F6) -> 1681546 | G4: - | H4: - | U4: =4/10 -> 0.4 | V4: 0 | W4: 1 | X4: 1.2 | Y4: 3600 | Z4: 3600 | AA4: 1000 | AB4: - | AC4: 2028-01-01 | AD4: 2029-12-31 | AE4: - | AF4: - | AG4: - | AH4: - | AI4: - | AJ4: - | AK4: - | AL4: - | AM4: - | AN4: -
A5: 1001 | B5: West In-Pit Waste | C5: WIP-1 | D5: Top | E5: 27358 | F5: 0 | G5: - | H5: 0.01 | U5: =4/10 -> 0.4 | V5: 0 | W5: 1 | X5: 1.2 | Y5: 3600 | Z5: 3600 | AA5: 1000 | AB5: - | AC5: 2028-01-01 | AD5: 2029-12-31 | AE5: - | AF5: - | AG5: - | AH5: - | AI5: - | AJ5: - | AK5: - | AL5: - | AM5: - | AN5: -
A6: 1002 | B6: West In-Pit Waste | C6: WIP-2 | D6: Outslopes | E6: 2117158 | F6: 1681546 | G6: 795.5 | H6: -0.29 | I6: =(1808+967+418)/3 -> 1064.333333 | J6: =-0.252 -> -0.252 | K6: 1487 | L6: 1 | M6: 10627 | N6: =Quantities[[#This Row],[Channels (ft)]] -> 10627 | U6: 0.4 | V6: 0 | W6: 1 | X6: 1.2 | Y6: 3600 | Z6: 3600 | AA6: 1000 | AB6: - | AC6: 2028-01-01 | AD6: 2029-12-31 | AE6: - | AF6: - | AG6: - | AH6: - | AI6: - | AJ6: - | AK6: - | AL6: - | AM6: - | AN6: -
A7: 1100 | B7: East In-Pit Waste | C7: EIP-0 | D7: Entire Stockpile | E7: =SUM(E8:E9) -> 433640 | F7: =SUM(F8:F9) -> 0 | G7: - | H7: - | U7: 0.4 | V7: 0 | W7: 1 | X7: 1.2 | Y7: 3600 | Z7: 3600 | AA7: 1000 | AB7: - | AC7: 2028-01-01 | AD7: 2029-12-31 | AE7: - | AF7: - | AG7: - | AH7: - | AI7: - | AJ7: - | AK7: - | AL7: - | AM7: - | AN7: -
A8: 1101 | B8: East In-Pit Waste | C8: EIP-1 | D8: Top | E8: 378251 | F8: 0 | G8: - | H8: 0.01 | U8: 0.4 | V8: 0 | W8: 1 | X8: 1.2 | Y8: 3600 | Z8: 3600 | AA8: 1000 | AB8: - | AC8: 2028-01-01 | AD8: 2029-12-31 | AE8: - | AF8: - | AG8: - | AH8: - | AI8: - | AJ8: - | AK8: - | AL8: - | AM8: - | AN8: -
A9: 1102 | B9: East In-Pit Waste | C9: EIP-2 | D9: Outslopes | E9: 55389 | F9: 0 | G9: - | H9: -0.29 | U9: 0.4 | V9: 0 | W9: 1 | X9: 1.2 | Y9: 3600 | Z9: 3600 | AA9: 1000 | AB9: - | AC9: 2028-01-01 | AD9: 2029-12-31 | AE9: - | AF9: - | AG9: - | AH9: - | AI9: - | AJ9: - | AK9: - | AL9: - | AM9: - | AN9: -
A10: 1200 | B10: North Stockpile | C10: CLW-0 | D10: Entire Stockpile | E10: 350727 | F10: 0 | G10: - | H10: - | U10: 0.4 | V10: 0 | W10: 1 | X10: 1.2 | Y10: 3600 | Z10: 3600 | AA10: 1000 | AB10: - | AC10: 2030-01-01 | AD10: 2031-12-31 | AE10: 0 | AF10: - | AG10: - | AH10: - | AI10: - | AJ10: - | AK10: - | AL10: - | AM10: - | AN10: -
A11: 1201 | B11: North Stockpile | C11: CLW-1 | D11: Top | E11: 0 | F11: 0 | G11: - | H11: 0.01 | U11: 0.4 | V11: 0 | W11: 1 | X11: 1.2 | Y11: 3600 | Z11: 3600 | AA11: 1000 | AB11: - | AC11: 2030-01-01 | AD11: 2031-12-31 | AE11: - | AF11: - | AG11: - | AH11: - | AI11: - | AJ11: - | AK11: - | AL11: - | AM11: - | AN11: -
A12: 1300 | B12: NRW Waste | C12: NRW-0 | D12: Entire Stockpile | E12: 4750990 | F12: 529193 | G12: 90 | H12: - | U12: 0.4 | V12: 0 | W12: 1 | X12: 1.2 | Y12: 3600 | Z12: 3600 | AA12: 1000 | AB12: - | AC12: 2030-01-01 | AD12: 2031-12-31 | AE12: 8734 | AF12: - | AG12: - | AH12: - | AI12: - | AJ12: - | AK12: - | AL12: - | AM12: - | AN12: -
A13: 1301 | B13: NRW Waste | C13: NRW-1 | D13: Top | E13: 1004450 | F13: 0 | G13: 0 | H13: 0.01 | U13: 0.4 | V13: 0 | W13: 1 | X13: 1.2 | Y13: 3600 | Z13: 3600 | AA13: 1000 | AB13: - | AC13: 2030-01-01 | AD13: 2031-12-31 | AE13: - | AF13: - | AG13: - | AH13: - | AI13: - | AJ13: - | AK13: - | AL13: - | AM13: - | AN13: -
A14: 1302 | B14: NRW Waste | C14: NRW-2 | D14: North Outslope | E14: 3364697 | F14: =F12-F15 -> 481922 | G14: 90 | H14: -0.29 | I14: 0 | K14: =1000+1200 -> 2200 | L14: 2 | M14: =6602-M15+11921 -> 17848 | N14: =Quantities[[#This Row],[Channels (ft)]] -> 17848 | U14: 0.4 | V14: 0 | W14: 1 | X14: 1.2 | Y14: 3600 | Z14: 3600 | AA14: 1000 | AB14: - | AC14: 2030-01-01 | AD14: 2031-12-31 | AE14: - | AF14: - | AG14: - | AH14: - | AI14: - | AJ14: - | AK14: - | AL14: - | AM14: - | AN14: -
A15: 1303 | B15: NRW Waste | C15: NRW-3 | D15: South Outslopes | E15: 381843 | F15: 47271 | G15: 90 | H15: -0.29 | I15: 0 | K15: =200+237 -> 437 | L15: 2 | M15: 675 | N15: =Quantities[[#This Row],[Channels (ft)]] -> 675 | U15: 0.4 | V15: 0 | W15: 1 | X15: 1.2 | Y15: 3600 | Z15: 3600 | AA15: 1000 | AB15: - | AC15: 2030-01-01 | AD15: 2031-12-31 | AE15: - | AF15: - | AG15: - | AH15: - | AI15: - | AJ15: - | AK15: - | AL15: - | AM15: - | AN15: -
A16: 1400 | B16: Haul Roads | C16: HR-0 | D16: Haul Roads | E16: =SUM(E17:E19) -> 1353116 | F16: 0 | U16: 0.4 | V16: 0 | W16: 1 | X16: 1.2 | Y16: 3600 | Z16: 3600 | AA16: 1000 | AB16: - | AC16: 2032-01-01 | AD16: 2032-12-31 | AE16: - | AF16: - | AG16: - | AH16: - | AI16: - | AJ16: - | AK16: - | AL16: - | AM16: - | AN16: -
A17: 1401 | B17: Northern Haul Road | C17: HR-1 | D17: Flat Area (Haul Road) | E17: 387087 | F17: 0 | U17: 0.4 | V17: 0 | W17: 1 | X17: 1.2 | Y17: 3600 | Z17: 3600 | AA17: 1000 | AB17: - | AC17: 2032-01-01 | AD17: 2032-12-31 | AE17: 0 | AF17: - | AG17: 0 | AH17: - | AI17: - | AJ17: - | AK17: - | AL17: - | AM17: - | AN17: -
A18: 1402 | B18: Little Rock Haul Road | C18: HR-2 | D18: Flat Area (Haul Road) | E18: 658774 | F18: 0 | U18: 0.4 | V18: 0 | W18: 1 | X18: 1.2 | Y18: 3600 | Z18: 3600 | AA18: 1000 | AB18: - | AC18: 2032-01-01 | AD18: 2032-12-31 | AE18: =1098+2870 -> 3968 | AF18: - | AG18: 0 | AH18: - | AI18: - | AJ18: - | AK18: - | AL18: - | AM18: - | AN18: -
A19: 1403 | B19: Southern Haul Road | C19: HR-3 | D19: Flat Area (Haul Road) | E19: 307255 | F19: 0 | U19: 0.4 | V19: 0 | W19: 1 | X19: 1.2 | Y19: 3600 | Z19: 3600 | AA19: 1000 | AB19: - | AC19: 2032-01-01 | AD19: 2032-12-31 | AE19: - | AF19: - | AG19: - | AH19: - | AI19: - | AJ19: - | AK19: - | AL19: - | AM19: - | AN19: -
A20: 1500 | B20: Accessible Flat Areas | C20: Flat Areas | D20: Flat Area | E20: =228916+367485 -> 596401 | F20: 0 | H20: 0.01 | U20: 0.4 | V20: 0 | W20: 1 | X20: 1.2 | Y20: 3600 | Z20: 3600 | AA20: 1000 | AB20: - | AC20: 2032-01-01 | AD20: 2032-12-31 | AE20: 1633 | AF20: - | AG20: - | AH20: - | AI20: - | AJ20: - | AK20: - | AL20: - | AM20: - | AN20: -
A21: 1600 | B21: Little Rock Open Pit | C21: OP-0 | D21: Open Pit | E21: =E22 -> 1313000 | F21: 0 | H21: 0.01 | U21: 0.4 | V21: 0 | W21: 1 | X21: 1.2 | Y21: 3600 | Z21: 3600 | AA21: 1000 | AB21: - | AC21: 2026-01-01 | AD21: 2026-12-31 | AE21: - | AF21: - | AG21: - | AH21: - | AI21: - | AJ21: - | AK21: - | AL21: - | AM21: - | AN21: -
A22: 1601 | B22: Little Rock Open Pit | C22: OP-1 | D22: Perimeter | E22: =(Quantities[[#This Row],[Berm (ft)]]*100+Quantities[[#This Row],[Chain Link Fence (ft)]]*25) -> 1313000 | F22: - | H22: - | U22: 0.4 | V22: 0 | W22: 1 | X22: 1.2 | Y22: 3600 | Z22: 3600 | AA22: 1000 | AB22: - | AC22: 2026-01-01 | AD22: 2026-12-31 | AE22: - | AF22: 11494 | AG22: =6544 -> 6544 | AH22: =ROUNDUP((Quantities[[#This Row],[Berm (ft)]]+Quantities[[#This Row],[Chain Link Fence (ft)]])/5280,0) -> 4 | AI22: =ROUNDUP((Quantities[[#This Row],[Berm (ft)]]+Quantities[[#This Row],[Chain Link Fence (ft)]])/500,0) -> 37 | AJ22: - | AK22: - | AL22: - | AM22: - | AN22: -
A23: 1700 | B23: Deadman Diversion | C23: Diversion-0 | D23: Diversion | E23: 555575 | F23: - | U23: 0.4 | V23: 0 | W23: 1 | X23: 1.2 | Y23: 3600 | Z23: 3600 | AA23: 1000 | AB23: - | AC23: 2026-01-01 | AD23: 2027-12-31 | AE23: - | AF23: - | AG23: - | AH23: - | AI23: - | AJ23: - | AK23: 1400 | AL23: - | AM23: - | AN23: -
A24: 1701 | B24: East In-Pit Fill Material | C24: Diversion-1 | D24: Cut/Fill | E24: =E7 -> 433640 | F24: 48339 | G24: 0 | O24: =AVERAGE(70,579) -> 324.5 | P24: =AVERAGE(0.182,0.1203) -> 0.15115 | Q24: =657/2 -> 328.5 | R24: 0 | S24: =220/2 -> 110 | T24: =AVERAGE(0.3162,0) -> 0.1581 | U24: 0.4 | V24: 0 | W24: 1 | X24: 1.2 | Y24: 3600 | Z24: 3600 | AA24: 1000 | AB24: - | AC24: 2026-01-01 | AD24: 2027-12-31 | AF24: - | AG24: -
A25: 1702 | B25: Northern Haul Road Fill Material | C25: Diversion-2 | D25: Cut/Fill | E25: 367421 | F25: 1032816 | G25: 0 | H25: -0.29 | O25: 390 | P25: 0.1015 | Q25: 346 | R25: -0.1151 | S25: - | T25: - | U25: 0.4 | V25: 0 | W25: 1 | X25: 1.2 | Y25: 3600 | Z25: 3600 | AA25: 1000 | AB25: - | AC25: 2026-01-01 | AD25: 2027-12-31 | AE25: - | AF25: - | AG25: - | AH25: - | AI25: - | AJ25: - | AK25: - | AL25: - | AM25: - | AN25: -
A26: 1703 | B26: Deadman Diversion and Spanning Arch Culvert Area Cut & Relocate | C26: Diversion-3 | D26: Cut/Fill | E26: 45500 | F26: 16900 | G26: 0 | H26: -0.29 | O26: 329 | P26: -0.2004 | Q26: - | R26: - | S26: - | T26: - | U26: 0.4 | V26: 0 | W26: 1 | X26: 1.2 | Y26: 3600 | Z26: 3600 | AA26: 1000 | AB26: - | AC26: 2026-01-01 | AD26: 2027-12-31 | AE26: - | AF26: - | AG26: - | AH26: - | AI26: - | AJ26: - | AK26: - | AL26: - | AM26: - | AN26: -
A27: 1704 | B27: Deadman Diversion Outslope | C27: Diversion-4 | D27: Outslopes | E27: 433512 | F27: 47431.75926 | G27: 20 | H27: -0.29 | K27: 798 | L27: 0 | M27: 2232 | N27: =Quantities[[#This Row],[Channels (ft)]] -> 2232 | U27: 0.4 | V27: 0 | W27: 1 | X27: 1.2 | Y27: 3600 | Z27: 3600 | AA27: 1000 | AC27: 2026-01-01 | AD27: 2027-12-31 | AE27: - | AF27: - | AG27: - | AH27: - | AI27: - | AJ27: - | AK27: - | AL27: - | AM27: - | AN27: -
A28: 1800 | B28: All Previously Reclaimed | C28: All Previously Reclaimed | D28: All Previously Reclaimed | E28: =SUM(E29:E31) -> 1415700 | U28: 0.4 | V28: 0 | W28: 1 | X28: 1.2 | Y28: 3600 | Z28: 3600 | AA28: 1000 | AB28: - | AC28: - | AD28: - | AE28: - | AF28: - | AG28: - | AH28: - | AI28: - | AJ28: - | AK28: - | AL28: - | AM28: - | AN28: -
A29: 1801 | B29: West Canyon Stockpile | C29: Previously Reclaimed Area | D29: Previously Reclaimed Area | E29: =1.5*43560 -> 65340 | U29: 0.4 | V29: 0 | W29: 1 | X29: 1.2 | Y29: 3600 | Z29: 3600 | AA29: 1000 | AB29: - | AC29: - | AD29: 2014-12-31 | AE29: - | AF29: - | AG29: - | AH29: - | AI29: - | AJ29: - | AK29: - | AL29: - | AM29: - | AN29: -
A30: 1802 | B30: P-Plant | C30: Previously Reclaimed Area | D30: Previously Reclaimed Area | E30: 51462 | U30: 0.4 | V30: 0 | W30: 1 | X30: 1.2 | Y30: 3600 | Z30: 3600 | AA30: 1000 | AB30: - | AC30: - | AD30: 2010-12-31 | AE30: - | AF30: - | AG30: - | AH30: - | AI30: - | AJ30: - | AK30: - | AL30: - | AM30: - | AN30: -
A31: 1803 | B31: Copper Leach | C31: Previously Reclaimed Area | D31: Previously Reclaimed Area | E31: =(31*43560)-E30 -> 1298898 | U31: 0.4 | V31: 0 | W31: 1 | X31: 1.2 | Y31: 3600 | Z31: 3600 | AA31: 1000 | AB31: - | AC31: - | AD31: 2011-12-31 | AF31: - | AG31: -
A32: 1900 | B32: Seepage Collection Systems | C32: Seepage Collection Systems | D32: Seepage Collection Systems | E32: 0 | F32: - | G32: - | H32: - | I32: - | J32: - | K32: - | L32: - | M32: - | N32: - | O32: - | P32: - | Q32: - | R32: - | S32: - | T32: - | U32: - | V32: - | W32: - | X32: - | Y32: - | Z32: - | AA32: - | AB32: - | AC32: - | AD32: - | AE32: - | AF32: - | AG32: - | AH32: - | AI32: - | AJ32: - | AK32: - | AL32: - | AM32: - | AN32: -
A33: 2000 | B33: Monitoring & Exploration Wells | C33: Wells-0 | D33: All Wells | H33: - | K33: - | L33: - | M33: - | N33: - | U33: 0.4 | V33: 0 | W33: 1 | X33: 1.2 | Y33: 3600 | Z33: 3600 | AA33: 1000 | AB33: - | AE33: - | AF33: - | AG33: - | AH33: - | AI33: - | AJ33: - | AK33: - | AL33: - | AM33: =SUM(AM34:AM43) -> 2850 | AN33: =SUM(AN34:AN43) -> 750
A34: 2001 | B34: Exploration Holes | C34: Wells-1 | D34: Exploration Holes | U34: 0.4 | V34: 0 | W34: 1 | X34: 1.2 | Y34: 3600 | Z34: 3600 | AA34: 1000 | AB34: - | AE34: - | AF34: - | AG34: - | AH34: - | AI34: - | AJ34: - | AK34: - | AL34: - | AM34: =10*150 -> 1500 | AN34: -
A35: 2002 | B35: LRW-4 | C35: Wells-2 | D35: Monitoring Well | U35: 0.4 | V35: 0 | W35: 1 | X35: 1.2 | Y35: 3600 | Z35: 3600 | AA35: 1000 | AB35: - | AE35: - | AF35: - | AG35: - | AH35: - | AI35: - | AJ35: - | AK35: - | AL35: - | AM35: =1*150 -> 150 | AN35: =1*150 -> 150
A36: 2003 | B36: LRW-5 | C36: Wells-3 | D36: Monitoring Well | U36: 0.4 | V36: 0 | W36: 1 | X36: 1.2 | Y36: 3600 | Z36: 3600 | AA36: 1000 | AB36: - | AE36: - | AF36: - | AG36: - | AH36: - | AI36: - | AJ36: - | AK36: - | AL36: - | AM36: =1*150 -> 150 | AN36: -
A37: 2004 | B37: 1236-2012-01 | C37: Wells-4 | D37: Monitoring Well | U37: 0.4 | V37: 0 | W37: 1 | X37: 1.2 | Y37: 3600 | Z37: 3600 | AA37: 1000 | AB37: - | AE37: - | AF37: - | AG37: - | AH37: - | AI37: - | AJ37: - | AK37: - | AL37: - | AM37: 150 | AN37: -
A38: 2005 | B38: 1236-2016-01 | C38: Wells-5 | D38: Monitoring Well | U38: 0.4 | V38: 0 | W38: 1 | X38: 1.2 | Y38: 3600 | Z38: 3600 | AA38: 1000 | AB38: - | AE38: - | AF38: - | AG38: - | AH38: - | AI38: - | AJ38: - | AK38: - | AL38: - | AM38: 150 | AN38: =1*150 -> 150
A39: 2006 | B39: 1236-2016-02 | C39: Wells-6 | D39: Monitoring Well | U39: 0.4 | V39: 0 | W39: 1 | X39: 1.2 | Y39: 3600 | Z39: 3600 | AA39: 1000 | AB39: - | AE39: - | AF39: - | AG39: - | AH39: - | AI39: - | AJ39: - | AK39: - | AL39: - | AM39: 150 | AN39: =1*150 -> 150
A40: 2007 | B40: 1236-2016-03 | C40: Wells-7 | D40: Monitoring Well | U40: 0.4 | V40: 0 | W40: 1 | X40: 1.2 | Y40: 3600 | Z40: 3600 | AA40: 1000 | AB40: - | AE40: - | AF40: - | AG40: - | AH40: - | AI40: - | AJ40: - | AK40: - | AL40: - | AM40: 150 | AN40: =1*150 -> 150
A41: 2008 | B41: 1236-2016-04 | C41: Wells-8 | D41: Monitoring Well | U41: 0.4 | V41: 0 | W41: 1 | X41: 1.2 | Y41: 3600 | Z41: 3600 | AA41: 1000 | AB41: - | AE41: - | AF41: - | AG41: - | AH41: - | AI41: - | AJ41: - | AK41: - | AL41: - | AM41: 150 | AN41: -
A42: 2009 | B42: 1236-2016-05 | C42: Wells-9 | D42: Monitoring Well | U42: 0.4 | V42: 0 | W42: 1 | X42: 1.2 | Y42: 3600 | Z42: 3600 | AA42: 1000 | AB42: - | AE42: - | AF42: - | AG42: - | AH42: - | AI42: - | AJ42: - | AK42: - | AL42: - | AM42: 150 | AN42: -
A43: 2010 | B43: 1236-2016-06 | C43: Wells-10 | D43: Monitoring Well | H43: - | K43: - | L43: - | M43: - | N43: - | U43: 0.4 | V43: 0 | W43: 1 | X43: 1.2 | Y43: 3600 | Z43: 3600 | AA43: 1000 | AB43: - | AE43: - | AF43: - | AG43: - | AH43: - | AI43: - | AJ43: - | AK43: - | AL43: - | AM43: 150 | AN43: =1*150 -> 150
A44: 2100 | B44: Substation, Powerline Corridors, Pipeline Corridors | C44: Substation, Powerline Corridors, Pipeline Corridors | D44: Substation, Powerline Corridors, Pipeline Corridors | E44: =('2 Demo'!C14+46350)*30 -> 1771500 | U44: 0.4 | V44: 0 | W44: 1 | X44: 1.2 | Y44: 3600 | Z44: 3600 | AA44: 1000 | AB44: - | AC44: 2032-01-01 | AD44: 2032-12-31 | AE44: - | AF44: - | AG44: - | AH44: - | AI44: - | AJ44: - | AK44: - | AL44: - | AM44: - | AN44: -
A45: 2200 | B45: Allowance for Other Disturbed Areas | C45: Unplanned Disturbance Area | D45: Unplanned Disturbance Area | E45: =10*43560 -> 435600 | F45: 0 | G45: 0 | H45: 0.01 | I45: 1000 | J45: 0 | K45: - | L45: - | M45: - | N45: - | U45: 0.4 | V45: 0 | W45: 1 | X45: 1.2 | Y45: 3600 | Z45: 3600 | AA45: 1000 | AB45: - | AC45: 2032-01-01 | AD45: 2032-12-31 | AE45: - | AF45: - | AG45: - | AH45: - | AI45: - | AJ45: - | AL45: - | AM45: - | AN45: -
A46: 5000 | B46: North Stockpile | C46: =A4 -> 1000 | D46: Cover Material | E46: =VLOOKUP(Quantities[[#This Row],[Sub Area or Destination for Cover Material]],$A$4:$E$45,$E$2) -> 2144516 | O46: 750 | P46: -0.1 | Q46: 3125 | R46: 0.1 | S46: 0 | T46: 0 | U46: =4/10 -> 0.4 | V46: 0.08 | W46: 1 | X46: 1.2 | Y46: 3600 | Z46: 3600 | AA46: 1000
A47: 5001 | B47: North Stockpile | C47: =A7 -> 1100 | D47: Cover Material | E47: =VLOOKUP(Quantities[[#This Row],[Sub Area or Destination for Cover Material]],$A$4:$E$45,$E$2) -> 433640 | O47: 2250 | P47: -0.1 | Q47: 3650 | R47: -0.017 | S47: 800 | T47: -0.1 | U47: 0.4 | V47: 0.08 | W47: 1 | X47: 1.2 | Y47: 3600 | Z47: 3600 | AA47: 1000
A48: 5002 | B48: North Stockpile | C48: =A12 -> 1300 | D48: Cover Material | E48: =VLOOKUP(Quantities[[#This Row],[Sub Area or Destination for Cover Material]],$A$4:$E$45,$E$2) -> 4750990 | O48: 550 | P48: -0.1 | Q48: 2000 | R48: 0 | S48: 475 | T48: -0.1 | U48: 0.4 | V48: 0.08 | W48: 1 | X48: 1.2 | Y48: 3600 | Z48: 3600 | AA48: 1000
A49: 5003 | B49: North Stockpile | C49: =A23 -> 1700 | D49: Cover Material | E49: =VLOOKUP(Quantities[[#This Row],[Sub Area or Destination for Cover Material]],$A$4:$E$45,$E$2) -> 555575 | O49: =O47 -> 2250 | P49: =P47 -> -0.1 | Q49: =Q47 -> 3650 | R49: =R47 -> -0.017 | S49: 400 | T49: -0.1 | U49: 0.4 | V49: 0.08 | W49: 1 | X49: 1.2 | Y49: 3600 | Z49: 3600 | AA49: 1000
A50: 5004 | B50: North Stockpile | C50: =$A$30 -> 1802 | D50: Cover Material | E50: =VLOOKUP(Quantities[[#This Row],[Sub Area or Destination for Cover Material]],$A$4:$E$45,$E$2) -> 51462 | O50: =AVERAGE(O46:O49) -> 1450 | P50: =SUMPRODUCT(O46:O49,P46:P49)/O50/4 -> -0.1 | Q50: =AVERAGE(Q49,Q46,Q47,Q48) -> 3106.25 | R50: =SUMPRODUCT(Q46:Q49,R46:R49)/Q50/4 -> 0.01516297787 | S50: =AVERAGE(S49,S46,S47,S48) -> 418.75 | T50: =SUMPRODUCT(S46:S49,T46:T49)/S50/4 -> -0.1 | U50: 0.4 | V50: 0.08 | W50: 1 | X50: 1.2 | Y50: 3600 | Z50: 3600 | AA50: 1000
A51: 5005 | B51: North Stockpile | C51: =$A$45 -> 2200 | D51: Cover Material | E51: =VLOOKUP(Quantities[[#This Row],[Sub Area or Destination for Cover Material]],$A$4:$E$45,$E$2) -> 435600 | O51: =O50 -> 1450 | P51: =P50 -> -0.1 | Q51: 3106.25 | R51: 0.01516297787 | S51: 418.75 | T51: -0.1 | U51: 0.4 | V51: 0.08 | W51: 1 | X51: 1.2 | Y51: 3600 | Z51: 3600 | AA51: 1000
A57: Data from 2020 Little Rock Mine CCP
O124: =SUMPRODUCT(O87:O105,$F$87:$F$105)/SUM($F$87:$F$105) -> 

Sheet Unit Rates
G1: ='1 General'!C1 -> Little Rock Mine
G2: Unit Rates Worksheet
G3: ='1 General'!C3 -> 44740
B4: Unit Rates
A10: Code | B10: Activity | C10: Base Per Unit Cost | D10: Fuel Per Unit Cost | E10: Units | F10: Source | G10: Reference
A11: U1 | B11: Fuel | C11: 2.71 | D11: 0 | E11: gal | F11: - | G11: Diesel fuel cost is estimated by correlating historical local quotes with public data, as agreed upon in November 2018 discussions with the agencies. Fuel cost includes direct and indirect costs at $2.71/gal, as agreed upon in a letter to MMD dated January, 18 2022.
A12: U2a | B12: Revegetation | C12: =Revegetation_UC!C76-UnitRates[[#This Row],[Fuel Per Unit Cost]] -> 854.5012844 | D12: =Revegetation_UC!C23 -> 4.456595 | E12: ac | F12: Revegetation Unit Cost Sheet | G12: See unit rates calculations - Cost is based on a calculated unit rate that includes tractor rental and maintenance, fuel, scarifying, discing, drill seeding, mulching, crimping, seed, and mulch.
A13: U2b | B13: Seed | C13: =(210)*(1+0.02)^(2021-2018) -> 222.85368 | D13: 0 | E13: ac | F13: Quote | G13: Rocky Mountain Reclamation, 4/2018, est. cost for seed at 8.9 PLS/ac, $210/ac. Escalated 2% 2018-2021= $222.85/ac
A14: U2c | B14: Mulch | C14: =(245)*(1+0.02)^(2021-2018) -> 259.99596 | D14: 0 | E14: ton | F14: Quote | G14: Rocky Mountain Reclamation, 4/2018, est. cost for hay mulch (nox. weed free, native), $245/ton). Escalated 2% 2018-2021= $260.00/ton
A15: U2d | B15: Manual Seeding | C15: =672*0.37 -> 248.64 | D15: 0 | E15: day | F15: Means Line Item 329343.10 0560 | G15: Planting, trees, shrubs, and ground cover, medium soil, bare root seedlings, 3" to 5", includes planting only
A16: U3 | B16: Bench Grading Stockpile | C16: ='Bench Grading_UC'!Z11 -> 1.617641503 | D16: ='Bench Grading_UC'!AA11 -> 0.474319133 | E16: ft | F16: Bench Grading Unit Cost Sheet | G16: See unit rates calculations
A17: U4 | B17: Bench Grading Tailings Pond | C17: ='Bench Grading_UC'!Z21 -> 1.617641503 | D17: ='Bench Grading_UC'!AA21 -> 0.474319133 | E17: ft | F17: Bench Grading Unit Cost Sheet | G17: See unit rates calculations
A18: U5 | B18: Deadman Diversion Channel Construction | C18: ='Deadman Diversion_UC'!F19 -> 490.7421862 | D18: 0 | E18: ft | F18: Quote | G18: See unit rates calculations
A19: U6 | B19: Downdrain Construction | C19: =Downdrain_UC!F18 -> 389.655437 | D19: 0 | E19: ft | F19: Downdrain Unit Cost Sheet | G19: See unit rates calculations
A20: U7 | B20: Downdrain Dissipater | C20: =Downdrain_UC!F35 -> 15106.89076 | D20: 0 | E20: ea | F20: Downdrain Unit Cost Sheet | G20: See unit rates calculations
A21: U8a | B21: Channel Construction w/ Riprap | C21: =Channel_UC!W13 -> 7.247342251 | D21: =Channel_UC!X13 -> 1.582254743 | E21: ft | F21: Channel Unit Cost Sheet | G21: See unit rates calculations
A22: U8b | B22: Channel Construction w/o Riprap | C22: =Channel_UC!W8 -> 0.4838010014 | D22: =Channel_UC!X8 -> 0.1470919046 | E22: ft | F22: Channel Unit Cost Sheet | G22: See unit rates calculations
A23: U9 | B23: Erosion Control | C23: ='2 Full Site O&M'!E134 -> 3014.455909 | D23: ='2 Full Site O&M'!F134 -> 442.7056 | E23: day | F23: Modified Crew B-13A | G23: Erosion control for O&M - includes 1 foreman, 2 laborers, 1 equipment operator, 2 truck drivers, 1 loader (4 cy), 2 dump trucks (8 cy)
A24: U10 | B24: Structure Demolition | C24: 0.23 | D24: 0 | E24: cf | F24: Means Line Item 024116.13 0100 | G24: Building demolition, large urban projects, mixture of types, excludes foundation demolition, dump fees
A25: U11 | B25: Concrete Slab Demolition | C25: 0.62 | D25: 0 | E25: sf | F25: Means Line Item 024116.17 0400 | G25: Building footings and foundations demolition, floors, concrete slab on grade, plain concrete, 6" thick, excludes disposal costs and dump fees
A26: U12 | B26: Storage Tank Demolition | C26: 1059.54 | D26: 0 | E26: ea | F26: Means Line Item 130505.75 0530 | G26: Selective Demolition - Storage Tanks, steel tank, single wall, above ground, not including foundations, pumps or piping, 5,000 thru 10,000 gallon
A27: U13 | B27: Storage Tank Demolition | C27: 2098.05 | D27: 0 | E27: ea | F27: Means Line Item 130505.75 0540 | G27: Steel tank, single wall, above ground, 15,000 thru 30,000 gallon, selective demolition, excluding foundation, pumps or piping
A28: U14a | B28: Power Line Demolition | C28: 0.63 | D28: 0 | E28: ft | F28: Means Line Item 260505.10 0370 | G28: Electrical Demolition - Nonmetallic sheathed cable 3 wire; assume similar enough in cost to overhead powerlines.
A29: U14b | B29: Power Line Demolition | C29: =2188+1152+491.6+509.6 -> 4341.2 | D29: 0 | E29: day | F29: Crew B-12N Crew B-17 Crew B-68C | G29: Bare Costs: 2-laborers (B17: $44.40/hr, $710.40/day), 1-equipment operator (light) (B17: $55.50/hr, $444/day), 1-truck driver (heavy) (B17: $51.30/hr, $410.4/day), 1-48 HP backhoe loader (B17: $216.20/day), 1-8 cy 220 HP dump truck (B17: $407.60/day), 1-electrician (B68C: $63.70/hr, $509.60/day), 1-25-ton hydraulic crane (B12N: $1152/day), 1-crane operator (B12N: $61.45/hr, $491.60/day)
A30: U15 | B30: Power Pole Demolition | C30: 220.56 | D30: 0 | E30: ea | F30: Means Line Item 024113.80 0200 | G30: Selective Demolition - wood utility poles 35-45 ft high
A31: U16 | B31: Pipeline (small HDPE pipe) | C31: ='6"-8" Pipeline_UC'!D21 -> 2.955044475 | D31: 0 | E31: ft | F31: Pipeline Demo Sheet | G31: Selective demolition water, process water HDPE piping; (6 to 8-inch diameter); excludes excavation
A32: U17 | B32: Pipeline (large HDPE pipe) | C32: ='20"-36" Pipeline_UC'!D21 -> 7.041138233 | D32: 0 | E32: ft | F32: Pipeline Demo Sheet | G32: Selective demolition water, process water HDPE piping (20 to 36-inch diameter); excludes excavation
A33: U18 | B33: Well Plug & Abandon | C33: =18.17*(1+0.02)^(2021-2019) -> 18.904068 | D33: 0 | E33: ft | F33: Quote | G33: Unit cost of $18.17/ft is based on a July 2019 direct quote from Layne, A Granite Company (formerly Layne Christensen Company) for a total of 172,631 ft of well and exploration borehole abandonment over 300 days (575 ft/day); the unit cost includes 1 mobilization ($15,000) and 1 demobilization ($15,000) spread over 300 days at 575 ft/day. Escalated 2% 2019-2021 = $18.90
A34: U19 | B34: Well Replacement | C34: =(173500/3000)*(1+0.02)^(2021-2011) -> 70.49851062 | D34: 0 | E34: ft | F34: Quote | G34: Wilcox Professional Services, 8/2011, est. cost for 5 ½ in bore, $173,500 for 3000 ft total ($57.83/ft). Escalated 2% 2011-2021= $70.50/ft
A35: U20 | B35: Seepage Collection Replacement | C35: 133355.9403 | D35: 0 | E35: ea | G35: Est. cost from 2019 Tyrone RCE
A36: U21 | B36: Reinforced Concrete Wall Demolition | C36: =1789.5/8*D60 -> 190.58175 | D36: 0 | E36: hr | F36: Means Crew B-12C | G36: Standard Union Crew: 1 equipment operator (crane), 1 laborer, 1 hydraulic excavator, 2 cy, approximately 40 hrs to demo 200 ft reinforced concrete dam.
A37: U22 | B37: Disc harrow attachment, for tractor | C37: 670.65 | D37: 0 | E37: month | F37: Means Line Item 015433.20 1500 | G37: Equipment rental costs
A38: U23 | B38: Cast-In-Place Concrete | C38: 262.58 | D38: 0 | E38: cy | F38: Means Line Item 033053.40 6200 | G38: Structural concrete, in place, gravity retaining wall (3000 psi), includes forms and reinforcement
A39: U24 | B39: Cleanup & Disposal of Wastes Requiring Special Handling | C39: 334.41 | D39: 0 | E39: ton | F39: Means Line Item 028120.10 1120/1130 | G39: Solid pickup; average of minimum and maximum
A40: U25 | B40: Tranportation of Wastes Requiring Special Handling | C40: 4.78 | D40: 0 | E40: mile | F40: Means Line Item 028120.10 1260/1270 | G40: Transporation to disposal site (Truckload = 80 drums or 25 cy or 18 tons); average of minimum and maximum
A41: U26 | B41: Road Maintenance | C41: ='2 Full Site O&M'!K132 -> 5340.504545 | D41: ='2 Full Site O&M'!L132 -> 1332 | E41: month | G41: Road maintenance for O&M - includes one 14M motor grader and one 6,000-gal water truck
A42: U27 | B42: Berming | C42: =Berm_UC!Y10 -> 0.3735764884 | D42: 0 | E42: ft | F42: See Berm Unit Cost Sheet | G42: See unit rates calculations
A43: U28 | B43: Livestock Fencing | C43: =154.97/1000 -> 0.15497 | D43: 0 | E43: ft | F43: Means Line Item 323126.20 0020 | G43: Wire fencing & gates, wire fencing general, barbed wire, galvanized, domestic steel, standard, 12-3/4 ga.
A44: U29 | B44: Chain Link Fencing | C44: 24.65 | D44: 0 | E44: ft | F44: Means Line Item 323113.20 0800 | G44: Fence, chain link industrial, galvanized steel, 6 ga. wire, 2" posts @ 10' OC, 6' high, includes excavation, & concrete, excludes barbed wire
A45: U30 | B45: Vehicle Gates, Pit Perimeters | C45: 957.01 | D45: 0 | E45: ea | F45: Means Line Item 323113.20 5070 | G45: Fence, chain link industrial, double swing gates, 6' high, 20' opening, includes excavation, posts & hardware in concrete
A46: U31 | B46: Signs every 500 ft., pit perimeters | C46: 73.63 | D46: 0 | E46: ea | F46: Means Line Item 101453.20 0600 | G46: Signs, guide and directional signs, reflectorized, 12" x 18", excludes posts
A47: U32 | B47: Fire Hydrant Demolition | C47: 398.83 | D47: 0 | E47: ea | F47: Means Line Item 024113.23 0900 | G47: Utility removal, hydrants, fire, remove only, excludes hauling
A48: U33 | B48: Culvert Removal | C48: 12.46 | D48: 0 | E48: ft | F48: Means Line Item 024113.40 0190 | G48: Selective demolition, metal drainage piping, CMP, steel, 48"-60", diameter, excludes excavation
A49: U34 | B49: Grade Control Wall | C49: 170.79 | D49: 0 | E49: cy | F49: Means Line Item 033053.40 3945 | G49: Structural concrete, in place, continuous strip footing (3000 psi), 36" wide x 12" deep, unreinforced, includes forms(4 uses), concrete (Portland cement Type I), placing and finishing, excludes reinforcing
A50: U35 | B50: Sludge Removal | C50: 305.54 | D50: 0 | E50: ea | F50: Means Line Item 026510.30 0320 | G50: Removal of underground storage tanks, petroleum storage tanks, non-leaking, remove sludge, water and remaining product from tank bottom of tank with vacuum truck, 9,000 - 12,000 gallon tank
A51: U36 | B51: Earth Fill Removal (dozer excavate, haul, spread) | C51: 5.2 | D51: 0 | E51: cy | F51: Means Line Item 312316.46 6070 | G51: Excavating, bulk, dozer, open site, bank measure, common earth, 700 HP dozer, 300' haul
A52: U37 | B52: Concrete Foundation and Metal Arch (excavate and load) | C52: 1.55 | D52: 0 | E52: cy | F52: Means Line Item 312316.46 6010 | G52: Excavating, bulk, dozer, open site, bank measure, common earth, 700 HP dozer, 50' haul
A53: U38 | B53: Concrete Foundation and Metal Arch (haul and dump) | C53: 2.87 | D53: 0 | E53: cy | F53: Means Line Item 312323.20 5040 | G53: Cycle hauling(wait, load, travel, unload or dump & return) time per cycle, excavated or borrow, loose cubic yards, 15 min load/wait/unload, 22 C.Y. truck, cycle 1 mile, 5 MPH, excludes loading equipment
A54: U39 | B54: Substation Demo | C54: ='Substation Demo_UC'!A38 -> 12266.2 | D54: 0 | E54: ea | F54: Substation Unit Cost Sheet | G54: See unit rates calculations
A55: U40 | B55: Clay Fill | C55: =12.61 -> 12.61 | D55: 0 | E55: cy | F55: Means Line Item 312323.15 6075 | G55: Clay fill (material cost only)
A56: U41 | B56: Transformer | C56: ='Substation Demo_UC'!A6 -> 1069.16 | E56: Ea. | F56: Means Line Item 260505.10 1570 | G56: Transformer, dry type, primary, 3 phase, to 600 V, 750 kVA, electrical demolition, remove, including removal of supports, wire & conduit terminations
A57: U42 | B57: Steam Cleaner | C57: ='Substation Demo_UC'!A26 -> 313.04 | D57: 0 | E57: week | F57: Means Line Item 015433.40 6300 | G57: Rent steam cleaner 100 gph, Incl. Hourly Oper. Cost.
C60: RS Means Location Adjustment: New Mexico Las Cruces | D60: 0.852
B61: Not all unit rates are used in this RCE. Other unit rates are kept for alternatives and testing purposes and to maintain spreadsheet integrity
B62: [1] Applied to RSM derived costs only. EquipmentWatch items and items based on local quotes adjusted at base rate
B63: RS Means Online, 2021, New Mexico Las Cruces

Sheet Equipment
B1: EARTHWORK AND O&M EQUIPMENT
A2: 1 | B2: 2 | C2: 3 | D2: 4 | E2: 5 | F2: 6 | G2: 7 | H2: 8 | I2: 9 | J2: 10 | K2: 11 | L2: 12 | M2: 13 | N2: 14 | O2: 15 | P2: 16 | Q2: 17 | R2: 18 | S2: 19 | T2: 20 | U2: 21 | V2: 22 | W2: 23 | X2: 24 | Y2: 25 | Z2: 26 | AA2: 27 | AB2: 28 | AC2: 29 | AD2: 30 | AE2: 31 | AF2: 32 | AG2: 33 | AH2: 34 | AI2: 35 | AJ2: 36 | AK2: 37 | AL2: 38 | AM2: 39 | AN2: 40 | AO2: 41 | AP2: 42 | AQ2: 43 | AR2: 44 | AS2: 45 | AT2: 46 | AU2: 47 | AV2: 48 | AW2: 49 | AX2: 50 | AY2: 51 | AZ2: 52 | BA2: 53 | BB2: 54 | BC2: 55 | BD2: 56 | BE2: 57 | BF2: 58 | BG2: 59 | BH2: 60 | BI2: 61 | BJ2: 62 | BK2: 63 | BL2: 64 | BM2: 65 | BN2: 66 | BO2: 67 | BP2: 68 | BQ2: 69 | BR2: 70 | BS2: 71
M3: Dozing Production (lcy/hr)1 | O3: Haul Travel Time (min/m) = A(Eff. Grade %)4 + B(Eff. Grade %)3 + C(Eff. Grade %)2 + D(Eff. Grade %) + E
M4: Production = C(Avg. dozing distance in ft)b | O4: Loaded Uphill | T4: Empty Uphill | Y4: Loaded Downhill | AD4: Empty Downhill | AU4: Ripper Factors | BO4: Push Cycle Time D9T
A5: Code | B5: Equipment Description | C5: Equipment Type | D5: Fuel Consumption (gal/hr) | E5: Fuel Cost ($/hr) | F5: Lube Cost ($/hr) | G5: Field Parts & Ground Engaging Component Cost ($/hr) | H5: Tire Cost ($/hr) | I5: Monthly Rental Rate ($/month) | J5: Field Labor Time Cost ($/hr) | K5: Rental Cost (w/o fuel, lube, tires, or field parts) ($/hr)5 | L5: Lube, Tires, GEC, & Field Parts Adjusted Rental Cost (w/o fuel) ($/hr) | M5: C | N5: b | O5: A | P5: B | Q5: C | R5: D | S5: E | T5: A | U5: B | V5: C | W5: D | X5: E | Y5: A | Z5: B | AA5: C | AB5: D | AC5: E | AD5: A | AE5: B | AF5: C | AG5: D | AH5: E | AI5: Loaded Speed (mph)4 | AJ5: Empty Speed (mph) | AK5: Pass Overlap (ft) | AL5: Operator Factor: Coarse Regrading | AM5: Operator Factor: Fine Grading, Cover, Other Surfaces, and Channels | AN5: Visibility Factor | AO5: Elevation Factor | AP5: Direct Drive Trans. | AQ5: Production Method/ Blade Factor: Coarse and Fine Grading | AR5: Production Method/ Blade Factor: Channels, Downdrains, Benches | AS5: Work Hour (min/hr) | AT5: Effective Blade Width (ft) | AU5: Penetration (in) | AV5: Pocket Spacing (in) | AW5: Number of Pockets | AX5: Turn Time (min/pass) | AY5: Dist. b/n Passes (in) | AZ5: Net Bucket Capacity (cy) | BA5: Loader Cycle Time1 (min) | BB5: Bucket Fill Factor | BC5: Struck Capacity (cy) | BD5: Heaped Capacity (cy) | BE5: Sheepsfoot Roller Width (ft) | BF5: Max Reach at GL (in) | BG5: Swing Time (Loaded) (min) | BH5: Swing Time (Empty) (min) | BI5: Rolling Resistance (%) | BJ5: Truck Exchange Time (min) | BK5: Dump/ Maneuver Time (min) | BL5: Rated Load (lb) | BM5: Load Time (min) | BN5: Maneuver & Spread Time (min) | BO5: Boost Time (min) | BP5: Return Time and Load Time (min) | BQ5: Maneuver Time (min) | BR5: NMDOL Operator Group | BS5: NMDOL Total 2021 Rate ($/hr)
A6: - | B6: - | C6: placeholder | D6: 0 | E6: 0 | F6: 0 | G6: 0 | H6: 0 | I6: 0 | J6: 0 | K6: 0 | L6: 0 | M6: - | N6: - | O6: - | P6: - | Q6: - | R6: - | S6: - | T6: - | U6: - | V6: - | W6: - | X6: - | Y6: - | Z6: - | AA6: - | AB6: - | AC6: - | AD6: - | AE6: - | AF6: - | AG6: - | AH6: - | AI6: - | AJ6: - | AK6: - | AL6: - | AM6: - | AN6: - | AO6: - | AP6: - | AQ6: - | AR6: - | AS6: - | AT6: - | AU6: - | AV6: - | AW6: - | AX6: - | AY6: - | AZ6: - | BA6: - | BB6: - | BC6: - | BD6: - | BE6: - | BF6: - | BG6: - | BH6: - | BI6: - | BJ6: - | BK6: - | BL6: - | BM6: - | BN6: - | BO6: - | BP6: - | BQ6: - | BR6: =CONCATENATE(BR36," & ", BR22) -> Truck Driver V & Equipment Operator VI | BS6: =BS36+BS22 -> 53.52
A7: Comb1 | B7: Cat 14M, Off-Hwy Water Tanker Truck,6,000-gal. | C7: Combo 1 | D7: =D36+D21 -> 19.54 | E7: =Equipment[[#This Row],[Fuel Consumption (gal/hr)]]*$C$57 -> 52.9534 | F7: =F21+F36 -> 11.11 | G7: =G36+G21 -> 6.96 | H7: 14.4 | I7: =I36+I21 -> 21648.18 | J7: 11.55 | K7: =K36+K21 -> 123.0010227 | L7: =L36+L21 -> 167.0210227 | M7: - | N7: - | O7: - | P7: - | Q7: - | R7: - | S7: - | T7: - | U7: - | V7: - | W7: - | X7: - | Y7: - | Z7: - | AA7: - | AB7: - | AC7: - | AD7: - | AE7: - | AF7: - | AG7: - | AH7: - | AI7: - | AJ7: - | AK7: - | AL7: - | AM7: - | AN7: - | AO7: - | AP7: - | AQ7: - | AR7: - | AS7: - | AT7: - | AU7: - | AV7: - | AW7: - | AX7: - | AY7: - | AZ7: - | BA7: - | BB7: - | BC7: - | BD7: - | BE7: - | BF7: - | BG7: - | BH7: - | BI7: - | BJ7: - | BK7: - | BL7: - | BM7: - | BN7: - | BO7: - | BP7: - | BQ7: - | BR7: =CONCATENATE(BR40," & ", BR23) -> Laborer I & Truck Driver III | BS7: =BS40+BS23 -> 48.45
A8: Dz1 | B8: Cat D11T, U Blade | C8: Dozer | D8: 29.75 | E8: =Equipment[[#This Row],[Fuel Consumption (gal/hr)]]*$C$57 -> 80.6225 | F8: 26.19 | G8: 45.25 | H8: 0 | I8: 33764.9 | J8: 8.19 | K8: =Equipment[[#This Row],[Monthly Rental Rate ($/month)]]/176 -> 191.8460227 | L8: =SUM(K8,J8,H8,F8,Equipment[[#This Row],[Field Parts & Ground Engaging Component Cost ($/hr)]]) -> 271.4760227 | M8: 155881.5879 | N8: -0.889952 | O8: - | P8: - | Q8: - | R8: - | S8: - | T8: - | U8: - | V8: - | W8: - | X8: - | Y8: - | Z8: - | AA8: - | AB8: - | AC8: - | AD8: - | AE8: - | AF8: - | AG8: - | AH8: - | AI8: =AI9 -> 2.5 | AJ8: =Equipment[[#This Row],[Loaded Speed (mph)4]] -> 2.5 | AK8: - | AL8: 1 | AM8: =AM9 -> 0.75 | AN8: 1 | AO8: 1 | AP8: 1 | AQ8: 1.2 | AR8: 1 | AS8: 50 | AT8: =18+(4/12) -> 18.33333333 | AU8: - | AV8: - | AW8: - | AX8: - | AY8: - | AZ8: - | BA8: - | BB8: - | BC8: - | BD8: - | BE8: - | BF8: - | BG8: - | BH8: - | BI8: - | BJ8: - | BK8: - | BL8: - | BM8: - | BN8: - | BO8: - | BP8: - | BQ8: - | BR8: Equipment Operator IV | BS8: =VLOOKUP(BR8,$B$65:$C$75,2) -> 28.65
A9: Dz2 | B9: Cat D11T CD | C9: Dozer6 | D9: =D8 -> 29.75 | E9: =Equipment[[#This Row],[Fuel Consumption (gal/hr)]]*$C$57 -> 80.6225 | F9: 17.11 | G9: 19.38 | H9: 0 | I9: 33764.9 | J9: 8.19 | K9: =Equipment[[#This Row],[Monthly Rental Rate ($/month)]]/176 -> 191.8460227 | L9: =SUM(K9,J9,H9,F9,Equipment[[#This Row],[Field Parts & Ground Engaging Component Cost ($/hr)]]) -> 236.5260227 | M9: 162758.7595 | N9: -0.866691 | O9: - | P9: - | Q9: - | R9: - | S9: - | T9: - | U9: - | V9: - | W9: - | X9: - | Y9: - | Z9: - | AA9: - | AB9: - | AC9: - | AD9: - | AE9: - | AF9: - | AG9: - | AH9: - | AI9: 2.5 | AJ9: =Equipment[[#This Row],[Loaded Speed (mph)4]] -> 2.5 | AK9: - | AL9: 1 | AM9: 0.75 | AN9: 1 | AO9: 1 | AP9: 1 | AQ9: 1.2 | AR9: 1 | AS9: 50 | AT9: 22 | AU9: - | AV9: - | AW9: - | AX9: - | AY9: - | AZ9: - | BA9: - | BB9: - | BC9: - | BD9: - | BE9: - | BF9: - | BG9: - | BH9: - | BI9: - | BJ9: - | BK9: - | BL9: - | BM9: - | BN9: - | BO9: - | BP9: - | BQ9: - | BR9: Equipment Operator IV | BS9: 28.65
A10: Dz3 | B10: Cat D9T, SU Blade | C10: Dozer | D10: 14.35 | E10: =Equipment[[#This Row],[Fuel Consumption (gal/hr)]]*$C$57 -> 38.8885 | F10: 12.47 | G10: 17.87 | H10: 0 | I10: 29664.37 | J10: 8.19 | K10: =Equipment[[#This Row],[Monthly Rental Rate ($/month)]]/176 -> 168.5475568 | L10: =SUM(K10,J10,H10,F10,Equipment[[#This Row],[Field Parts & Ground Engaging Component Cost ($/hr)]]) -> 207.0775568 | M10: 52161.03341 | N10: -0.845532 | O10: - | P10: - | Q10: - | R10: - | S10: - | T10: - | U10: - | V10: - | W10: - | X10: - | Y10: - | Z10: - | AA10: - | AB10: - | AC10: - | AD10: - | AE10: - | AF10: - | AG10: - | AH10: - | AI10: 1 | AJ10: =Equipment[[#This Row],[Loaded Speed (mph)4]] -> 1 | AK10: - | AL10: 1 | AM10: 0.75 | AN10: 1 | AO10: 1 | AP10: 1 | AQ10: 1.2 | AR10: 1 | AS10: 50 | AT10: =14 + (1/12) -> 14.08333333 | AU10: - | AV10: - | AW10: - | AX10: - | AY10: - | AZ10: - | BA10: - | BB10: - | BC10: - | BD10: - | BE10: - | BF10: - | BG10: - | BH10: - | BI10: - | BJ10: - | BK10: - | BL10: - | BM10: - | BN10: - | BO10: - | BP10: - | BQ10: - | BR10: Equipment Operator IV | BS10: 28.65
A11: Dz4 | B11: Cat D6T, SU Blade | C11: Dozer | D11: 7.22 | E11: =Equipment[[#This Row],[Fuel Consumption (gal/hr)]]*$C$57 -> 19.5662 | F11: 4.8 | G11: 6.29 | H11: 0 | I11: 8793.77 | J11: 4.92 | K11: =Equipment[[#This Row],[Monthly Rental Rate ($/month)]]/176 -> 49.96460227 | L11: =SUM(K11,J11,H11,F11,Equipment[[#This Row],[Field Parts & Ground Engaging Component Cost ($/hr)]]) -> 65.97460227 | M11: 13582.45339 | N11: -0.74851 | O11: - | P11: - | Q11: - | R11: - | S11: - | T11: - | U11: - | V11: - | W11: - | X11: - | Y11: - | Z11: - | AA11: - | AB11: - | AC11: - | AD11: - | AE11: - | AF11: - | AG11: - | AH11: - | AI11: 1 | AJ11: =Equipment[[#This Row],[Loaded Speed (mph)4]] -> 1 | AK11: - | AL11: 1 | AM11: 0.75 | AN11: 1 | AO11: 1 | AP11: 1 | AQ11: 1.2 | AR11: 1 | AS11: 50 | AT11: =10 + (8/12) -> 10.66666667 | AU11: - | AV11: - | AW11: - | AX11: - | AY11: - | AZ11: - | BA11: - | BB11: - | BC11: - | BD11: - | BE11: - | BF11: - | BG11: - | BH11: - | BI11: - | BJ11: - | BK11: - | BL11: - | BM11: - | BN11: - | BO11: - | BP11: - | BQ11: - | BR11: Equipment Operator IV | BS11: 28.65
A12: Dz5 | B12: Cat D6T XL, SU Blade | C12: Dozer | D12: 7.8 | E12: =Equipment[[#This Row],[Fuel Consumption (gal/hr)]]*$C$57 -> 21.138 | F12: 5 | G12: 8.96 | H12: 0 | I12: 12584.72 | J12: 4.92 | K12: =Equipment[[#This Row],[Monthly Rental Rate ($/month)]]/176 -> 71.50409091 | L12: =SUM(K12,J12,H12,F12,Equipment[[#This Row],[Field Parts & Ground Engaging Component Cost ($/hr)]]) -> 90.38409091 | M12: 13582.45339 | N12: -0.74851 | O12: - | P12: - | Q12: - | R12: - | S12: - | T12: - | U12: - | V12: - | W12: - | X12: - | Y12: - | Z12: - | AA12: - | AB12: - | AC12: - | AD12: - | AE12: - | AF12: - | AG12: - | AH12: - | AI12: =AI11 -> 1 | AJ12: =Equipment[[#This Row],[Loaded Speed (mph)4]] -> 1 | AK12: - | AL12: 1 | AM12: 0.75 | AN12: 1 | AO12: 1 | AP12: 1 | AQ12: 1.2 | AR12: 1 | AS12: 50 | AT12: =10 + (8/12) -> 10.66666667 | AU12: - | AV12: - | AW12: - | AX12: - | AY12: - | AZ12: - | BA12: - | BB12: - | BC12: - | BD12: - | BE12: - | BF12: - | BG12: - | BH12: - | BI12: - | BJ12: - | BK12: - | BL12: - | BM12: - | BN12: - | BO12: - | BP12: - | BQ12: - | BR12: Equipment Operator IV | BS12: 28.65
A13: Ex1 | B13: Cat 319D L | C13: Excavator | D13: 5.25 | E13: =Equipment[[#This Row],[Fuel Consumption (gal/hr)]]*$C$57 -> 14.2275 | F13: 3.01 | G13: 2.87 | H13: 0 | I13: 7018.87 | J13: 5.81 | K13: =Equipment[[#This Row],[Monthly Rental Rate ($/month)]]/176 -> 39.87994318 | L13: =SUM(K13,J13,H13,F13,Equipment[[#This Row],[Field Parts & Ground Engaging Component Cost ($/hr)]]) -> 51.56994318 | M13: - | N13: - | O13: - | P13: - | Q13: - | R13: - | S13: - | T13: - | U13: - | V13: - | W13: - | X13: - | Y13: - | Z13: - | AA13: - | AB13: - | AC13: - | AD13: - | AE13: - | AF13: - | AG13: - | AH13: - | AI13: - | AJ13: - | AK13: - | AL13: - | AM13: - | AN13: - | AO13: - | AP13: - | AQ13: - | AR13: - | AS13: 50 | AT13: - | AU13: - | AV13: - | AW13: - | AX13: - | AY13: - | AZ13: - | BA13: - | BB13: 0.875 | BC13: - | BD13: 1 | BE13: 3 | BF13: 380 | BG13: 0.09 | BH13: 0.07 | BI13: - | BJ13: - | BK13: - | BL13: - | BM13: - | BN13: - | BO13: - | BP13: - | BQ13: - | BR13: Equipment Operator VI | BS13: 28.95
A14: Ld1 | B14: Cat 992K | C14: Loader | D14: 25.63 | E14: =Equipment[[#This Row],[Fuel Consumption (gal/hr)]]*$C$57 -> 69.4573 | F14: 20.71 | G14: 13.99 | H14: 54.99 | I14: 25446.59 | J14: 5.04 | K14: =Equipment[[#This Row],[Monthly Rental Rate ($/month)]]/176 -> 144.5828977 | L14: =SUM(K14,J14,H14,F14,Equipment[[#This Row],[Field Parts & Ground Engaging Component Cost ($/hr)]]) -> 239.3128977 | M14: - | N14: - | O14: - | P14: - | Q14: - | R14: - | S14: - | T14: - | U14: - | V14: - | W14: - | X14: - | Y14: - | Z14: - | AA14: - | AB14: - | AC14: - | AD14: - | AE14: - | AF14: - | AG14: - | AH14: - | AI14: 7.6 | AJ14: 12.8 | AK14: - | AL14: - | AM14: - | AN14: - | AO14: - | AP14: - | AQ14: - | AR14: - | AS14: 50 | AT14: - | AU14: - | AV14: - | AW14: - | AX14: - | AY14: - | AZ14: =Equipment[[#This Row],[Bucket Fill Factor]]*Equipment[[#This Row],[Heaped Capacity (cy)]] -> 14 | BA14: 0.65 | BB14: 0.875 | BC14: - | BD14: 16 | BE14: - | BF14: - | BG14: - | BH14: - | BI14: - | BJ14: - | BK14: - | BL14: - | BM14: - | BN14: - | BO14: - | BP14: - | BQ14: - | BR14: Equipment Operator VII | BS14: 28.97
A15: Ld2 | B15: Cat 988H | C15: Loader | D15: 15.2 | E15: =Equipment[[#This Row],[Fuel Consumption (gal/hr)]]*$C$57 -> 41.192 | F15: 9.9 | G15: 5.02 | H15: 15.51 | I15: 16197.67 | J15: 5.04 | K15: =Equipment[[#This Row],[Monthly Rental Rate ($/month)]]/176 -> 92.03221591 | L15: =SUM(K15,J15,H15,F15,Equipment[[#This Row],[Field Parts & Ground Engaging Component Cost ($/hr)]]) -> 127.5022159 | M15: - | N15: - | O15: - | P15: - | Q15: - | R15: - | S15: - | T15: - | U15: - | V15: - | W15: - | X15: - | Y15: - | Z15: - | AA15: - | AB15: - | AC15: - | AD15: - | AE15: - | AF15: - | AG15: - | AH15: - | AI15: 7.3 | AJ15: 12.9 | AK15: - | AL15: - | AM15: - | AN15: - | AO15: - | AP15: - | AQ15: - | AR15: - | AS15: 50 | AT15: - | AU15: - | AV15: - | AW15: - | AX15: - | AY15: - | AZ15: =Equipment[[#This Row],[Bucket Fill Factor]]*Equipment[[#This Row],[Heaped Capacity (cy)]] -> 7.28875 | BA15: 0.575 | BB15: 0.875 | BC15: - | BD15: 8.33 | BE15: - | BF15: - | BG15: - | BH15: - | BI15: - | BJ15: - | BK15: - | BL15: - | BM15: - | BN15: - | BO15: - | BP15: - | BQ15: - | BR15: Equipment Operator VII | BS15: 28.97
A16: Ld3 | B16: Cat 980H | C16: Loader | D16: 10.8 | E16: =Equipment[[#This Row],[Fuel Consumption (gal/hr)]]*$C$57 -> 29.268 | F16: 5.95 | G16: 2.94 | H16: 11.41 | I16: 12505.85 | J16: 5.04 | K16: =Equipment[[#This Row],[Monthly Rental Rate ($/month)]]/176 -> 71.05596591 | L16: =SUM(K16,J16,H16,F16,Equipment[[#This Row],[Field Parts & Ground Engaging Component Cost ($/hr)]]) -> 96.39596591 | M16: - | N16: - | O16: - | P16: - | Q16: - | R16: - | S16: - | T16: - | U16: - | V16: - | W16: - | X16: - | Y16: - | Z16: - | AA16: - | AB16: - | AC16: - | AD16: - | AE16: - | AF16: - | AG16: - | AH16: - | AI16: 7.3 | AJ16: 12.9 | AK16: - | AL16: - | AM16: - | AN16: - | AO16: - | AP16: - | AQ16: - | AR16: - | AS16: 50 | AT16: - | AU16: - | AV16: - | AW16: - | AX16: - | AY16: - | AZ16: =Equipment[[#This Row],[Bucket Fill Factor]]*Equipment[[#This Row],[Heaped Capacity (cy)]] -> 6.5625 | BA16: 0.525 | BB16: 0.875 | BC16: - | BD16: 7.5 | BE16: - | BF16: - | BG16: - | BH16: - | BI16: - | BJ16: - | BK16: - | BL16: - | BM16: - | BN16: - | BO16: - | BP16: - | BQ16: - | BR16: Equipment Operator VII | BS16: 28.97
A17: Ld4 | B17: Cat 966H | C17: Loader | D17: 8.38 | E17: =Equipment[[#This Row],[Fuel Consumption (gal/hr)]]*$C$57 -> 22.7098 | F17: 4.6 | G17: 2.04 | H17: 5.77 | I17: 9821.09 | J17: 5.04 | K17: =Equipment[[#This Row],[Monthly Rental Rate ($/month)]]/176 -> 55.80164773 | L17: =SUM(K17,J17,H17,F17,Equipment[[#This Row],[Field Parts & Ground Engaging Component Cost ($/hr)]]) -> 73.25164773 | M17: - | N17: - | O17: - | P17: - | Q17: - | R17: - | S17: - | T17: - | U17: - | V17: - | W17: - | X17: - | Y17: - | Z17: - | AA17: - | AB17: - | AC17: - | AD17: - | AE17: - | AF17: - | AG17: - | AH17: - | AI17: 7.8 | AJ17: 13.7 | AK17: - | AL17: - | AM17: - | AN17: - | AO17: - | AP17: - | AQ17: - | AR17: - | AS17: 50 | AT17: - | AU17: - | AV17: - | AW17: - | AX17: - | AY17: - | AZ17: =Equipment[[#This Row],[Bucket Fill Factor]]*Equipment[[#This Row],[Heaped Capacity (cy)]] -> 4.8125 | BA17: 0.525 | BB17: 0.875 | BC17: - | BD17: 5.5 | BE17: - | BF17: - | BG17: - | BH17: - | BI17: - | BJ17: - | BK17: - | BL17: - | BM17: - | BN17: - | BO17: - | BP17: - | BQ17: - | BR17: Equipment Operator VII | BS17: 28.97
A18: Ld5 | B18: Cat 993K | C18: Loader | D18: 30.4 | E18: =Equipment[[#This Row],[Fuel Consumption (gal/hr)]]*$C$57 -> 82.384 | F18: 24.75 | G18: 16.77 | H18: 65.94 | I18: 25446.59 | J18: 5.04 | K18: =Equipment[[#This Row],[Monthly Rental Rate ($/month)]]/176 -> 144.5828977 | L18: =SUM(K18,J18,H18,F18,Equipment[[#This Row],[Field Parts & Ground Engaging Component Cost ($/hr)]]) -> 257.0828977 | M18: - | N18: - | O18: - | P18: - | Q18: - | R18: - | S18: - | T18: - | U18: - | V18: - | W18: - | X18: - | Y18: - | Z18: - | AA18: - | AB18: - | AC18: - | AD18: - | AE18: - | AF18: - | AG18: - | AH18: - | AI18: 7.4 | AJ18: 12.7 | AK18: - | AL18: - | AM18: - | AN18: - | AO18: - | AP18: - | AQ18: - | AR18: - | AS18: 50 | AU18: - | AV18: - | AW18: - | AX18: - | AY18: - | AZ18: =Equipment[[#This Row],[Bucket Fill Factor]]*Equipment[[#This Row],[Heaped Capacity (cy)]] -> 17.5 | BA18: 0.65 | BB18: 0.875 | BC18: - | BD18: 20 | BE18: - | BF18: - | BG18: - | BH18: - | BJ18: - | BK18: - | BL18: - | BM18: - | BO18: - | BP18: - | BR18: Equipment Operator VII | BS18: 28.97
A19: Mg1 | B19: Cat 16M | C19: Motor Grader | D19: 9.5 | E19: =Equipment[[#This Row],[Fuel Consumption (gal/hr)]]*$C$57 -> 25.745 | F19: 5.2 | G19: 3.31 | H19: 6.03 | I19: 12250.74 | J19: 2.56 | K19: =Equipment[[#This Row],[Monthly Rental Rate ($/month)]]/176 -> 69.60647727 | L19: =SUM(K19,J19,H19,F19,Equipment[[#This Row],[Field Parts & Ground Engaging Component Cost ($/hr)]]) -> 86.70647727 | M19: - | N19: - | O19: - | P19: - | Q19: - | R19: - | S19: - | T19: - | U19: - | V19: - | W19: - | X19: - | Y19: - | Z19: - | AA19: - | AB19: - | AC19: - | AD19: - | AE19: - | AF19: - | AG19: - | AH19: - | AI19: 2.5 | AJ19: =Equipment[[#This Row],[Loaded Speed (mph)4]] -> 2.5 | AK19: 2 | AL19: - | AM19: 0.75 | AN19: 1 | AO19: 1 | AP19: 1 | AQ19: 1.2 | AR19: 1 | AS19: 50 | AT19: 16 | AU19: - | AV19: - | AW19: - | AX19: - | AY19: - | AZ19: - | BA19: - | BB19: - | BC19: - | BD19: - | BE19: - | BF19: - | BG19: - | BH19: - | BI19: - | BJ19: - | BK19: - | BL19: - | BM19: - | BN19: - | BO19: - | BP19: - | BQ19: - | BR19: Equipment Operator VIII | BS19: 30.93
A20: Mg1b | B20: Cat 16M - Rough Grading | C20: Motor Grader | D20: 9.5 | E20: =Equipment[[#This Row],[Fuel Consumption (gal/hr)]]*$C$57 -> 25.745 | F20: 5.2 | G20: 3.31 | H20: 6.03 | I20: 12250.74 | J20: 2.56 | K20: =Equipment[[#This Row],[Monthly Rental Rate ($/month)]]/176 -> 69.60647727 | L20: =SUM(K20,J20,H20,F20,Equipment[[#This Row],[Field Parts & Ground Engaging Component Cost ($/hr)]]) -> 86.70647727 | M20: - | N20: - | O20: - | P20: - | Q20: - | R20: - | S20: - | T20: - | U20: - | V20: - | W20: - | X20: - | Y20: - | Z20: - | AA20: - | AB20: - | AC20: - | AD20: - | AE20: - | AF20: - | AG20: - | AH20: - | AI20: 2.5 | AJ20: =Equipment[[#This Row],[Loaded Speed (mph)4]] -> 2.5 | AK20: 2 | AL20: - | AM20: 0.75 | AN20: 1 | AO20: 1 | AP20: 1 | AQ20: 1.2 | AR20: 1 | AS20: 50 | AT20: 16 | AU20: - | AV20: - | AW20: - | AX20: - | AY20: - | AZ20: - | BA20: - | BB20: - | BC20: - | BD20: - | BE20: - | BF20: - | BG20: - | BH20: - | BI20: - | BJ20: - | BK20: - | BL20: - | BM20: - | BN20: - | BO20: - | BP20: - | BQ20: - | BR20: Equipment Operator VI | BS20: 28.95
A21: Mg2 | B21: Cat 14M | C21: Motor Grader | D21: 8.29 | E21: =Equipment[[#This Row],[Fuel Consumption (gal/hr)]]*$C$57 -> 22.4659 | F21: 5.8 | G21: 4.82 | H21: 7.98 | I21: 12250.74 | J21: 2.56 | K21: =Equipment[[#This Row],[Monthly Rental Rate ($/month)]]/176 -> 69.60647727 | L21: =SUM(K21,J21,H21,F21,Equipment[[#This Row],[Field Parts & Ground Engaging Component Cost ($/hr)]]) -> 90.76647727 | M21: - | N21: - | O21: - | P21: - | Q21: - | R21: - | S21: - | T21: - | U21: - | V21: - | W21: - | X21: - | Y21: - | Z21: - | AA21: - | AB21: - | AC21: - | AD21: - | AE21: - | AF21: - | AG21: - | AH21: - | AI21: 2.5 | AJ21: =Equipment[[#This Row],[Loaded Speed (mph)4]] -> 2.5 | AK21: 2 | AL21: - | AM21: 0.75 | AN21: 1 | AO21: 1 | AP21: 1 | AQ21: 1.2 | AR21: 1 | AS21: 50 | AT21: 14 | AU21: - | AV21: - | AW21: - | AX21: - | AY21: - | AZ21: - | BA21: - | BB21: - | BC21: - | BD21: - | BE21: - | BF21: - | BG21: - | BH21: - | BI21: - | BJ21: - | BK21: - | BL21: - | BM21: - | BN21: - | BO21: - | BP21: - | BQ21: - | BR21: Equipment Operator VIII | BS21: 30.93
A22: Mg2b | B22: Cat 14M - Rough Grading | C22: Motor Grader | D22: 8.29 | E22: =Equipment[[#This Row],[Fuel Consumption (gal/hr)]]*$C$57 -> 22.4659 | F22: 5.8 | G22: 4.82 | H22: 7.98 | I22: 12250.74 | J22: 2.56 | K22: =Equipment[[#This Row],[Monthly Rental Rate ($/month)]]/176 -> 69.60647727 | L22: =SUM(K22,J22,H22,F22,Equipment[[#This Row],[Field Parts & Ground Engaging Component Cost ($/hr)]]) -> 90.76647727 | M22: - | N22: - | O22: - | P22: - | Q22: - | R22: - | S22: - | T22: - | U22: - | V22: - | W22: - | X22: - | Y22: - | Z22: - | AA22: - | AB22: - | AC22: - | AD22: - | AE22: - | AF22: - | AG22: - | AH22: - | AI22: 2.5 | AJ22: =[1]!Equipment[[#This Row],[Loaded Speed (mph)4]] ->  | AK22: 2 | AL22: - | AM22: 0.75 | AN22: 1 | AO22: 1 | AP22: 1 | AQ22: 1.2 | AR22: 1 | AS22: 50 | AT22: 14 | AU22: - | AV22: - | AW22: - | AX22: - | AY22: - | AZ22: - | BA22: - | BB22: - | BC22: - | BD22: - | BE22: - | BF22: - | BG22: - | BH22: - | BI22: - | BJ22: - | BK22: - | BL22: - | BM22: - | BN22: - | BO22: - | BP22: - | BQ22: - | BR22: Equipment Operator VI | BS22: =VLOOKUP(BR22,$B$65:$C$74,2) -> 28.95
A23: Mu1 | B23: Finn B260 | C23: Mulcher | D23: 4.13 | E23: =Equipment[[#This Row],[Fuel Consumption (gal/hr)]]*$C$57 -> 11.1923 | F23: 1.29 | G23: 0.19 | H23: 0.6 | I23: 2127.72 | J23: 1.71 | K23: =Equipment[[#This Row],[Monthly Rental Rate ($/month)]]/176 -> 12.08931818 | L23: =SUM(K23,J23,H23,F23,Equipment[[#This Row],[Field Parts & Ground Engaging Component Cost ($/hr)]]) -> 15.87931818 | N23: - | O23: - | P23: - | Q23: - | R23: - | S23: - | T23: - | U23: - | V23: - | W23: - | X23: - | Y23: - | Z23: - | AA23: - | AB23: - | AC23: - | AD23: - | AE23: - | AF23: - | AG23: - | AH23: - | AI23: - | AJ23: - | AK23: - | AL23: - | AM23: - | AN23: - | AO23: - | AP23: - | AQ23: - | AR23: - | AS23: 50 | AT23: - | AU23: - | AV23: - | AW23: - | AX23: - | AY23: - | AZ23: - | BA23: - | BB23: - | BC23: - | BD23: - | BE23: - | BF23: - | BG23: - | BH23: - | BI23: - | BJ23: - | BK23: - | BL23: - | BM23: - | BN23: - | BO23: - | BP23: - | BQ23: - | BR23: Truck Driver III | BS23: 24.57
A24: Rp1 | B24: Cat D11T CD Multi-shank (w/ MSR-359H) | C24: Dozer w/ Ripper | D24: =D9 -> 29.75 | E24: =Equipment[[#This Row],[Fuel Consumption (gal/hr)]]*$C$57 -> 80.6225 | F24: 17.48 | G24: =2.37+G9 -> 21.75 | H24: =H9 -> 0 | I24: =2300.65+I9 -> 36065.55 | J24: =2.04+J9 -> 10.23 | K24: =Equipment[[#This Row],[Monthly Rental Rate ($/month)]]/176 -> 204.9178977 | L24: =SUM(K24,J24,H24,F24,Equipment[[#This Row],[Field Parts & Ground Engaging Component Cost ($/hr)]]) -> 254.3778977 | M24: - | N24: - | O24: - | P24: - | Q24: - | R24: - | S24: - | T24: - | U24: - | V24: - | W24: - | X24: - | Y24: - | Z24: - | AA24: - | AB24: - | AC24: - | AD24: - | AE24: - | AF24: - | AG24: - | AH24: - | AI24: 1 | AJ24: =Equipment[[#This Row],[Loaded Speed (mph)4]] -> 1 | AK24: - | AL24: - | AM24: - | AN24: - | AO24: - | AP24: - | AQ24: - | AR24: - | AS24: 50 | AT24: - | AU24: 18 | AV24: =(4*12)+11 -> 59 | AW24: 3 | AX24: 0.25 | AY24: =Equipment[[#This Row],[Pocket Spacing (in)]] -> 59 | AZ24: - | BA24: - | BB24: - | BC24: - | BD24: - | BE24: - | BF24: - | BG24: - | BH24: - | BI24: - | BJ24: - | BK24: - | BL24: - | BM24: - | BN24: - | BO24: - | BP24: - | BQ24: - | BR24: Equipment Operator IV | BS24: 28.65
A25: Rp2 | B25: MSR-189H | C25: Ripper Attachment | D25: 0 | E25: =Equipment[[#This Row],[Fuel Consumption (gal/hr)]]*$C$57 -> 0 | F25: 0.15 | G25: 2.36 | H25: 0 | I25: 881 | J25: 0.74 | K25: =Equipment[[#This Row],[Monthly Rental Rate ($/month)]]/176 -> 5.005681818 | L25: =SUM(K25,J25,H25,F25,Equipment[[#This Row],[Field Parts & Ground Engaging Component Cost ($/hr)]]) -> 8.255681818 | M25: - | N25: - | O25: - | P25: - | Q25: - | R25: - | S25: - | T25: - | U25: - | V25: - | W25: - | X25: - | Y25: - | Z25: - | AA25: - | AB25: - | AC25: - | AD25: - | AE25: - | AF25: - | AG25: - | AH25: - | AI25: - | AJ25: - | AK25: - | AL25: - | AM25: - | AN25: - | AO25: - | AP25: - | AQ25: - | AR25: - | AS25: 50 | AT25: - | AU25: - | AV25: - | AW25: - | AX25: - | AY25: - | AZ25: - | BA25: - | BB25: - | BC25: - | BD25: - | BE25: - | BF25: - | BG25: - | BH25: - | BI25: - | BJ25: - | BK25: - | BL25: - | BM25: - | BN25: - | BO25: - | BP25: - | BQ25: - | BR25: - | BS25: -
A26: Sc1 | B26: Cat 637G | C26: Scraper | D26: 29.75 | E26: =Equipment[[#This Row],[Fuel Consumption (gal/hr)]]*$C$57 -> 80.6225 | F26: 19.52 | G26: 13.35 | H26: 10.63 | I26: 27774.42 | J26: 15.63 | K26: =Equipment[[#This Row],[Monthly Rental Rate ($/month)]]/176 -> 157.8092045 | L26: =SUM(K26,J26,H26,F26,Equipment[[#This Row],[Field Parts & Ground Engaging Component Cost ($/hr)]]) -> 216.9392045 | M26: - | N26: - | O26: 3.2483 | P26: -1.9562 | Q26: 0.4337 | R26: -0.0026 | S26: 0.001 | T26: 0 | U26: -0.3247 | V26: 0.1601 | W26: -0.0038 | X26: 0.0011 | Y26: 0.6464 | Z26: -0.6147 | AA26: 0.1749 | AB26: -0.0004 | AC26: 0.0011 | AD26: 0 | AE26: 0 | AF26: 0.0367 | AG26: 0.0018 | AH26: 0.0009 | AI26: 33 | AJ26: =Equipment[[#This Row],[Loaded Speed (mph)4]] -> 33 | AK26: - | AL26: - | AM26: - | AN26: - | AO26: - | AP26: - | AQ26: - | AR26: - | AS26: 50 | AT26: - | AU26: - | AV26: - | AW26: - | AX26: - | AY26: - | AZ26: - | BA26: - | BB26: - | BC26: 24 | BD26: 34 | BE26: - | BF26: - | BG26: - | BH26: - | BI26: 0.025 | BJ26: - | BK26: - | BL26: 81600 | BM26: 0.85 | BN26: 0.65 | BO26: 0.1 | BP26: =Equipment[[#This Row],[Load Time (min)]]*1.4 -> 1.19 | BQ26: 0.15 | BR26: Equipment Operator IV | BS26: =VLOOKUP(BR26,$B$65:$C$75,2) -> 28.65
A27: Sc2 | B27: Cat 657G | C27: Scraper | D27: 37.01 | E27: =Equipment[[#This Row],[Fuel Consumption (gal/hr)]]*$C$57 -> 100.2971 | F27: 27.99 | G27: 19.99 | H27: 12.99 | I27: 27774.42 | J27: 15.63 | K27: =Equipment[[#This Row],[Monthly Rental Rate ($/month)]]/176 -> 157.8092045 | L27: =SUM(K27,J27,H27,F27,Equipment[[#This Row],[Field Parts & Ground Engaging Component Cost ($/hr)]]) -> 234.4092045 | M27: - | N27: - | O27: 0.3036 | P27: -0.4512 | Q27: 0.2181 | R27: -0.0034 | S27: 0.0013 | T27: 0 | U27: -0.1016 | V27: 0.0774 | W27: -0.0013 | X27: 0.0012 | Y27: 0 | Z27: -0.1612 | AA27: 0.1031 | AB27: -0.0081 | AC27: 0.0016 | AD27: 0 | AE27: 0.1668 | AF27: -0.094 | AG27: 0.0207 | AH27: 0.0004 | AI27: 33 | AJ27: =Equipment[[#This Row],[Loaded Speed (mph)4]] -> 33 | AK27: - | AL27: - | AM27: - | AN27: - | AO27: - | AP27: - | AQ27: - | AR27: - | AS27: 50 | AT27: - | AU27: - | AV27: - | AW27: - | AX27: - | AY27: - | AZ27: - | BA27: - | BB27: - | BC27: 32 | BD27: 44 | BE27: - | BF27: - | BG27: - | BH27: - | BI27: 0.025 | BJ27: - | BK27: - | BL27: 104000 | BM27: 0.85 | BN27: 0.65 | BO27: 0.1 | BP27: 1.19 | BQ27: 0.15 | BR27: Equipment Operator IV | BS27: 28.65
A28: Sh1 | B28: Hitachi EX3600-5 | C28: Shovel2,7 | D28: 82.72 | E28: =Equipment[[#This Row],[Fuel Consumption (gal/hr)]]*$C$57 -> 224.1712 | F28: 57.5 | G28: 45.35 | H28: 0 | I28: 69608 | J28: 14.94 | K28: =Equipment[[#This Row],[Monthly Rental Rate ($/month)]]/176 -> 395.5 | L28: =SUM(K28,J28,H28,F28,Equipment[[#This Row],[Field Parts & Ground Engaging Component Cost ($/hr)]]) -> 513.29 | M28: - | N28: - | O28: - | P28: - | Q28: - | R28: - | S28: - | T28: - | U28: - | V28: - | W28: - | X28: - | Y28: - | Z28: - | AA28: - | AB28: - | AC28: - | AD28: - | AE28: - | AF28: - | AG28: - | AH28: - | AI28: - | AJ28: - | AK28: - | AL28: - | AM28: - | AN28: - | AO28: - | AP28: - | AQ28: - | AR28: - | AS28: 50 | AT28: - | AU28: - | AV28: - | AW28: - | AX28: - | AY28: - | AZ28: =Equipment[[#This Row],[Heaped Capacity (cy)]]*Equipment[[#This Row],[Bucket Fill Factor]] -> 28.085 | BA28: 0.45 | BB28: 1.025 | BC28: - | BD28: 27.4 | BE28: - | BF28: - | BG28: - | BH28: - | BI28: - | BJ28: - | BK28: - | BL28: - | BM28: - | BN28: - | BO28: - | BP28: - | BQ28: - | BR28: Equipment Operator VII | BS28: 28.97
A29: Tc1 | B29: Deere 7430 | C29: Tractor | D29: 5.98 | E29: =Equipment[[#This Row],[Fuel Consumption (gal/hr)]]*$C$57 -> 16.2058 | F29: 2.32 | G29: 0.8 | H29: 1 | I29: 3598.8 | J29: 3.42 | K29: =Equipment[[#This Row],[Monthly Rental Rate ($/month)]]/176 -> 20.44772727 | L29: =SUM(K29,J29,H29,F29,Equipment[[#This Row],[Field Parts & Ground Engaging Component Cost ($/hr)]]) -> 27.98772727 | M29: - | N29: - | O29: - | P29: - | Q29: - | R29: - | S29: - | T29: - | U29: - | V29: - | W29: - | X29: - | Y29: - | Z29: - | AA29: - | AB29: - | AC29: - | AD29: - | AE29: - | AF29: - | AG29: - | AH29: - | AI29: 3 | AJ29: =Equipment[[#This Row],[Loaded Speed (mph)4]] -> 3 | AK29: - | AL29: - | AM29: - | AN29: - | AO29: - | AP29: - | AQ29: - | AR29: - | AS29: 50 | AT29: 12 | AU29: - | AV29: - | AW29: - | AX29: - | AY29: - | AZ29: - | BA29: - | BB29: - | BC29: - | BD29: - | BE29: - | BF29: - | BG29: - | BH29: - | BI29: - | BJ29: - | BK29: - | BL29: - | BM29: - | BN29: - | BO29: - | BP29: - | BQ29: - | BR29: Truck Driver III | BS29: 24.57
A30: Tk1 | B30: Komatsu HD-1500 5 | C30: Truck7 | D30: 28.12 | E30: =Equipment[[#This Row],[Fuel Consumption (gal/hr)]]*$C$57 -> 76.2052 | F30: 19.34 | G30: 1.83 | H30: 25.84 | I30: 25694.76 | J30: 7.72 | K30: =Equipment[[#This Row],[Monthly Rental Rate ($/month)]]/176 -> 145.9929545 | L30: =SUM(K30,J30,H30,F30,Equipment[[#This Row],[Field Parts & Ground Engaging Component Cost ($/hr)]]) -> 200.7229545 | M30: - | N30: - | O30: 4.494 | P30: -2.4571 | Q30: 0.6319 | R30: -0.0051 | S30: 0.0011 | T30: 0 | U30: -0.2561 | V30: 0.1351 | W30: -0.0004 | X30: 0.001 | Y30: 0 | Z30: 0 | AA30: 0.0856 | AB30: 0.0135 | AC30: 0.0009 | AD30: 0 | AE30: 0 | AF30: 0 | AG30: 0.0143 | AH30: 0.0005 | AI30: 35.1 | AJ30: =Equipment[[#This Row],[Loaded Speed (mph)4]] -> 35.1 | AK30: - | AL30: - | AM30: - | AN30: - | AO30: - | AP30: - | AQ30: - | AR30: - | AS30: 50 | AT30: - | AU30: - | AV30: - | AW30: - | AX30: - | AY30: - | AZ30: - | BA30: - | BB30: - | BC30: 71 | BD30: 102 | BE30: - | BF30: - | BG30: - | BH30: - | BI30: 0.025 | BJ30: 0.7 | BK30: 1.1 | BL30: - | BM30: - | BN30: - | BO30: - | BP30: - | BQ30: - | BR30: Truck Driver VIII | BS30: 25.16
A31: Tk2 | B31: Cat 769D | C31: Truck | D31: 9.74 | E31: =Equipment[[#This Row],[Fuel Consumption (gal/hr)]]*$C$57 -> 26.3954 | F31: 8.04 | G31: 1.84 | H31: 14.9 | I31: 13458.16 | J31: 5.1 | K31: =Equipment[[#This Row],[Monthly Rental Rate ($/month)]]/176 -> 76.46681818 | L31: =SUM(K31,J31,H31,F31,Equipment[[#This Row],[Field Parts & Ground Engaging Component Cost ($/hr)]]) -> 106.3468182 | M31: - | N31: - | O31: 0.5429 | P31: -0.487 | Q31: 0.1823 | R31: 0.0151 | S31: 0.0007 | T31: 0 | U31: 0.0224 | V31: -0.0076 | W31: 0.0141 | X31: 0.0007 | Y31: 0 | Z31: 0 | AA31: -0.0808 | AB31: 0.426 | AC31: -0.0008 | AD31: 5.6146 | AE31: -3.6353 | AF31: 0.7823 | AG31: -0.0535 | AH31: 0.002 | AI31: 47 | AJ31: =Equipment[[#This Row],[Loaded Speed (mph)4]] -> 47 | AK31: - | AL31: - | AM31: - | AN31: - | AO31: - | AP31: - | AQ31: - | AR31: - | AS31: 50 | AT31: - | AU31: - | AV31: - | AW31: - | AX31: - | AY31: - | AZ31: - | BA31: - | BB31: - | BC31: 22.2 | BD31: 31.7 | BE31: - | BF31: - | BG31: - | BH31: - | BI31: 0.025 | BJ31: 0.7 | BK31: 1.1 | BL31: - | BM31: - | BN31: - | BO31: - | BP31: - | BQ31: - | BR31: Truck Driver VII | BS31: 24.96
A32: Tk3 | B32: Cat 725 | C32: Truck | D32: 6.02 | E32: =Equipment[[#This Row],[Fuel Consumption (gal/hr)]]*$C$57 -> 16.3142 | F32: 5.08 | G32: 1.11 | H32: 10.02 | I32: 9929.51 | J32: 4 | K32: =Equipment[[#This Row],[Monthly Rental Rate ($/month)]]/176 -> 56.41767045 | L32: =SUM(K32,J32,H32,F32,Equipment[[#This Row],[Field Parts & Ground Engaging Component Cost ($/hr)]]) -> 76.62767045 | M32: - | N32: - | O32: 0.1363 | P32: 0.1636 | Q32: -0.04 | R32: 0.0342 | S32: 0.0009 | T32: 0 | U32: -0.024 | V32: 0.0309 | W32: 0.0099 | X32: 0.001 | Y32: 0 | Z32: 2.5262 | AA32: -0.7562 | AB32: 0.095 | AC32: -0.002 | AD32: 0 | AE32: 0 | AF32: 0 | AG32: 0.0103 | AH32: 0.0009 | AI32: 34 | AJ32: =Equipment[[#This Row],[Loaded Speed (mph)4]] -> 34 | AK32: - | AL32: - | AM32: - | AN32: - | AO32: - | AP32: - | AQ32: - | AR32: - | AS32: 50 | AT32: - | AU32: - | AV32: - | AW32: - | AX32: - | AY32: - | AZ32: - | BA32: - | BB32: - | BC32: 14.3 | BD32: 18.8 | BE32: - | BF32: - | BG32: - | BH32: - | BI32: 0.025 | BJ32: 0.7 | BK32: 1.1 | BL32: - | BM32: - | BN32: - | BO32: - | BP32: - | BQ32: - | BR32: Truck Driver VI | BS32: 24.82
A33: Tk4 | B33: Komatsu 730E | C33: Truck3 | D33: 33.48 | E33: =Equipment[[#This Row],[Fuel Consumption (gal/hr)]]*$C$57 -> 90.7308 | F33: 18 | G33: 1.86 | H33: 21.2 | I33: 28527.96 | J33: 12.78 | K33: =Equipment[[#This Row],[Monthly Rental Rate ($/month)]]/176 -> 162.0906818 | L33: =SUM(K33,J33,H33,F33,Equipment[[#This Row],[Field Parts & Ground Engaging Component Cost ($/hr)]]) -> 215.9306818 | M33: - | N33: - | O33: 7.5599 | P33: -2.711 | Q33: 0.4209 | R33: 0.005 | S33: 0.0011 | T33: 0 | U33: -0.0689 | V33: 0.0501 | W33: 0.0052 | X33: 0.001 | Y33: - | Z33: -1.1878 | AA33: 0.325 | AB33: 0.0042 | AC33: 0.001 | AD33: -3.4907 | AE33: 2.4171 | AF33: -0.55 | AG33: 0.0643 | AH33: -0.0011 | AI33: 35.5 | AJ33: =Equipment[[#This Row],[Loaded Speed (mph)4]] -> 35.5 | AK33: - | AL33: - | AM33: - | AN33: - | AO33: - | AP33: - | AQ33: - | AR33: - | AS33: 50 | AT33: - | AU33: - | AV33: - | AW33: - | AX33: - | AY33: - | AZ33: - | BA33: - | BB33: - | BC33: 101 | BD33: 145 | BE33: - | BF33: - | BG33: - | BH33: - | BI33: 0.025 | BJ33: 0.7 | BK33: 1.1 | BL33: - | BM33: - | BN33: - | BO33: - | BP33: - | BQ33: - | BR33: Truck Driver VIII | BS33: 25.16
A34: Tk5 | B34: Cat 777F | C34: Truck | D34: 18.76 | E34: =Equipment[[#This Row],[Fuel Consumption (gal/hr)]]*$C$57 -> 50.8396 | F34: 18.9 | G34: 3.91 | H34: 31.3 | I34: 54000 | J34: 7.29 | K34: =Equipment[[#This Row],[Monthly Rental Rate ($/month)]]/176 -> 306.8181818 | L34: =SUM(K34,J34,H34,F34,Equipment[[#This Row],[Field Parts & Ground Engaging Component Cost ($/hr)]]) -> 368.2181818 | M34: - | N34: - | O34: 6.4372 | P34: -3.2933 | Q34: 0.6548 | R34: -0.005 | S34: 0.0009 | T34: 0 | U34: -0.0197 | V34: 0.0276 | W34: 0.011 | X34: 0.0008 | Y34: 2.147 | Z34: -1.9812 | AA34: 0.5102 | AB34: -0.0158 | AC34: 0.0009 | AD34: 0.7651 | AE34: -0.3831 | AF34: 0.0898 | AG34: -0.0001 | AH34: 0.0008 | AI34: 40.1 | AJ34: =Equipment[[#This Row],[Loaded Speed (mph)4]] -> 40.1 | AK34: - | AL34: - | AM34: - | AN34: - | AO34: - | AP34: - | AQ34: - | AR34: - | AS34: 50 | AT34: - | AU34: - | AV34: - | AW34: - | AX34: - | AY34: - | AZ34: - | BA34: - | BB34: - | BC34: 54.8 | BD34: 78.8 | BE34: - | BF34: - | BG34: - | BH34: - | BI34: 0.025 | BJ34: 0.7 | BK34: 1.1 | BL34: - | BM34: - | BN34: - | BO34: - | BP34: - | BQ34: - | BR34: Truck Driver VIII | BS34: 25.16
A35: Tk6 | B35: Cat 740 | C35: Truck | D35: 9.06 | E35: =Equipment[[#This Row],[Fuel Consumption (gal/hr)]]*$C$57 -> 24.5526 | F35: 7.2 | G35: 1.25 | H35: 12.4 | I35: 17830.86 | J35: 5.1 | K35: =Equipment[[#This Row],[Monthly Rental Rate ($/month)]]/176 -> 101.3117045 | L35: =SUM(K35,J35,H35,F35,Equipment[[#This Row],[Field Parts & Ground Engaging Component Cost ($/hr)]]) -> 127.2617045 | M35: - | N35: - | O35: 0 | P35: 0.0816 | Q35: 0.0156 | R35: 0.0275 | S35: 0.001 | T35: 0.7129 | U35: -0.6368 | V35: 0.1914 | W35: -0.0045 | X35: 0.0011 | Y35: 0 | Z35: 2.047 | AA35: -0.7996 | AB35: 0.122 | AC35: -0.0031 | AD35: 0 | AE35: -0.2405 | AF35: 0.1502 | AG35: -0.015 | AH35: 0.0014 | AI35: 34 | AJ35: =Equipment[[#This Row],[Loaded Speed (mph)4]] -> 34 | AK35: - | AL35: - | AM35: - | AN35: - | AO35: - | AP35: - | AQ35: - | AR35: - | AS35: 50 | AT35: - | AU35: - | AV35: - | AW35: - | AX35: - | AY35: - | AZ35: - | BA35: - | BB35: - | BC35: 23.3 | BD35: 30.2 | BE35: - | BF35: - | BG35: - | BH35: - | BI35: 0.025 | BJ35: 0.7 | BK35: 1.1 | BL35: - | BM35: - | BN35: - | BO35: - | BP35: - | BQ35: - | BR35: Truck Driver VII | BS35: 24.96
A36: Tw1 | B36: Off-Hwy Water Tanker Truck,6,000-gal. | C36: WaterTruck | D36: 11.25 | E36: =Equipment[[#This Row],[Fuel Consumption (gal/hr)]]*$C$57 -> 30.4875 | F36: 5.31 | G36: 2.14 | H36: 6.42 | I36: 9397.44 | J36: 8.99 | K36: =Equipment[[#This Row],[Monthly Rental Rate ($/month)]]/176 -> 53.39454545 | L36: =SUM(K36,J36,H36,F36,Equipment[[#This Row],[Field Parts & Ground Engaging Component Cost ($/hr)]]) -> 76.25454545 | M36: - | N36: - | O36: - | P36: - | Q36: - | R36: - | S36: - | T36: - | U36: - | V36: - | W36: - | X36: - | Y36: - | Z36: - | AA36: - | AB36: - | AC36: - | AD36: - | AE36: - | AF36: - | AG36: - | AH36: - | AI36: - | AJ36: - | AK36: - | AL36: - | AM36: - | AN36: - | AO36: - | AP36: - | AQ36: - | AR36: - | AS36: 50 | AT36: - | AU36: - | AV36: - | AW36: - | AX36: - | AY36: - | AZ36: - | BA36: - | BB36: - | BC36: - | BD36: - | BE36: - | BF36: - | BG36: - | BH36: - | BI36: - | BJ36: - | BK36: - | BL36: - | BM36: - | BN36: - | BO36: - | BP36: - | BQ36: - | BR36: Truck Driver V | BS36: 24.57
A37: Tw2 | B37: Off-Hwy Water Tanker Truck,10,000-gal. | C37: WaterTruck | D37: 15.43 | E37: =Equipment[[#This Row],[Fuel Consumption (gal/hr)]]*$C$57 -> 41.8153 | F37: 7.9 | G37: 2.9 | H37: 10.47 | I37: 13545.76 | J37: 12.74 | K37: =Equipment[[#This Row],[Monthly Rental Rate ($/month)]]/176 -> 76.96454545 | L37: =SUM(K37,J37,H37,F37,Equipment[[#This Row],[Field Parts & Ground Engaging Component Cost ($/hr)]]) -> 110.9745455 | M37: - | N37: - | O37: - | P37: - | Q37: - | R37: - | S37: - | T37: - | U37: - | V37: - | W37: - | X37: - | Y37: - | Z37: - | AA37: - | AB37: - | AC37: - | AD37: - | AE37: - | AF37: - | AG37: - | AH37: - | AI37: - | AJ37: - | AK37: - | AL37: - | AM37: - | AN37: - | AO37: - | AP37: - | AQ37: - | AR37: - | AS37: 50 | AT37: - | AU37: - | AV37: - | AW37: - | AX37: - | AY37: - | AZ37: - | BA37: - | BB37: - | BC37: - | BD37: - | BE37: - | BF37: - | BG37: - | BH37: - | BI37: - | BJ37: - | BK37: - | BL37: - | BM37: - | BN37: - | BO37: - | BP37: - | BQ37: - | BR37: Truck Driver VIII | BS37: 25.16
A38: X1 | B38: 2 Deck Screening Plant (5X16, 48X60) | C38: ScreenPlant | D38: 4.85 | E38: =Equipment[[#This Row],[Fuel Consumption (gal/hr)]]*$C$57 -> 13.1435 | F38: 2.03 | G38: 1.42 | H38: 0.4 | I38: 12851.82 | J38: 5.73 | K38: =Equipment[[#This Row],[Monthly Rental Rate ($/month)]]/176 -> 73.02170455 | L38: =SUM(K38,J38,H38,F38,Equipment[[#This Row],[Field Parts & Ground Engaging Component Cost ($/hr)]]) -> 82.60170455 | M38: - | N38: - | O38: - | P38: - | Q38: - | R38: - | S38: - | T38: - | U38: - | V38: - | W38: - | X38: - | Y38: - | Z38: - | AA38: - | AB38: - | AC38: - | AD38: - | AE38: - | AF38: - | AG38: - | AH38: - | AI38: - | AJ38: - | AK38: - | AL38: - | AM38: - | AN38: - | AO38: - | AP38: - | AQ38: - | AR38: - | AS38: 50 | AT38: - | AU38: - | AV38: - | AW38: - | AX38: - | AY38: - | AZ38: - | BA38: - | BB38: - | BC38: - | BD38: - | BE38: - | BF38: - | BG38: - | BH38: - | BI38: - | BJ38: - | BK38: - | BL38: - | BM38: - | BN38: - | BO38: - | BP38: - | BQ38: - | BR38: Laborer I | BS38: 23.88
A39: X2 | B39: 3 Deck Screening Plant (5X16, 48X60) | C39: ScreenPlant | D39: 4.85 | E39: =Equipment[[#This Row],[Fuel Consumption (gal/hr)]]*$C$57 -> 13.1435 | F39: 2.07 | G39: 1.54 | H39: 0.39 | I39: 17872.04 | J39: 5.92 | K39: =Equipment[[#This Row],[Monthly Rental Rate ($/month)]]/176 -> 101.5456818 | L39: =SUM(K39,J39,H39,F39,Equipment[[#This Row],[Field Parts & Ground Engaging Component Cost ($/hr)]]) -> 111.4656818 | M39: - | N39: - | O39: - | P39: - | Q39: - | R39: - | S39: - | T39: - | U39: - | V39: - | W39: - | X39: - | Y39: - | Z39: - | AA39: - | AB39: - | AC39: - | AD39: - | AE39: - | AF39: - | AG39: - | AH39: - | AI39: - | AJ39: - | AK39: - | AL39: - | AM39: - | AN39: - | AO39: - | AP39: - | AQ39: - | AR39: - | AS39: 50 | AT39: - | AU39: - | AV39: - | AW39: - | AX39: - | AY39: - | AZ39: - | BA39: - | BB39: - | BC39: - | BD39: - | BE39: - | BF39: - | BG39: - | BH39: - | BI39: - | BJ39: - | BK39: - | BL39: - | BM39: - | BN39: - | BO39: - | BP39: - | BQ39: - | BR39: Laborer I | BS39: 23.88
A40: X3 | B40: 1 Deck Screening Plant (5X16, 48X60) | C40: ScreenPlant | D40: 4.85 | E40: =Equipment[[#This Row],[Fuel Consumption (gal/hr)]]*$C$57 -> 13.1435 | F40: 2.01 | G40: 1.41 | H40: 0.39 | I40: 11625 | J40: 5.73 | K40: =Equipment[[#This Row],[Monthly Rental Rate ($/month)]]/176 -> 66.05113636 | L40: =SUM(K40,J40,H40,F40,Equipment[[#This Row],[Field Parts & Ground Engaging Component Cost ($/hr)]]) -> 75.59113636 | M40: - | N40: - | O40: - | P40: - | Q40: - | R40: - | S40: - | T40: - | U40: - | V40: - | W40: - | X40: - | Y40: - | Z40: - | AA40: - | AB40: - | AC40: - | AD40: - | AE40: - | AF40: - | AG40: - | AH40: - | AI40: - | AJ40: - | AK40: - | AL40: - | AM40: - | AN40: - | AO40: - | AP40: - | AQ40: - | AR40: - | AS40: 50 | AT40: - | AU40: - | AV40: - | AW40: - | AX40: - | AY40: - | AZ40: - | BA40: - | BB40: - | BC40: - | BD40: - | BE40: - | BF40: - | BG40: - | BH40: - | BI40: - | BJ40: - | BK40: - | BL40: - | BM40: - | BN40: - | BO40: - | BP40: - | BQ40: - | BR40: Laborer I | BS40: 23.88
A41: X4 | B41: 3 Deck Screening Plant (5X16, 42X60) | C41: ScreenPlant | D41: 4.85 | E41: =Equipment[[#This Row],[Fuel Consumption (gal/hr)]]*$C$57 -> 13.1435 | F41: 2.02 | G41: 1.45 | H41: 0.37 | I41: 17872.04 | J41: 5.92 | K41: =Equipment[[#This Row],[Monthly Rental Rate ($/month)]]/176 -> 101.5456818 | L41: =SUM(K41,J41,H41,F41,Equipment[[#This Row],[Field Parts & Ground Engaging Component Cost ($/hr)]]) -> 111.3056818 | M41: - | N41: - | O41: - | P41: - | Q41: - | R41: - | S41: - | T41: - | U41: - | V41: - | W41: - | X41: - | Y41: - | Z41: - | AA41: - | AB41: - | AC41: - | AD41: - | AE41: - | AF41: - | AG41: - | AH41: - | AI41: - | AJ41: - | AK41: - | AL41: - | AM41: - | AN41: - | AO41: - | AP41: - | AQ41: - | AR41: - | AS41: 50 | AT41: - | AU41: - | AV41: - | AW41: - | AX41: - | AY41: - | AZ41: - | BA41: - | BB41: - | BC41: - | BD41: - | BE41: - | BF41: - | BG41: - | BH41: - | BI41: - | BJ41: - | BK41: - | BL41: - | BM41: - | BN41: - | BO41: - | BP41: - | BQ41: - | BR41: Laborer I | BS41: 23.88
B43: NOTES
B44: 1 Loader Cycle Time = load, dump, and maneuver time
B45: 2 Performance information is unavailable for the Hitachi EX3600-5; therefore, performance information for the Caterpillar 5230B FS has been used
B46: 3 Performance information is unavailable for the Komatsu 730E; therefore, performance information for the Caterpillar 789D has been used
B47: 4 Maximum loaded speed listed for trucks and scrapers
B48: 5 Equipment costs use 176 max work hours per month (from Bluebook)
B49: 6 Fuel consumption assumed to be the same for the D11T and D11T CD (fuel consumption information unavailble for the D11T CD in EquipmentWatch)
B50: 7 Rental rates and component costs for Hitachi EX3600-5 and Komatsu HD-1500 5 from May 2020
B52: Not all equipment is used in this RCE. Extra equiment is kept for alternatives and testing purposes and to maintain spreadsheet integrity
B55: FUEL
D56: Reference
B57: Earthwork Oil Broker Quote ($/gal) | C57: ='Unit Rates'!C11 -> 2.71 | D57: 2
B61: EARTHWORK AND O&M LABOR
C62: Total 2021
B63: NMDOL Type A | C63: Rate
B64: Operator Group | C64: ($/hr) | D64: Reference
B65: Equipment Operator IV | C65: 28.65 | D65: 3
B66: Equipment Operator V | C66: 28.77 | D66: 3
B67: Equipment Operator VI | C67: 28.95 | D67: 3
B68: Equipment Operator VII | C68: 28.97 | D68: 3
B69: Equipment Operator VIII | C69: 30.93 | D69: 3
B70: Laborer I | C70: 23.88 | D70: 3
B71: Laborer II | C71: 24.63 | D71: 3
B72: Truck Driver III | C72: 24.57 | D72: 3
B73: Truck Driver VI | C73: 24.82
B74: Truck Driver VII | C74: 24.96
B75: Truck Driver VIII | C75: 25.16 | D75: 3
B80: Equipment costs use 176 max work hours per month (from Bluebook)
B82: References
B83: 1. Equipment unit rates from EquipmentWatch Custom Cost Evaluator January 2021 (http://www.equipmentwatch.com). See attachments for rate development. Excavator capacity and maximum reach at ground level from EquipmentWatch.
B84: 2. Diesel fuel cost is estimated based on a predictive equation developed by correlating U.S. No. 2 diesel retail prices (U.S. Energy Information Administration) and FMI local fuel quotes, as agreed upon in November 2018 discussions with the agencies. The correlation is based on a dataset for the period from 1995-2018. Fuel cost includes direct and indirect costs at $1.90/gal.
B85: 3. Labor rates based on New Mexico Department of Labor (NMDOL) Type H (Heavy Engineering) 2021 labor rates. Rates include base hourly wage, fringe benefit, and apprenticeship contribution rates.
B86: https://www.dws.state.nm.us/Portals/0/DM/LaborRelations/Prevailing_Wage_Poster_H_2021.pdf
B87: 4. Production and Haul rates from Caterpillar Performance Handbook; Equipment paramters from Caterpillar Performance Handbook

Sheet 1 General
C1: Little Rock Mine
C2: Stockpile Spreadsheet Worksheet #1
A3: General Information | C3: 44740
A5: Applicant | B5: Little Rock Mine
B6: Freeport McMoRan Tyrone Inc.
B7: Tyrone, New Mexico 88065
A11: Disturbed Surface Area (acres) | B11: ='18b Facility Characteristics'!P9-'18b Facility Characteristics'!K9 -> 314.625
A14: Type of Operation | B14: Existing/Surface/Copper
A18: Current value of earthwork and O&M before escalation and discounting | B18: ='17 Sum'!D18+'3 Full Site O&M Summ'!D17 -> 8895456.519
C23: Stockpiles, Tailing,
C24: Reservoirs, Haul Roads
A25: EOY 2024 Mine Plan | C25: and Disturbed Areas

Sheet 2 Demo
I1: ='1 General'!C1 -> Little Rock Mine
I2: Stockpile Spreadsheet Worksheet #2
A3: Demolition | I3: ='1 General'!C3 -> 44740
A5: Building Demolition costs are calculated in "1 BuildingDemo", "2 BuildingCover", "3 BuildingVeg", and "4BuildingWaste" and summarized on the last line of this table.
A10: Item | B10: Material | C10: Quantity | D10: Unit | E10: Unit Cost ($/unit) | F10: Direct Item Cost ($) | G10: Reference | H10: Means Line Item | I10: Description
A11: 46 kV power lines | B11: Wiring | C11: 8 | D11: days | E11: ='Unit Rates'!C29 -> 4341.2 | F11: =Demo[[#This Row],[Quantity]]*Demo[[#This Row],[Unit Cost ($/unit)]] -> 34729.6 | G11: R.S. Means | H11: Crew B-12N Crew B-17 Crew B-68C | I11: Bare Costs: 2-laborers (B17: $42.10/hr, $673.6/day), 1-equipment operator (light) (B17: $53/hr, $424/day), 1-truck driver (heavy) (B17: $48.95/hr, $391.6/day), 1-48 HP backhoe loader (B17: $26.718/hr, $213.75/day), 1-8 cy 220 HP dump truck (B17: $53.506/hr, $428.05/day), 1-electrician (B68C: $61.35/hr, $490.8/day), 1-25-ton hydraulic crane (B12N: $141.125/hr, $1129/day), 1-crane operator (B12N: $59.2/hr, $473.6/day)
A12: Power Poles | C12: 163 | D12: ea | E12: ='Unit Rates'!$C$30 -> 220.56 | F12: =Demo[[#This Row],[Quantity]]*Demo[[#This Row],[Unit Cost ($/unit)]] -> 35951.28 | G12: R.S. Means | H12: 024113.80 0200 | I12: Number of power poles from 2020 Little Rock Infrastructure Dwg. Unit cost for Selective Demolition - wood utility poles 35-45 feet high.
A13: Substation | B13: Misc. | C13: 1 | D13: ea | E13: ='Unit Rates'!C54 -> 12266.2 | F13: =Demo[[#This Row],[Quantity]]*Demo[[#This Row],[Unit Cost ($/unit)]] -> 12266.2 | G13: R.S. Means | H13: - | I13: -
A14: Pipelines | B14: 6"-8" Diameter Plastic | C14: 12700 | D14: ft | E14: ='Unit Rates'!C31 -> 2.955044475 | F14: =Demo[[#This Row],[Quantity]]*Demo[[#This Row],[Unit Cost ($/unit)]] -> 37529.06483 | G14: Unit Cost Sheet | H14: N/A | I14: Demolition, water and sewer piping and fittings, excludes excavation, plastic pipe 6''-8'' in diameter.
A15: Spanning Arch Culvert Demolition | B15: Earth Fill Removal (dozer excavate, haul, spread) | C15: =ROUND(5013- PI()*11^2/2 *224.6/27,-1) -> 3430 | D15: cy | E15: ='Unit Rates'!C51 -> 5.2 | F15: =Demo[[#This Row],[Quantity]]*Demo[[#This Row],[Unit Cost ($/unit)]] -> 17836 | G15: R.S. Means | H15: 312316.46-6070 | I15: Earth fill is hauled an average of 300 feet and spread over the primary haul road. Excavating Bulk Dozer 700 HP 300' haul common earth
A16: Spanning Arch Culvert Demolition | B16: Concrete Foundation and Metal Arch (excavate and load) | C16: =ROUND(((6*3.5+2*6)*224.6/27+(5*2+6*2)*224.6/27)*1.6,-1)+ROUND(PI()*11^2/2*224.6/27*0.5,-1) -> 1520 | D16: cy | E16: ='Unit Rates'!C52 -> 1.55 | F16: =Demo[[#This Row],[Quantity]]*Demo[[#This Row],[Unit Cost ($/unit)]] -> 2356 | G16: R.S. Means | H16: 312316.46-6010 | I16: Concrete and metal are excavated and loaded onto a truck. A 60% swell factor was used for the concrete foundations and metal arch volume was reduced by 50% assuming it is partially crushed. Excavating Bulk Dozer 700 HP 50' haul common earth
A17: Spanning Arch Culvert Demolition | B17: Concrete Foundation and Metal Arch (haul and dump) | C17: =C16 -> 1520 | D17: cy | E17: ='Unit Rates'!C53 -> 2.87 | F17: =Demo[[#This Row],[Quantity]]*Demo[[#This Row],[Unit Cost ($/unit)]] -> 4362.4 | G17: R.S. Means | H17: 312323.20-5040 | I17: Concrete and metal are hauled to in-pit stockpile area and buried. A 60% swell factor was used for the concrete foundations and metal arch volume was reduced by 50% assuming it is partially crushed. 22 cy off road, 15 min. cycle time, 5 mph, 1 mile cycle.
A18: Concrete Slabs | B18: Demolition | C18: See Demo Sheets | D18: - | E18: - | F18: ='5 BuildingSum'!D13 -> 7387.451371 | G18: - | H18: - | I18: -
E21: Total Direct Cost: | F21: =SUM(F11:F18) -> 152417.9962
A29: Data Sources:

Sheet 3 Material
K1: ='1 General'!C1 -> Little Rock Mine
K2: Stockpile Spreadsheet Worksheet #3
F3: Material Handling Plan Summary Sheet | K3: ='1 General'!$C$3 -> 44740
F4: All activities for the Little Rock RCE are listed on this sheet and carried through the succeeding worksheets of the RCE. The column labeled ID contains the codes for the facility location, activity, material and equipment used for that particular row of work. The description lists the activity, top or outslope (if applicable), and the material. The source location lists the stockpile name (or sub-area) for the location of the activity. If borrow material is involved, it is transported from a borrow stockpile to a destination stockpile. Blank cells indicate that that column is not relevant to a particular activity.
F6: Notes and Assumptions:
A7: Truck = | B7: Tk4 | F7: 1 - Haul/Push Distance based on 2020 Little Rock CCP drawings 2 - Haul Grades based on 2020 Little Rock CCP drawings 3 - Grade Factors from 2013 Little Rock RCE Submittal and 2020 Little Rock CCP drawings
A8: Shovel = | B8: Sh1
A14: Item | B14: Activity | C14: Material | D14: Eq | E14: ID | F14: Description | G14: Source Location 1 | H14: Destination Location 2 | I14: Total Haul/Push Distance (ft)1 | J14: Grade (%)2,3 | K14: Equipment
A15: =Quantities!$A$6 -> 1002 | B15: A | C15: a | D15: Sc2 | E15: =CONCATENATE(TEXT(A15,"0"),"-",B15,"-",C15,"-",D15) -> 1002-A-a-Sc2 | F15: =IF(D15="Comb1",CONCATENATE(VLOOKUP(B15,'Activity-Material_Codes'!$A$2:$B$28,Quantities!$B$2),"-",VLOOKUP(A15,Quantities[],Quantities!$D$2)), CONCATENATE( VLOOKUP(B15,'Activity-Material_Codes'!$A$2:$B$30,Quantities!$B$2), IF(AND(B15="B",C15="a"), " Scraper Grading", ""), IF(C15="b","","-"), IF(C15="b","",VLOOKUP(A15,Quantities[],Quantities!$D$2)), IF(LEFT(TEXT(A15,"0"),1)="5","","-"), IF(LEFT(TEXT(A15,"0"),1)="5","",VLOOKUP(C15,'Activity-Material_Codes'!$A$34:$B$40,Quantities!$B$2)) )) -> Grade-Outslopes-Existing Ground | G15: =IF(C15="f",VLOOKUP(A15,Quantities[],Quantities!$B$2), CONCATENATE( IF(OR(RIGHT(TEXT($A15,"0"),Quantities!$B$2)="00",LEFT(TEXT($A15,"0"),1)="5",OR($C15="b",$C15="f")),"",VLOOKUP($A15,Quantities[],Quantities!$B$2)), IF(LEFT(TEXT($A15,"0"),1)="5",""," "), IF(OR(C15="a",C15="c",C15="d",C15="e"),IF(OR(RIGHT(TEXT($A15,"0"),Quantities!$B$2)="00",LEFT(TEXT($A15,"0"),1)="5"),VLOOKUP($A15,Quantities[],Quantities!$B$2),""), IF(LEFT(TEXT($A15,"0"),1)="5",VLOOKUP($A15,Quantities[],Quantities!$B$2), VLOOKUP(INDEX(Quantities!$A$46:$A$48,MATCH($A15,Quantities!$C$46:$C$48)),Quantities!$A$46:$B$48,Quantities!$B$2))))) -> West In-Pit Waste | H15: =IF(C15="f","Deadman Diversion", IF(LEFT(TEXT(A15,"0"),1)="5", VLOOKUP(VLOOKUP(A15,Quantities!$A$4:$D$48,Quantities!$C$2),Quantities!$A$4:$D$48,Quantities!$C$2), IF(OR(C15="a",C15="c",C15="d",C15="e"), "-", IF(RIGHT(TEXT(A15,"0"),2)="00",VLOOKUP(A15,Quantities[],Quantities!$B$2), IF(C15="f",VLOOKUP(A15,Quantities[],Quantities!$B$2), VLOOKUP(A15,Quantities[],Quantities!$C$2)) )))) -> - | I15: =IF(OR(AND(LEFT(D15,2)="Sc",B15="A",OR(C15="d",C15="f")),AND(C15="f",B15="D")), SUM(VLOOKUP($A15,Quantities[],Quantities!$O$2),VLOOKUP($A15,Quantities[],Quantities!$Q$2),VLOOKUP($A15,Quantities[],Quantities!$S$2),VLOOKUP($A15,Quantities[],Quantities!$I$2)), IF(AND(LEFT(D15,2)="Sc",OR(C15="a",C15="f")), VLOOKUP(A15,Quantities[],Quantities!$I$2), IF(AND(B15="D",C15="b"), VLOOKUP(INDEX(Quantities!$A$46:$A$48,MATCH($A15,Quantities!$C$46:$C$48)),Quantities!$A$46:$AN$48,Quantities!$O$2)+ VLOOKUP(INDEX(Quantities!$A$46:$A$48,MATCH($A15,Quantities!$C$46:$C$48)),Quantities!$A$46:$AN$48,Quantities!$Q$2)+ VLOOKUP(INDEX(Quantities!$A$46:$A$48,MATCH($A15,Quantities!$C$46:$C$48)),Quantities!$A$46:$AN$48,Quantities!$S$2), IF(OR(B15="D",B15="Q"), SUM(VLOOKUP($A15,Quantities[],Quantities!$O$2),VLOOKUP($A15,Quantities[],Quantities!$Q$2),VLOOKUP($A15,Quantities[],Quantities!$S$2)), VLOOKUP(A15,Quantities[],Quantities!$G$2) )))) -> 1064.333333 | J15: =IF(LEFT(D15,2)="Mg", VLOOKUP(A15,Quantities[],Quantities!$H$2), IF(OR(AND(LEFT(D15,2)="Sc",B15="A",OR(C15="d",C15="f"))), (SUM(VLOOKUP($A15,Quantities[],Quantities!$P$2)*VLOOKUP($A15,Quantities[],Quantities!$O$2),VLOOKUP($A15,Quantities[],Quantities!$R$2)*VLOOKUP($A15,Quantities[],Quantities!$Q$2),VLOOKUP($A15,Quantities[],Quantities!$T$2)*VLOOKUP($A15,Quantities[],Quantities!$S$2)))/SUM(VLOOKUP($A15,Quantities[],Quantities!$O$2),VLOOKUP($A15,Quantities[],Quantities!$Q$2),VLOOKUP($A15,Quantities[],Quantities!$S$2)), IF(AND(LEFT(D15,2)="Sc",OR(C15="a",C15="f")), VLOOKUP(A15,Quantities[],Quantities!$J$2), IF(AND(B15="D",C15="b", (VLOOKUP(INDEX(Quantities!$A$46:$A$48,MATCH($A15,Quantities!$C$46:$C$48)),Quantities[],Quantities!$O$2)+VLOOKUP(INDEX(Quantities!$A$46:$A$48,MATCH($A15,Quantities!$C$46:$C$48)),Quantities[],Quantities!$Q$2)+VLOOKUP(INDEX(Quantities!$A$46:$A$48,MATCH($A15,Quantities!$C$46:$C$48)),Quantities[],Quantities!$S$2))>0), (VLOOKUP(INDEX(Quantities!$A$46:$A$48,MATCH($A15,Quantities!$C$46:$C$48)),Quantities[],Quantities!$P$2)*VLOOKUP(INDEX(Quantities!$A$46:$A$48,MATCH($A15,Quantities!$C$46:$C$48)),Quantities[],Quantities!$O$2) +VLOOKUP(INDEX(Quantities!$A$46:$A$48,MATCH($A15,Quantities!$C$46:$C$48)),Quantities[],Quantities!$R$2)*VLOOKUP(INDEX(Quantities!$A$46:$A$48,MATCH($A15,Quantities!$C$46:$C$48)),Quantities[],Quantities!$Q$2) +VLOOKUP(INDEX(Quantities!$A$46:$A$48,MATCH($A15,Quantities!$C$46:$C$48)),Quantities[],Quantities!$T$2)*VLOOKUP(INDEX(Quantities!$A$46:$A$48,MATCH($A15,Quantities!$C$46:$C$48)),Quantities[],Quantities!$S$2))/ (VLOOKUP(INDEX(Quantities!$A$46:$A$48,MATCH($A15,Quantities!$C$46:$C$48)),Quantities[],Quantities!$O$2)+VLOOKUP(INDEX(Quantities!$A$46:$A$48,MATCH($A15,Quantities!$C$46:$C$48)),Quantities[],Quantities!$Q$2)+VLOOKUP(A15,Quantities[],Quantities!$S$2)), IF(AND(B15="D", (VLOOKUP(A15,Quantities[],Quantities!$O$2)+VLOOKUP(A15,Quantities[],Quantities!$Q$2)+VLOOKUP(A15,Quantities[],Quantities!$S$2))>0), (VLOOKUP(A15,Quantities[],Quantities!$P$2)*VLOOKUP(A15,Quantities[],Quantities!$O$2) +VLOOKUP(A15,Quantities[],Quantities!$R$2)*VLOOKUP(A15,Quantities[],Quantities!$Q$2) +VLOOKUP(A15,Quantities[],Quantities!$T$2)*VLOOKUP(A15,Quantities[],Quantities!$S$2))/ (VLOOKUP(A15,Quantities[],Quantities!$O$2)+VLOOKUP(A15,Quantities[],Quantities!$Q$2)+VLOOKUP(A15,Quantities[],Quantities!$S$2)), IF($B15="Q", (SUM(VLOOKUP($A15,Quantities[],Quantities!$P$2)*VLOOKUP($A15,Quantities[],Quantities!$O$2),VLOOKUP($A15,Quantities[],Quantities!$R$2)*VLOOKUP($A15,Quantities[],Quantities!$Q$2),VLOOKUP($A15,Quantities[],Quantities!$T$2)*VLOOKUP($A15,Quantities[],Quantities!$S$2)))/SUM(VLOOKUP($A15,Quantities[],Quantities!$O$2),VLOOKUP($A15,Quantities[],Quantities!$Q$2),VLOOKUP($A15,Quantities[],Quantities!$S$2)), VLOOKUP(A15,Quantities[],Quantities!$H$2) )))))) -> -0.252 | K15: =IF(LEFT(D15,1)="U","-",VLOOKUP(D15,Equipment[],Equipment!$B$2)) -> Cat 657G
A16: =Quantities!$A$14 -> 1302 | B16: A | C16: a | D16: Dz2 | E16: =CONCATENATE(TEXT(A16,"0"),"-",B16,"-",C16,"-",D16) -> 1302-A-a-Dz2 | F16: =IF(D16="Comb1",CONCATENATE(VLOOKUP(B16,'Activity-Material_Codes'!$A$2:$B$28,Quantities!$B$2),"-",VLOOKUP(A16,Quantities[],Quantities!$D$2)), CONCATENATE( VLOOKUP(B16,'Activity-Material_Codes'!$A$2:$B$30,Quantities!$B$2), IF(AND(B16="B",C16="a"), " Scraper Grading", ""), IF(C16="b","","-"), IF(C16="b","",VLOOKUP(A16,Quantities[],Quantities!$D$2)), IF(LEFT(TEXT(A16,"0"),1)="5","","-"), IF(LEFT(TEXT(A16,"0"),1)="5","",VLOOKUP(C16,'Activity-Material_Codes'!$A$34:$B$40,Quantities!$B$2)) )) -> Grade-North Outslope-Existing Ground | G16: =IF(C16="f",VLOOKUP(A16,Quantities[],Quantities!$B$2), CONCATENATE( IF(OR(RIGHT(TEXT($A16,"0"),Quantities!$B$2)="00",LEFT(TEXT($A16,"0"),1)="5",OR($C16="b",$C16="f")),"",VLOOKUP($A16,Quantities[],Quantities!$B$2)), IF(LEFT(TEXT($A16,"0"),1)="5",""," "), IF(OR(C16="a",C16="c",C16="d",C16="e"),IF(OR(RIGHT(TEXT($A16,"0"),Quantities!$B$2)="00",LEFT(TEXT($A16,"0"),1)="5"),VLOOKUP($A16,Quantities[],Quantities!$B$2),""), IF(LEFT(TEXT($A16,"0"),1)="5",VLOOKUP($A16,Quantities[],Quantities!$B$2), VLOOKUP(INDEX(Quantities!$A$46:$A$48,MATCH($A16,Quantities!$C$46:$C$48)),Quantities!$A$46:$B$48,Quantities!$B$2))))) -> NRW Waste | H16: =IF(C16="f","Deadman Diversion", IF(LEFT(TEXT(A16,"0"),1)="5", VLOOKUP(VLOOKUP(A16,Quantities!$A$4:$D$48,Quantities!$C$2),Quantities!$A$4:$D$48,Quantities!$C$2), IF(OR(C16="a",C16="c",C16="d",C16="e"), "-", IF(RIGHT(TEXT(A16,"0"),2)="00",VLOOKUP(A16,Quantities[],Quantities!$B$2), IF(C16="f",VLOOKUP(A16,Quantities[],Quantities!$B$2), VLOOKUP(A16,Quantities[],Quantities!$C$2)) )))) -> - | I16: =IF(OR(AND(LEFT(D16,2)="Sc",B16="A",OR(C16="d",C16="f")),AND(C16="f",B16="D")), SUM(VLOOKUP($A16,Quantities[],Quantities!$O$2),VLOOKUP($A16,Quantities[],Quantities!$Q$2),VLOOKUP($A16,Quantities[],Quantities!$S$2),VLOOKUP($A16,Quantities[],Quantities!$I$2)), IF(AND(LEFT(D16,2)="Sc",OR(C16="a",C16="f")), VLOOKUP(A16,Quantities[],Quantities!$I$2), IF(AND(B16="D",C16="b"), VLOOKUP(INDEX(Quantities!$A$46:$A$48,MATCH($A16,Quantities!$C$46:$C$48)),Quantities!$A$46:$AN$48,Quantities!$O$2)+ VLOOKUP(INDEX(Quantities!$A$46:$A$48,MATCH($A16,Quantities!$C$46:$C$48)),Quantities!$A$46:$AN$48,Quantities!$Q$2)+ VLOOKUP(INDEX(Quantities!$A$46:$A$48,MATCH($A16,Quantities!$C$46:$C$48)),Quantities!$A$46:$AN$48,Quantities!$S$2), IF(OR(B16="D",B16="Q"), SUM(VLOOKUP($A16,Quantities[],Quantities!$O$2),VLOOKUP($A16,Quantities[],Quantities!$Q$2),VLOOKUP($A16,Quantities[],Quantities!$S$2)), VLOOKUP(A16,Quantities[],Quantities!$G$2) )))) -> 90 | J16: =IF(LEFT(D16,2)="Mg", VLOOKUP(A16,Quantities[],Quantities!$H$2), IF(OR(AND(LEFT(D16,2)="Sc",B16="A",OR(C16="d",C16="f"))), (SUM(VLOOKUP($A16,Quantities[],Quantities!$P$2)*VLOOKUP($A16,Quantities[],Quantities!$O$2),VLOOKUP($A16,Quantities[],Quantities!$R$2)*VLOOKUP($A16,Quantities[],Quantities!$Q$2),VLOOKUP($A16,Quantities[],Quantities!$T$2)*VLOOKUP($A16,Quantities[],Quantities!$S$2)))/SUM(VLOOKUP($A16,Quantities[],Quantities!$O$2),VLOOKUP($A16,Quantities[],Quantities!$Q$2),VLOOKUP($A16,Quantities[],Quantities!$S$2)), IF(AND(LEFT(D16,2)="Sc",OR(C16="a",C16="f")), VLOOKUP(A16,Quantities[],Quantities!$J$2), IF(AND(B16="D",C16="b", (VLOOKUP(INDEX(Quantities!$A$46:$A$48,MATCH($A16,Quantities!$C$46:$C$48)),Quantities[],Quantities!$O$2)+VLOOKUP(INDEX(Quantities!$A$46:$A$48,MATCH($A16,Quantities!$C$46:$C$48)),Quantities[],Quantities!$Q$2)+VLOOKUP(INDEX(Quantities!$A$46:$A$48,MATCH($A16,Quantities!$C$46:$C$48)),Quantities[],Quantities!$S$2))>0), (VLOOKUP(INDEX(Quantities!$A$46:$A$48,MATCH($A16,Quantities!$C$46:$C$48)),Quantities[],Quantities!$P$2)*VLOOKUP(INDEX(Quantities!$A$46:$A$48,MATCH($A16,Quantities!$C$46:$C$48)),Quantities[],Quantities!$O$2) +VLOOKUP(INDEX(Quantities!$A$46:$A$48,MATCH($A16,Quantities!$C$46:$C$48)),Quantities[],Quantities!$R$2)*VLOOKUP(INDEX(Quantities!$A$46:$A$48,MATCH($A16,Quantities!$C$46:$C$48)),Quantities[],Quantities!$Q$2) +VLOOKUP(INDEX(Quantities!$A$46:$A$48,MATCH($A16,Quantities!$C$46:$C$48)),Quantities[],Quantities!$T$2)*VLOOKUP(INDEX(Quantities!$A$46:$A$48,MATCH($A16,Quantities!$C$46:$C$48)),Quantities[],Quantities!$S$2))/ (VLOOKUP(INDEX(Quantities!$A$46:$A$48,MATCH($A16,Quantities!$C$46:$C$48)),Quantities[],Quantities!$O$2)+VLOOKUP(INDEX(Quantities!$A$46:$A$48,MATCH($A16,Quantities!$C$46:$C$48)),Quantities[],Quantities!$Q$2)+VLOOKUP(A16,Quantities[],Quantities!$S$2)), IF(AND(B16="D", (VLOOKUP(A16,Quantities[],Quantities!$O$2)+VLOOKUP(A16,Quantities[],Quantities!$Q$2)+VLOOKUP(A16,Quantities[],Quantities!$S$2))>0), (VLOOKUP(A16,Quantities[],Quantities!$P$2)*VLOOKUP(A16,Quantities[],Quantities!$O$2) +VLOOKUP(A16,Quantities[],Quantities!$R$2)*VLOOKUP(A16,Quantities[],Quantities!$Q$2) +VLOOKUP(A16,Quantities[],Quantities!$T$2)*VLOOKUP(A16,Quantities[],Quantities!$S$2))/ (VLOOKUP(A16,Quantities[],Quantities!$O$2)+VLOOKUP(A16,Quantities[],Quantities!$Q$2)+VLOOKUP(A16,Quantities[],Quantities!$S$2)), IF($B16="Q", (SUM(VLOOKUP($A16,Quantities[],Quantities!$P$2)*VLOOKUP($A16,Quantities[],Quantities!$O$2),VLOOKUP($A16,Quantities[],Quantities!$R$2)*VLOOKUP($A16,Quantities[],Quantities!$Q$2),VLOOKUP($A16,Quantities[],Quantities!$T$2)*VLOOKUP($A16,Quantities[],Quantities!$S$2)))/SUM(VLOOKUP($A16,Quantities[],Quantities!$O$2),VLOOKUP($A16,Quantities[],Quantities!$Q$2),VLOOKUP($A16,Quantities[],Quantities!$S$2)), VLOOKUP(A16,Quantities[],Quantities!$H$2) )))))) -> -0.29 | K16: =IF(LEFT(D16,1)="U","-",VLOOKUP(D16,Equipment[],Equipment!$B$2)) -> Cat D11T CD
A17: =Quantities!$A$15 -> 1303 | B17: A | C17: a | D17: Dz2 | E17: 1303-A-a-Dz2 | F17: =IF(D17="Comb1",CONCATENATE(VLOOKUP(B17,'Activity-Material_Codes'!$A$2:$B$28,Quantities!$B$2),"-",VLOOKUP(A17,Quantities[],Quantities!$D$2)), CONCATENATE( VLOOKUP(B17,'Activity-Material_Codes'!$A$2:$B$30,Quantities!$B$2), IF(AND(B17="B",C17="a"), " Scraper Grading", ""), IF(C17="b","","-"), IF(C17="b","",VLOOKUP(A17,Quantities[],Quantities!$D$2)), IF(LEFT(TEXT(A17,"0"),1)="5","","-"), IF(LEFT(TEXT(A17,"0"),1)="5","",VLOOKUP(C17,'Activity-Material_Codes'!$A$34:$B$40,Quantities!$B$2)) )) -> Grade-South Outslopes-Existing Ground | G17: =IF(C17="f",VLOOKUP(A17,Quantities[],Quantities!$B$2), CONCATENATE( IF(OR(RIGHT(TEXT($A17,"0"),Quantities!$B$2)="00",LEFT(TEXT($A17,"0"),1)="5",OR($C17="b",$C17="f")),"",VLOOKUP($A17,Quantities[],Quantities!$B$2)), IF(LEFT(TEXT($A17,"0"),1)="5",""," "), IF(OR(C17="a",C17="c",C17="d",C17="e"),IF(OR(RIGHT(TEXT($A17,"0"),Quantities!$B$2)="00",LEFT(TEXT($A17,"0"),1)="5"),VLOOKUP($A17,Quantities[],Quantities!$B$2),""), IF(LEFT(TEXT($A17,"0"),1)="5",VLOOKUP($A17,Quantities[],Quantities!$B$2), VLOOKUP(INDEX(Quantities!$A$46:$A$48,MATCH($A17,Quantities!$C$46:$C$48)),Quantities!$A$46:$B$48,Quantities!$B$2))))) -> NRW Waste | H17: =IF(C17="f","Deadman Diversion", IF(LEFT(TEXT(A17,"0"),1)="5", VLOOKUP(VLOOKUP(A17,Quantities!$A$4:$D$48,Quantities!$C$2),Quantities!$A$4:$D$48,Quantities!$C$2), IF(OR(C17="a",C17="c",C17="d",C17="e"), "-", IF(RIGHT(TEXT(A17,"0"),2)="00",VLOOKUP(A17,Quantities[],Quantities!$B$2), IF(C17="f",VLOOKUP(A17,Quantities[],Quantities!$B$2), VLOOKUP(A17,Quantities[],Quantities!$C$2)) )))) -> - | I17: =IF(OR(AND(LEFT(D17,2)="Sc",B17="A",OR(C17="d",C17="f")),AND(C17="f",B17="D")), SUM(VLOOKUP($A17,Quantities[],Quantities!$O$2),VLOOKUP($A17,Quantities[],Quantities!$Q$2),VLOOKUP($A17,Quantities[],Quantities!$S$2),VLOOKUP($A17,Quantities[],Quantities!$I$2)), IF(AND(LEFT(D17,2)="Sc",OR(C17="a",C17="f")), VLOOKUP(A17,Quantities[],Quantities!$I$2), IF(AND(B17="D",C17="b"), VLOOKUP(INDEX(Quantities!$A$46:$A$48,MATCH($A17,Quantities!$C$46:$C$48)),Quantities!$A$46:$AN$48,Quantities!$O$2)+ VLOOKUP(INDEX(Quantities!$A$46:$A$48,MATCH($A17,Quantities!$C$46:$C$48)),Quantities!$A$46:$AN$48,Quantities!$Q$2)+ VLOOKUP(INDEX(Quantities!$A$46:$A$48,MATCH($A17,Quantities!$C$46:$C$48)),Quantities!$A$46:$AN$48,Quantities!$S$2), IF(OR(B17="D",B17="Q"), SUM(VLOOKUP($A17,Quantities[],Quantities!$O$2),VLOOKUP($A17,Quantities[],Quantities!$Q$2),VLOOKUP($A17,Quantities[],Quantities!$S$2)), VLOOKUP(A17,Quantities[],Quantities!$G$2) )))) -> 90 | J17: =IF(LEFT(D17,2)="Mg", VLOOKUP(A17,Quantities[],Quantities!$H$2), IF(OR(AND(LEFT(D17,2)="Sc",B17="A",OR(C17="d",C17="f"))), (SUM(VLOOKUP($A17,Quantities[],Quantities!$P$2)*VLOOKUP($A17,Quantities[],Quantities!$O$2),VLOOKUP($A17,Quantities[],Quantities!$R$2)*VLOOKUP($A17,Quantities[],Quantities!$Q$2),VLOOKUP($A17,Quantities[],Quantities!$T$2)*VLOOKUP($A17,Quantities[],Quantities!$S$2)))/SUM(VLOOKUP($A17,Quantities[],Quantities!$O$2),VLOOKUP($A17,Quantities[],Quantities!$Q$2),VLOOKUP($A17,Quantities[],Quantities!$S$2)), IF(AND(LEFT(D17,2)="Sc",OR(C17="a",C17="f")), VLOOKUP(A17,Quantities[],Quantities!$J$2), IF(AND(B17="D",C17="b", (VLOOKUP(INDEX(Quantities!$A$46:$A$48,MATCH($A17,Quantities!$C$46:$C$48)),Quantities[],Quantities!$O$2)+VLOOKUP(INDEX(Quantities!$A$46:$A$48,MATCH($A17,Quantities!$C$46:$C$48)),Quantities[],Quantities!$Q$2)+VLOOKUP(INDEX(Quantities!$A$46:$A$48,MATCH($A17,Quantities!$C$46:$C$48)),Quantities[],Quantities!$S$2))>0), (VLOOKUP(INDEX(Quantities!$A$46:$A$48,MATCH($A17,Quantities!$C$46:$C$48)),Quantities[],Quantities!$P$2)*VLOOKUP(INDEX(Quantities!$A$46:$A$48,MATCH($A17,Quantities!$C$46:$C$48)),Quantities[],Quantities!$O$2) +VLOOKUP(INDEX(Quantities!$A$46:$A$48,MATCH($A17,Quantities!$C$46:$C$48)),Quantities[],Quantities!$R$2)*VLOOKUP(INDEX(Quantities!$A$46:$A$48,MATCH($A17,Quantities!$C$46:$C$48)),Quantities[],Quantities!$Q$2) +VLOOKUP(INDEX(Quantities!$A$46:$A$48,MATCH($A17,Quantities!$C$46:$C$48)),Quantities[],Quantities!$T$2)*VLOOKUP(INDEX(Quantities!$A$46:$A$48,MATCH($A17,Quantities!$C$46:$C$48)),Quantities[],Quantities!$S$2))/ (VLOOKUP(INDEX(Quantities!$A$46:$A$48,MATCH($A17,Quantities!$C$46:$C$48)),Quantities[],Quantities!$O$2)+VLOOKUP(INDEX(Quantities!$A$46:$A$48,MATCH($A17,Quantities!$C$46:$C$48)),Quantities[],Quantities!$Q$2)+VLOOKUP(A17,Quantities[],Quantities!$S$2)), IF(AND(B17="D", (VLOOKUP(A17,Quantities[],Quantities!$O$2)+VLOOKUP(A17,Quantities[],Quantities!$Q$2)+VLOOKUP(A17,Quantities[],Quantities!$S$2))>0), (VLOOKUP(A17,Quantities[],Quantities!$P$2)*VLOOKUP(A17,Quantities[],Quantities!$O$2) +VLOOKUP(A17,Quantities[],Quantities!$R$2)*VLOOKUP(A17,Quantities[],Quantities!$Q$2) +VLOOKUP(A17,Quantities[],Quantities!$T$2)*VLOOKUP(A17,Quantities[],Quantities!$S$2))/ (VLOOKUP(A17,Quantities[],Quantities!$O$2)+VLOOKUP(A17,Quantities[],Quantities!$Q$2)+VLOOKUP(A17,Quantities[],Quantities!$S$2)), IF($B17="Q", (SUM(VLOOKUP($A17,Quantities[],Quantities!$P$2)*VLOOKUP($A17,Quantities[],Quantities!$O$2),VLOOKUP($A17,Quantities[],Quantities!$R$2)*VLOOKUP($A17,Quantities[],Quantities!$Q$2),VLOOKUP($A17,Quantities[],Quantities!$T$2)*VLOOKUP($A17,Quantities[],Quantities!$S$2)))/SUM(VLOOKUP($A17,Quantities[],Quantities!$O$2),VLOOKUP($A17,Quantities[],Quantities!$Q$2),VLOOKUP($A17,Quantities[],Quantities!$S$2)), VLOOKUP(A17,Quantities[],Quantities!$H$2) )))))) -> -0.29 | K17: =IF(LEFT(D17,1)="U","-",VLOOKUP(D17,Equipment[],Equipment!$B$2)) -> Cat D11T CD
A18: =Quantities!$A$27 -> 1704 | B18: A | C18: a | D18: Dz2 | E18: =CONCATENATE(TEXT(A18,"0"),"-",B18,"-",C18,"-",D18) -> 1704-A-a-Dz2 | F18: =IF(D18="Comb1",CONCATENATE(VLOOKUP(B18,'Activity-Material_Codes'!$A$2:$B$28,Quantities!$B$2),"-",VLOOKUP(A18,Quantities[],Quantities!$D$2)), CONCATENATE( VLOOKUP(B18,'Activity-Material_Codes'!$A$2:$B$30,Quantities!$B$2), IF(AND(B18="B",C18="a"), " Scraper Grading", ""), IF(C18="b","","-"), IF(C18="b","",VLOOKUP(A18,Quantities[],Quantities!$D$2)), IF(LEFT(TEXT(A18,"0"),1)="5","","-"), IF(LEFT(TEXT(A18,"0"),1)="5","",VLOOKUP(C18,'Activity-Material_Codes'!$A$34:$B$40,Quantities!$B$2)) )) -> Grade-Outslopes-Existing Ground | G18: =IF(C18="f",VLOOKUP(A18,Quantities[],Quantities!$B$2), CONCATENATE( IF(OR(RIGHT(TEXT($A18,"0"),Quantities!$B$2)="00",LEFT(TEXT($A18,"0"),1)="5",OR($C18="b",$C18="f")),"",VLOOKUP($A18,Quantities[],Quantities!$B$2)), IF(LEFT(TEXT($A18,"0"),1)="5",""," "), IF(OR(C18="a",C18="c",C18="d",C18="e"),IF(OR(RIGHT(TEXT($A18,"0"),Quantities!$B$2)="00",LEFT(TEXT($A18,"0"),1)="5"),VLOOKUP($A18,Quantities[],Quantities!$B$2),""), IF(LEFT(TEXT($A18,"0"),1)="5",VLOOKUP($A18,Quantities[],Quantities!$B$2), VLOOKUP(INDEX(Quantities!$A$46:$A$48,MATCH($A18,Quantities!$C$46:$C$48)),Quantities!$A$46:$B$48,Quantities!$B$2))))) -> Deadman Diversion Outslope | H18: =IF(C18="f","Deadman Diversion", IF(LEFT(TEXT(A18,"0"),1)="5", VLOOKUP(VLOOKUP(A18,Quantities!$A$4:$D$48,Quantities!$C$2),Quantities!$A$4:$D$48,Quantities!$C$2), IF(OR(C18="a",C18="c",C18="d",C18="e"), "-", IF(RIGHT(TEXT(A18,"0"),2)="00",VLOOKUP(A18,Quantities[],Quantities!$B$2), IF(C18="f",VLOOKUP(A18,Quantities[],Quantities!$B$2), VLOOKUP(A18,Quantities[],Quantities!$C$2)) )))) -> - | I18: =IF(OR(AND(LEFT(D18,2)="Sc",B18="A",OR(C18="d",C18="f")),AND(C18="f",B18="D")), SUM(VLOOKUP($A18,Quantities[],Quantities!$O$2),VLOOKUP($A18,Quantities[],Quantities!$Q$2),VLOOKUP($A18,Quantities[],Quantities!$S$2),VLOOKUP($A18,Quantities[],Quantities!$I$2)), IF(AND(LEFT(D18,2)="Sc",OR(C18="a",C18="f")), VLOOKUP(A18,Quantities[],Quantities!$I$2), IF(AND(B18="D",C18="b"), VLOOKUP(INDEX(Quantities!$A$46:$A$48,MATCH($A18,Quantities!$C$46:$C$48)),Quantities!$A$46:$AN$48,Quantities!$O$2)+ VLOOKUP(INDEX(Quantities!$A$46:$A$48,MATCH($A18,Quantities!$C$46:$C$48)),Quantities!$A$46:$AN$48,Quantities!$Q$2)+ VLOOKUP(INDEX(Quantities!$A$46:$A$48,MATCH($A18,Quantities!$C$46:$C$48)),Quantities!$A$46:$AN$48,Quantities!$S$2), IF(OR(B18="D",B18="Q"), SUM(VLOOKUP($A18,Quantities[],Quantities!$O$2),VLOOKUP($A18,Quantities[],Quantities!$Q$2),VLOOKUP($A18,Quantities[],Quantities!$S$2)), VLOOKUP(A18,Quantities[],Quantities!$G$2) )))) -> 20 | J18: =IF(LEFT(D18,2)="Mg", VLOOKUP(A18,Quantities[],Quantities!$H$2), IF(OR(AND(LEFT(D18,2)="Sc",B18="A",OR(C18="d",C18="f"))), (SUM(VLOOKUP($A18,Quantities[],Quantities!$P$2)*VLOOKUP($A18,Quantities[],Quantities!$O$2),VLOOKUP($A18,Quantities[],Quantities!$R$2)*VLOOKUP($A18,Quantities[],Quantities!$Q$2),VLOOKUP($A18,Quantities[],Quantities!$T$2)*VLOOKUP($A18,Quantities[],Quantities!$S$2)))/SUM(VLOOKUP($A18,Quantities[],Quantities!$O$2),VLOOKUP($A18,Quantities[],Quantities!$Q$2),VLOOKUP($A18,Quantities[],Quantities!$S$2)), IF(AND(LEFT(D18,2)="Sc",OR(C18="a",C18="f")), VLOOKUP(A18,Quantities[],Quantities!$J$2), IF(AND(B18="D",C18="b", (VLOOKUP(INDEX(Quantities!$A$46:$A$48,MATCH($A18,Quantities!$C$46:$C$48)),Quantities[],Quantities!$O$2)+VLOOKUP(INDEX(Quantities!$A$46:$A$48,MATCH($A18,Quantities!$C$46:$C$48)),Quantities[],Quantities!$Q$2)+VLOOKUP(INDEX(Quantities!$A$46:$A$48,MATCH($A18,Quantities!$C$46:$C$48)),Quantities[],Quantities!$S$2))>0), (VLOOKUP(INDEX(Quantities!$A$46:$A$48,MATCH($A18,Quantities!$C$46:$C$48)),Quantities[],Quantities!$P$2)*VLOOKUP(INDEX(Quantities!$A$46:$A$48,MATCH($A18,Quantities!$C$46:$C$48)),Quantities[],Quantities!$O$2) +VLOOKUP(INDEX(Quantities!$A$46:$A$48,MATCH($A18,Quantities!$C$46:$C$48)),Quantities[],Quantities!$R$2)*VLOOKUP(INDEX(Quantities!$A$46:$A$48,MATCH($A18,Quantities!$C$46:$C$48)),Quantities[],Quantities!$Q$2) +VLOOKUP(INDEX(Quantities!$A$46:$A$48,MATCH($A18,Quantities!$C$46:$C$48)),Quantities[],Quantities!$T$2)*VLOOKUP(INDEX(Quantities!$A$46:$A$48,MATCH($A18,Quantities!$C$46:$C$48)),Quantities[],Quantities!$S$2))/ (VLOOKUP(INDEX(Quantities!$A$46:$A$48,MATCH($A18,Quantities!$C$46:$C$48)),Quantities[],Quantities!$O$2)+VLOOKUP(INDEX(Quantities!$A$46:$A$48,MATCH($A18,Quantities!$C$46:$C$48)),Quantities[],Quantities!$Q$2)+VLOOKUP(A18,Quantities[],Quantities!$S$2)), IF(AND(B18="D", (VLOOKUP(A18,Quantities[],Quantities!$O$2)+VLOOKUP(A18,Quantities[],Quantities!$Q$2)+VLOOKUP(A18,Quantities[],Quantities!$S$2))>0), (VLOOKUP(A18,Quantities[],Quantities!$P$2)*VLOOKUP(A18,Quantities[],Quantities!$O$2) +VLOOKUP(A18,Quantities[],Quantities!$R$2)*VLOOKUP(A18,Quantities[],Quantities!$Q$2) +VLOOKUP(A18,Quantities[],Quantities!$T$2)*VLOOKUP(A18,Quantities[],Quantities!$S$2))/ (VLOOKUP(A18,Quantities[],Quantities!$O$2)+VLOOKUP(A18,Quantities[],Quantities!$Q$2)+VLOOKUP(A18,Quantities[],Quantities!$S$2)), IF($B18="Q", (SUM(VLOOKUP($A18,Quantities[],Quantities!$P$2)*VLOOKUP($A18,Quantities[],Quantities!$O$2),VLOOKUP($A18,Quantities[],Quantities!$R$2)*VLOOKUP($A18,Quantities[],Quantities!$Q$2),VLOOKUP($A18,Quantities[],Quantities!$T$2)*VLOOKUP($A18,Quantities[],Quantities!$S$2)))/SUM(VLOOKUP($A18,Quantities[],Quantities!$O$2),VLOOKUP($A18,Quantities[],Quantities!$Q$2),VLOOKUP($A18,Quantities[],Quantities!$S$2)), VLOOKUP(A18,Quantities[],Quantities!$H$2) )))))) -> -0.29 | K18: =IF(LEFT(D18,1)="U","-",VLOOKUP(D18,Equipment[],Equipment!$B$2)) -> Cat D11T CD
A19: =Quantities!$A$45 -> 2200 | B19: A | C19: a | D19: Dz2 | E19: 2200-A-a-Dz2 | F19: =IF(D19="Comb1",CONCATENATE(VLOOKUP(B19,'Activity-Material_Codes'!$A$2:$B$28,Quantities!$B$2),"-",VLOOKUP(A19,Quantities[],Quantities!$D$2)), CONCATENATE( VLOOKUP(B19,'Activity-Material_Codes'!$A$2:$B$30,Quantities!$B$2), IF(AND(B19="B",C19="a"), " Scraper Grading", ""), IF(C19="b","","-"), IF(C19="b","",VLOOKUP(A19,Quantities[],Quantities!$D$2)), IF(LEFT(TEXT(A19,"0"),1)="5","","-"), IF(LEFT(TEXT(A19,"0"),1)="5","",VLOOKUP(C19,'Activity-Material_Codes'!$A$34:$B$40,Quantities!$B$2)) )) -> Grade-Unplanned Disturbance Area-Existing Ground | G19: =IF(C19="f",VLOOKUP(A19,Quantities[],Quantities!$B$2), CONCATENATE( IF(OR(RIGHT(TEXT($A19,"0"),Quantities!$B$2)="00",LEFT(TEXT($A19,"0"),1)="5",OR($C19="b",$C19="f")),"",VLOOKUP($A19,Quantities[],Quantities!$B$2)), IF(LEFT(TEXT($A19,"0"),1)="5",""," "), IF(OR(C19="a",C19="c",C19="d",C19="e"),IF(OR(RIGHT(TEXT($A19,"0"),Quantities!$B$2)="00",LEFT(TEXT($A19,"0"),1)="5"),VLOOKUP($A19,Quantities[],Quantities!$B$2),""), IF(LEFT(TEXT($A19,"0"),1)="5",VLOOKUP($A19,Quantities[],Quantities!$B$2), VLOOKUP(INDEX(Quantities!$A$46:$A$48,MATCH($A19,Quantities!$C$46:$C$48)),Quantities!$A$46:$B$48,Quantities!$B$2))))) -> Allowance for Other Disturbed Areas | H19: =IF(C19="f","Deadman Diversion", IF(LEFT(TEXT(A19,"0"),1)="5", VLOOKUP(VLOOKUP(A19,Quantities!$A$4:$D$48,Quantities!$C$2),Quantities!$A$4:$D$48,Quantities!$C$2), IF(OR(C19="a",C19="c",C19="d",C19="e"), "-", IF(RIGHT(TEXT(A19,"0"),2)="00",VLOOKUP(A19,Quantities[],Quantities!$B$2), IF(C19="f",VLOOKUP(A19,Quantities[],Quantities!$B$2), VLOOKUP(A19,Quantities[],Quantities!$C$2)) )))) -> - | I19: =IF(OR(AND(LEFT(D19,2)="Sc",B19="A",OR(C19="d",C19="f")),AND(C19="f",B19="D")), SUM(VLOOKUP($A19,Quantities[],Quantities!$O$2),VLOOKUP($A19,Quantities[],Quantities!$Q$2),VLOOKUP($A19,Quantities[],Quantities!$S$2),VLOOKUP($A19,Quantities[],Quantities!$I$2)), IF(AND(LEFT(D19,2)="Sc",OR(C19="a",C19="f")), VLOOKUP(A19,Quantities[],Quantities!$I$2), IF(AND(B19="D",C19="b"), VLOOKUP(INDEX(Quantities!$A$46:$A$48,MATCH($A19,Quantities!$C$46:$C$48)),Quantities!$A$46:$AN$48,Quantities!$O$2)+ VLOOKUP(INDEX(Quantities!$A$46:$A$48,MATCH($A19,Quantities!$C$46:$C$48)),Quantities!$A$46:$AN$48,Quantities!$Q$2)+ VLOOKUP(INDEX(Quantities!$A$46:$A$48,MATCH($A19,Quantities!$C$46:$C$48)),Quantities!$A$46:$AN$48,Quantities!$S$2), IF(OR(B19="D",B19="Q"), SUM(VLOOKUP($A19,Quantities[],Quantities!$O$2),VLOOKUP($A19,Quantities[],Quantities!$Q$2),VLOOKUP($A19,Quantities[],Quantities!$S$2)), VLOOKUP(A19,Quantities[],Quantities!$G$2) )))) -> 0 | J19: =IF(LEFT(D19,2)="Mg", VLOOKUP(A19,Quantities[],Quantities!$H$2), IF(OR(AND(LEFT(D19,2)="Sc",B19="A",OR(C19="d",C19="f"))), (SUM(VLOOKUP($A19,Quantities[],Quantities!$P$2)*VLOOKUP($A19,Quantities[],Quantities!$O$2),VLOOKUP($A19,Quantities[],Quantities!$R$2)*VLOOKUP($A19,Quantities[],Quantities!$Q$2),VLOOKUP($A19,Quantities[],Quantities!$T$2)*VLOOKUP($A19,Quantities[],Quantities!$S$2)))/SUM(VLOOKUP($A19,Quantities[],Quantities!$O$2),VLOOKUP($A19,Quantities[],Quantities!$Q$2),VLOOKUP($A19,Quantities[],Quantities!$S$2)), IF(AND(LEFT(D19,2)="Sc",OR(C19="a",C19="f")), VLOOKUP(A19,Quantities[],Quantities!$J$2), IF(AND(B19="D",C19="b", (VLOOKUP(INDEX(Quantities!$A$46:$A$48,MATCH($A19,Quantities!$C$46:$C$48)),Quantities[],Quantities!$O$2)+VLOOKUP(INDEX(Quantities!$A$46:$A$48,MATCH($A19,Quantities!$C$46:$C$48)),Quantities[],Quantities!$Q$2)+VLOOKUP(INDEX(Quantities!$A$46:$A$48,MATCH($A19,Quantities!$C$46:$C$48)),Quantities[],Quantities!$S$2))>0), (VLOOKUP(INDEX(Quantities!$A$46:$A$48,MATCH($A19,Quantities!$C$46:$C$48)),Quantities[],Quantities!$P$2)*VLOOKUP(INDEX(Quantities!$A$46:$A$48,MATCH($A19,Quantities!$C$46:$C$48)),Quantities[],Quantities!$O$2) +VLOOKUP(INDEX(Quantities!$A$46:$A$48,MATCH($A19,Quantities!$C$46:$C$48)),Quantities[],Quantities!$R$2)*VLOOKUP(INDEX(Quantities!$A$46:$A$48,MATCH($A19,Quantities!$C$46:$C$48)),Quantities[],Quantities!$Q$2) +VLOOKUP(INDEX(Quantities!$A$46:$A$48,MATCH($A19,Quantities!$C$46:$C$48)),Quantities[],Quantities!$T$2)*VLOOKUP(INDEX(Quantities!$A$46:$A$48,MATCH($A19,Quantities!$C$46:$C$48)),Quantities[],Quantities!$S$2))/ (VLOOKUP(INDEX(Quantities!$A$46:$A$48,MATCH($A19,Quantities!$C$46:$C$48)),Quantities[],Quantities!$O$2)+VLOOKUP(INDEX(Quantities!$A$46:$A$48,MATCH($A19,Quantities!$C$46:$C$48)),Quantities[],Quantities!$Q$2)+VLOOKUP(A19,Quantities[],Quantities!$S$2)), IF(AND(B19="D", (VLOOKUP(A19,Quantities[],Quantities!$O$2)+VLOOKUP(A19,Quantities[],Quantities!$Q$2)+VLOOKUP(A19,Quantities[],Quantities!$S$2))>0), (VLOOKUP(A19,Quantities[],Quantities!$P$2)*VLOOKUP(A19,Quantities[],Quantities!$O$2) +VLOOKUP(A19,Quantities[],Quantities!$R$2)*VLOOKUP(A19,Quantities[],Quantities!$Q$2) +VLOOKUP(A19,Quantities[],Quantities!$T$2)*VLOOKUP(A19,Quantities[],Quantities!$S$2))/ (VLOOKUP(A19,Quantities[],Quantities!$O$2)+VLOOKUP(A19,Quantities[],Quantities!$Q$2)+VLOOKUP(A19,Quantities[],Quantities!$S$2)), IF($B19="Q", (SUM(VLOOKUP($A19,Quantities[],Quantities!$P$2)*VLOOKUP($A19,Quantities[],Quantities!$O$2),VLOOKUP($A19,Quantities[],Quantities!$R$2)*VLOOKUP($A19,Quantities[],Quantities!$Q$2),VLOOKUP($A19,Quantities[],Quantities!$T$2)*VLOOKUP($A19,Quantities[],Quantities!$S$2)))/SUM(VLOOKUP($A19,Quantities[],Quantities!$O$2),VLOOKUP($A19,Quantities[],Quantities!$Q$2),VLOOKUP($A19,Quantities[],Quantities!$S$2)), VLOOKUP(A19,Quantities[],Quantities!$H$2) )))))) -> 0.01 | K19: =IF(LEFT(D19,1)="U","-",VLOOKUP(D19,Equipment[],Equipment!$B$2)) -> Cat D11T CD
A20: =Quantities!$A$5 -> 1001 | B20: E | C20: c | D20: Rp1 | E20: 1001-E-c-Rp1 | F20: =IF(D20="Comb1",CONCATENATE(VLOOKUP(B20,'Activity-Material_Codes'!$A$2:$B$28,Quantities!$B$2),"-",VLOOKUP(A20,Quantities[],Quantities!$D$2)), CONCATENATE( VLOOKUP(B20,'Activity-Material_Codes'!$A$2:$B$30,Quantities!$B$2), IF(AND(B20="B",C20="a"), " Scraper Grading", ""), IF(C20="b","","-"), IF(C20="b","",VLOOKUP(A20,Quantities[],Quantities!$D$2)), IF(LEFT(TEXT(A20,"0"),1)="5","","-"), IF(LEFT(TEXT(A20,"0"),1)="5","",VLOOKUP(C20,'Activity-Material_Codes'!$A$34:$B$40,Quantities!$B$2)) )) -> Rip-Top -Rough Graded Material | G20: =IF(C20="f",VLOOKUP(A20,Quantities[],Quantities!$B$2), CONCATENATE( IF(OR(RIGHT(TEXT($A20,"0"),Quantities!$B$2)="00",LEFT(TEXT($A20,"0"),1)="5",OR($C20="b",$C20="f")),"",VLOOKUP($A20,Quantities[],Quantities!$B$2)), IF(LEFT(TEXT($A20,"0"),1)="5",""," "), IF(OR(C20="a",C20="c",C20="d",C20="e"),IF(OR(RIGHT(TEXT($A20,"0"),Quantities!$B$2)="00",LEFT(TEXT($A20,"0"),1)="5"),VLOOKUP($A20,Quantities[],Quantities!$B$2),""), IF(LEFT(TEXT($A20,"0"),1)="5",VLOOKUP($A20,Quantities[],Quantities!$B$2), VLOOKUP(INDEX(Quantities!$A$46:$A$48,MATCH($A20,Quantities!$C$46:$C$48)),Quantities!$A$46:$B$48,Quantities!$B$2))))) -> West In-Pit Waste | H20: =IF(C20="f","Deadman Diversion", IF(LEFT(TEXT(A20,"0"),1)="5", VLOOKUP(VLOOKUP(A20,Quantities!$A$4:$D$48,Quantities!$C$2),Quantities!$A$4:$D$48,Quantities!$C$2), IF(OR(C20="a",C20="c",C20="d",C20="e"), "-", IF(RIGHT(TEXT(A20,"0"),2)="00",VLOOKUP(A20,Quantities[],Quantities!$B$2), IF(C20="f",VLOOKUP(A20,Quantities[],Quantities!$B$2), VLOOKUP(A20,Quantities[],Quantities!$C$2)) )))) -> - | I20: =IF(OR(AND(LEFT(D20,2)="Sc",B20="A",OR(C20="d",C20="f")),AND(C20="f",B20="D")), SUM(VLOOKUP($A20,Quantities[],Quantities!$O$2),VLOOKUP($A20,Quantities[],Quantities!$Q$2),VLOOKUP($A20,Quantities[],Quantities!$S$2),VLOOKUP($A20,Quantities[],Quantities!$I$2)), IF(AND(LEFT(D20,2)="Sc",OR(C20="a",C20="f")), VLOOKUP(A20,Quantities[],Quantities!$I$2), IF(AND(B20="D",C20="b"), VLOOKUP(INDEX(Quantities!$A$46:$A$48,MATCH($A20,Quantities!$C$46:$C$48)),Quantities!$A$46:$AN$48,Quantities!$O$2)+ VLOOKUP(INDEX(Quantities!$A$46:$A$48,MATCH($A20,Quantities!$C$46:$C$48)),Quantities!$A$46:$AN$48,Quantities!$Q$2)+ VLOOKUP(INDEX(Quantities!$A$46:$A$48,MATCH($A20,Quantities!$C$46:$C$48)),Quantities!$A$46:$AN$48,Quantities!$S$2), IF(OR(B20="D",B20="Q"), SUM(VLOOKUP($A20,Quantities[],Quantities!$O$2),VLOOKUP($A20,Quantities[],Quantities!$Q$2),VLOOKUP($A20,Quantities[],Quantities!$S$2)), VLOOKUP(A20,Quantities[],Quantities!$G$2) )))) -> - | J20: =IF(LEFT(D20,2)="Mg", VLOOKUP(A20,Quantities[],Quantities!$H$2), IF(OR(AND(LEFT(D20,2)="Sc",B20="A",OR(C20="d",C20="f"))), (SUM(VLOOKUP($A20,Quantities[],Quantities!$P$2)*VLOOKUP($A20,Quantities[],Quantities!$O$2),VLOOKUP($A20,Quantities[],Quantities!$R$2)*VLOOKUP($A20,Quantities[],Quantities!$Q$2),VLOOKUP($A20,Quantities[],Quantities!$T$2)*VLOOKUP($A20,Quantities[],Quantities!$S$2)))/SUM(VLOOKUP($A20,Quantities[],Quantities!$O$2),VLOOKUP($A20,Quantities[],Quantities!$Q$2),VLOOKUP($A20,Quantities[],Quantities!$S$2)), IF(AND(LEFT(D20,2)="Sc",OR(C20="a",C20="f")), VLOOKUP(A20,Quantities[],Quantities!$J$2), IF(AND(B20="D",C20="b", (VLOOKUP(INDEX(Quantities!$A$46:$A$48,MATCH($A20,Quantities!$C$46:$C$48)),Quantities[],Quantities!$O$2)+VLOOKUP(INDEX(Quantities!$A$46:$A$48,MATCH($A20,Quantities!$C$46:$C$48)),Quantities[],Quantities!$Q$2)+VLOOKUP(INDEX(Quantities!$A$46:$A$48,MATCH($A20,Quantities!$C$46:$C$48)),Quantities[],Quantities!$S$2))>0), (VLOOKUP(INDEX(Quantities!$A$46:$A$48,MATCH($A20,Quantities!$C$46:$C$48)),Quantities[],Quantities!$P$2)*VLOOKUP(INDEX(Quantities!$A$46:$A$48,MATCH($A20,Quantities!$C$46:$C$48)),Quantities[],Quantities!$O$2) +VLOOKUP(INDEX(Quantities!$A$46:$A$48,MATCH($A20,Quantities!$C$46:$C$48)),Quantities[],Quantities!$R$2)*VLOOKUP(INDEX(Quantities!$A$46:$A$48,MATCH($A20,Quantities!$C$46:$C$48)),Quantities[],Quantities!$Q$2) +VLOOKUP(INDEX(Quantities!$A$46:$A$48,MATCH($A20,Quantities!$C$46:$C$48)),Quantities[],Quantities!$T$2)*VLOOKUP(INDEX(Quantities!$A$46:$A$48,MATCH($A20,Quantities!$C$46:$C$48)),Quantities[],Quantities!$S$2))/ (VLOOKUP(INDEX(Quantities!$A$46:$A$48,MATCH($A20,Quantities!$C$46:$C$48)),Quantities[],Quantities!$O$2)+VLOOKUP(INDEX(Quantities!$A$46:$A$48,MATCH($A20,Quantities!$C$46:$C$48)),Quantities[],Quantities!$Q$2)+VLOOKUP(A20,Quantities[],Quantities!$S$2)), IF(AND(B20="D", (VLOOKUP(A20,Quantities[],Quantities!$O$2)+VLOOKUP(A20,Quantities[],Quantities!$Q$2)+VLOOKUP(A20,Quantities[],Quantities!$S$2))>0), (VLOOKUP(A20,Quantities[],Quantities!$P$2)*VLOOKUP(A20,Quantities[],Quantities!$O$2) +VLOOKUP(A20,Quantities[],Quantities!$R$2)*VLOOKUP(A20,Quantities[],Quantities!$Q$2) +VLOOKUP(A20,Quantities[],Quantities!$T$2)*VLOOKUP(A20,Quantities[],Quantities!$S$2))/ (VLOOKUP(A20,Quantities[],Quantities!$O$2)+VLOOKUP(A20,Quantities[],Quantities!$Q$2)+VLOOKUP(A20,Quantities[],Quantities!$S$2)), IF($B20="Q", (SUM(VLOOKUP($A20,Quantities[],Quantities!$P$2)*VLOOKUP($A20,Quantities[],Quantities!$O$2),VLOOKUP($A20,Quantities[],Quantities!$R$2)*VLOOKUP($A20,Quantities[],Quantities!$Q$2),VLOOKUP($A20,Quantities[],Quantities!$T$2)*VLOOKUP($A20,Quantities[],Quantities!$S$2)))/SUM(VLOOKUP($A20,Quantities[],Quantities!$O$2),VLOOKUP($A20,Quantities[],Quantities!$Q$2),VLOOKUP($A20,Quantities[],Quantities!$S$2)), VLOOKUP(A20,Quantities[],Quantities!$H$2) )))))) -> 0.01 | K20: =IF(LEFT(D20,1)="U","-",VLOOKUP(D20,Equipment[],Equipment!$B$2)) -> Cat D11T CD Multi-shank (w/ MSR-359H)
A21: =Quantities!$A$8 -> 1101 | B21: E | C21: c | D21: Rp1 | E21: 1101-E-c-Rp1 | F21: =IF(D21="Comb1",CONCATENATE(VLOOKUP(B21,'Activity-Material_Codes'!$A$2:$B$28,Quantities!$B$2),"-",VLOOKUP(A21,Quantities[],Quantities!$D$2)), CONCATENATE( VLOOKUP(B21,'Activity-Material_Codes'!$A$2:$B$30,Quantities!$B$2), IF(AND(B21="B",C21="a"), " Scraper Grading", ""), IF(C21="b","","-"), IF(C21="b","",VLOOKUP(A21,Quantities[],Quantities!$D$2)), IF(LEFT(TEXT(A21,"0"),1)="5","","-"), IF(LEFT(TEXT(A21,"0"),1)="5","",VLOOKUP(C21,'Activity-Material_Codes'!$A$34:$B$40,Quantities!$B$2)) )) -> Rip-Top -Rough Graded Material | G21: =IF(C21="f",VLOOKUP(A21,Quantities[],Quantities!$B$2), CONCATENATE( IF(OR(RIGHT(TEXT($A21,"0"),Quantities!$B$2)="00",LEFT(TEXT($A21,"0"),1)="5",OR($C21="b",$C21="f")),"",VLOOKUP($A21,Quantities[],Quantities!$B$2)), IF(LEFT(TEXT($A21,"0"),1)="5",""," "), IF(OR(C21="a",C21="c",C21="d",C21="e"),IF(OR(RIGHT(TEXT($A21,"0"),Quantities!$B$2)="00",LEFT(TEXT($A21,"0"),1)="5"),VLOOKUP($A21,Quantities[],Quantities!$B$2),""), IF(LEFT(TEXT($A21,"0"),1)="5",VLOOKUP($A21,Quantities[],Quantities!$B$2), VLOOKUP(INDEX(Quantities!$A$46:$A$48,MATCH($A21,Quantities!$C$46:$C$48)),Quantities!$A$46:$B$48,Quantities!$B$2))))) -> East In-Pit Waste | H21: =IF(C21="f","Deadman Diversion", IF(LEFT(TEXT(A21,"0"),1)="5", VLOOKUP(VLOOKUP(A21,Quantities!$A$4:$D$48,Quantities!$C$2),Quantities!$A$4:$D$48,Quantities!$C$2), IF(OR(C21="a",C21="c",C21="d",C21="e"), "-", IF(RIGHT(TEXT(A21,"0"),2)="00",VLOOKUP(A21,Quantities[],Quantities!$B$2), IF(C21="f",VLOOKUP(A21,Quantities[],Quantities!$B$2), VLOOKUP(A21,Quantities[],Quantities!$C$2)) )))) -> - | I21: =IF(OR(AND(LEFT(D21,2)="Sc",B21="A",OR(C21="d",C21="f")),AND(C21="f",B21="D")), SUM(VLOOKUP($A21,Quantities[],Quantities!$O$2),VLOOKUP($A21,Quantities[],Quantities!$Q$2),VLOOKUP($A21,Quantities[],Quantities!$S$2),VLOOKUP($A21,Quantities[],Quantities!$I$2)), IF(AND(LEFT(D21,2)="Sc",OR(C21="a",C21="f")), VLOOKUP(A21,Quantities[],Quantities!$I$2), IF(AND(B21="D",C21="b"), VLOOKUP(INDEX(Quantities!$A$46:$A$48,MATCH($A21,Quantities!$C$46:$C$48)),Quantities!$A$46:$AN$48,Quantities!$O$2)+ VLOOKUP(INDEX(Quantities!$A$46:$A$48,MATCH($A21,Quantities!$C$46:$C$48)),Quantities!$A$46:$AN$48,Quantities!$Q$2)+ VLOOKUP(INDEX(Quantities!$A$46:$A$48,MATCH($A21,Quantities!$C$46:$C$48)),Quantities!$A$46:$AN$48,Quantities!$S$2), IF(OR(B21="D",B21="Q"), SUM(VLOOKUP($A21,Quantities[],Quantities!$O$2),VLOOKUP($A21,Quantities[],Quantities!$Q$2),VLOOKUP($A21,Quantities[],Quantities!$S$2)), VLOOKUP(A21,Quantities[],Quantities!$G$2) )))) -> - | J21: =IF(LEFT(D21,2)="Mg", VLOOKUP(A21,Quantities[],Quantities!$H$2), IF(OR(AND(LEFT(D21,2)="Sc",B21="A",OR(C21="d",C21="f"))), (SUM(VLOOKUP($A21,Quantities[],Quantities!$P$2)*VLOOKUP($A21,Quantities[],Quantities!$O$2),VLOOKUP($A21,Quantities[],Quantities!$R$2)*VLOOKUP($A21,Quantities[],Quantities!$Q$2),VLOOKUP($A21,Quantities[],Quantities!$T$2)*VLOOKUP($A21,Quantities[],Quantities!$S$2)))/SUM(VLOOKUP($A21,Quantities[],Quantities!$O$2),VLOOKUP($A21,Quantities[],Quantities!$Q$2),VLOOKUP($A21,Quantities[],Quantities!$S$2)), IF(AND(LEFT(D21,2)="Sc",OR(C21="a",C21="f")), VLOOKUP(A21,Quantities[],Quantities!$J$2), IF(AND(B21="D",C21="b", (VLOOKUP(INDEX(Quantities!$A$46:$A$48,MATCH($A21,Quantities!$C$46:$C$48)),Quantities[],Quantities!$O$2)+VLOOKUP(INDEX(Quantities!$A$46:$A$48,MATCH($A21,Quantities!$C$46:$C$48)),Quantities[],Quantities!$Q$2)+VLOOKUP(INDEX(Quantities!$A$46:$A$48,MATCH($A21,Quantities!$C$46:$C$48)),Quantities[],Quantities!$S$2))>0), (VLOOKUP(INDEX(Quantities!$A$46:$A$48,MATCH($A21,Quantities!$C$46:$C$48)),Quantities[],Quantities!$P$2)*VLOOKUP(INDEX(Quantities!$A$46:$A$48,MATCH($A21,Quantities!$C$46:$C$48)),Quantities[],Quantities!$O$2) +VLOOKUP(INDEX(Quantities!$A$46:$A$48,MATCH($A21,Quantities!$C$46:$C$48)),Quantities[],Quantities!$R$2)*VLOOKUP(INDEX(Quantities!$A$46:$A$48,MATCH($A21,Quantities!$C$46:$C$48)),Quantities[],Quantities!$Q$2) +VLOOKUP(INDEX(Quantities!$A$46:$A$48,MATCH($A21,Quantities!$C$46:$C$48)),Quantities[],Quantities!$T$2)*VLOOKUP(INDEX(Quantities!$A$46:$A$48,MATCH($A21,Quantities!$C$46:$C$48)),Quantities[],Quantities!$S$2))/ (VLOOKUP(INDEX(Quantities!$A$46:$A$48,MATCH($A21,Quantities!$C$46:$C$48)),Quantities[],Quantities!$O$2)+VLOOKUP(INDEX(Quantities!$A$46:$A$48,MATCH($A21,Quantities!$C$46:$C$48)),Quantities[],Quantities!$Q$2)+VLOOKUP(A21,Quantities[],Quantities!$S$2)), IF(AND(B21="D", (VLOOKUP(A21,Quantities[],Quantities!$O$2)+VLOOKUP(A21,Quantities[],Quantities!$Q$2)+VLOOKUP(A21,Quantities[],Quantities!$S$2))>0), (VLOOKUP(A21,Quantities[],Quantities!$P$2)*VLOOKUP(A21,Quantities[],Quantities!$O$2) +VLOOKUP(A21,Quantities[],Quantities!$R$2)*VLOOKUP(A21,Quantities[],Quantities!$Q$2) +VLOOKUP(A21,Quantities[],Quantities!$T$2)*VLOOKUP(A21,Quantities[],Quantities!$S$2))/ (VLOOKUP(A21,Quantities[],Quantities!$O$2)+VLOOKUP(A21,Quantities[],Quantities!$Q$2)+VLOOKUP(A21,Quantities[],Quantities!$S$2)), IF($B21="Q", (SUM(VLOOKUP($A21,Quantities[],Quantities!$P$2)*VLOOKUP($A21,Quantities[],Quantities!$O$2),VLOOKUP($A21,Quantities[],Quantities!$R$2)*VLOOKUP($A21,Quantities[],Quantities!$Q$2),VLOOKUP($A21,Quantities[],Quantities!$T$2)*VLOOKUP($A21,Quantities[],Quantities!$S$2)))/SUM(VLOOKUP($A21,Quantities[],Quantities!$O$2),VLOOKUP($A21,Quantities[],Quantities!$Q$2),VLOOKUP($A21,Quantities[],Quantities!$S$2)), VLOOKUP(A21,Quantities[],Quantities!$H$2) )))))) -> 0.01 | K21: =IF(LEFT(D21,1)="U","-",VLOOKUP(D21,Equipment[],Equipment!$B$2)) -> Cat D11T CD Multi-shank (w/ MSR-359H)
A22: =Quantities!A11 -> 1201 | B22: E | C22: c | D22: Rp1 | E22: 1201-E-c-Rp1 | F22: =IF(D22="Comb1",CONCATENATE(VLOOKUP(B22,'Activity-Material_Codes'!$A$2:$B$28,Quantities!$B$2),"-",VLOOKUP(A22,Quantities[],Quantities!$D$2)), CONCATENATE( VLOOKUP(B22,'Activity-Material_Codes'!$A$2:$B$30,Quantities!$B$2), IF(AND(B22="B",C22="a"), " Scraper Grading", ""), IF(C22="b","","-"), IF(C22="b","",VLOOKUP(A22,Quantities[],Quantities!$D$2)), IF(LEFT(TEXT(A22,"0"),1)="5","","-"), IF(LEFT(TEXT(A22,"0"),1)="5","",VLOOKUP(C22,'Activity-Material_Codes'!$A$34:$B$40,Quantities!$B$2)) )) -> Rip-Top -Rough Graded Material | G22: =IF(C22="f",VLOOKUP(A22,Quantities[],Quantities!$B$2), CONCATENATE( IF(OR(RIGHT(TEXT($A22,"0"),Quantities!$B$2)="00",LEFT(TEXT($A22,"0"),1)="5",OR($C22="b",$C22="f")),"",VLOOKUP($A22,Quantities[],Quantities!$B$2)), IF(LEFT(TEXT($A22,"0"),1)="5",""," "), IF(OR(C22="a",C22="c",C22="d",C22="e"),IF(OR(RIGHT(TEXT($A22,"0"),Quantities!$B$2)="00",LEFT(TEXT($A22,"0"),1)="5"),VLOOKUP($A22,Quantities[],Quantities!$B$2),""), IF(LEFT(TEXT($A22,"0"),1)="5",VLOOKUP($A22,Quantities[],Quantities!$B$2), VLOOKUP(INDEX(Quantities!$A$46:$A$48,MATCH($A22,Quantities!$C$46:$C$48)),Quantities!$A$46:$B$48,Quantities!$B$2))))) -> North Stockpile | H22: =IF(C22="f","Deadman Diversion", IF(LEFT(TEXT(A22,"0"),1)="5", VLOOKUP(VLOOKUP(A22,Quantities!$A$4:$D$48,Quantities!$C$2),Quantities!$A$4:$D$48,Quantities!$C$2), IF(OR(C22="a",C22="c",C22="d",C22="e"), "-", IF(RIGHT(TEXT(A22,"0"),2)="00",VLOOKUP(A22,Quantities[],Quantities!$B$2), IF(C22="f",VLOOKUP(A22,Quantities[],Quantities!$B$2), VLOOKUP(A22,Quantities[],Quantities!$C$2)) )))) -> - | I22: =IF(OR(AND(LEFT(D22,2)="Sc",B22="A",OR(C22="d",C22="f")),AND(C22="f",B22="D")), SUM(VLOOKUP($A22,Quantities[],Quantities!$O$2),VLOOKUP($A22,Quantities[],Quantities!$Q$2),VLOOKUP($A22,Quantities[],Quantities!$S$2),VLOOKUP($A22,Quantities[],Quantities!$I$2)), IF(AND(LEFT(D22,2)="Sc",OR(C22="a",C22="f")), VLOOKUP(A22,Quantities[],Quantities!$I$2), IF(AND(B22="D",C22="b"), VLOOKUP(INDEX(Quantities!$A$46:$A$48,MATCH($A22,Quantities!$C$46:$C$48)),Quantities!$A$46:$AN$48,Quantities!$O$2)+ VLOOKUP(INDEX(Quantities!$A$46:$A$48,MATCH($A22,Quantities!$C$46:$C$48)),Quantities!$A$46:$AN$48,Quantities!$Q$2)+ VLOOKUP(INDEX(Quantities!$A$46:$A$48,MATCH($A22,Quantities!$C$46:$C$48)),Quantities!$A$46:$AN$48,Quantities!$S$2), IF(OR(B22="D",B22="Q"), SUM(VLOOKUP($A22,Quantities[],Quantities!$O$2),VLOOKUP($A22,Quantities[],Quantities!$Q$2),VLOOKUP($A22,Quantities[],Quantities!$S$2)), VLOOKUP(A22,Quantities[],Quantities!$G$2) )))) -> - | J22: =IF(LEFT(D22,2)="Mg", VLOOKUP(A22,Quantities[],Quantities!$H$2), IF(OR(AND(LEFT(D22,2)="Sc",B22="A",OR(C22="d",C22="f"))), (SUM(VLOOKUP($A22,Quantities[],Quantities!$P$2)*VLOOKUP($A22,Quantities[],Quantities!$O$2),VLOOKUP($A22,Quantities[],Quantities!$R$2)*VLOOKUP($A22,Quantities[],Quantities!$Q$2),VLOOKUP($A22,Quantities[],Quantities!$T$2)*VLOOKUP($A22,Quantities[],Quantities!$S$2)))/SUM(VLOOKUP($A22,Quantities[],Quantities!$O$2),VLOOKUP($A22,Quantities[],Quantities!$Q$2),VLOOKUP($A22,Quantities[],Quantities!$S$2)), IF(AND(LEFT(D22,2)="Sc",OR(C22="a",C22="f")), VLOOKUP(A22,Quantities[],Quantities!$J$2), IF(AND(B22="D",C22="b", (VLOOKUP(INDEX(Quantities!$A$46:$A$48,MATCH($A22,Quantities!$C$46:$C$48)),Quantities[],Quantities!$O$2)+VLOOKUP(INDEX(Quantities!$A$46:$A$48,MATCH($A22,Quantities!$C$46:$C$48)),Quantities[],Quantities!$Q$2)+VLOOKUP(INDEX(Quantities!$A$46:$A$48,MATCH($A22,Quantities!$C$46:$C$48)),Quantities[],Quantities!$S$2))>0), (VLOOKUP(INDEX(Quantities!$A$46:$A$48,MATCH($A22,Quantities!$C$46:$C$48)),Quantities[],Quantities!$P$2)*VLOOKUP(INDEX(Quantities!$A$46:$A$48,MATCH($A22,Quantities!$C$46:$C$48)),Quantities[],Quantities!$O$2) +VLOOKUP(INDEX(Quantities!$A$46:$A$48,MATCH($A22,Quantities!$C$46:$C$48)),Quantities[],Quantities!$R$2)*VLOOKUP(INDEX(Quantities!$A$46:$A$48,MATCH($A22,Quantities!$C$46:$C$48)),Quantities[],Quantities!$Q$2) +VLOOKUP(INDEX(Quantities!$A$46:$A$48,MATCH($A22,Quantities!$C$46:$C$48)),Quantities[],Quantities!$T$2)*VLOOKUP(INDEX(Quantities!$A$46:$A$48,MATCH($A22,Quantities!$C$46:$C$48)),Quantities[],Quantities!$S$2))/ (VLOOKUP(INDEX(Quantities!$A$46:$A$48,MATCH($A22,Quantities!$C$46:$C$48)),Quantities[],Quantities!$O$2)+VLOOKUP(INDEX(Quantities!$A$46:$A$48,MATCH($A22,Quantities!$C$46:$C$48)),Quantities[],Quantities!$Q$2)+VLOOKUP(A22,Quantities[],Quantities!$S$2)), IF(AND(B22="D", (VLOOKUP(A22,Quantities[],Quantities!$O$2)+VLOOKUP(A22,Quantities[],Quantities!$Q$2)+VLOOKUP(A22,Quantities[],Quantities!$S$2))>0), (VLOOKUP(A22,Quantities[],Quantities!$P$2)*VLOOKUP(A22,Quantities[],Quantities!$O$2) +VLOOKUP(A22,Quantities[],Quantities!$R$2)*VLOOKUP(A22,Quantities[],Quantities!$Q$2) +VLOOKUP(A22,Quantities[],Quantities!$T$2)*VLOOKUP(A22,Quantities[],Quantities!$S$2))/ (VLOOKUP(A22,Quantities[],Quantities!$O$2)+VLOOKUP(A22,Quantities[],Quantities!$Q$2)+VLOOKUP(A22,Quantities[],Quantities!$S$2)), IF($B22="Q", (SUM(VLOOKUP($A22,Quantities[],Quantities!$P$2)*VLOOKUP($A22,Quantities[],Quantities!$O$2),VLOOKUP($A22,Quantities[],Quantities!$R$2)*VLOOKUP($A22,Quantities[],Quantities!$Q$2),VLOOKUP($A22,Quantities[],Quantities!$T$2)*VLOOKUP($A22,Quantities[],Quantities!$S$2)))/SUM(VLOOKUP($A22,Quantities[],Quantities!$O$2),VLOOKUP($A22,Quantities[],Quantities!$Q$2),VLOOKUP($A22,Quantities[],Quantities!$S$2)), VLOOKUP(A22,Quantities[],Quantities!$H$2) )))))) -> 0.01 | K22: =IF(LEFT(D22,1)="U","-",VLOOKUP(D22,Equipment[],Equipment!$B$2)) -> Cat D11T CD Multi-shank (w/ MSR-359H)
A23: =Quantities!$A$13 -> 1301 | B23: E | C23: c | D23: Rp1 | E23: 1301-E-c-Rp1 | F23: =IF(D23="Comb1",CONCATENATE(VLOOKUP(B23,'Activity-Material_Codes'!$A$2:$B$28,Quantities!$B$2),"-",VLOOKUP(A23,Quantities[],Quantities!$D$2)), CONCATENATE( VLOOKUP(B23,'Activity-Material_Codes'!$A$2:$B$30,Quantities!$B$2), IF(AND(B23="B",C23="a"), " Scraper Grading", ""), IF(C23="b","","-"), IF(C23="b","",VLOOKUP(A23,Quantities[],Quantities!$D$2)), IF(LEFT(TEXT(A23,"0"),1)="5","","-"), IF(LEFT(TEXT(A23,"0"),1)="5","",VLOOKUP(C23,'Activity-Material_Codes'!$A$34:$B$40,Quantities!$B$2)) )) -> Rip-Top -Rough Graded Material | G23: =IF(C23="f",VLOOKUP(A23,Quantities[],Quantities!$B$2), CONCATENATE( IF(OR(RIGHT(TEXT($A23,"0"),Quantities!$B$2)="00",LEFT(TEXT($A23,"0"),1)="5",OR($C23="b",$C23="f")),"",VLOOKUP($A23,Quantities[],Quantities!$B$2)), IF(LEFT(TEXT($A23,"0"),1)="5",""," "), IF(OR(C23="a",C23="c",C23="d",C23="e"),IF(OR(RIGHT(TEXT($A23,"0"),Quantities!$B$2)="00",LEFT(TEXT($A23,"0"),1)="5"),VLOOKUP($A23,Quantities[],Quantities!$B$2),""), IF(LEFT(TEXT($A23,"0"),1)="5",VLOOKUP($A23,Quantities[],Quantities!$B$2), VLOOKUP(INDEX(Quantities!$A$46:$A$48,MATCH($A23,Quantities!$C$46:$C$48)),Quantities!$A$46:$B$48,Quantities!$B$2))))) -> NRW Waste | H23: =IF(C23="f","Deadman Diversion", IF(LEFT(TEXT(A23,"0"),1)="5", VLOOKUP(VLOOKUP(A23,Quantities!$A$4:$D$48,Quantities!$C$2),Quantities!$A$4:$D$48,Quantities!$C$2), IF(OR(C23="a",C23="c",C23="d",C23="e"), "-", IF(RIGHT(TEXT(A23,"0"),2)="00",VLOOKUP(A23,Quantities[],Quantities!$B$2), IF(C23="f",VLOOKUP(A23,Quantities[],Quantities!$B$2), VLOOKUP(A23,Quantities[],Quantities!$C$2)) )))) -> - | I23: =IF(OR(AND(LEFT(D23,2)="Sc",B23="A",OR(C23="d",C23="f")),AND(C23="f",B23="D")), SUM(VLOOKUP($A23,Quantities[],Quantities!$O$2),VLOOKUP($A23,Quantities[],Quantities!$Q$2),VLOOKUP($A23,Quantities[],Quantities!$S$2),VLOOKUP($A23,Quantities[],Quantities!$I$2)), IF(AND(LEFT(D23,2)="Sc",OR(C23="a",C23="f")), VLOOKUP(A23,Quantities[],Quantities!$I$2), IF(AND(B23="D",C23="b"), VLOOKUP(INDEX(Quantities!$A$46:$A$48,MATCH($A23,Quantities!$C$46:$C$48)),Quantities!$A$46:$AN$48,Quantities!$O$2)+ VLOOKUP(INDEX(Quantities!$A$46:$A$48,MATCH($A23,Quantities!$C$46:$C$48)),Quantities!$A$46:$AN$48,Quantities!$Q$2)+ VLOOKUP(INDEX(Quantities!$A$46:$A$48,MATCH($A23,Quantities!$C$46:$C$48)),Quantities!$A$46:$AN$48,Quantities!$S$2), IF(OR(B23="D",B23="Q"), SUM(VLOOKUP($A23,Quantities[],Quantities!$O$2),VLOOKUP($A23,Quantities[],Quantities!$Q$2),VLOOKUP($A23,Quantities[],Quantities!$S$2)), VLOOKUP(A23,Quantities[],Quantities!$G$2) )))) -> 0 | J23: =IF(LEFT(D23,2)="Mg", VLOOKUP(A23,Quantities[],Quantities!$H$2), IF(OR(AND(LEFT(D23,2)="Sc",B23="A",OR(C23="d",C23="f"))), (SUM(VLOOKUP($A23,Quantities[],Quantities!$P$2)*VLOOKUP($A23,Quantities[],Quantities!$O$2),VLOOKUP($A23,Quantities[],Quantities!$R$2)*VLOOKUP($A23,Quantities[],Quantities!$Q$2),VLOOKUP($A23,Quantities[],Quantities!$T$2)*VLOOKUP($A23,Quantities[],Quantities!$S$2)))/SUM(VLOOKUP($A23,Quantities[],Quantities!$O$2),VLOOKUP($A23,Quantities[],Quantities!$Q$2),VLOOKUP($A23,Quantities[],Quantities!$S$2)), IF(AND(LEFT(D23,2)="Sc",OR(C23="a",C23="f")), VLOOKUP(A23,Quantities[],Quantities!$J$2), IF(AND(B23="D",C23="b", (VLOOKUP(INDEX(Quantities!$A$46:$A$48,MATCH($A23,Quantities!$C$46:$C$48)),Quantities[],Quantities!$O$2)+VLOOKUP(INDEX(Quantities!$A$46:$A$48,MATCH($A23,Quantities!$C$46:$C$48)),Quantities[],Quantities!$Q$2)+VLOOKUP(INDEX(Quantities!$A$46:$A$48,MATCH($A23,Quantities!$C$46:$C$48)),Quantities[],Quantities!$S$2))>0), (VLOOKUP(INDEX(Quantities!$A$46:$A$48,MATCH($A23,Quantities!$C$46:$C$48)),Quantities[],Quantities!$P$2)*VLOOKUP(INDEX(Quantities!$A$46:$A$48,MATCH($A23,Quantities!$C$46:$C$48)),Quantities[],Quantities!$O$2) +VLOOKUP(INDEX(Quantities!$A$46:$A$48,MATCH($A23,Quantities!$C$46:$C$48)),Quantities[],Quantities!$R$2)*VLOOKUP(INDEX(Quantities!$A$46:$A$48,MATCH($A23,Quantities!$C$46:$C$48)),Quantities[],Quantities!$Q$2) +VLOOKUP(INDEX(Quantities!$A$46:$A$48,MATCH($A23,Quantities!$C$46:$C$48)),Quantities[],Quantities!$T$2)*VLOOKUP(INDEX(Quantities!$A$46:$A$48,MATCH($A23,Quantities!$C$46:$C$48)),Quantities[],Quantities!$S$2))/ (VLOOKUP(INDEX(Quantities!$A$46:$A$48,MATCH($A23,Quantities!$C$46:$C$48)),Quantities[],Quantities!$O$2)+VLOOKUP(INDEX(Quantities!$A$46:$A$48,MATCH($A23,Quantities!$C$46:$C$48)),Quantities[],Quantities!$Q$2)+VLOOKUP(A23,Quantities[],Quantities!$S$2)), IF(AND(B23="D", (VLOOKUP(A23,Quantities[],Quantities!$O$2)+VLOOKUP(A23,Quantities[],Quantities!$Q$2)+VLOOKUP(A23,Quantities[],Quantities!$S$2))>0), (VLOOKUP(A23,Quantities[],Quantities!$P$2)*VLOOKUP(A23,Quantities[],Quantities!$O$2) +VLOOKUP(A23,Quantities[],Quantities!$R$2)*VLOOKUP(A23,Quantities[],Quantities!$Q$2) +VLOOKUP(A23,Quantities[],Quantities!$T$2)*VLOOKUP(A23,Quantities[],Quantities!$S$2))/ (VLOOKUP(A23,Quantities[],Quantities!$O$2)+VLOOKUP(A23,Quantities[],Quantities!$Q$2)+VLOOKUP(A23,Quantities[],Quantities!$S$2)), IF($B23="Q", (SUM(VLOOKUP($A23,Quantities[],Quantities!$P$2)*VLOOKUP($A23,Quantities[],Quantities!$O$2),VLOOKUP($A23,Quantities[],Quantities!$R$2)*VLOOKUP($A23,Quantities[],Quantities!$Q$2),VLOOKUP($A23,Quantities[],Quantities!$T$2)*VLOOKUP($A23,Quantities[],Quantities!$S$2)))/SUM(VLOOKUP($A23,Quantities[],Quantities!$O$2),VLOOKUP($A23,Quantities[],Quantities!$Q$2),VLOOKUP($A23,Quantities[],Quantities!$S$2)), VLOOKUP(A23,Quantities[],Quantities!$H$2) )))))) -> 0.01 | K23: =IF(LEFT(D23,1)="U","-",VLOOKUP(D23,Equipment[],Equipment!$B$2)) -> Cat D11T CD Multi-shank (w/ MSR-359H)
A24: =Quantities!$A$18 -> 1402 | B24: E | C24: a | D24: Rp1 | E24: 1402-E-a-Rp1 | F24: =IF(D24="Comb1",CONCATENATE(VLOOKUP(B24,'Activity-Material_Codes'!$A$2:$B$28,Quantities!$B$2),"-",VLOOKUP(A24,Quantities[],Quantities!$D$2)), CONCATENATE( VLOOKUP(B24,'Activity-Material_Codes'!$A$2:$B$30,Quantities!$B$2), IF(AND(B24="B",C24="a"), " Scraper Grading", ""), IF(C24="b","","-"), IF(C24="b","",VLOOKUP(A24,Quantities[],Quantities!$D$2)), IF(LEFT(TEXT(A24,"0"),1)="5","","-"), IF(LEFT(TEXT(A24,"0"),1)="5","",VLOOKUP(C24,'Activity-Material_Codes'!$A$34:$B$40,Quantities!$B$2)) )) -> Rip-Flat Area (Haul Road)-Existing Ground | G24: =IF(C24="f",VLOOKUP(A24,Quantities[],Quantities!$B$2), CONCATENATE( IF(OR(RIGHT(TEXT($A24,"0"),Quantities!$B$2)="00",LEFT(TEXT($A24,"0"),1)="5",OR($C24="b",$C24="f")),"",VLOOKUP($A24,Quantities[],Quantities!$B$2)), IF(LEFT(TEXT($A24,"0"),1)="5",""," "), IF(OR(C24="a",C24="c",C24="d",C24="e"),IF(OR(RIGHT(TEXT($A24,"0"),Quantities!$B$2)="00",LEFT(TEXT($A24,"0"),1)="5"),VLOOKUP($A24,Quantities[],Quantities!$B$2),""), IF(LEFT(TEXT($A24,"0"),1)="5",VLOOKUP($A24,Quantities[],Quantities!$B$2), VLOOKUP(INDEX(Quantities!$A$46:$A$48,MATCH($A24,Quantities!$C$46:$C$48)),Quantities!$A$46:$B$48,Quantities!$B$2))))) -> Little Rock Haul Road | H24: =IF(C24="f","Deadman Diversion", IF(LEFT(TEXT(A24,"0"),1)="5", VLOOKUP(VLOOKUP(A24,Quantities!$A$4:$D$48,Quantities!$C$2),Quantities!$A$4:$D$48,Quantities!$C$2), IF(OR(C24="a",C24="c",C24="d",C24="e"), "-", IF(RIGHT(TEXT(A24,"0"),2)="00",VLOOKUP(A24,Quantities[],Quantities!$B$2), IF(C24="f",VLOOKUP(A24,Quantities[],Quantities!$B$2), VLOOKUP(A24,Quantities[],Quantities!$C$2)) )))) -> - | I24: =IF(OR(AND(LEFT(D24,2)="Sc",B24="A",OR(C24="d",C24="f")),AND(C24="f",B24="D")), SUM(VLOOKUP($A24,Quantities[],Quantities!$O$2),VLOOKUP($A24,Quantities[],Quantities!$Q$2),VLOOKUP($A24,Quantities[],Quantities!$S$2),VLOOKUP($A24,Quantities[],Quantities!$I$2)), IF(AND(LEFT(D24,2)="Sc",OR(C24="a",C24="f")), VLOOKUP(A24,Quantities[],Quantities!$I$2), IF(AND(B24="D",C24="b"), VLOOKUP(INDEX(Quantities!$A$46:$A$48,MATCH($A24,Quantities!$C$46:$C$48)),Quantities!$A$46:$AN$48,Quantities!$O$2)+ VLOOKUP(INDEX(Quantities!$A$46:$A$48,MATCH($A24,Quantities!$C$46:$C$48)),Quantities!$A$46:$AN$48,Quantities!$Q$2)+ VLOOKUP(INDEX(Quantities!$A$46:$A$48,MATCH($A24,Quantities!$C$46:$C$48)),Quantities!$A$46:$AN$48,Quantities!$S$2), IF(OR(B24="D",B24="Q"), SUM(VLOOKUP($A24,Quantities[],Quantities!$O$2),VLOOKUP($A24,Quantities[],Quantities!$Q$2),VLOOKUP($A24,Quantities[],Quantities!$S$2)), VLOOKUP(A24,Quantities[],Quantities!$G$2) )))) -> 0 | J24: =IF(LEFT(D24,2)="Mg", VLOOKUP(A24,Quantities[],Quantities!$H$2), IF(OR(AND(LEFT(D24,2)="Sc",B24="A",OR(C24="d",C24="f"))), (SUM(VLOOKUP($A24,Quantities[],Quantities!$P$2)*VLOOKUP($A24,Quantities[],Quantities!$O$2),VLOOKUP($A24,Quantities[],Quantities!$R$2)*VLOOKUP($A24,Quantities[],Quantities!$Q$2),VLOOKUP($A24,Quantities[],Quantities!$T$2)*VLOOKUP($A24,Quantities[],Quantities!$S$2)))/SUM(VLOOKUP($A24,Quantities[],Quantities!$O$2),VLOOKUP($A24,Quantities[],Quantities!$Q$2),VLOOKUP($A24,Quantities[],Quantities!$S$2)), IF(AND(LEFT(D24,2)="Sc",OR(C24="a",C24="f")), VLOOKUP(A24,Quantities[],Quantities!$J$2), IF(AND(B24="D",C24="b", (VLOOKUP(INDEX(Quantities!$A$46:$A$48,MATCH($A24,Quantities!$C$46:$C$48)),Quantities[],Quantities!$O$2)+VLOOKUP(INDEX(Quantities!$A$46:$A$48,MATCH($A24,Quantities!$C$46:$C$48)),Quantities[],Quantities!$Q$2)+VLOOKUP(INDEX(Quantities!$A$46:$A$48,MATCH($A24,Quantities!$C$46:$C$48)),Quantities[],Quantities!$S$2))>0), (VLOOKUP(INDEX(Quantities!$A$46:$A$48,MATCH($A24,Quantities!$C$46:$C$48)),Quantities[],Quantities!$P$2)*VLOOKUP(INDEX(Quantities!$A$46:$A$48,MATCH($A24,Quantities!$C$46:$C$48)),Quantities[],Quantities!$O$2) +VLOOKUP(INDEX(Quantities!$A$46:$A$48,MATCH($A24,Quantities!$C$46:$C$48)),Quantities[],Quantities!$R$2)*VLOOKUP(INDEX(Quantities!$A$46:$A$48,MATCH($A24,Quantities!$C$46:$C$48)),Quantities[],Quantities!$Q$2) +VLOOKUP(INDEX(Quantities!$A$46:$A$48,MATCH($A24,Quantities!$C$46:$C$48)),Quantities[],Quantities!$T$2)*VLOOKUP(INDEX(Quantities!$A$46:$A$48,MATCH($A24,Quantities!$C$46:$C$48)),Quantities[],Quantities!$S$2))/ (VLOOKUP(INDEX(Quantities!$A$46:$A$48,MATCH($A24,Quantities!$C$46:$C$48)),Quantities[],Quantities!$O$2)+VLOOKUP(INDEX(Quantities!$A$46:$A$48,MATCH($A24,Quantities!$C$46:$C$48)),Quantities[],Quantities!$Q$2)+VLOOKUP(A24,Quantities[],Quantities!$S$2)), IF(AND(B24="D", (VLOOKUP(A24,Quantities[],Quantities!$O$2)+VLOOKUP(A24,Quantities[],Quantities!$Q$2)+VLOOKUP(A24,Quantities[],Quantities!$S$2))>0), (VLOOKUP(A24,Quantities[],Quantities!$P$2)*VLOOKUP(A24,Quantities[],Quantities!$O$2) +VLOOKUP(A24,Quantities[],Quantities!$R$2)*VLOOKUP(A24,Quantities[],Quantities!$Q$2) +VLOOKUP(A24,Quantities[],Quantities!$T$2)*VLOOKUP(A24,Quantities[],Quantities!$S$2))/ (VLOOKUP(A24,Quantities[],Quantities!$O$2)+VLOOKUP(A24,Quantities[],Quantities!$Q$2)+VLOOKUP(A24,Quantities[],Quantities!$S$2)), IF($B24="Q", (SUM(VLOOKUP($A24,Quantities[],Quantities!$P$2)*VLOOKUP($A24,Quantities[],Quantities!$O$2),VLOOKUP($A24,Quantities[],Quantities!$R$2)*VLOOKUP($A24,Quantities[],Quantities!$Q$2),VLOOKUP($A24,Quantities[],Quantities!$T$2)*VLOOKUP($A24,Quantities[],Quantities!$S$2)))/SUM(VLOOKUP($A24,Quantities[],Quantities!$O$2),VLOOKUP($A24,Quantities[],Quantities!$Q$2),VLOOKUP($A24,Quantities[],Quantities!$S$2)), VLOOKUP(A24,Quantities[],Quantities!$H$2) )))))) -> 0 | K24: =IF(LEFT(D24,1)="U","-",VLOOKUP(D24,Equipment[],Equipment!$B$2)) -> Cat D11T CD Multi-shank (w/ MSR-359H)
A25: =Quantities!$A$19 -> 1403 | B25: E | C25: a | D25: Rp1 | E25: 1403-E-a-Rp1 | F25: =IF(D25="Comb1",CONCATENATE(VLOOKUP(B25,'Activity-Material_Codes'!$A$2:$B$28,Quantities!$B$2),"-",VLOOKUP(A25,Quantities[],Quantities!$D$2)), CONCATENATE( VLOOKUP(B25,'Activity-Material_Codes'!$A$2:$B$30,Quantities!$B$2), IF(AND(B25="B",C25="a"), " Scraper Grading", ""), IF(C25="b","","-"), IF(C25="b","",VLOOKUP(A25,Quantities[],Quantities!$D$2)), IF(LEFT(TEXT(A25,"0"),1)="5","","-"), IF(LEFT(TEXT(A25,"0"),1)="5","",VLOOKUP(C25,'Activity-Material_Codes'!$A$34:$B$40,Quantities!$B$2)) )) -> Rip-Flat Area (Haul Road)-Existing Ground | G25: =IF(C25="f",VLOOKUP(A25,Quantities[],Quantities!$B$2), CONCATENATE( IF(OR(RIGHT(TEXT($A25,"0"),Quantities!$B$2)="00",LEFT(TEXT($A25,"0"),1)="5",OR($C25="b",$C25="f")),"",VLOOKUP($A25,Quantities[],Quantities!$B$2)), IF(LEFT(TEXT($A25,"0"),1)="5",""," "), IF(OR(C25="a",C25="c",C25="d",C25="e"),IF(OR(RIGHT(TEXT($A25,"0"),Quantities!$B$2)="00",LEFT(TEXT($A25,"0"),1)="5"),VLOOKUP($A25,Quantities[],Quantities!$B$2),""), IF(LEFT(TEXT($A25,"0"),1)="5",VLOOKUP($A25,Quantities[],Quantities!$B$2), VLOOKUP(INDEX(Quantities!$A$46:$A$48,MATCH($A25,Quantities!$C$46:$C$48)),Quantities!$A$46:$B$48,Quantities!$B$2))))) -> Southern Haul Road | H25: =IF(C25="f","Deadman Diversion", IF(LEFT(TEXT(A25,"0"),1)="5", VLOOKUP(VLOOKUP(A25,Quantities!$A$4:$D$48,Quantities!$C$2),Quantities!$A$4:$D$48,Quantities!$C$2), IF(OR(C25="a",C25="c",C25="d",C25="e"), "-", IF(RIGHT(TEXT(A25,"0"),2)="00",VLOOKUP(A25,Quantities[],Quantities!$B$2), IF(C25="f",VLOOKUP(A25,Quantities[],Quantities!$B$2), VLOOKUP(A25,Quantities[],Quantities!$C$2)) )))) -> - | I25: =IF(OR(AND(LEFT(D25,2)="Sc",B25="A",OR(C25="d",C25="f")),AND(C25="f",B25="D")), SUM(VLOOKUP($A25,Quantities[],Quantities!$O$2),VLOOKUP($A25,Quantities[],Quantities!$Q$2),VLOOKUP($A25,Quantities[],Quantities!$S$2),VLOOKUP($A25,Quantities[],Quantities!$I$2)), IF(AND(LEFT(D25,2)="Sc",OR(C25="a",C25="f")), VLOOKUP(A25,Quantities[],Quantities!$I$2), IF(AND(B25="D",C25="b"), VLOOKUP(INDEX(Quantities!$A$46:$A$48,MATCH($A25,Quantities!$C$46:$C$48)),Quantities!$A$46:$AN$48,Quantities!$O$2)+ VLOOKUP(INDEX(Quantities!$A$46:$A$48,MATCH($A25,Quantities!$C$46:$C$48)),Quantities!$A$46:$AN$48,Quantities!$Q$2)+ VLOOKUP(INDEX(Quantities!$A$46:$A$48,MATCH($A25,Quantities!$C$46:$C$48)),Quantities!$A$46:$AN$48,Quantities!$S$2), IF(OR(B25="D",B25="Q"), SUM(VLOOKUP($A25,Quantities[],Quantities!$O$2),VLOOKUP($A25,Quantities[],Quantities!$Q$2),VLOOKUP($A25,Quantities[],Quantities!$S$2)), VLOOKUP(A25,Quantities[],Quantities!$G$2) )))) -> 0 | J25: =IF(LEFT(D25,2)="Mg", VLOOKUP(A25,Quantities[],Quantities!$H$2), IF(OR(AND(LEFT(D25,2)="Sc",B25="A",OR(C25="d",C25="f"))), (SUM(VLOOKUP($A25,Quantities[],Quantities!$P$2)*VLOOKUP($A25,Quantities[],Quantities!$O$2),VLOOKUP($A25,Quantities[],Quantities!$R$2)*VLOOKUP($A25,Quantities[],Quantities!$Q$2),VLOOKUP($A25,Quantities[],Quantities!$T$2)*VLOOKUP($A25,Quantities[],Quantities!$S$2)))/SUM(VLOOKUP($A25,Quantities[],Quantities!$O$2),VLOOKUP($A25,Quantities[],Quantities!$Q$2),VLOOKUP($A25,Quantities[],Quantities!$S$2)), IF(AND(LEFT(D25,2)="Sc",OR(C25="a",C25="f")), VLOOKUP(A25,Quantities[],Quantities!$J$2), IF(AND(B25="D",C25="b", (VLOOKUP(INDEX(Quantities!$A$46:$A$48,MATCH($A25,Quantities!$C$46:$C$48)),Quantities[],Quantities!$O$2)+VLOOKUP(INDEX(Quantities!$A$46:$A$48,MATCH($A25,Quantities!$C$46:$C$48)),Quantities[],Quantities!$Q$2)+VLOOKUP(INDEX(Quantities!$A$46:$A$48,MATCH($A25,Quantities!$C$46:$C$48)),Quantities[],Quantities!$S$2))>0), (VLOOKUP(INDEX(Quantities!$A$46:$A$48,MATCH($A25,Quantities!$C$46:$C$48)),Quantities[],Quantities!$P$2)*VLOOKUP(INDEX(Quantities!$A$46:$A$48,MATCH($A25,Quantities!$C$46:$C$48)),Quantities[],Quantities!$O$2) +VLOOKUP(INDEX(Quantities!$A$46:$A$48,MATCH($A25,Quantities!$C$46:$C$48)),Quantities[],Quantities!$R$2)*VLOOKUP(INDEX(Quantities!$A$46:$A$48,MATCH($A25,Quantities!$C$46:$C$48)),Quantities[],Quantities!$Q$2) +VLOOKUP(INDEX(Quantities!$A$46:$A$48,MATCH($A25,Quantities!$C$46:$C$48)),Quantities[],Quantities!$T$2)*VLOOKUP(INDEX(Quantities!$A$46:$A$48,MATCH($A25,Quantities!$C$46:$C$48)),Quantities[],Quantities!$S$2))/ (VLOOKUP(INDEX(Quantities!$A$46:$A$48,MATCH($A25,Quantities!$C$46:$C$48)),Quantities[],Quantities!$O$2)+VLOOKUP(INDEX(Quantities!$A$46:$A$48,MATCH($A25,Quantities!$C$46:$C$48)),Quantities[],Quantities!$Q$2)+VLOOKUP(A25,Quantities[],Quantities!$S$2)), IF(AND(B25="D", (VLOOKUP(A25,Quantities[],Quantities!$O$2)+VLOOKUP(A25,Quantities[],Quantities!$Q$2)+VLOOKUP(A25,Quantities[],Quantities!$S$2))>0), (VLOOKUP(A25,Quantities[],Quantities!$P$2)*VLOOKUP(A25,Quantities[],Quantities!$O$2) +VLOOKUP(A25,Quantities[],Quantities!$R$2)*VLOOKUP(A25,Quantities[],Quantities!$Q$2) +VLOOKUP(A25,Quantities[],Quantities!$T$2)*VLOOKUP(A25,Quantities[],Quantities!$S$2))/ (VLOOKUP(A25,Quantities[],Quantities!$O$2)+VLOOKUP(A25,Quantities[],Quantities!$Q$2)+VLOOKUP(A25,Quantities[],Quantities!$S$2)), IF($B25="Q", (SUM(VLOOKUP($A25,Quantities[],Quantities!$P$2)*VLOOKUP($A25,Quantities[],Quantities!$O$2),VLOOKUP($A25,Quantities[],Quantities!$R$2)*VLOOKUP($A25,Quantities[],Quantities!$Q$2),VLOOKUP($A25,Quantities[],Quantities!$T$2)*VLOOKUP($A25,Quantities[],Quantities!$S$2)))/SUM(VLOOKUP($A25,Quantities[],Quantities!$O$2),VLOOKUP($A25,Quantities[],Quantities!$Q$2),VLOOKUP($A25,Quantities[],Quantities!$S$2)), VLOOKUP(A25,Quantities[],Quantities!$H$2) )))))) -> 0 | K25: =IF(LEFT(D25,1)="U","-",VLOOKUP(D25,Equipment[],Equipment!$B$2)) -> Cat D11T CD Multi-shank (w/ MSR-359H)
A26: =Quantities!$A$20 -> 1500 | B26: E | C26: a | D26: Rp1 | E26: 1500-E-a-Rp1 | F26: =IF(D26="Comb1",CONCATENATE(VLOOKUP(B26,'Activity-Material_Codes'!$A$2:$B$28,Quantities!$B$2),"-",VLOOKUP(A26,Quantities[],Quantities!$D$2)), CONCATENATE( VLOOKUP(B26,'Activity-Material_Codes'!$A$2:$B$30,Quantities!$B$2), IF(AND(B26="B",C26="a"), " Scraper Grading", ""), IF(C26="b","","-"), IF(C26="b","",VLOOKUP(A26,Quantities[],Quantities!$D$2)), IF(LEFT(TEXT(A26,"0"),1)="5","","-"), IF(LEFT(TEXT(A26,"0"),1)="5","",VLOOKUP(C26,'Activity-Material_Codes'!$A$34:$B$40,Quantities!$B$2)) )) -> Rip-Flat Area-Existing Ground | G26: =IF(C26="f",VLOOKUP(A26,Quantities[],Quantities!$B$2), CONCATENATE( IF(OR(RIGHT(TEXT($A26,"0"),Quantities!$B$2)="00",LEFT(TEXT($A26,"0"),1)="5",OR($C26="b",$C26="f")),"",VLOOKUP($A26,Quantities[],Quantities!$B$2)), IF(LEFT(TEXT($A26,"0"),1)="5",""," "), IF(OR(C26="a",C26="c",C26="d",C26="e"),IF(OR(RIGHT(TEXT($A26,"0"),Quantities!$B$2)="00",LEFT(TEXT($A26,"0"),1)="5"),VLOOKUP($A26,Quantities[],Quantities!$B$2),""), IF(LEFT(TEXT($A26,"0"),1)="5",VLOOKUP($A26,Quantities[],Quantities!$B$2), VLOOKUP(INDEX(Quantities!$A$46:$A$48,MATCH($A26,Quantities!$C$46:$C$48)),Quantities!$A$46:$B$48,Quantities!$B$2))))) -> Accessible Flat Areas | H26: =IF(C26="f","Deadman Diversion", IF(LEFT(TEXT(A26,"0"),1)="5", VLOOKUP(VLOOKUP(A26,Quantities!$A$4:$D$48,Quantities!$C$2),Quantities!$A$4:$D$48,Quantities!$C$2), IF(OR(C26="a",C26="c",C26="d",C26="e"), "-", IF(RIGHT(TEXT(A26,"0"),2)="00",VLOOKUP(A26,Quantities[],Quantities!$B$2), IF(C26="f",VLOOKUP(A26,Quantities[],Quantities!$B$2), VLOOKUP(A26,Quantities[],Quantities!$C$2)) )))) -> - | I26: =IF(OR(AND(LEFT(D26,2)="Sc",B26="A",OR(C26="d",C26="f")),AND(C26="f",B26="D")), SUM(VLOOKUP($A26,Quantities[],Quantities!$O$2),VLOOKUP($A26,Quantities[],Quantities!$Q$2),VLOOKUP($A26,Quantities[],Quantities!$S$2),VLOOKUP($A26,Quantities[],Quantities!$I$2)), IF(AND(LEFT(D26,2)="Sc",OR(C26="a",C26="f")), VLOOKUP(A26,Quantities[],Quantities!$I$2), IF(AND(B26="D",C26="b"), VLOOKUP(INDEX(Quantities!$A$46:$A$48,MATCH($A26,Quantities!$C$46:$C$48)),Quantities!$A$46:$AN$48,Quantities!$O$2)+ VLOOKUP(INDEX(Quantities!$A$46:$A$48,MATCH($A26,Quantities!$C$46:$C$48)),Quantities!$A$46:$AN$48,Quantities!$Q$2)+ VLOOKUP(INDEX(Quantities!$A$46:$A$48,MATCH($A26,Quantities!$C$46:$C$48)),Quantities!$A$46:$AN$48,Quantities!$S$2), IF(OR(B26="D",B26="Q"), SUM(VLOOKUP($A26,Quantities[],Quantities!$O$2),VLOOKUP($A26,Quantities[],Quantities!$Q$2),VLOOKUP($A26,Quantities[],Quantities!$S$2)), VLOOKUP(A26,Quantities[],Quantities!$G$2) )))) -> 0 | J26: =IF(LEFT(D26,2)="Mg", VLOOKUP(A26,Quantities[],Quantities!$H$2), IF(OR(AND(LEFT(D26,2)="Sc",B26="A",OR(C26="d",C26="f"))), (SUM(VLOOKUP($A26,Quantities[],Quantities!$P$2)*VLOOKUP($A26,Quantities[],Quantities!$O$2),VLOOKUP($A26,Quantities[],Quantities!$R$2)*VLOOKUP($A26,Quantities[],Quantities!$Q$2),VLOOKUP($A26,Quantities[],Quantities!$T$2)*VLOOKUP($A26,Quantities[],Quantities!$S$2)))/SUM(VLOOKUP($A26,Quantities[],Quantities!$O$2),VLOOKUP($A26,Quantities[],Quantities!$Q$2),VLOOKUP($A26,Quantities[],Quantities!$S$2)), IF(AND(LEFT(D26,2)="Sc",OR(C26="a",C26="f")), VLOOKUP(A26,Quantities[],Quantities!$J$2), IF(AND(B26="D",C26="b", (VLOOKUP(INDEX(Quantities!$A$46:$A$48,MATCH($A26,Quantities!$C$46:$C$48)),Quantities[],Quantities!$O$2)+VLOOKUP(INDEX(Quantities!$A$46:$A$48,MATCH($A26,Quantities!$C$46:$C$48)),Quantities[],Quantities!$Q$2)+VLOOKUP(INDEX(Quantities!$A$46:$A$48,MATCH($A26,Quantities!$C$46:$C$48)),Quantities[],Quantities!$S$2))>0), (VLOOKUP(INDEX(Quantities!$A$46:$A$48,MATCH($A26,Quantities!$C$46:$C$48)),Quantities[],Quantities!$P$2)*VLOOKUP(INDEX(Quantities!$A$46:$A$48,MATCH($A26,Quantities!$C$46:$C$48)),Quantities[],Quantities!$O$2) +VLOOKUP(INDEX(Quantities!$A$46:$A$48,MATCH($A26,Quantities!$C$46:$C$48)),Quantities[],Quantities!$R$2)*VLOOKUP(INDEX(Quantities!$A$46:$A$48,MATCH($A26,Quantities!$C$46:$C$48)),Quantities[],Quantities!$Q$2) +VLOOKUP(INDEX(Quantities!$A$46:$A$48,MATCH($A26,Quantities!$C$46:$C$48)),Quantities[],Quantities!$T$2)*VLOOKUP(INDEX(Quantities!$A$46:$A$48,MATCH($A26,Quantities!$C$46:$C$48)),Quantities[],Quantities!$S$2))/ (VLOOKUP(INDEX(Quantities!$A$46:$A$48,MATCH($A26,Quantities!$C$46:$C$48)),Quantities[],Quantities!$O$2)+VLOOKUP(INDEX(Quantities!$A$46:$A$48,MATCH($A26,Quantities!$C$46:$C$48)),Quantities[],Quantities!$Q$2)+VLOOKUP(A26,Quantities[],Quantities!$S$2)), IF(AND(B26="D", (VLOOKUP(A26,Quantities[],Quantities!$O$2)+VLOOKUP(A26,Quantities[],Quantities!$Q$2)+VLOOKUP(A26,Quantities[],Quantities!$S$2))>0), (VLOOKUP(A26,Quantities[],Quantities!$P$2)*VLOOKUP(A26,Quantities[],Quantities!$O$2) +VLOOKUP(A26,Quantities[],Quantities!$R$2)*VLOOKUP(A26,Quantities[],Quantities!$Q$2) +VLOOKUP(A26,Quantities[],Quantities!$T$2)*VLOOKUP(A26,Quantities[],Quantities!$S$2))/ (VLOOKUP(A26,Quantities[],Quantities!$O$2)+VLOOKUP(A26,Quantities[],Quantities!$Q$2)+VLOOKUP(A26,Quantities[],Quantities!$S$2)), IF($B26="Q", (SUM(VLOOKUP($A26,Quantities[],Quantities!$P$2)*VLOOKUP($A26,Quantities[],Quantities!$O$2),VLOOKUP($A26,Quantities[],Quantities!$R$2)*VLOOKUP($A26,Quantities[],Quantities!$Q$2),VLOOKUP($A26,Quantities[],Quantities!$T$2)*VLOOKUP($A26,Quantities[],Quantities!$S$2)))/SUM(VLOOKUP($A26,Quantities[],Quantities!$O$2),VLOOKUP($A26,Quantities[],Quantities!$Q$2),VLOOKUP($A26,Quantities[],Quantities!$S$2)), VLOOKUP(A26,Quantities[],Quantities!$H$2) )))))) -> 0.01 | K26: =IF(LEFT(D26,1)="U","-",VLOOKUP(D26,Equipment[],Equipment!$B$2)) -> Cat D11T CD Multi-shank (w/ MSR-359H)
A27: =Quantities!A21 -> 1600 | B27: E | C27: a | D27: Rp1 | E27: 1600-E-a-Rp1 | F27: =IF(D27="Comb1",CONCATENATE(VLOOKUP(B27,'Activity-Material_Codes'!$A$2:$B$28,Quantities!$B$2),"-",VLOOKUP(A27,Quantities[],Quantities!$D$2)), CONCATENATE( VLOOKUP(B27,'Activity-Material_Codes'!$A$2:$B$30,Quantities!$B$2), IF(AND(B27="B",C27="a"), " Scraper Grading", ""), IF(C27="b","","-"), IF(C27="b","",VLOOKUP(A27,Quantities[],Quantities!$D$2)), IF(LEFT(TEXT(A27,"0"),1)="5","","-"), IF(LEFT(TEXT(A27,"0"),1)="5","",VLOOKUP(C27,'Activity-Material_Codes'!$A$34:$B$40,Quantities!$B$2)) )) -> Rip-Open Pit-Existing Ground | G27: =IF(C27="f",VLOOKUP(A27,Quantities[],Quantities!$B$2), CONCATENATE( IF(OR(RIGHT(TEXT($A27,"0"),Quantities!$B$2)="00",LEFT(TEXT($A27,"0"),1)="5",OR($C27="b",$C27="f")),"",VLOOKUP($A27,Quantities[],Quantities!$B$2)), IF(LEFT(TEXT($A27,"0"),1)="5",""," "), IF(OR(C27="a",C27="c",C27="d",C27="e"),IF(OR(RIGHT(TEXT($A27,"0"),Quantities!$B$2)="00",LEFT(TEXT($A27,"0"),1)="5"),VLOOKUP($A27,Quantities[],Quantities!$B$2),""), IF(LEFT(TEXT($A27,"0"),1)="5",VLOOKUP($A27,Quantities[],Quantities!$B$2), VLOOKUP(INDEX(Quantities!$A$46:$A$48,MATCH($A27,Quantities!$C$46:$C$48)),Quantities!$A$46:$B$48,Quantities!$B$2))))) -> Little Rock Open Pit | H27: =IF(C27="f","Deadman Diversion", IF(LEFT(TEXT(A27,"0"),1)="5", VLOOKUP(VLOOKUP(A27,Quantities!$A$4:$D$48,Quantities!$C$2),Quantities!$A$4:$D$48,Quantities!$C$2), IF(OR(C27="a",C27="c",C27="d",C27="e"), "-", IF(RIGHT(TEXT(A27,"0"),2)="00",VLOOKUP(A27,Quantities[],Quantities!$B$2), IF(C27="f",VLOOKUP(A27,Quantities[],Quantities!$B$2), VLOOKUP(A27,Quantities[],Quantities!$C$2)) )))) -> - | I27: =IF(OR(AND(LEFT(D27,2)="Sc",B27="A",OR(C27="d",C27="f")),AND(C27="f",B27="D")), SUM(VLOOKUP($A27,Quantities[],Quantities!$O$2),VLOOKUP($A27,Quantities[],Quantities!$Q$2),VLOOKUP($A27,Quantities[],Quantities!$S$2),VLOOKUP($A27,Quantities[],Quantities!$I$2)), IF(AND(LEFT(D27,2)="Sc",OR(C27="a",C27="f")), VLOOKUP(A27,Quantities[],Quantities!$I$2), IF(AND(B27="D",C27="b"), VLOOKUP(INDEX(Quantities!$A$46:$A$48,MATCH($A27,Quantities!$C$46:$C$48)),Quantities!$A$46:$AN$48,Quantities!$O$2)+ VLOOKUP(INDEX(Quantities!$A$46:$A$48,MATCH($A27,Quantities!$C$46:$C$48)),Quantities!$A$46:$AN$48,Quantities!$Q$2)+ VLOOKUP(INDEX(Quantities!$A$46:$A$48,MATCH($A27,Quantities!$C$46:$C$48)),Quantities!$A$46:$AN$48,Quantities!$S$2), IF(OR(B27="D",B27="Q"), SUM(VLOOKUP($A27,Quantities[],Quantities!$O$2),VLOOKUP($A27,Quantities[],Quantities!$Q$2),VLOOKUP($A27,Quantities[],Quantities!$S$2)), VLOOKUP(A27,Quantities[],Quantities!$G$2) )))) -> 0 | J27: =IF(LEFT(D27,2)="Mg", VLOOKUP(A27,Quantities[],Quantities!$H$2), IF(OR(AND(LEFT(D27,2)="Sc",B27="A",OR(C27="d",C27="f"))), (SUM(VLOOKUP($A27,Quantities[],Quantities!$P$2)*VLOOKUP($A27,Quantities[],Quantities!$O$2),VLOOKUP($A27,Quantities[],Quantities!$R$2)*VLOOKUP($A27,Quantities[],Quantities!$Q$2),VLOOKUP($A27,Quantities[],Quantities!$T$2)*VLOOKUP($A27,Quantities[],Quantities!$S$2)))/SUM(VLOOKUP($A27,Quantities[],Quantities!$O$2),VLOOKUP($A27,Quantities[],Quantities!$Q$2),VLOOKUP($A27,Quantities[],Quantities!$S$2)), IF(AND(LEFT(D27,2)="Sc",OR(C27="a",C27="f")), VLOOKUP(A27,Quantities[],Quantities!$J$2), IF(AND(B27="D",C27="b", (VLOOKUP(INDEX(Quantities!$A$46:$A$48,MATCH($A27,Quantities!$C$46:$C$48)),Quantities[],Quantities!$O$2)+VLOOKUP(INDEX(Quantities!$A$46:$A$48,MATCH($A27,Quantities!$C$46:$C$48)),Quantities[],Quantities!$Q$2)+VLOOKUP(INDEX(Quantities!$A$46:$A$48,MATCH($A27,Quantities!$C$46:$C$48)),Quantities[],Quantities!$S$2))>0), (VLOOKUP(INDEX(Quantities!$A$46:$A$48,MATCH($A27,Quantities!$C$46:$C$48)),Quantities[],Quantities!$P$2)*VLOOKUP(INDEX(Quantities!$A$46:$A$48,MATCH($A27,Quantities!$C$46:$C$48)),Quantities[],Quantities!$O$2) +VLOOKUP(INDEX(Quantities!$A$46:$A$48,MATCH($A27,Quantities!$C$46:$C$48)),Quantities[],Quantities!$R$2)*VLOOKUP(INDEX(Quantities!$A$46:$A$48,MATCH($A27,Quantities!$C$46:$C$48)),Quantities[],Quantities!$Q$2) +VLOOKUP(INDEX(Quantities!$A$46:$A$48,MATCH($A27,Quantities!$C$46:$C$48)),Quantities[],Quantities!$T$2)*VLOOKUP(INDEX(Quantities!$A$46:$A$48,MATCH($A27,Quantities!$C$46:$C$48)),Quantities[],Quantities!$S$2))/ (VLOOKUP(INDEX(Quantities!$A$46:$A$48,MATCH($A27,Quantities!$C$46:$C$48)),Quantities[],Quantities!$O$2)+VLOOKUP(INDEX(Quantities!$A$46:$A$48,MATCH($A27,Quantities!$C$46:$C$48)),Quantities[],Quantities!$Q$2)+VLOOKUP(A27,Quantities[],Quantities!$S$2)), IF(AND(B27="D", (VLOOKUP(A27,Quantities[],Quantities!$O$2)+VLOOKUP(A27,Quantities[],Quantities!$Q$2)+VLOOKUP(A27,Quantities[],Quantities!$S$2))>0), (VLOOKUP(A27,Quantities[],Quantities!$P$2)*VLOOKUP(A27,Quantities[],Quantities!$O$2) +VLOOKUP(A27,Quantities[],Quantities!$R$2)*VLOOKUP(A27,Quantities[],Quantities!$Q$2) +VLOOKUP(A27,Quantities[],Quantities!$T$2)*VLOOKUP(A27,Quantities[],Quantities!$S$2))/ (VLOOKUP(A27,Quantities[],Quantities!$O$2)+VLOOKUP(A27,Quantities[],Quantities!$Q$2)+VLOOKUP(A27,Quantities[],Quantities!$S$2)), IF($B27="Q", (SUM(VLOOKUP($A27,Quantities[],Quantities!$P$2)*VLOOKUP($A27,Quantities[],Quantities!$O$2),VLOOKUP($A27,Quantities[],Quantities!$R$2)*VLOOKUP($A27,Quantities[],Quantities!$Q$2),VLOOKUP($A27,Quantities[],Quantities!$T$2)*VLOOKUP($A27,Quantities[],Quantities!$S$2)))/SUM(VLOOKUP($A27,Quantities[],Quantities!$O$2),VLOOKUP($A27,Quantities[],Quantities!$Q$2),VLOOKUP($A27,Quantities[],Quantities!$S$2)), VLOOKUP(A27,Quantities[],Quantities!$H$2) )))))) -> 0.01 | K27: =IF(LEFT(D27,1)="U","-",VLOOKUP(D27,Equipment[],Equipment!$B$2)) -> Cat D11T CD Multi-shank (w/ MSR-359H)
A28: =Quantities!$A$44 -> 2100 | B28: E | C28: a | D28: Rp1 | E28: 2100-E-a-Rp1 | F28: =IF(D28="Comb1",CONCATENATE(VLOOKUP(B28,'Activity-Material_Codes'!$A$2:$B$28,Quantities!$B$2),"-",VLOOKUP(A28,Quantities[],Quantities!$D$2)), CONCATENATE( VLOOKUP(B28,'Activity-Material_Codes'!$A$2:$B$30,Quantities!$B$2), IF(AND(B28="B",C28="a"), " Scraper Grading", ""), IF(C28="b","","-"), IF(C28="b","",VLOOKUP(A28,Quantities[],Quantities!$D$2)), IF(LEFT(TEXT(A28,"0"),1)="5","","-"), IF(LEFT(TEXT(A28,"0"),1)="5","",VLOOKUP(C28,'Activity-Material_Codes'!$A$34:$B$40,Quantities!$B$2)) )) -> Rip-Substation, Powerline Corridors, Pipeline Corridors-Existing Ground | G28: =IF(C28="f",VLOOKUP(A28,Quantities[],Quantities!$B$2), CONCATENATE( IF(OR(RIGHT(TEXT($A28,"0"),Quantities!$B$2)="00",LEFT(TEXT($A28,"0"),1)="5",OR($C28="b",$C28="f")),"",VLOOKUP($A28,Quantities[],Quantities!$B$2)), IF(LEFT(TEXT($A28,"0"),1)="5",""," "), IF(OR(C28="a",C28="c",C28="d",C28="e"),IF(OR(RIGHT(TEXT($A28,"0"),Quantities!$B$2)="00",LEFT(TEXT($A28,"0"),1)="5"),VLOOKUP($A28,Quantities[],Quantities!$B$2),""), IF(LEFT(TEXT($A28,"0"),1)="5",VLOOKUP($A28,Quantities[],Quantities!$B$2), VLOOKUP(INDEX(Quantities!$A$46:$A$48,MATCH($A28,Quantities!$C$46:$C$48)),Quantities!$A$46:$B$48,Quantities!$B$2))))) -> Substation, Powerline Corridors, Pipeline Corridors | H28: =IF(C28="f","Deadman Diversion", IF(LEFT(TEXT(A28,"0"),1)="5", VLOOKUP(VLOOKUP(A28,Quantities!$A$4:$D$48,Quantities!$C$2),Quantities!$A$4:$D$48,Quantities!$C$2), IF(OR(C28="a",C28="c",C28="d",C28="e"), "-", IF(RIGHT(TEXT(A28,"0"),2)="00",VLOOKUP(A28,Quantities[],Quantities!$B$2), IF(C28="f",VLOOKUP(A28,Quantities[],Quantities!$B$2), VLOOKUP(A28,Quantities[],Quantities!$C$2)) )))) -> - | I28: =IF(OR(AND(LEFT(D28,2)="Sc",B28="A",OR(C28="d",C28="f")),AND(C28="f",B28="D")), SUM(VLOOKUP($A28,Quantities[],Quantities!$O$2),VLOOKUP($A28,Quantities[],Quantities!$Q$2),VLOOKUP($A28,Quantities[],Quantities!$S$2),VLOOKUP($A28,Quantities[],Quantities!$I$2)), IF(AND(LEFT(D28,2)="Sc",OR(C28="a",C28="f")), VLOOKUP(A28,Quantities[],Quantities!$I$2), IF(AND(B28="D",C28="b"), VLOOKUP(INDEX(Quantities!$A$46:$A$48,MATCH($A28,Quantities!$C$46:$C$48)),Quantities!$A$46:$AN$48,Quantities!$O$2)+ VLOOKUP(INDEX(Quantities!$A$46:$A$48,MATCH($A28,Quantities!$C$46:$C$48)),Quantities!$A$46:$AN$48,Quantities!$Q$2)+ VLOOKUP(INDEX(Quantities!$A$46:$A$48,MATCH($A28,Quantities!$C$46:$C$48)),Quantities!$A$46:$AN$48,Quantities!$S$2), IF(OR(B28="D",B28="Q"), SUM(VLOOKUP($A28,Quantities[],Quantities!$O$2),VLOOKUP($A28,Quantities[],Quantities!$Q$2),VLOOKUP($A28,Quantities[],Quantities!$S$2)), VLOOKUP(A28,Quantities[],Quantities!$G$2) )))) -> 0 | J28: =IF(LEFT(D28,2)="Mg", VLOOKUP(A28,Quantities[],Quantities!$H$2), IF(OR(AND(LEFT(D28,2)="Sc",B28="A",OR(C28="d",C28="f"))), (SUM(VLOOKUP($A28,Quantities[],Quantities!$P$2)*VLOOKUP($A28,Quantities[],Quantities!$O$2),VLOOKUP($A28,Quantities[],Quantities!$R$2)*VLOOKUP($A28,Quantities[],Quantities!$Q$2),VLOOKUP($A28,Quantities[],Quantities!$T$2)*VLOOKUP($A28,Quantities[],Quantities!$S$2)))/SUM(VLOOKUP($A28,Quantities[],Quantities!$O$2),VLOOKUP($A28,Quantities[],Quantities!$Q$2),VLOOKUP($A28,Quantities[],Quantities!$S$2)), IF(AND(LEFT(D28,2)="Sc",OR(C28="a",C28="f")), VLOOKUP(A28,Quantities[],Quantities!$J$2), IF(AND(B28="D",C28="b", (VLOOKUP(INDEX(Quantities!$A$46:$A$48,MATCH($A28,Quantities!$C$46:$C$48)),Quantities[],Quantities!$O$2)+VLOOKUP(INDEX(Quantities!$A$46:$A$48,MATCH($A28,Quantities!$C$46:$C$48)),Quantities[],Quantities!$Q$2)+VLOOKUP(INDEX(Quantities!$A$46:$A$48,MATCH($A28,Quantities!$C$46:$C$48)),Quantities[],Quantities!$S$2))>0), (VLOOKUP(INDEX(Quantities!$A$46:$A$48,MATCH($A28,Quantities!$C$46:$C$48)),Quantities[],Quantities!$P$2)*VLOOKUP(INDEX(Quantities!$A$46:$A$48,MATCH($A28,Quantities!$C$46:$C$48)),Quantities[],Quantities!$O$2) +VLOOKUP(INDEX(Quantities!$A$46:$A$48,MATCH($A28,Quantities!$C$46:$C$48)),Quantities[],Quantities!$R$2)*VLOOKUP(INDEX(Quantities!$A$46:$A$48,MATCH($A28,Quantities!$C$46:$C$48)),Quantities[],Quantities!$Q$2) +VLOOKUP(INDEX(Quantities!$A$46:$A$48,MATCH($A28,Quantities!$C$46:$C$48)),Quantities[],Quantities!$T$2)*VLOOKUP(INDEX(Quantities!$A$46:$A$48,MATCH($A28,Quantities!$C$46:$C$48)),Quantities[],Quantities!$S$2))/ (VLOOKUP(INDEX(Quantities!$A$46:$A$48,MATCH($A28,Quantities!$C$46:$C$48)),Quantities[],Quantities!$O$2)+VLOOKUP(INDEX(Quantities!$A$46:$A$48,MATCH($A28,Quantities!$C$46:$C$48)),Quantities[],Quantities!$Q$2)+VLOOKUP(A28,Quantities[],Quantities!$S$2)), IF(AND(B28="D", (VLOOKUP(A28,Quantities[],Quantities!$O$2)+VLOOKUP(A28,Quantities[],Quantities!$Q$2)+VLOOKUP(A28,Quantities[],Quantities!$S$2))>0), (VLOOKUP(A28,Quantities[],Quantities!$P$2)*VLOOKUP(A28,Quantities[],Quantities!$O$2) +VLOOKUP(A28,Quantities[],Quantities!$R$2)*VLOOKUP(A28,Quantities[],Quantities!$Q$2) +VLOOKUP(A28,Quantities[],Quantities!$T$2)*VLOOKUP(A28,Quantities[],Quantities!$S$2))/ (VLOOKUP(A28,Quantities[],Quantities!$O$2)+VLOOKUP(A28,Quantities[],Quantities!$Q$2)+VLOOKUP(A28,Quantities[],Quantities!$S$2)), IF($B28="Q", (SUM(VLOOKUP($A28,Quantities[],Quantities!$P$2)*VLOOKUP($A28,Quantities[],Quantities!$O$2),VLOOKUP($A28,Quantities[],Quantities!$R$2)*VLOOKUP($A28,Quantities[],Quantities!$Q$2),VLOOKUP($A28,Quantities[],Quantities!$T$2)*VLOOKUP($A28,Quantities[],Quantities!$S$2)))/SUM(VLOOKUP($A28,Quantities[],Quantities!$O$2),VLOOKUP($A28,Quantities[],Quantities!$Q$2),VLOOKUP($A28,Quantities[],Quantities!$S$2)), VLOOKUP(A28,Quantities[],Quantities!$H$2) )))))) -> 0 | K28: =IF(LEFT(D28,1)="U","-",VLOOKUP(D28,Equipment[],Equipment!$B$2)) -> Cat D11T CD Multi-shank (w/ MSR-359H)
A29: =Quantities!$A$45 -> 2200 | B29: E | C29: c | D29: Rp1 | E29: 2200-E-c-Rp1 | F29: =IF(D29="Comb1",CONCATENATE(VLOOKUP(B29,'Activity-Material_Codes'!$A$2:$B$28,Quantities!$B$2),"-",VLOOKUP(A29,Quantities[],Quantities!$D$2)), CONCATENATE( VLOOKUP(B29,'Activity-Material_Codes'!$A$2:$B$30,Quantities!$B$2), IF(AND(B29="B",C29="a"), " Scraper Grading", ""), IF(C29="b","","-"), IF(C29="b","",VLOOKUP(A29,Quantities[],Quantities!$D$2)), IF(LEFT(TEXT(A29,"0"),1)="5","","-"), IF(LEFT(TEXT(A29,"0"),1)="5","",VLOOKUP(C29,'Activity-Material_Codes'!$A$34:$B$40,Quantities!$B$2)) )) -> Rip-Unplanned Disturbance Area-Rough Graded Material | G29: =IF(C29="f",VLOOKUP(A29,Quantities[],Quantities!$B$2), CONCATENATE( IF(OR(RIGHT(TEXT($A29,"0"),Quantities!$B$2)="00",LEFT(TEXT($A29,"0"),1)="5",OR($C29="b",$C29="f")),"",VLOOKUP($A29,Quantities[],Quantities!$B$2)), IF(LEFT(TEXT($A29,"0"),1)="5",""," "), IF(OR(C29="a",C29="c",C29="d",C29="e"),IF(OR(RIGHT(TEXT($A29,"0"),Quantities!$B$2)="00",LEFT(TEXT($A29,"0"),1)="5"),VLOOKUP($A29,Quantities[],Quantities!$B$2),""), IF(LEFT(TEXT($A29,"0"),1)="5",VLOOKUP($A29,Quantities[],Quantities!$B$2), VLOOKUP(INDEX(Quantities!$A$46:$A$48,MATCH($A29,Quantities!$C$46:$C$48)),Quantities!$A$46:$B$48,Quantities!$B$2))))) -> Allowance for Other Disturbed Areas | H29: =IF(C29="f","Deadman Diversion", IF(LEFT(TEXT(A29,"0"),1)="5", VLOOKUP(VLOOKUP(A29,Quantities!$A$4:$D$48,Quantities!$C$2),Quantities!$A$4:$D$48,Quantities!$C$2), IF(OR(C29="a",C29="c",C29="d",C29="e"), "-", IF(RIGHT(TEXT(A29,"0"),2)="00",VLOOKUP(A29,Quantities[],Quantities!$B$2), IF(C29="f",VLOOKUP(A29,Quantities[],Quantities!$B$2), VLOOKUP(A29,Quantities[],Quantities!$C$2)) )))) -> - | I29: =IF(OR(AND(LEFT(D29,2)="Sc",B29="A",OR(C29="d",C29="f")),AND(C29="f",B29="D")), SUM(VLOOKUP($A29,Quantities[],Quantities!$O$2),VLOOKUP($A29,Quantities[],Quantities!$Q$2),VLOOKUP($A29,Quantities[],Quantities!$S$2),VLOOKUP($A29,Quantities[],Quantities!$I$2)), IF(AND(LEFT(D29,2)="Sc",OR(C29="a",C29="f")), VLOOKUP(A29,Quantities[],Quantities!$I$2), IF(AND(B29="D",C29="b"), VLOOKUP(INDEX(Quantities!$A$46:$A$48,MATCH($A29,Quantities!$C$46:$C$48)),Quantities!$A$46:$AN$48,Quantities!$O$2)+ VLOOKUP(INDEX(Quantities!$A$46:$A$48,MATCH($A29,Quantities!$C$46:$C$48)),Quantities!$A$46:$AN$48,Quantities!$Q$2)+ VLOOKUP(INDEX(Quantities!$A$46:$A$48,MATCH($A29,Quantities!$C$46:$C$48)),Quantities!$A$46:$AN$48,Quantities!$S$2), IF(OR(B29="D",B29="Q"), SUM(VLOOKUP($A29,Quantities[],Quantities!$O$2),VLOOKUP($A29,Quantities[],Quantities!$Q$2),VLOOKUP($A29,Quantities[],Quantities!$S$2)), VLOOKUP(A29,Quantities[],Quantities!$G$2) )))) -> 0 | J29: =IF(LEFT(D29,2)="Mg", VLOOKUP(A29,Quantities[],Quantities!$H$2), IF(OR(AND(LEFT(D29,2)="Sc",B29="A",OR(C29="d",C29="f"))), (SUM(VLOOKUP($A29,Quantities[],Quantities!$P$2)*VLOOKUP($A29,Quantities[],Quantities!$O$2),VLOOKUP($A29,Quantities[],Quantities!$R$2)*VLOOKUP($A29,Quantities[],Quantities!$Q$2),VLOOKUP($A29,Quantities[],Quantities!$T$2)*VLOOKUP($A29,Quantities[],Quantities!$S$2)))/SUM(VLOOKUP($A29,Quantities[],Quantities!$O$2),VLOOKUP($A29,Quantities[],Quantities!$Q$2),VLOOKUP($A29,Quantities[],Quantities!$S$2)), IF(AND(LEFT(D29,2)="Sc",OR(C29="a",C29="f")), VLOOKUP(A29,Quantities[],Quantities!$J$2), IF(AND(B29="D",C29="b", (VLOOKUP(INDEX(Quantities!$A$46:$A$48,MATCH($A29,Quantities!$C$46:$C$48)),Quantities[],Quantities!$O$2)+VLOOKUP(INDEX(Quantities!$A$46:$A$48,MATCH($A29,Quantities!$C$46:$C$48)),Quantities[],Quantities!$Q$2)+VLOOKUP(INDEX(Quantities!$A$46:$A$48,MATCH($A29,Quantities!$C$46:$C$48)),Quantities[],Quantities!$S$2))>0), (VLOOKUP(INDEX(Quantities!$A$46:$A$48,MATCH($A29,Quantities!$C$46:$C$48)),Quantities[],Quantities!$P$2)*VLOOKUP(INDEX(Quantities!$A$46:$A$48,MATCH($A29,Quantities!$C$46:$C$48)),Quantities[],Quantities!$O$2) +VLOOKUP(INDEX(Quantities!$A$46:$A$48,MATCH($A29,Quantities!$C$46:$C$48)),Quantities[],Quantities!$R$2)*VLOOKUP(INDEX(Quantities!$A$46:$A$48,MATCH($A29,Quantities!$C$46:$C$48)),Quantities[],Quantities!$Q$2) +VLOOKUP(INDEX(Quantities!$A$46:$A$48,MATCH($A29,Quantities!$C$46:$C$48)),Quantities[],Quantities!$T$2)*VLOOKUP(INDEX(Quantities!$A$46:$A$48,MATCH($A29,Quantities!$C$46:$C$48)),Quantities[],Quantities!$S$2))/ (VLOOKUP(INDEX(Quantities!$A$46:$A$48,MATCH($A29,Quantities!$C$46:$C$48)),Quantities[],Quantities!$O$2)+VLOOKUP(INDEX(Quantities!$A$46:$A$48,MATCH($A29,Quantities!$C$46:$C$48)),Quantities[],Quantities!$Q$2)+VLOOKUP(A29,Quantities[],Quantities!$S$2)), IF(AND(B29="D", (VLOOKUP(A29,Quantities[],Quantities!$O$2)+VLOOKUP(A29,Quantities[],Quantities!$Q$2)+VLOOKUP(A29,Quantities[],Quantities!$S$2))>0), (VLOOKUP(A29,Quantities[],Quantities!$P$2)*VLOOKUP(A29,Quantities[],Quantities!$O$2) +VLOOKUP(A29,Quantities[],Quantities!$R$2)*VLOOKUP(A29,Quantities[],Quantities!$Q$2) +VLOOKUP(A29,Quantities[],Quantities!$T$2)*VLOOKUP(A29,Quantities[],Quantities!$S$2))/ (VLOOKUP(A29,Quantities[],Quantities!$O$2)+VLOOKUP(A29,Quantities[],Quantities!$Q$2)+VLOOKUP(A29,Quantities[],Quantities!$S$2)), IF($B29="Q", (SUM(VLOOKUP($A29,Quantities[],Quantities!$P$2)*VLOOKUP($A29,Quantities[],Quantities!$O$2),VLOOKUP($A29,Quantities[],Quantities!$R$2)*VLOOKUP($A29,Quantities[],Quantities!$Q$2),VLOOKUP($A29,Quantities[],Quantities!$T$2)*VLOOKUP($A29,Quantities[],Quantities!$S$2)))/SUM(VLOOKUP($A29,Quantities[],Quantities!$O$2),VLOOKUP($A29,Quantities[],Quantities!$Q$2),VLOOKUP($A29,Quantities[],Quantities!$S$2)), VLOOKUP(A29,Quantities[],Quantities!$H$2) )))))) -> 0.01 | K29: =IF(LEFT(D29,1)="U","-",VLOOKUP(D29,Equipment[],Equipment!$B$2)) -> Cat D11T CD Multi-shank (w/ MSR-359H)
A30: =Quantities!$A$4 -> 1000 | B30: B | C30: b | D30: Dz2 | E30: 1000-B-b-Dz2 | F30: =IF(D30="Comb1",CONCATENATE(VLOOKUP(B30,'Activity-Material_Codes'!$A$2:$B$28,Quantities!$B$2),"-",VLOOKUP(A30,Quantities[],Quantities!$D$2)), CONCATENATE( VLOOKUP(B30,'Activity-Material_Codes'!$A$2:$B$30,Quantities!$B$2), IF(AND(B30="B",C30="a"), " Scraper Grading", ""), IF(C30="b","","-"), IF(C30="b","",VLOOKUP(A30,Quantities[],Quantities!$D$2)), IF(LEFT(TEXT(A30,"0"),1)="5","","-"), IF(LEFT(TEXT(A30,"0"),1)="5","",VLOOKUP(C30,'Activity-Material_Codes'!$A$34:$B$40,Quantities!$B$2)) )) -> Dozer Assist-Cover | G30: =IF(C30="f",VLOOKUP(A30,Quantities[],Quantities!$B$2), CONCATENATE( IF(OR(RIGHT(TEXT($A30,"0"),Quantities!$B$2)="00",LEFT(TEXT($A30,"0"),1)="5",OR($C30="b",$C30="f")),"",VLOOKUP($A30,Quantities[],Quantities!$B$2)), IF(LEFT(TEXT($A30,"0"),1)="5",""," "), IF(OR(C30="a",C30="c",C30="d",C30="e"),IF(OR(RIGHT(TEXT($A30,"0"),Quantities!$B$2)="00",LEFT(TEXT($A30,"0"),1)="5"),VLOOKUP($A30,Quantities[],Quantities!$B$2),""), IF(LEFT(TEXT($A30,"0"),1)="5",VLOOKUP($A30,Quantities[],Quantities!$B$2), VLOOKUP(INDEX(Quantities!$A$46:$A$48,MATCH($A30,Quantities!$C$46:$C$48)),Quantities!$A$46:$B$48,Quantities!$B$2))))) -> North Stockpile | H30: =IF(C30="f","Deadman Diversion", IF(LEFT(TEXT(A30,"0"),1)="5", VLOOKUP(VLOOKUP(A30,Quantities!$A$4:$D$48,Quantities!$C$2),Quantities!$A$4:$D$48,Quantities!$C$2), IF(OR(C30="a",C30="c",C30="d",C30="e"), "-", IF(RIGHT(TEXT(A30,"0"),2)="00",VLOOKUP(A30,Quantities[],Quantities!$B$2), IF(C30="f",VLOOKUP(A30,Quantities[],Quantities!$B$2), VLOOKUP(A30,Quantities[],Quantities!$C$2)) )))) -> West In-Pit Waste | I30: =IF(OR(AND(LEFT(D30,2)="Sc",B30="A",OR(C30="d",C30="f")),AND(C30="f",B30="D")), SUM(VLOOKUP($A30,Quantities[],Quantities!$O$2),VLOOKUP($A30,Quantities[],Quantities!$Q$2),VLOOKUP($A30,Quantities[],Quantities!$S$2),VLOOKUP($A30,Quantities[],Quantities!$I$2)), IF(AND(LEFT(D30,2)="Sc",OR(C30="a",C30="f")), VLOOKUP(A30,Quantities[],Quantities!$I$2), IF(AND(B30="D",C30="b"), VLOOKUP(INDEX(Quantities!$A$46:$A$48,MATCH($A30,Quantities!$C$46:$C$48)),Quantities!$A$46:$AN$48,Quantities!$O$2)+ VLOOKUP(INDEX(Quantities!$A$46:$A$48,MATCH($A30,Quantities!$C$46:$C$48)),Quantities!$A$46:$AN$48,Quantities!$Q$2)+ VLOOKUP(INDEX(Quantities!$A$46:$A$48,MATCH($A30,Quantities!$C$46:$C$48)),Quantities!$A$46:$AN$48,Quantities!$S$2), IF(OR(B30="D",B30="Q"), SUM(VLOOKUP($A30,Quantities[],Quantities!$O$2),VLOOKUP($A30,Quantities[],Quantities!$Q$2),VLOOKUP($A30,Quantities[],Quantities!$S$2)), VLOOKUP(A30,Quantities[],Quantities!$G$2) )))) -> - | J30: =IF(LEFT(D30,2)="Mg", VLOOKUP(A30,Quantities[],Quantities!$H$2), IF(OR(AND(LEFT(D30,2)="Sc",B30="A",OR(C30="d",C30="f"))), (SUM(VLOOKUP($A30,Quantities[],Quantities!$P$2)*VLOOKUP($A30,Quantities[],Quantities!$O$2),VLOOKUP($A30,Quantities[],Quantities!$R$2)*VLOOKUP($A30,Quantities[],Quantities!$Q$2),VLOOKUP($A30,Quantities[],Quantities!$T$2)*VLOOKUP($A30,Quantities[],Quantities!$S$2)))/SUM(VLOOKUP($A30,Quantities[],Quantities!$O$2),VLOOKUP($A30,Quantities[],Quantities!$Q$2),VLOOKUP($A30,Quantities[],Quantities!$S$2)), IF(AND(LEFT(D30,2)="Sc",OR(C30="a",C30="f")), VLOOKUP(A30,Quantities[],Quantities!$J$2), IF(AND(B30="D",C30="b", (VLOOKUP(INDEX(Quantities!$A$46:$A$48,MATCH($A30,Quantities!$C$46:$C$48)),Quantities[],Quantities!$O$2)+VLOOKUP(INDEX(Quantities!$A$46:$A$48,MATCH($A30,Quantities!$C$46:$C$48)),Quantities[],Quantities!$Q$2)+VLOOKUP(INDEX(Quantities!$A$46:$A$48,MATCH($A30,Quantities!$C$46:$C$48)),Quantities[],Quantities!$S$2))>0), (VLOOKUP(INDEX(Quantities!$A$46:$A$48,MATCH($A30,Quantities!$C$46:$C$48)),Quantities[],Quantities!$P$2)*VLOOKUP(INDEX(Quantities!$A$46:$A$48,MATCH($A30,Quantities!$C$46:$C$48)),Quantities[],Quantities!$O$2) +VLOOKUP(INDEX(Quantities!$A$46:$A$48,MATCH($A30,Quantities!$C$46:$C$48)),Quantities[],Quantities!$R$2)*VLOOKUP(INDEX(Quantities!$A$46:$A$48,MATCH($A30,Quantities!$C$46:$C$48)),Quantities[],Quantities!$Q$2) +VLOOKUP(INDEX(Quantities!$A$46:$A$48,MATCH($A30,Quantities!$C$46:$C$48)),Quantities[],Quantities!$T$2)*VLOOKUP(INDEX(Quantities!$A$46:$A$48,MATCH($A30,Quantities!$C$46:$C$48)),Quantities[],Quantities!$S$2))/ (VLOOKUP(INDEX(Quantities!$A$46:$A$48,MATCH($A30,Quantities!$C$46:$C$48)),Quantities[],Quantities!$O$2)+VLOOKUP(INDEX(Quantities!$A$46:$A$48,MATCH($A30,Quantities!$C$46:$C$48)),Quantities[],Quantities!$Q$2)+VLOOKUP(A30,Quantities[],Quantities!$S$2)), IF(AND(B30="D", (VLOOKUP(A30,Quantities[],Quantities!$O$2)+VLOOKUP(A30,Quantities[],Quantities!$Q$2)+VLOOKUP(A30,Quantities[],Quantities!$S$2))>0), (VLOOKUP(A30,Quantities[],Quantities!$P$2)*VLOOKUP(A30,Quantities[],Quantities!$O$2) +VLOOKUP(A30,Quantities[],Quantities!$R$2)*VLOOKUP(A30,Quantities[],Quantities!$Q$2) +VLOOKUP(A30,Quantities[],Quantities!$T$2)*VLOOKUP(A30,Quantities[],Quantities!$S$2))/ (VLOOKUP(A30,Quantities[],Quantities!$O$2)+VLOOKUP(A30,Quantities[],Quantities!$Q$2)+VLOOKUP(A30,Quantities[],Quantities!$S$2)), IF($B30="Q", (SUM(VLOOKUP($A30,Quantities[],Quantities!$P$2)*VLOOKUP($A30,Quantities[],Quantities!$O$2),VLOOKUP($A30,Quantities[],Quantities!$R$2)*VLOOKUP($A30,Quantities[],Quantities!$Q$2),VLOOKUP($A30,Quantities[],Quantities!$T$2)*VLOOKUP($A30,Quantities[],Quantities!$S$2)))/SUM(VLOOKUP($A30,Quantities[],Quantities!$O$2),VLOOKUP($A30,Quantities[],Quantities!$Q$2),VLOOKUP($A30,Quantities[],Quantities!$S$2)), VLOOKUP(A30,Quantities[],Quantities!$H$2) )))))) -> - | K30: =IF(LEFT(D30,1)="U","-",VLOOKUP(D30,Equipment[],Equipment!$B$2)) -> Cat D11T CD
A31: =Quantities!$A$7 -> 1100 | B31: B | C31: b | D31: Dz2 | E31: 1100-B-b-Dz2 | F31: =IF(D31="Comb1",CONCATENATE(VLOOKUP(B31,'Activity-Material_Codes'!$A$2:$B$28,Quantities!$B$2),"-",VLOOKUP(A31,Quantities[],Quantities!$D$2)), CONCATENATE( VLOOKUP(B31,'Activity-Material_Codes'!$A$2:$B$30,Quantities!$B$2), IF(AND(B31="B",C31="a"), " Scraper Grading", ""), IF(C31="b","","-"), IF(C31="b","",VLOOKUP(A31,Quantities[],Quantities!$D$2)), IF(LEFT(TEXT(A31,"0"),1)="5","","-"), IF(LEFT(TEXT(A31,"0"),1)="5","",VLOOKUP(C31,'Activity-Material_Codes'!$A$34:$B$40,Quantities!$B$2)) )) -> Dozer Assist-Cover | G31: =IF(C31="f",VLOOKUP(A31,Quantities[],Quantities!$B$2), CONCATENATE( IF(OR(RIGHT(TEXT($A31,"0"),Quantities!$B$2)="00",LEFT(TEXT($A31,"0"),1)="5",OR($C31="b",$C31="f")),"",VLOOKUP($A31,Quantities[],Quantities!$B$2)), IF(LEFT(TEXT($A31,"0"),1)="5",""," "), IF(OR(C31="a",C31="c",C31="d",C31="e"),IF(OR(RIGHT(TEXT($A31,"0"),Quantities!$B$2)="00",LEFT(TEXT($A31,"0"),1)="5"),VLOOKUP($A31,Quantities[],Quantities!$B$2),""), IF(LEFT(TEXT($A31,"0"),1)="5",VLOOKUP($A31,Quantities[],Quantities!$B$2), VLOOKUP(INDEX(Quantities!$A$46:$A$48,MATCH($A31,Quantities!$C$46:$C$48)),Quantities!$A$46:$B$48,Quantities!$B$2))))) -> North Stockpile | H31: =IF(C31="f","Deadman Diversion", IF(LEFT(TEXT(A31,"0"),1)="5", VLOOKUP(VLOOKUP(A31,Quantities!$A$4:$D$48,Quantities!$C$2),Quantities!$A$4:$D$48,Quantities!$C$2), IF(OR(C31="a",C31="c",C31="d",C31="e"), "-", IF(RIGHT(TEXT(A31,"0"),2)="00",VLOOKUP(A31,Quantities[],Quantities!$B$2), IF(C31="f",VLOOKUP(A31,Quantities[],Quantities!$B$2), VLOOKUP(A31,Quantities[],Quantities!$C$2)) )))) -> East In-Pit Waste | I31: =IF(OR(AND(LEFT(D31,2)="Sc",B31="A",OR(C31="d",C31="f")),AND(C31="f",B31="D")), SUM(VLOOKUP($A31,Quantities[],Quantities!$O$2),VLOOKUP($A31,Quantities[],Quantities!$Q$2),VLOOKUP($A31,Quantities[],Quantities!$S$2),VLOOKUP($A31,Quantities[],Quantities!$I$2)), IF(AND(LEFT(D31,2)="Sc",OR(C31="a",C31="f")), VLOOKUP(A31,Quantities[],Quantities!$I$2), IF(AND(B31="D",C31="b"), VLOOKUP(INDEX(Quantities!$A$46:$A$48,MATCH($A31,Quantities!$C$46:$C$48)),Quantities!$A$46:$AN$48,Quantities!$O$2)+ VLOOKUP(INDEX(Quantities!$A$46:$A$48,MATCH($A31,Quantities!$C$46:$C$48)),Quantities!$A$46:$AN$48,Quantities!$Q$2)+ VLOOKUP(INDEX(Quantities!$A$46:$A$48,MATCH($A31,Quantities!$C$46:$C$48)),Quantities!$A$46:$AN$48,Quantities!$S$2), IF(OR(B31="D",B31="Q"), SUM(VLOOKUP($A31,Quantities[],Quantities!$O$2),VLOOKUP($A31,Quantities[],Quantities!$Q$2),VLOOKUP($A31,Quantities[],Quantities!$S$2)), VLOOKUP(A31,Quantities[],Quantities!$G$2) )))) -> - | J31: =IF(LEFT(D31,2)="Mg", VLOOKUP(A31,Quantities[],Quantities!$H$2), IF(OR(AND(LEFT(D31,2)="Sc",B31="A",OR(C31="d",C31="f"))), (SUM(VLOOKUP($A31,Quantities[],Quantities!$P$2)*VLOOKUP($A31,Quantities[],Quantities!$O$2),VLOOKUP($A31,Quantities[],Quantities!$R$2)*VLOOKUP($A31,Quantities[],Quantities!$Q$2),VLOOKUP($A31,Quantities[],Quantities!$T$2)*VLOOKUP($A31,Quantities[],Quantities!$S$2)))/SUM(VLOOKUP($A31,Quantities[],Quantities!$O$2),VLOOKUP($A31,Quantities[],Quantities!$Q$2),VLOOKUP($A31,Quantities[],Quantities!$S$2)), IF(AND(LEFT(D31,2)="Sc",OR(C31="a",C31="f")), VLOOKUP(A31,Quantities[],Quantities!$J$2), IF(AND(B31="D",C31="b", (VLOOKUP(INDEX(Quantities!$A$46:$A$48,MATCH($A31,Quantities!$C$46:$C$48)),Quantities[],Quantities!$O$2)+VLOOKUP(INDEX(Quantities!$A$46:$A$48,MATCH($A31,Quantities!$C$46:$C$48)),Quantities[],Quantities!$Q$2)+VLOOKUP(INDEX(Quantities!$A$46:$A$48,MATCH($A31,Quantities!$C$46:$C$48)),Quantities[],Quantities!$S$2))>0), (VLOOKUP(INDEX(Quantities!$A$46:$A$48,MATCH($A31,Quantities!$C$46:$C$48)),Quantities[],Quantities!$P$2)*VLOOKUP(INDEX(Quantities!$A$46:$A$48,MATCH($A31,Quantities!$C$46:$C$48)),Quantities[],Quantities!$O$2) +VLOOKUP(INDEX(Quantities!$A$46:$A$48,MATCH($A31,Quantities!$C$46:$C$48)),Quantities[],Quantities!$R$2)*VLOOKUP(INDEX(Quantities!$A$46:$A$48,MATCH($A31,Quantities!$C$46:$C$48)),Quantities[],Quantities!$Q$2) +VLOOKUP(INDEX(Quantities!$A$46:$A$48,MATCH($A31,Quantities!$C$46:$C$48)),Quantities[],Quantities!$T$2)*VLOOKUP(INDEX(Quantities!$A$46:$A$48,MATCH($A31,Quantities!$C$46:$C$48)),Quantities[],Quantities!$S$2))/ (VLOOKUP(INDEX(Quantities!$A$46:$A$48,MATCH($A31,Quantities!$C$46:$C$48)),Quantities[],Quantities!$O$2)+VLOOKUP(INDEX(Quantities!$A$46:$A$48,MATCH($A31,Quantities!$C$46:$C$48)),Quantities[],Quantities!$Q$2)+VLOOKUP(A31,Quantities[],Quantities!$S$2)), IF(AND(B31="D", (VLOOKUP(A31,Quantities[],Quantities!$O$2)+VLOOKUP(A31,Quantities[],Quantities!$Q$2)+VLOOKUP(A31,Quantities[],Quantities!$S$2))>0), (VLOOKUP(A31,Quantities[],Quantities!$P$2)*VLOOKUP(A31,Quantities[],Quantities!$O$2) +VLOOKUP(A31,Quantities[],Quantities!$R$2)*VLOOKUP(A31,Quantities[],Quantities!$Q$2) +VLOOKUP(A31,Quantities[],Quantities!$T$2)*VLOOKUP(A31,Quantities[],Quantities!$S$2))/ (VLOOKUP(A31,Quantities[],Quantities!$O$2)+VLOOKUP(A31,Quantities[],Quantities!$Q$2)+VLOOKUP(A31,Quantities[],Quantities!$S$2)), IF($B31="Q", (SUM(VLOOKUP($A31,Quantities[],Quantities!$P$2)*VLOOKUP($A31,Quantities[],Quantities!$O$2),VLOOKUP($A31,Quantities[],Quantities!$R$2)*VLOOKUP($A31,Quantities[],Quantities!$Q$2),VLOOKUP($A31,Quantities[],Quantities!$T$2)*VLOOKUP($A31,Quantities[],Quantities!$S$2)))/SUM(VLOOKUP($A31,Quantities[],Quantities!$O$2),VLOOKUP($A31,Quantities[],Quantities!$Q$2),VLOOKUP($A31,Quantities[],Quantities!$S$2)), VLOOKUP(A31,Quantities[],Quantities!$H$2) )))))) -> - | K31: =IF(LEFT(D31,1)="U","-",VLOOKUP(D31,Equipment[],Equipment!$B$2)) -> Cat D11T CD
A32: =Quantities!$A$12 -> 1300 | B32: B | C32: b | D32: Dz2 | E32: 1300-B-b-Dz2 | F32: =IF(D32="Comb1",CONCATENATE(VLOOKUP(B32,'Activity-Material_Codes'!$A$2:$B$28,Quantities!$B$2),"-",VLOOKUP(A32,Quantities[],Quantities!$D$2)), CONCATENATE( VLOOKUP(B32,'Activity-Material_Codes'!$A$2:$B$30,Quantities!$B$2), IF(AND(B32="B",C32="a"), " Scraper Grading", ""), IF(C32="b","","-"), IF(C32="b","",VLOOKUP(A32,Quantities[],Quantities!$D$2)), IF(LEFT(TEXT(A32,"0"),1)="5","","-"), IF(LEFT(TEXT(A32,"0"),1)="5","",VLOOKUP(C32,'Activity-Material_Codes'!$A$34:$B$40,Quantities!$B$2)) )) -> Dozer Assist-Cover | G32: =IF(C32="f",VLOOKUP(A32,Quantities[],Quantities!$B$2), CONCATENATE( IF(OR(RIGHT(TEXT($A32,"0"),Quantities!$B$2)="00",LEFT(TEXT($A32,"0"),1)="5",OR($C32="b",$C32="f")),"",VLOOKUP($A32,Quantities[],Quantities!$B$2)), IF(LEFT(TEXT($A32,"0"),1)="5",""," "), IF(OR(C32="a",C32="c",C32="d",C32="e"),IF(OR(RIGHT(TEXT($A32,"0"),Quantities!$B$2)="00",LEFT(TEXT($A32,"0"),1)="5"),VLOOKUP($A32,Quantities[],Quantities!$B$2),""), IF(LEFT(TEXT($A32,"0"),1)="5",VLOOKUP($A32,Quantities[],Quantities!$B$2), VLOOKUP(INDEX(Quantities!$A$46:$A$48,MATCH($A32,Quantities!$C$46:$C$48)),Quantities!$A$46:$B$48,Quantities!$B$2))))) -> North Stockpile | H32: =IF(C32="f","Deadman Diversion", IF(LEFT(TEXT(A32,"0"),1)="5", VLOOKUP(VLOOKUP(A32,Quantities!$A$4:$D$48,Quantities!$C$2),Quantities!$A$4:$D$48,Quantities!$C$2), IF(OR(C32="a",C32="c",C32="d",C32="e"), "-", IF(RIGHT(TEXT(A32,"0"),2)="00",VLOOKUP(A32,Quantities[],Quantities!$B$2), IF(C32="f",VLOOKUP(A32,Quantities[],Quantities!$B$2), VLOOKUP(A32,Quantities[],Quantities!$C$2)) )))) -> NRW Waste | I32: =IF(OR(AND(LEFT(D32,2)="Sc",B32="A",OR(C32="d",C32="f")),AND(C32="f",B32="D")), SUM(VLOOKUP($A32,Quantities[],Quantities!$O$2),VLOOKUP($A32,Quantities[],Quantities!$Q$2),VLOOKUP($A32,Quantities[],Quantities!$S$2),VLOOKUP($A32,Quantities[],Quantities!$I$2)), IF(AND(LEFT(D32,2)="Sc",OR(C32="a",C32="f")), VLOOKUP(A32,Quantities[],Quantities!$I$2), IF(AND(B32="D",C32="b"), VLOOKUP(INDEX(Quantities!$A$46:$A$48,MATCH($A32,Quantities!$C$46:$C$48)),Quantities!$A$46:$AN$48,Quantities!$O$2)+ VLOOKUP(INDEX(Quantities!$A$46:$A$48,MATCH($A32,Quantities!$C$46:$C$48)),Quantities!$A$46:$AN$48,Quantities!$Q$2)+ VLOOKUP(INDEX(Quantities!$A$46:$A$48,MATCH($A32,Quantities!$C$46:$C$48)),Quantities!$A$46:$AN$48,Quantities!$S$2), IF(OR(B32="D",B32="Q"), SUM(VLOOKUP($A32,Quantities[],Quantities!$O$2),VLOOKUP($A32,Quantities[],Quantities!$Q$2),VLOOKUP($A32,Quantities[],Quantities!$S$2)), VLOOKUP(A32,Quantities[],Quantities!$G$2) )))) -> 90 | J32: =IF(LEFT(D32,2)="Mg", VLOOKUP(A32,Quantities[],Quantities!$H$2), IF(OR(AND(LEFT(D32,2)="Sc",B32="A",OR(C32="d",C32="f"))), (SUM(VLOOKUP($A32,Quantities[],Quantities!$P$2)*VLOOKUP($A32,Quantities[],Quantities!$O$2),VLOOKUP($A32,Quantities[],Quantities!$R$2)*VLOOKUP($A32,Quantities[],Quantities!$Q$2),VLOOKUP($A32,Quantities[],Quantities!$T$2)*VLOOKUP($A32,Quantities[],Quantities!$S$2)))/SUM(VLOOKUP($A32,Quantities[],Quantities!$O$2),VLOOKUP($A32,Quantities[],Quantities!$Q$2),VLOOKUP($A32,Quantities[],Quantities!$S$2)), IF(AND(LEFT(D32,2)="Sc",OR(C32="a",C32="f")), VLOOKUP(A32,Quantities[],Quantities!$J$2), IF(AND(B32="D",C32="b", (VLOOKUP(INDEX(Quantities!$A$46:$A$48,MATCH($A32,Quantities!$C$46:$C$48)),Quantities[],Quantities!$O$2)+VLOOKUP(INDEX(Quantities!$A$46:$A$48,MATCH($A32,Quantities!$C$46:$C$48)),Quantities[],Quantities!$Q$2)+VLOOKUP(INDEX(Quantities!$A$46:$A$48,MATCH($A32,Quantities!$C$46:$C$48)),Quantities[],Quantities!$S$2))>0), (VLOOKUP(INDEX(Quantities!$A$46:$A$48,MATCH($A32,Quantities!$C$46:$C$48)),Quantities[],Quantities!$P$2)*VLOOKUP(INDEX(Quantities!$A$46:$A$48,MATCH($A32,Quantities!$C$46:$C$48)),Quantities[],Quantities!$O$2) +VLOOKUP(INDEX(Quantities!$A$46:$A$48,MATCH($A32,Quantities!$C$46:$C$48)),Quantities[],Quantities!$R$2)*VLOOKUP(INDEX(Quantities!$A$46:$A$48,MATCH($A32,Quantities!$C$46:$C$48)),Quantities[],Quantities!$Q$2) +VLOOKUP(INDEX(Quantities!$A$46:$A$48,MATCH($A32,Quantities!$C$46:$C$48)),Quantities[],Quantities!$T$2)*VLOOKUP(INDEX(Quantities!$A$46:$A$48,MATCH($A32,Quantities!$C$46:$C$48)),Quantities[],Quantities!$S$2))/ (VLOOKUP(INDEX(Quantities!$A$46:$A$48,MATCH($A32,Quantities!$C$46:$C$48)),Quantities[],Quantities!$O$2)+VLOOKUP(INDEX(Quantities!$A$46:$A$48,MATCH($A32,Quantities!$C$46:$C$48)),Quantities[],Quantities!$Q$2)+VLOOKUP(A32,Quantities[],Quantities!$S$2)), IF(AND(B32="D", (VLOOKUP(A32,Quantities[],Quantities!$O$2)+VLOOKUP(A32,Quantities[],Quantities!$Q$2)+VLOOKUP(A32,Quantities[],Quantities!$S$2))>0), (VLOOKUP(A32,Quantities[],Quantities!$P$2)*VLOOKUP(A32,Quantities[],Quantities!$O$2) +VLOOKUP(A32,Quantities[],Quantities!$R$2)*VLOOKUP(A32,Quantities[],Quantities!$Q$2) +VLOOKUP(A32,Quantities[],Quantities!$T$2)*VLOOKUP(A32,Quantities[],Quantities!$S$2))/ (VLOOKUP(A32,Quantities[],Quantities!$O$2)+VLOOKUP(A32,Quantities[],Quantities!$Q$2)+VLOOKUP(A32,Quantities[],Quantities!$S$2)), IF($B32="Q", (SUM(VLOOKUP($A32,Quantities[],Quantities!$P$2)*VLOOKUP($A32,Quantities[],Quantities!$O$2),VLOOKUP($A32,Quantities[],Quantities!$R$2)*VLOOKUP($A32,Quantities[],Quantities!$Q$2),VLOOKUP($A32,Quantities[],Quantities!$T$2)*VLOOKUP($A32,Quantities[],Quantities!$S$2)))/SUM(VLOOKUP($A32,Quantities[],Quantities!$O$2),VLOOKUP($A32,Quantities[],Quantities!$Q$2),VLOOKUP($A32,Quantities[],Quantities!$S$2)), VLOOKUP(A32,Quantities[],Quantities!$H$2) )))))) -> - | K32: =IF(LEFT(D32,1)="U","-",VLOOKUP(D32,Equipment[],Equipment!$B$2)) -> Cat D11T CD
A33: =Quantities!$A$23 -> 1700 | B33: B | C33: b | D33: Dz2 | E33: 1700-B-b-Dz2 | F33: =IF(D33="Comb1",CONCATENATE(VLOOKUP(B33,'Activity-Material_Codes'!$A$2:$B$28,Quantities!$B$2),"-",VLOOKUP(A33,Quantities[],Quantities!$D$2)), CONCATENATE( VLOOKUP(B33,'Activity-Material_Codes'!$A$2:$B$30,Quantities!$B$2), IF(AND(B33="B",C33="a"), " Scraper Grading", ""), IF(C33="b","","-"), IF(C33="b","",VLOOKUP(A33,Quantities[],Quantities!$D$2)), IF(LEFT(TEXT(A33,"0"),1)="5","","-"), IF(LEFT(TEXT(A33,"0"),1)="5","",VLOOKUP(C33,'Activity-Material_Codes'!$A$34:$B$40,Quantities!$B$2)) )) -> Dozer Assist-Cover | G33: =IF(C33="f",VLOOKUP(A33,Quantities[],Quantities!$B$2), CONCATENATE( IF(OR(RIGHT(TEXT($A33,"0"),Quantities!$B$2)="00",LEFT(TEXT($A33,"0"),1)="5",OR($C33="b",$C33="f")),"",VLOOKUP($A33,Quantities[],Quantities!$B$2)), IF(LEFT(TEXT($A33,"0"),1)="5",""," "), IF(OR(C33="a",C33="c",C33="d",C33="e"),IF(OR(RIGHT(TEXT($A33,"0"),Quantities!$B$2)="00",LEFT(TEXT($A33,"0"),1)="5"),VLOOKUP($A33,Quantities[],Quantities!$B$2),""), IF(LEFT(TEXT($A33,"0"),1)="5",VLOOKUP($A33,Quantities[],Quantities!$B$2), VLOOKUP(INDEX(Quantities!$A$46:$A$48,MATCH($A33,Quantities!$C$46:$C$48)),Quantities!$A$46:$B$48,Quantities!$B$2))))) -> North Stockpile | H33: =IF(C33="f","Deadman Diversion", IF(LEFT(TEXT(A33,"0"),1)="5", VLOOKUP(VLOOKUP(A33,Quantities!$A$4:$D$48,Quantities!$C$2),Quantities!$A$4:$D$48,Quantities!$C$2), IF(OR(C33="a",C33="c",C33="d",C33="e"), "-", IF(RIGHT(TEXT(A33,"0"),2)="00",VLOOKUP(A33,Quantities[],Quantities!$B$2), IF(C33="f",VLOOKUP(A33,Quantities[],Quantities!$B$2), VLOOKUP(A33,Quantities[],Quantities!$C$2)) )))) -> Deadman Diversion | I33: =IF(OR(AND(LEFT(D33,2)="Sc",B33="A",OR(C33="d",C33="f")),AND(C33="f",B33="D")), SUM(VLOOKUP($A33,Quantities[],Quantities!$O$2),VLOOKUP($A33,Quantities[],Quantities!$Q$2),VLOOKUP($A33,Quantities[],Quantities!$S$2),VLOOKUP($A33,Quantities[],Quantities!$I$2)), IF(AND(LEFT(D33,2)="Sc",OR(C33="a",C33="f")), VLOOKUP(A33,Quantities[],Quantities!$I$2), IF(AND(B33="D",C33="b"), VLOOKUP(INDEX(Quantities!$A$46:$A$48,MATCH($A33,Quantities!$C$46:$C$48)),Quantities!$A$46:$AN$48,Quantities!$O$2)+ VLOOKUP(INDEX(Quantities!$A$46:$A$48,MATCH($A33,Quantities!$C$46:$C$48)),Quantities!$A$46:$AN$48,Quantities!$Q$2)+ VLOOKUP(INDEX(Quantities!$A$46:$A$48,MATCH($A33,Quantities!$C$46:$C$48)),Quantities!$A$46:$AN$48,Quantities!$S$2), IF(OR(B33="D",B33="Q"), SUM(VLOOKUP($A33,Quantities[],Quantities!$O$2),VLOOKUP($A33,Quantities[],Quantities!$Q$2),VLOOKUP($A33,Quantities[],Quantities!$S$2)), VLOOKUP(A33,Quantities[],Quantities!$G$2) )))) -> 0 | J33: =IF(LEFT(D33,2)="Mg", VLOOKUP(A33,Quantities[],Quantities!$H$2), IF(OR(AND(LEFT(D33,2)="Sc",B33="A",OR(C33="d",C33="f"))), (SUM(VLOOKUP($A33,Quantities[],Quantities!$P$2)*VLOOKUP($A33,Quantities[],Quantities!$O$2),VLOOKUP($A33,Quantities[],Quantities!$R$2)*VLOOKUP($A33,Quantities[],Quantities!$Q$2),VLOOKUP($A33,Quantities[],Quantities!$T$2)*VLOOKUP($A33,Quantities[],Quantities!$S$2)))/SUM(VLOOKUP($A33,Quantities[],Quantities!$O$2),VLOOKUP($A33,Quantities[],Quantities!$Q$2),VLOOKUP($A33,Quantities[],Quantities!$S$2)), IF(AND(LEFT(D33,2)="Sc",OR(C33="a",C33="f")), VLOOKUP(A33,Quantities[],Quantities!$J$2), IF(AND(B33="D",C33="b", (VLOOKUP(INDEX(Quantities!$A$46:$A$48,MATCH($A33,Quantities!$C$46:$C$48)),Quantities[],Quantities!$O$2)+VLOOKUP(INDEX(Quantities!$A$46:$A$48,MATCH($A33,Quantities!$C$46:$C$48)),Quantities[],Quantities!$Q$2)+VLOOKUP(INDEX(Quantities!$A$46:$A$48,MATCH($A33,Quantities!$C$46:$C$48)),Quantities[],Quantities!$S$2))>0), (VLOOKUP(INDEX(Quantities!$A$46:$A$48,MATCH($A33,Quantities!$C$46:$C$48)),Quantities[],Quantities!$P$2)*VLOOKUP(INDEX(Quantities!$A$46:$A$48,MATCH($A33,Quantities!$C$46:$C$48)),Quantities[],Quantities!$O$2) +VLOOKUP(INDEX(Quantities!$A$46:$A$48,MATCH($A33,Quantities!$C$46:$C$48)),Quantities[],Quantities!$R$2)*VLOOKUP(INDEX(Quantities!$A$46:$A$48,MATCH($A33,Quantities!$C$46:$C$48)),Quantities[],Quantities!$Q$2) +VLOOKUP(INDEX(Quantities!$A$46:$A$48,MATCH($A33,Quantities!$C$46:$C$48)),Quantities[],Quantities!$T$2)*VLOOKUP(INDEX(Quantities!$A$46:$A$48,MATCH($A33,Quantities!$C$46:$C$48)),Quantities[],Quantities!$S$2))/ (VLOOKUP(INDEX(Quantities!$A$46:$A$48,MATCH($A33,Quantities!$C$46:$C$48)),Quantities[],Quantities!$O$2)+VLOOKUP(INDEX(Quantities!$A$46:$A$48,MATCH($A33,Quantities!$C$46:$C$48)),Quantities[],Quantities!$Q$2)+VLOOKUP(A33,Quantities[],Quantities!$S$2)), IF(AND(B33="D", (VLOOKUP(A33,Quantities[],Quantities!$O$2)+VLOOKUP(A33,Quantities[],Quantities!$Q$2)+VLOOKUP(A33,Quantities[],Quantities!$S$2))>0), (VLOOKUP(A33,Quantities[],Quantities!$P$2)*VLOOKUP(A33,Quantities[],Quantities!$O$2) +VLOOKUP(A33,Quantities[],Quantities!$R$2)*VLOOKUP(A33,Quantities[],Quantities!$Q$2) +VLOOKUP(A33,Quantities[],Quantities!$T$2)*VLOOKUP(A33,Quantities[],Quantities!$S$2))/ (VLOOKUP(A33,Quantities[],Quantities!$O$2)+VLOOKUP(A33,Quantities[],Quantities!$Q$2)+VLOOKUP(A33,Quantities[],Quantities!$S$2)), IF($B33="Q", (SUM(VLOOKUP($A33,Quantities[],Quantities!$P$2)*VLOOKUP($A33,Quantities[],Quantities!$O$2),VLOOKUP($A33,Quantities[],Quantities!$R$2)*VLOOKUP($A33,Quantities[],Quantities!$Q$2),VLOOKUP($A33,Quantities[],Quantities!$T$2)*VLOOKUP($A33,Quantities[],Quantities!$S$2)))/SUM(VLOOKUP($A33,Quantities[],Quantities!$O$2),VLOOKUP($A33,Quantities[],Quantities!$Q$2),VLOOKUP($A33,Quantities[],Quantities!$S$2)), VLOOKUP(A33,Quantities[],Quantities!$H$2) )))))) -> 0 | K33: =IF(LEFT(D33,1)="U","-",VLOOKUP(D33,Equipment[],Equipment!$B$2)) -> Cat D11T CD
A34: =Quantities!$A$45 -> 2200 | B34: B | C34: b | D34: Dz2 | E34: 2200-B-b-Dz2 | F34: =IF(D34="Comb1",CONCATENATE(VLOOKUP(B34,'Activity-Material_Codes'!$A$2:$B$28,Quantities!$B$2),"-",VLOOKUP(A34,Quantities[],Quantities!$D$2)), CONCATENATE( VLOOKUP(B34,'Activity-Material_Codes'!$A$2:$B$30,Quantities!$B$2), IF(AND(B34="B",C34="a"), " Scraper Grading", ""), IF(C34="b","","-"), IF(C34="b","",VLOOKUP(A34,Quantities[],Quantities!$D$2)), IF(LEFT(TEXT(A34,"0"),1)="5","","-"), IF(LEFT(TEXT(A34,"0"),1)="5","",VLOOKUP(C34,'Activity-Material_Codes'!$A$34:$B$40,Quantities!$B$2)) )) -> Dozer Assist-Cover | G34: =IF(C34="f",VLOOKUP(A34,Quantities[],Quantities!$B$2), CONCATENATE( IF(OR(RIGHT(TEXT($A34,"0"),Quantities!$B$2)="00",LEFT(TEXT($A34,"0"),1)="5",OR($C34="b",$C34="f")),"",VLOOKUP($A34,Quantities[],Quantities!$B$2)), IF(LEFT(TEXT($A34,"0"),1)="5",""," "), IF(OR(C34="a",C34="c",C34="d",C34="e"),IF(OR(RIGHT(TEXT($A34,"0"),Quantities!$B$2)="00",LEFT(TEXT($A34,"0"),1)="5"),VLOOKUP($A34,Quantities[],Quantities!$B$2),""), IF(LEFT(TEXT($A34,"0"),1)="5",VLOOKUP($A34,Quantities[],Quantities!$B$2), VLOOKUP(INDEX(Quantities!$A$46:$A$48,MATCH($A34,Quantities!$C$46:$C$48)),Quantities!$A$46:$B$48,Quantities!$B$2))))) -> North Stockpile | H34: =IF(C34="f","Deadman Diversion", IF(LEFT(TEXT(A34,"0"),1)="5", VLOOKUP(VLOOKUP(A34,Quantities!$A$4:$D$48,Quantities!$C$2),Quantities!$A$4:$D$48,Quantities!$C$2), IF(OR(C34="a",C34="c",C34="d",C34="e"), "-", IF(RIGHT(TEXT(A34,"0"),2)="00",VLOOKUP(A34,Quantities[],Quantities!$B$2), IF(C34="f",VLOOKUP(A34,Quantities[],Quantities!$B$2), VLOOKUP(A34,Quantities[],Quantities!$C$2)) )))) -> Allowance for Other Disturbed Areas | I34: =IF(OR(AND(LEFT(D34,2)="Sc",B34="A",OR(C34="d",C34="f")),AND(C34="f",B34="D")), SUM(VLOOKUP($A34,Quantities[],Quantities!$O$2),VLOOKUP($A34,Quantities[],Quantities!$Q$2),VLOOKUP($A34,Quantities[],Quantities!$S$2),VLOOKUP($A34,Quantities[],Quantities!$I$2)), IF(AND(LEFT(D34,2)="Sc",OR(C34="a",C34="f")), VLOOKUP(A34,Quantities[],Quantities!$I$2), IF(AND(B34="D",C34="b"), VLOOKUP(INDEX(Quantities!$A$46:$A$48,MATCH($A34,Quantities!$C$46:$C$48)),Quantities!$A$46:$AN$48,Quantities!$O$2)+ VLOOKUP(INDEX(Quantities!$A$46:$A$48,MATCH($A34,Quantities!$C$46:$C$48)),Quantities!$A$46:$AN$48,Quantities!$Q$2)+ VLOOKUP(INDEX(Quantities!$A$46:$A$48,MATCH($A34,Quantities!$C$46:$C$48)),Quantities!$A$46:$AN$48,Quantities!$S$2), IF(OR(B34="D",B34="Q"), SUM(VLOOKUP($A34,Quantities[],Quantities!$O$2),VLOOKUP($A34,Quantities[],Quantities!$Q$2),VLOOKUP($A34,Quantities[],Quantities!$S$2)), VLOOKUP(A34,Quantities[],Quantities!$G$2) )))) -> 0 | J34: =IF(LEFT(D34,2)="Mg", VLOOKUP(A34,Quantities[],Quantities!$H$2), IF(OR(AND(LEFT(D34,2)="Sc",B34="A",OR(C34="d",C34="f"))), (SUM(VLOOKUP($A34,Quantities[],Quantities!$P$2)*VLOOKUP($A34,Quantities[],Quantities!$O$2),VLOOKUP($A34,Quantities[],Quantities!$R$2)*VLOOKUP($A34,Quantities[],Quantities!$Q$2),VLOOKUP($A34,Quantities[],Quantities!$T$2)*VLOOKUP($A34,Quantities[],Quantities!$S$2)))/SUM(VLOOKUP($A34,Quantities[],Quantities!$O$2),VLOOKUP($A34,Quantities[],Quantities!$Q$2),VLOOKUP($A34,Quantities[],Quantities!$S$2)), IF(AND(LEFT(D34,2)="Sc",OR(C34="a",C34="f")), VLOOKUP(A34,Quantities[],Quantities!$J$2), IF(AND(B34="D",C34="b", (VLOOKUP(INDEX(Quantities!$A$46:$A$48,MATCH($A34,Quantities!$C$46:$C$48)),Quantities[],Quantities!$O$2)+VLOOKUP(INDEX(Quantities!$A$46:$A$48,MATCH($A34,Quantities!$C$46:$C$48)),Quantities[],Quantities!$Q$2)+VLOOKUP(INDEX(Quantities!$A$46:$A$48,MATCH($A34,Quantities!$C$46:$C$48)),Quantities[],Quantities!$S$2))>0), (VLOOKUP(INDEX(Quantities!$A$46:$A$48,MATCH($A34,Quantities!$C$46:$C$48)),Quantities[],Quantities!$P$2)*VLOOKUP(INDEX(Quantities!$A$46:$A$48,MATCH($A34,Quantities!$C$46:$C$48)),Quantities[],Quantities!$O$2) +VLOOKUP(INDEX(Quantities!$A$46:$A$48,MATCH($A34,Quantities!$C$46:$C$48)),Quantities[],Quantities!$R$2)*VLOOKUP(INDEX(Quantities!$A$46:$A$48,MATCH($A34,Quantities!$C$46:$C$48)),Quantities[],Quantities!$Q$2) +VLOOKUP(INDEX(Quantities!$A$46:$A$48,MATCH($A34,Quantities!$C$46:$C$48)),Quantities[],Quantities!$T$2)*VLOOKUP(INDEX(Quantities!$A$46:$A$48,MATCH($A34,Quantities!$C$46:$C$48)),Quantities[],Quantities!$S$2))/ (VLOOKUP(INDEX(Quantities!$A$46:$A$48,MATCH($A34,Quantities!$C$46:$C$48)),Quantities[],Quantities!$O$2)+VLOOKUP(INDEX(Quantities!$A$46:$A$48,MATCH($A34,Quantities!$C$46:$C$48)),Quantities[],Quantities!$Q$2)+VLOOKUP(A34,Quantities[],Quantities!$S$2)), IF(AND(B34="D", (VLOOKUP(A34,Quantities[],Quantities!$O$2)+VLOOKUP(A34,Quantities[],Quantities!$Q$2)+VLOOKUP(A34,Quantities[],Quantities!$S$2))>0), (VLOOKUP(A34,Quantities[],Quantities!$P$2)*VLOOKUP(A34,Quantities[],Quantities!$O$2) +VLOOKUP(A34,Quantities[],Quantities!$R$2)*VLOOKUP(A34,Quantities[],Quantities!$Q$2) +VLOOKUP(A34,Quantities[],Quantities!$T$2)*VLOOKUP(A34,Quantities[],Quantities!$S$2))/ (VLOOKUP(A34,Quantities[],Quantities!$O$2)+VLOOKUP(A34,Quantities[],Quantities!$Q$2)+VLOOKUP(A34,Quantities[],Quantities!$S$2)), IF($B34="Q", (SUM(VLOOKUP($A34,Quantities[],Quantities!$P$2)*VLOOKUP($A34,Quantities[],Quantities!$O$2),VLOOKUP($A34,Quantities[],Quantities!$R$2)*VLOOKUP($A34,Quantities[],Quantities!$Q$2),VLOOKUP($A34,Quantities[],Quantities!$T$2)*VLOOKUP($A34,Quantities[],Quantities!$S$2)))/SUM(VLOOKUP($A34,Quantities[],Quantities!$O$2),VLOOKUP($A34,Quantities[],Quantities!$Q$2),VLOOKUP($A34,Quantities[],Quantities!$S$2)), VLOOKUP(A34,Quantities[],Quantities!$H$2) )))))) -> 0.01 | K34: =IF(LEFT(D34,1)="U","-",VLOOKUP(D34,Equipment[],Equipment!$B$2)) -> Cat D11T CD
A35: =Quantities!$A$24 -> 1701 | B35: E | C35: f | D35: Rp1 | E35: 1701-E-f-Rp1 | F35: =IF(D35="Comb1",CONCATENATE(VLOOKUP(B35,'Activity-Material_Codes'!$A$2:$B$28,Quantities!$B$2),"-",VLOOKUP(A35,Quantities[],Quantities!$D$2)), CONCATENATE( VLOOKUP(B35,'Activity-Material_Codes'!$A$2:$B$30,Quantities!$B$2), IF(AND(B35="B",C35="a"), " Scraper Grading", ""), IF(C35="b","","-"), IF(C35="b","",VLOOKUP(A35,Quantities[],Quantities!$D$2)), IF(LEFT(TEXT(A35,"0"),1)="5","","-"), IF(LEFT(TEXT(A35,"0"),1)="5","",VLOOKUP(C35,'Activity-Material_Codes'!$A$34:$B$40,Quantities!$B$2)) )) -> Rip-Cut/Fill-Fill/Stockpile Material | G35: =IF(C35="f",VLOOKUP(A35,Quantities[],Quantities!$B$2), CONCATENATE( IF(OR(RIGHT(TEXT($A35,"0"),Quantities!$B$2)="00",LEFT(TEXT($A35,"0"),1)="5",OR($C35="b",$C35="f")),"",VLOOKUP($A35,Quantities[],Quantities!$B$2)), IF(LEFT(TEXT($A35,"0"),1)="5",""," "), IF(OR(C35="a",C35="c",C35="d",C35="e"),IF(OR(RIGHT(TEXT($A35,"0"),Quantities!$B$2)="00",LEFT(TEXT($A35,"0"),1)="5"),VLOOKUP($A35,Quantities[],Quantities!$B$2),""), IF(LEFT(TEXT($A35,"0"),1)="5",VLOOKUP($A35,Quantities[],Quantities!$B$2), VLOOKUP(INDEX(Quantities!$A$46:$A$48,MATCH($A35,Quantities!$C$46:$C$48)),Quantities!$A$46:$B$48,Quantities!$B$2))))) -> East In-Pit Fill Material | H35: =IF(C35="f","Deadman Diversion", IF(LEFT(TEXT(A35,"0"),1)="5", VLOOKUP(VLOOKUP(A35,Quantities!$A$4:$D$48,Quantities!$C$2),Quantities!$A$4:$D$48,Quantities!$C$2), IF(OR(C35="a",C35="c",C35="d",C35="e"), "-", IF(RIGHT(TEXT(A35,"0"),2)="00",VLOOKUP(A35,Quantities[],Quantities!$B$2), IF(C35="f",VLOOKUP(A35,Quantities[],Quantities!$B$2), VLOOKUP(A35,Quantities[],Quantities!$C$2)) )))) -> Deadman Diversion | I35: =IF(OR(AND(LEFT(D35,2)="Sc",B35="A",OR(C35="d",C35="f")),AND(C35="f",B35="D")), SUM(VLOOKUP($A35,Quantities[],Quantities!$O$2),VLOOKUP($A35,Quantities[],Quantities!$Q$2),VLOOKUP($A35,Quantities[],Quantities!$S$2),VLOOKUP($A35,Quantities[],Quantities!$I$2)), IF(AND(LEFT(D35,2)="Sc",OR(C35="a",C35="f")), VLOOKUP(A35,Quantities[],Quantities!$I$2), IF(AND(B35="D",C35="b"), VLOOKUP(INDEX(Quantities!$A$46:$A$48,MATCH($A35,Quantities!$C$46:$C$48)),Quantities!$A$46:$AN$48,Quantities!$O$2)+ VLOOKUP(INDEX(Quantities!$A$46:$A$48,MATCH($A35,Quantities!$C$46:$C$48)),Quantities!$A$46:$AN$48,Quantities!$Q$2)+ VLOOKUP(INDEX(Quantities!$A$46:$A$48,MATCH($A35,Quantities!$C$46:$C$48)),Quantities!$A$46:$AN$48,Quantities!$S$2), IF(OR(B35="D",B35="Q"), SUM(VLOOKUP($A35,Quantities[],Quantities!$O$2),VLOOKUP($A35,Quantities[],Quantities!$Q$2),VLOOKUP($A35,Quantities[],Quantities!$S$2)), VLOOKUP(A35,Quantities[],Quantities!$G$2) )))) -> 0 | J35: =IF(LEFT(D35,2)="Mg", VLOOKUP(A35,Quantities[],Quantities!$H$2), IF(OR(AND(LEFT(D35,2)="Sc",B35="A",OR(C35="d",C35="f"))), (SUM(VLOOKUP($A35,Quantities[],Quantities!$P$2)*VLOOKUP($A35,Quantities[],Quantities!$O$2),VLOOKUP($A35,Quantities[],Quantities!$R$2)*VLOOKUP($A35,Quantities[],Quantities!$Q$2),VLOOKUP($A35,Quantities[],Quantities!$T$2)*VLOOKUP($A35,Quantities[],Quantities!$S$2)))/SUM(VLOOKUP($A35,Quantities[],Quantities!$O$2),VLOOKUP($A35,Quantities[],Quantities!$Q$2),VLOOKUP($A35,Quantities[],Quantities!$S$2)), IF(AND(LEFT(D35,2)="Sc",OR(C35="a",C35="f")), VLOOKUP(A35,Quantities[],Quantities!$J$2), IF(AND(B35="D",C35="b", (VLOOKUP(INDEX(Quantities!$A$46:$A$48,MATCH($A35,Quantities!$C$46:$C$48)),Quantities[],Quantities!$O$2)+VLOOKUP(INDEX(Quantities!$A$46:$A$48,MATCH($A35,Quantities!$C$46:$C$48)),Quantities[],Quantities!$Q$2)+VLOOKUP(INDEX(Quantities!$A$46:$A$48,MATCH($A35,Quantities!$C$46:$C$48)),Quantities[],Quantities!$S$2))>0), (VLOOKUP(INDEX(Quantities!$A$46:$A$48,MATCH($A35,Quantities!$C$46:$C$48)),Quantities[],Quantities!$P$2)*VLOOKUP(INDEX(Quantities!$A$46:$A$48,MATCH($A35,Quantities!$C$46:$C$48)),Quantities[],Quantities!$O$2) +VLOOKUP(INDEX(Quantities!$A$46:$A$48,MATCH($A35,Quantities!$C$46:$C$48)),Quantities[],Quantities!$R$2)*VLOOKUP(INDEX(Quantities!$A$46:$A$48,MATCH($A35,Quantities!$C$46:$C$48)),Quantities[],Quantities!$Q$2) +VLOOKUP(INDEX(Quantities!$A$46:$A$48,MATCH($A35,Quantities!$C$46:$C$48)),Quantities[],Quantities!$T$2)*VLOOKUP(INDEX(Quantities!$A$46:$A$48,MATCH($A35,Quantities!$C$46:$C$48)),Quantities[],Quantities!$S$2))/ (VLOOKUP(INDEX(Quantities!$A$46:$A$48,MATCH($A35,Quantities!$C$46:$C$48)),Quantities[],Quantities!$O$2)+VLOOKUP(INDEX(Quantities!$A$46:$A$48,MATCH($A35,Quantities!$C$46:$C$48)),Quantities[],Quantities!$Q$2)+VLOOKUP(A35,Quantities[],Quantities!$S$2)), IF(AND(B35="D", (VLOOKUP(A35,Quantities[],Quantities!$O$2)+VLOOKUP(A35,Quantities[],Quantities!$Q$2)+VLOOKUP(A35,Quantities[],Quantities!$S$2))>0), (VLOOKUP(A35,Quantities[],Quantities!$P$2)*VLOOKUP(A35,Quantities[],Quantities!$O$2) +VLOOKUP(A35,Quantities[],Quantities!$R$2)*VLOOKUP(A35,Quantities[],Quantities!$Q$2) +VLOOKUP(A35,Quantities[],Quantities!$T$2)*VLOOKUP(A35,Quantities[],Quantities!$S$2))/ (VLOOKUP(A35,Quantities[],Quantities!$O$2)+VLOOKUP(A35,Quantities[],Quantities!$Q$2)+VLOOKUP(A35,Quantities[],Quantities!$S$2)), IF($B35="Q", (SUM(VLOOKUP($A35,Quantities[],Quantities!$P$2)*VLOOKUP($A35,Quantities[],Quantities!$O$2),VLOOKUP($A35,Quantities[],Quantities!$R$2)*VLOOKUP($A35,Quantities[],Quantities!$Q$2),VLOOKUP($A35,Quantities[],Quantities!$T$2)*VLOOKUP($A35,Quantities[],Quantities!$S$2)))/SUM(VLOOKUP($A35,Quantities[],Quantities!$O$2),VLOOKUP($A35,Quantities[],Quantities!$Q$2),VLOOKUP($A35,Quantities[],Quantities!$S$2)), VLOOKUP(A35,Quantities[],Quantities!$H$2) )))))) -> 0 | K35: =IF(LEFT(D35,1)="U","-",VLOOKUP(D35,Equipment[],Equipment!$B$2)) -> Cat D11T CD Multi-shank (w/ MSR-359H)
A36: =Quantities!$A$25 -> 1702 | B36: E | C36: f | D36: Rp1 | E36: 1702-E-f-Rp1 | F36: =IF(D36="Comb1",CONCATENATE(VLOOKUP(B36,'Activity-Material_Codes'!$A$2:$B$28,Quantities!$B$2),"-",VLOOKUP(A36,Quantities[],Quantities!$D$2)), CONCATENATE( VLOOKUP(B36,'Activity-Material_Codes'!$A$2:$B$30,Quantities!$B$2), IF(AND(B36="B",C36="a"), " Scraper Grading", ""), IF(C36="b","","-"), IF(C36="b","",VLOOKUP(A36,Quantities[],Quantities!$D$2)), IF(LEFT(TEXT(A36,"0"),1)="5","","-"), IF(LEFT(TEXT(A36,"0"),1)="5","",VLOOKUP(C36,'Activity-Material_Codes'!$A$34:$B$40,Quantities!$B$2)) )) -> Rip-Cut/Fill-Fill/Stockpile Material | G36: =IF(C36="f",VLOOKUP(A36,Quantities[],Quantities!$B$2), CONCATENATE( IF(OR(RIGHT(TEXT($A36,"0"),Quantities!$B$2)="00",LEFT(TEXT($A36,"0"),1)="5",OR($C36="b",$C36="f")),"",VLOOKUP($A36,Quantities[],Quantities!$B$2)), IF(LEFT(TEXT($A36,"0"),1)="5",""," "), IF(OR(C36="a",C36="c",C36="d",C36="e"),IF(OR(RIGHT(TEXT($A36,"0"),Quantities!$B$2)="00",LEFT(TEXT($A36,"0"),1)="5"),VLOOKUP($A36,Quantities[],Quantities!$B$2),""), IF(LEFT(TEXT($A36,"0"),1)="5",VLOOKUP($A36,Quantities[],Quantities!$B$2), VLOOKUP(INDEX(Quantities!$A$46:$A$48,MATCH($A36,Quantities!$C$46:$C$48)),Quantities!$A$46:$B$48,Quantities!$B$2))))) -> Northern Haul Road Fill Material | H36: =IF(C36="f","Deadman Diversion", IF(LEFT(TEXT(A36,"0"),1)="5", VLOOKUP(VLOOKUP(A36,Quantities!$A$4:$D$48,Quantities!$C$2),Quantities!$A$4:$D$48,Quantities!$C$2), IF(OR(C36="a",C36="c",C36="d",C36="e"), "-", IF(RIGHT(TEXT(A36,"0"),2)="00",VLOOKUP(A36,Quantities[],Quantities!$B$2), IF(C36="f",VLOOKUP(A36,Quantities[],Quantities!$B$2), VLOOKUP(A36,Quantities[],Quantities!$C$2)) )))) -> Deadman Diversion | I36: =IF(OR(AND(LEFT(D36,2)="Sc",B36="A",OR(C36="d",C36="f")),AND(C36="f",B36="D")), SUM(VLOOKUP($A36,Quantities[],Quantities!$O$2),VLOOKUP($A36,Quantities[],Quantities!$Q$2),VLOOKUP($A36,Quantities[],Quantities!$S$2),VLOOKUP($A36,Quantities[],Quantities!$I$2)), IF(AND(LEFT(D36,2)="Sc",OR(C36="a",C36="f")), VLOOKUP(A36,Quantities[],Quantities!$I$2), IF(AND(B36="D",C36="b"), VLOOKUP(INDEX(Quantities!$A$46:$A$48,MATCH($A36,Quantities!$C$46:$C$48)),Quantities!$A$46:$AN$48,Quantities!$O$2)+ VLOOKUP(INDEX(Quantities!$A$46:$A$48,MATCH($A36,Quantities!$C$46:$C$48)),Quantities!$A$46:$AN$48,Quantities!$Q$2)+ VLOOKUP(INDEX(Quantities!$A$46:$A$48,MATCH($A36,Quantities!$C$46:$C$48)),Quantities!$A$46:$AN$48,Quantities!$S$2), IF(OR(B36="D",B36="Q"), SUM(VLOOKUP($A36,Quantities[],Quantities!$O$2),VLOOKUP($A36,Quantities[],Quantities!$Q$2),VLOOKUP($A36,Quantities[],Quantities!$S$2)), VLOOKUP(A36,Quantities[],Quantities!$G$2) )))) -> 0 | J36: =IF(LEFT(D36,2)="Mg", VLOOKUP(A36,Quantities[],Quantities!$H$2), IF(OR(AND(LEFT(D36,2)="Sc",B36="A",OR(C36="d",C36="f"))), (SUM(VLOOKUP($A36,Quantities[],Quantities!$P$2)*VLOOKUP($A36,Quantities[],Quantities!$O$2),VLOOKUP($A36,Quantities[],Quantities!$R$2)*VLOOKUP($A36,Quantities[],Quantities!$Q$2),VLOOKUP($A36,Quantities[],Quantities!$T$2)*VLOOKUP($A36,Quantities[],Quantities!$S$2)))/SUM(VLOOKUP($A36,Quantities[],Quantities!$O$2),VLOOKUP($A36,Quantities[],Quantities!$Q$2),VLOOKUP($A36,Quantities[],Quantities!$S$2)), IF(AND(LEFT(D36,2)="Sc",OR(C36="a",C36="f")), VLOOKUP(A36,Quantities[],Quantities!$J$2), IF(AND(B36="D",C36="b", (VLOOKUP(INDEX(Quantities!$A$46:$A$48,MATCH($A36,Quantities!$C$46:$C$48)),Quantities[],Quantities!$O$2)+VLOOKUP(INDEX(Quantities!$A$46:$A$48,MATCH($A36,Quantities!$C$46:$C$48)),Quantities[],Quantities!$Q$2)+VLOOKUP(INDEX(Quantities!$A$46:$A$48,MATCH($A36,Quantities!$C$46:$C$48)),Quantities[],Quantities!$S$2))>0), (VLOOKUP(INDEX(Quantities!$A$46:$A$48,MATCH($A36,Quantities!$C$46:$C$48)),Quantities[],Quantities!$P$2)*VLOOKUP(INDEX(Quantities!$A$46:$A$48,MATCH($A36,Quantities!$C$46:$C$48)),Quantities[],Quantities!$O$2) +VLOOKUP(INDEX(Quantities!$A$46:$A$48,MATCH($A36,Quantities!$C$46:$C$48)),Quantities[],Quantities!$R$2)*VLOOKUP(INDEX(Quantities!$A$46:$A$48,MATCH($A36,Quantities!$C$46:$C$48)),Quantities[],Quantities!$Q$2) +VLOOKUP(INDEX(Quantities!$A$46:$A$48,MATCH($A36,Quantities!$C$46:$C$48)),Quantities[],Quantities!$T$2)*VLOOKUP(INDEX(Quantities!$A$46:$A$48,MATCH($A36,Quantities!$C$46:$C$48)),Quantities[],Quantities!$S$2))/ (VLOOKUP(INDEX(Quantities!$A$46:$A$48,MATCH($A36,Quantities!$C$46:$C$48)),Quantities[],Quantities!$O$2)+VLOOKUP(INDEX(Quantities!$A$46:$A$48,MATCH($A36,Quantities!$C$46:$C$48)),Quantities[],Quantities!$Q$2)+VLOOKUP(A36,Quantities[],Quantities!$S$2)), IF(AND(B36="D", (VLOOKUP(A36,Quantities[],Quantities!$O$2)+VLOOKUP(A36,Quantities[],Quantities!$Q$2)+VLOOKUP(A36,Quantities[],Quantities!$S$2))>0), (VLOOKUP(A36,Quantities[],Quantities!$P$2)*VLOOKUP(A36,Quantities[],Quantities!$O$2) +VLOOKUP(A36,Quantities[],Quantities!$R$2)*VLOOKUP(A36,Quantities[],Quantities!$Q$2) +VLOOKUP(A36,Quantities[],Quantities!$T$2)*VLOOKUP(A36,Quantities[],Quantities!$S$2))/ (VLOOKUP(A36,Quantities[],Quantities!$O$2)+VLOOKUP(A36,Quantities[],Quantities!$Q$2)+VLOOKUP(A36,Quantities[],Quantities!$S$2)), IF($B36="Q", (SUM(VLOOKUP($A36,Quantities[],Quantities!$P$2)*VLOOKUP($A36,Quantities[],Quantities!$O$2),VLOOKUP($A36,Quantities[],Quantities!$R$2)*VLOOKUP($A36,Quantities[],Quantities!$Q$2),VLOOKUP($A36,Quantities[],Quantities!$T$2)*VLOOKUP($A36,Quantities[],Quantities!$S$2)))/SUM(VLOOKUP($A36,Quantities[],Quantities!$O$2),VLOOKUP($A36,Quantities[],Quantities!$Q$2),VLOOKUP($A36,Quantities[],Quantities!$S$2)), VLOOKUP(A36,Quantities[],Quantities!$H$2) )))))) -> -0.29 | K36: =IF(LEFT(D36,1)="U","-",VLOOKUP(D36,Equipment[],Equipment!$B$2)) -> Cat D11T CD Multi-shank (w/ MSR-359H)
A37: =Quantities!$A$26 -> 1703 | B37: E | C37: f | D37: Rp1 | E37: 1703-E-f-Rp1 | F37: =IF(D37="Comb1",CONCATENATE(VLOOKUP(B37,'Activity-Material_Codes'!$A$2:$B$28,Quantities!$B$2),"-",VLOOKUP(A37,Quantities[],Quantities!$D$2)), CONCATENATE( VLOOKUP(B37,'Activity-Material_Codes'!$A$2:$B$30,Quantities!$B$2), IF(AND(B37="B",C37="a"), " Scraper Grading", ""), IF(C37="b","","-"), IF(C37="b","",VLOOKUP(A37,Quantities[],Quantities!$D$2)), IF(LEFT(TEXT(A37,"0"),1)="5","","-"), IF(LEFT(TEXT(A37,"0"),1)="5","",VLOOKUP(C37,'Activity-Material_Codes'!$A$34:$B$40,Quantities!$B$2)) )) -> Rip-Cut/Fill-Fill/Stockpile Material | G37: =IF(C37="f",VLOOKUP(A37,Quantities[],Quantities!$B$2), CONCATENATE( IF(OR(RIGHT(TEXT($A37,"0"),Quantities!$B$2)="00",LEFT(TEXT($A37,"0"),1)="5",OR($C37="b",$C37="f")),"",VLOOKUP($A37,Quantities[],Quantities!$B$2)), IF(LEFT(TEXT($A37,"0"),1)="5",""," "), IF(OR(C37="a",C37="c",C37="d",C37="e"),IF(OR(RIGHT(TEXT($A37,"0"),Quantities!$B$2)="00",LEFT(TEXT($A37,"0"),1)="5"),VLOOKUP($A37,Quantities[],Quantities!$B$2),""), IF(LEFT(TEXT($A37,"0"),1)="5",VLOOKUP($A37,Quantities[],Quantities!$B$2), VLOOKUP(INDEX(Quantities!$A$46:$A$48,MATCH($A37,Quantities!$C$46:$C$48)),Quantities!$A$46:$B$48,Quantities!$B$2))))) -> Deadman Diversion and Spanning Arch Culvert Area Cut & Relocate | H37: =IF(C37="f","Deadman Diversion", IF(LEFT(TEXT(A37,"0"),1)="5", VLOOKUP(VLOOKUP(A37,Quantities!$A$4:$D$48,Quantities!$C$2),Quantities!$A$4:$D$48,Quantities!$C$2), IF(OR(C37="a",C37="c",C37="d",C37="e"), "-", IF(RIGHT(TEXT(A37,"0"),2)="00",VLOOKUP(A37,Quantities[],Quantities!$B$2), IF(C37="f",VLOOKUP(A37,Quantities[],Quantities!$B$2), VLOOKUP(A37,Quantities[],Quantities!$C$2)) )))) -> Deadman Diversion | I37: =IF(OR(AND(LEFT(D37,2)="Sc",B37="A",OR(C37="d",C37="f")),AND(C37="f",B37="D")), SUM(VLOOKUP($A37,Quantities[],Quantities!$O$2),VLOOKUP($A37,Quantities[],Quantities!$Q$2),VLOOKUP($A37,Quantities[],Quantities!$S$2),VLOOKUP($A37,Quantities[],Quantities!$I$2)), IF(AND(LEFT(D37,2)="Sc",OR(C37="a",C37="f")), VLOOKUP(A37,Quantities[],Quantities!$I$2), IF(AND(B37="D",C37="b"), VLOOKUP(INDEX(Quantities!$A$46:$A$48,MATCH($A37,Quantities!$C$46:$C$48)),Quantities!$A$46:$AN$48,Quantities!$O$2)+ VLOOKUP(INDEX(Quantities!$A$46:$A$48,MATCH($A37,Quantities!$C$46:$C$48)),Quantities!$A$46:$AN$48,Quantities!$Q$2)+ VLOOKUP(INDEX(Quantities!$A$46:$A$48,MATCH($A37,Quantities!$C$46:$C$48)),Quantities!$A$46:$AN$48,Quantities!$S$2), IF(OR(B37="D",B37="Q"), SUM(VLOOKUP($A37,Quantities[],Quantities!$O$2),VLOOKUP($A37,Quantities[],Quantities!$Q$2),VLOOKUP($A37,Quantities[],Quantities!$S$2)), VLOOKUP(A37,Quantities[],Quantities!$G$2) )))) -> 0 | J37: =IF(LEFT(D37,2)="Mg", VLOOKUP(A37,Quantities[],Quantities!$H$2), IF(OR(AND(LEFT(D37,2)="Sc",B37="A",OR(C37="d",C37="f"))), (SUM(VLOOKUP($A37,Quantities[],Quantities!$P$2)*VLOOKUP($A37,Quantities[],Quantities!$O$2),VLOOKUP($A37,Quantities[],Quantities!$R$2)*VLOOKUP($A37,Quantities[],Quantities!$Q$2),VLOOKUP($A37,Quantities[],Quantities!$T$2)*VLOOKUP($A37,Quantities[],Quantities!$S$2)))/SUM(VLOOKUP($A37,Quantities[],Quantities!$O$2),VLOOKUP($A37,Quantities[],Quantities!$Q$2),VLOOKUP($A37,Quantities[],Quantities!$S$2)), IF(AND(LEFT(D37,2)="Sc",OR(C37="a",C37="f")), VLOOKUP(A37,Quantities[],Quantities!$J$2), IF(AND(B37="D",C37="b", (VLOOKUP(INDEX(Quantities!$A$46:$A$48,MATCH($A37,Quantities!$C$46:$C$48)),Quantities[],Quantities!$O$2)+VLOOKUP(INDEX(Quantities!$A$46:$A$48,MATCH($A37,Quantities!$C$46:$C$48)),Quantities[],Quantities!$Q$2)+VLOOKUP(INDEX(Quantities!$A$46:$A$48,MATCH($A37,Quantities!$C$46:$C$48)),Quantities[],Quantities!$S$2))>0), (VLOOKUP(INDEX(Quantities!$A$46:$A$48,MATCH($A37,Quantities!$C$46:$C$48)),Quantities[],Quantities!$P$2)*VLOOKUP(INDEX(Quantities!$A$46:$A$48,MATCH($A37,Quantities!$C$46:$C$48)),Quantities[],Quantities!$O$2) +VLOOKUP(INDEX(Quantities!$A$46:$A$48,MATCH($A37,Quantities!$C$46:$C$48)),Quantities[],Quantities!$R$2)*VLOOKUP(INDEX(Quantities!$A$46:$A$48,MATCH($A37,Quantities!$C$46:$C$48)),Quantities[],Quantities!$Q$2) +VLOOKUP(INDEX(Quantities!$A$46:$A$48,MATCH($A37,Quantities!$C$46:$C$48)),Quantities[],Quantities!$T$2)*VLOOKUP(INDEX(Quantities!$A$46:$A$48,MATCH($A37,Quantities!$C$46:$C$48)),Quantities[],Quantities!$S$2))/ (VLOOKUP(INDEX(Quantities!$A$46:$A$48,MATCH($A37,Quantities!$C$46:$C$48)),Quantities[],Quantities!$O$2)+VLOOKUP(INDEX(Quantities!$A$46:$A$48,MATCH($A37,Quantities!$C$46:$C$48)),Quantities[],Quantities!$Q$2)+VLOOKUP(A37,Quantities[],Quantities!$S$2)), IF(AND(B37="D", (VLOOKUP(A37,Quantities[],Quantities!$O$2)+VLOOKUP(A37,Quantities[],Quantities!$Q$2)+VLOOKUP(A37,Quantities[],Quantities!$S$2))>0), (VLOOKUP(A37,Quantities[],Quantities!$P$2)*VLOOKUP(A37,Quantities[],Quantities!$O$2) +VLOOKUP(A37,Quantities[],Quantities!$R$2)*VLOOKUP(A37,Quantities[],Quantities!$Q$2) +VLOOKUP(A37,Quantities[],Quantities!$T$2)*VLOOKUP(A37,Quantities[],Quantities!$S$2))/ (VLOOKUP(A37,Quantities[],Quantities!$O$2)+VLOOKUP(A37,Quantities[],Quantities!$Q$2)+VLOOKUP(A37,Quantities[],Quantities!$S$2)), IF($B37="Q", (SUM(VLOOKUP($A37,Quantities[],Quantities!$P$2)*VLOOKUP($A37,Quantities[],Quantities!$O$2),VLOOKUP($A37,Quantities[],Quantities!$R$2)*VLOOKUP($A37,Quantities[],Quantities!$Q$2),VLOOKUP($A37,Quantities[],Quantities!$T$2)*VLOOKUP($A37,Quantities[],Quantities!$S$2)))/SUM(VLOOKUP($A37,Quantities[],Quantities!$O$2),VLOOKUP($A37,Quantities[],Quantities!$Q$2),VLOOKUP($A37,Quantities[],Quantities!$S$2)), VLOOKUP(A37,Quantities[],Quantities!$H$2) )))))) -> -0.29 | K37: =IF(LEFT(D37,1)="U","-",VLOOKUP(D37,Equipment[],Equipment!$B$2)) -> Cat D11T CD Multi-shank (w/ MSR-359H)
A38: =Quantities!$A$4 -> 1000 | B38: C | C38: b | D38: =B8 -> Sh1 | E38: 1000-C-b-Sh1 | F38: =IF(D38="Comb1",CONCATENATE(VLOOKUP(B38,'Activity-Material_Codes'!$A$2:$B$28,Quantities!$B$2),"-",VLOOKUP(A38,Quantities[],Quantities!$D$2)), CONCATENATE( VLOOKUP(B38,'Activity-Material_Codes'!$A$2:$B$30,Quantities!$B$2), IF(AND(B38="B",C38="a"), " Scraper Grading", ""), IF(C38="b","","-"), IF(C38="b","",VLOOKUP(A38,Quantities[],Quantities!$D$2)), IF(LEFT(TEXT(A38,"0"),1)="5","","-"), IF(LEFT(TEXT(A38,"0"),1)="5","",VLOOKUP(C38,'Activity-Material_Codes'!$A$34:$B$40,Quantities!$B$2)) )) -> Load-Cover | G38: =IF(C38="f",VLOOKUP(A38,Quantities[],Quantities!$B$2), CONCATENATE( IF(OR(RIGHT(TEXT($A38,"0"),Quantities!$B$2)="00",LEFT(TEXT($A38,"0"),1)="5",OR($C38="b",$C38="f")),"",VLOOKUP($A38,Quantities[],Quantities!$B$2)), IF(LEFT(TEXT($A38,"0"),1)="5",""," "), IF(OR(C38="a",C38="c",C38="d",C38="e"),IF(OR(RIGHT(TEXT($A38,"0"),Quantities!$B$2)="00",LEFT(TEXT($A38,"0"),1)="5"),VLOOKUP($A38,Quantities[],Quantities!$B$2),""), IF(LEFT(TEXT($A38,"0"),1)="5",VLOOKUP($A38,Quantities[],Quantities!$B$2), VLOOKUP(INDEX(Quantities!$A$46:$A$48,MATCH($A38,Quantities!$C$46:$C$48)),Quantities!$A$46:$B$48,Quantities!$B$2))))) -> North Stockpile | H38: =IF(C38="f","Deadman Diversion", IF(LEFT(TEXT(A38,"0"),1)="5", VLOOKUP(VLOOKUP(A38,Quantities!$A$4:$D$48,Quantities!$C$2),Quantities!$A$4:$D$48,Quantities!$C$2), IF(OR(C38="a",C38="c",C38="d",C38="e"), "-", IF(RIGHT(TEXT(A38,"0"),2)="00",VLOOKUP(A38,Quantities[],Quantities!$B$2), IF(C38="f",VLOOKUP(A38,Quantities[],Quantities!$B$2), VLOOKUP(A38,Quantities[],Quantities!$C$2)) )))) -> West In-Pit Waste | I38: =IF(OR(AND(LEFT(D38,2)="Sc",B38="A",OR(C38="d",C38="f")),AND(C38="f",B38="D")), SUM(VLOOKUP($A38,Quantities[],Quantities!$O$2),VLOOKUP($A38,Quantities[],Quantities!$Q$2),VLOOKUP($A38,Quantities[],Quantities!$S$2),VLOOKUP($A38,Quantities[],Quantities!$I$2)), IF(AND(LEFT(D38,2)="Sc",OR(C38="a",C38="f")), VLOOKUP(A38,Quantities[],Quantities!$I$2), IF(AND(B38="D",C38="b"), VLOOKUP(INDEX(Quantities!$A$46:$A$48,MATCH($A38,Quantities!$C$46:$C$48)),Quantities!$A$46:$AN$48,Quantities!$O$2)+ VLOOKUP(INDEX(Quantities!$A$46:$A$48,MATCH($A38,Quantities!$C$46:$C$48)),Quantities!$A$46:$AN$48,Quantities!$Q$2)+ VLOOKUP(INDEX(Quantities!$A$46:$A$48,MATCH($A38,Quantities!$C$46:$C$48)),Quantities!$A$46:$AN$48,Quantities!$S$2), IF(OR(B38="D",B38="Q"), SUM(VLOOKUP($A38,Quantities[],Quantities!$O$2),VLOOKUP($A38,Quantities[],Quantities!$Q$2),VLOOKUP($A38,Quantities[],Quantities!$S$2)), VLOOKUP(A38,Quantities[],Quantities!$G$2) )))) -> - | J38: =IF(LEFT(D38,2)="Mg", VLOOKUP(A38,Quantities[],Quantities!$H$2), IF(OR(AND(LEFT(D38,2)="Sc",B38="A",OR(C38="d",C38="f"))), (SUM(VLOOKUP($A38,Quantities[],Quantities!$P$2)*VLOOKUP($A38,Quantities[],Quantities!$O$2),VLOOKUP($A38,Quantities[],Quantities!$R$2)*VLOOKUP($A38,Quantities[],Quantities!$Q$2),VLOOKUP($A38,Quantities[],Quantities!$T$2)*VLOOKUP($A38,Quantities[],Quantities!$S$2)))/SUM(VLOOKUP($A38,Quantities[],Quantities!$O$2),VLOOKUP($A38,Quantities[],Quantities!$Q$2),VLOOKUP($A38,Quantities[],Quantities!$S$2)), IF(AND(LEFT(D38,2)="Sc",OR(C38="a",C38="f")), VLOOKUP(A38,Quantities[],Quantities!$J$2), IF(AND(B38="D",C38="b", (VLOOKUP(INDEX(Quantities!$A$46:$A$48,MATCH($A38,Quantities!$C$46:$C$48)),Quantities[],Quantities!$O$2)+VLOOKUP(INDEX(Quantities!$A$46:$A$48,MATCH($A38,Quantities!$C$46:$C$48)),Quantities[],Quantities!$Q$2)+VLOOKUP(INDEX(Quantities!$A$46:$A$48,MATCH($A38,Quantities!$C$46:$C$48)),Quantities[],Quantities!$S$2))>0), (VLOOKUP(INDEX(Quantities!$A$46:$A$48,MATCH($A38,Quantities!$C$46:$C$48)),Quantities[],Quantities!$P$2)*VLOOKUP(INDEX(Quantities!$A$46:$A$48,MATCH($A38,Quantities!$C$46:$C$48)),Quantities[],Quantities!$O$2) +VLOOKUP(INDEX(Quantities!$A$46:$A$48,MATCH($A38,Quantities!$C$46:$C$48)),Quantities[],Quantities!$R$2)*VLOOKUP(INDEX(Quantities!$A$46:$A$48,MATCH($A38,Quantities!$C$46:$C$48)),Quantities[],Quantities!$Q$2) +VLOOKUP(INDEX(Quantities!$A$46:$A$48,MATCH($A38,Quantities!$C$46:$C$48)),Quantities[],Quantities!$T$2)*VLOOKUP(INDEX(Quantities!$A$46:$A$48,MATCH($A38,Quantities!$C$46:$C$48)),Quantities[],Quantities!$S$2))/ (VLOOKUP(INDEX(Quantities!$A$46:$A$48,MATCH($A38,Quantities!$C$46:$C$48)),Quantities[],Quantities!$O$2)+VLOOKUP(INDEX(Quantities!$A$46:$A$48,MATCH($A38,Quantities!$C$46:$C$48)),Quantities[],Quantities!$Q$2)+VLOOKUP(A38,Quantities[],Quantities!$S$2)), IF(AND(B38="D", (VLOOKUP(A38,Quantities[],Quantities!$O$2)+VLOOKUP(A38,Quantities[],Quantities!$Q$2)+VLOOKUP(A38,Quantities[],Quantities!$S$2))>0), (VLOOKUP(A38,Quantities[],Quantities!$P$2)*VLOOKUP(A38,Quantities[],Quantities!$O$2) +VLOOKUP(A38,Quantities[],Quantities!$R$2)*VLOOKUP(A38,Quantities[],Quantities!$Q$2) +VLOOKUP(A38,Quantities[],Quantities!$T$2)*VLOOKUP(A38,Quantities[],Quantities!$S$2))/ (VLOOKUP(A38,Quantities[],Quantities!$O$2)+VLOOKUP(A38,Quantities[],Quantities!$Q$2)+VLOOKUP(A38,Quantities[],Quantities!$S$2)), IF($B38="Q", (SUM(VLOOKUP($A38,Quantities[],Quantities!$P$2)*VLOOKUP($A38,Quantities[],Quantities!$O$2),VLOOKUP($A38,Quantities[],Quantities!$R$2)*VLOOKUP($A38,Quantities[],Quantities!$Q$2),VLOOKUP($A38,Quantities[],Quantities!$T$2)*VLOOKUP($A38,Quantities[],Quantities!$S$2)))/SUM(VLOOKUP($A38,Quantities[],Quantities!$O$2),VLOOKUP($A38,Quantities[],Quantities!$Q$2),VLOOKUP($A38,Quantities[],Quantities!$S$2)), VLOOKUP(A38,Quantities[],Quantities!$H$2) )))))) -> - | K38: =IF(LEFT(D38,1)="U","-",VLOOKUP(D38,Equipment[],Equipment!$B$2)) -> Hitachi EX3600-5
A39: =Quantities!$A$7 -> 1100 | B39: C | C39: b | D39: =B8 -> Sh1 | E39: 1100-C-b-Sh1 | F39: =IF(D39="Comb1",CONCATENATE(VLOOKUP(B39,'Activity-Material_Codes'!$A$2:$B$28,Quantities!$B$2),"-",VLOOKUP(A39,Quantities[],Quantities!$D$2)), CONCATENATE( VLOOKUP(B39,'Activity-Material_Codes'!$A$2:$B$30,Quantities!$B$2), IF(AND(B39="B",C39="a"), " Scraper Grading", ""), IF(C39="b","","-"), IF(C39="b","",VLOOKUP(A39,Quantities[],Quantities!$D$2)), IF(LEFT(TEXT(A39,"0"),1)="5","","-"), IF(LEFT(TEXT(A39,"0"),1)="5","",VLOOKUP(C39,'Activity-Material_Codes'!$A$34:$B$40,Quantities!$B$2)) )) -> Load-Cover | G39: =IF(C39="f",VLOOKUP(A39,Quantities[],Quantities!$B$2), CONCATENATE( IF(OR(RIGHT(TEXT($A39,"0"),Quantities!$B$2)="00",LEFT(TEXT($A39,"0"),1)="5",OR($C39="b",$C39="f")),"",VLOOKUP($A39,Quantities[],Quantities!$B$2)), IF(LEFT(TEXT($A39,"0"),1)="5",""," "), IF(OR(C39="a",C39="c",C39="d",C39="e"),IF(OR(RIGHT(TEXT($A39,"0"),Quantities!$B$2)="00",LEFT(TEXT($A39,"0"),1)="5"),VLOOKUP($A39,Quantities[],Quantities!$B$2),""), IF(LEFT(TEXT($A39,"0"),1)="5",VLOOKUP($A39,Quantities[],Quantities!$B$2), VLOOKUP(INDEX(Quantities!$A$46:$A$48,MATCH($A39,Quantities!$C$46:$C$48)),Quantities!$A$46:$B$48,Quantities!$B$2))))) -> North Stockpile | H39: =IF(C39="f","Deadman Diversion", IF(LEFT(TEXT(A39,"0"),1)="5", VLOOKUP(VLOOKUP(A39,Quantities!$A$4:$D$48,Quantities!$C$2),Quantities!$A$4:$D$48,Quantities!$C$2), IF(OR(C39="a",C39="c",C39="d",C39="e"), "-", IF(RIGHT(TEXT(A39,"0"),2)="00",VLOOKUP(A39,Quantities[],Quantities!$B$2), IF(C39="f",VLOOKUP(A39,Quantities[],Quantities!$B$2), VLOOKUP(A39,Quantities[],Quantities!$C$2)) )))) -> East In-Pit Waste | I39: =IF(OR(AND(LEFT(D39,2)="Sc",B39="A",OR(C39="d",C39="f")),AND(C39="f",B39="D")), SUM(VLOOKUP($A39,Quantities[],Quantities!$O$2),VLOOKUP($A39,Quantities[],Quantities!$Q$2),VLOOKUP($A39,Quantities[],Quantities!$S$2),VLOOKUP($A39,Quantities[],Quantities!$I$2)), IF(AND(LEFT(D39,2)="Sc",OR(C39="a",C39="f")), VLOOKUP(A39,Quantities[],Quantities!$I$2), IF(AND(B39="D",C39="b"), VLOOKUP(INDEX(Quantities!$A$46:$A$48,MATCH($A39,Quantities!$C$46:$C$48)),Quantities!$A$46:$AN$48,Quantities!$O$2)+ VLOOKUP(INDEX(Quantities!$A$46:$A$48,MATCH($A39,Quantities!$C$46:$C$48)),Quantities!$A$46:$AN$48,Quantities!$Q$2)+ VLOOKUP(INDEX(Quantities!$A$46:$A$48,MATCH($A39,Quantities!$C$46:$C$48)),Quantities!$A$46:$AN$48,Quantities!$S$2), IF(OR(B39="D",B39="Q"), SUM(VLOOKUP($A39,Quantities[],Quantities!$O$2),VLOOKUP($A39,Quantities[],Quantities!$Q$2),VLOOKUP($A39,Quantities[],Quantities!$S$2)), VLOOKUP(A39,Quantities[],Quantities!$G$2) )))) -> - | J39: =IF(LEFT(D39,2)="Mg", VLOOKUP(A39,Quantities[],Quantities!$H$2), IF(OR(AND(LEFT(D39,2)="Sc",B39="A",OR(C39="d",C39="f"))), (SUM(VLOOKUP($A39,Quantities[],Quantities!$P$2)*VLOOKUP($A39,Quantities[],Quantities!$O$2),VLOOKUP($A39,Quantities[],Quantities!$R$2)*VLOOKUP($A39,Quantities[],Quantities!$Q$2),VLOOKUP($A39,Quantities[],Quantities!$T$2)*VLOOKUP($A39,Quantities[],Quantities!$S$2)))/SUM(VLOOKUP($A39,Quantities[],Quantities!$O$2),VLOOKUP($A39,Quantities[],Quantities!$Q$2),VLOOKUP($A39,Quantities[],Quantities!$S$2)), IF(AND(LEFT(D39,2)="Sc",OR(C39="a",C39="f")), VLOOKUP(A39,Quantities[],Quantities!$J$2), IF(AND(B39="D",C39="b", (VLOOKUP(INDEX(Quantities!$A$46:$A$48,MATCH($A39,Quantities!$C$46:$C$48)),Quantities[],Quantities!$O$2)+VLOOKUP(INDEX(Quantities!$A$46:$A$48,MATCH($A39,Quantities!$C$46:$C$48)),Quantities[],Quantities!$Q$2)+VLOOKUP(INDEX(Quantities!$A$46:$A$48,MATCH($A39,Quantities!$C$46:$C$48)),Quantities[],Quantities!$S$2))>0), (VLOOKUP(INDEX(Quantities!$A$46:$A$48,MATCH($A39,Quantities!$C$46:$C$48)),Quantities[],Quantities!$P$2)*VLOOKUP(INDEX(Quantities!$A$46:$A$48,MATCH($A39,Quantities!$C$46:$C$48)),Quantities[],Quantities!$O$2) +VLOOKUP(INDEX(Quantities!$A$46:$A$48,MATCH($A39,Quantities!$C$46:$C$48)),Quantities[],Quantities!$R$2)*VLOOKUP(INDEX(Quantities!$A$46:$A$48,MATCH($A39,Quantities!$C$46:$C$48)),Quantities[],Quantities!$Q$2) +VLOOKUP(INDEX(Quantities!$A$46:$A$48,MATCH($A39,Quantities!$C$46:$C$48)),Quantities[],Quantities!$T$2)*VLOOKUP(INDEX(Quantities!$A$46:$A$48,MATCH($A39,Quantities!$C$46:$C$48)),Quantities[],Quantities!$S$2))/ (VLOOKUP(INDEX(Quantities!$A$46:$A$48,MATCH($A39,Quantities!$C$46:$C$48)),Quantities[],Quantities!$O$2)+VLOOKUP(INDEX(Quantities!$A$46:$A$48,MATCH($A39,Quantities!$C$46:$C$48)),Quantities[],Quantities!$Q$2)+VLOOKUP(A39,Quantities[],Quantities!$S$2)), IF(AND(B39="D", (VLOOKUP(A39,Quantities[],Quantities!$O$2)+VLOOKUP(A39,Quantities[],Quantities!$Q$2)+VLOOKUP(A39,Quantities[],Quantities!$S$2))>0), (VLOOKUP(A39,Quantities[],Quantities!$P$2)*VLOOKUP(A39,Quantities[],Quantities!$O$2) +VLOOKUP(A39,Quantities[],Quantities!$R$2)*VLOOKUP(A39,Quantities[],Quantities!$Q$2) +VLOOKUP(A39,Quantities[],Quantities!$T$2)*VLOOKUP(A39,Quantities[],Quantities!$S$2))/ (VLOOKUP(A39,Quantities[],Quantities!$O$2)+VLOOKUP(A39,Quantities[],Quantities!$Q$2)+VLOOKUP(A39,Quantities[],Quantities!$S$2)), IF($B39="Q", (SUM(VLOOKUP($A39,Quantities[],Quantities!$P$2)*VLOOKUP($A39,Quantities[],Quantities!$O$2),VLOOKUP($A39,Quantities[],Quantities!$R$2)*VLOOKUP($A39,Quantities[],Quantities!$Q$2),VLOOKUP($A39,Quantities[],Quantities!$T$2)*VLOOKUP($A39,Quantities[],Quantities!$S$2)))/SUM(VLOOKUP($A39,Quantities[],Quantities!$O$2),VLOOKUP($A39,Quantities[],Quantities!$Q$2),VLOOKUP($A39,Quantities[],Quantities!$S$2)), VLOOKUP(A39,Quantities[],Quantities!$H$2) )))))) -> - | K39: =IF(LEFT(D39,1)="U","-",VLOOKUP(D39,Equipment[],Equipment!$B$2)) -> Hitachi EX3600-5
A40: =Quantities!$A$12 -> 1300 | B40: C | C40: b | D40: =B8 -> Sh1 | E40: 1300-C-b-Sh1 | F40: =IF(D40="Comb1",CONCATENATE(VLOOKUP(B40,'Activity-Material_Codes'!$A$2:$B$28,Quantities!$B$2),"-",VLOOKUP(A40,Quantities[],Quantities!$D$2)), CONCATENATE( VLOOKUP(B40,'Activity-Material_Codes'!$A$2:$B$30,Quantities!$B$2), IF(AND(B40="B",C40="a"), " Scraper Grading", ""), IF(C40="b","","-"), IF(C40="b","",VLOOKUP(A40,Quantities[],Quantities!$D$2)), IF(LEFT(TEXT(A40,"0"),1)="5","","-"), IF(LEFT(TEXT(A40,"0"),1)="5","",VLOOKUP(C40,'Activity-Material_Codes'!$A$34:$B$40,Quantities!$B$2)) )) -> Load-Cover | G40: =IF(C40="f",VLOOKUP(A40,Quantities[],Quantities!$B$2), CONCATENATE( IF(OR(RIGHT(TEXT($A40,"0"),Quantities!$B$2)="00",LEFT(TEXT($A40,"0"),1)="5",OR($C40="b",$C40="f")),"",VLOOKUP($A40,Quantities[],Quantities!$B$2)), IF(LEFT(TEXT($A40,"0"),1)="5",""," "), IF(OR(C40="a",C40="c",C40="d",C40="e"),IF(OR(RIGHT(TEXT($A40,"0"),Quantities!$B$2)="00",LEFT(TEXT($A40,"0"),1)="5"),VLOOKUP($A40,Quantities[],Quantities!$B$2),""), IF(LEFT(TEXT($A40,"0"),1)="5",VLOOKUP($A40,Quantities[],Quantities!$B$2), VLOOKUP(INDEX(Quantities!$A$46:$A$48,MATCH($A40,Quantities!$C$46:$C$48)),Quantities!$A$46:$B$48,Quantities!$B$2))))) -> North Stockpile | H40: =IF(C40="f","Deadman Diversion", IF(LEFT(TEXT(A40,"0"),1)="5", VLOOKUP(VLOOKUP(A40,Quantities!$A$4:$D$48,Quantities!$C$2),Quantities!$A$4:$D$48,Quantities!$C$2), IF(OR(C40="a",C40="c",C40="d",C40="e"), "-", IF(RIGHT(TEXT(A40,"0"),2)="00",VLOOKUP(A40,Quantities[],Quantities!$B$2), IF(C40="f",VLOOKUP(A40,Quantities[],Quantities!$B$2), VLOOKUP(A40,Quantities[],Quantities!$C$2)) )))) -> NRW Waste | I40: =IF(OR(AND(LEFT(D40,2)="Sc",B40="A",OR(C40="d",C40="f")),AND(C40="f",B40="D")), SUM(VLOOKUP($A40,Quantities[],Quantities!$O$2),VLOOKUP($A40,Quantities[],Quantities!$Q$2),VLOOKUP($A40,Quantities[],Quantities!$S$2),VLOOKUP($A40,Quantities[],Quantities!$I$2)), IF(AND(LEFT(D40,2)="Sc",OR(C40="a",C40="f")), VLOOKUP(A40,Quantities[],Quantities!$I$2), IF(AND(B40="D",C40="b"), VLOOKUP(INDEX(Quantities!$A$46:$A$48,MATCH($A40,Quantities!$C$46:$C$48)),Quantities!$A$46:$AN$48,Quantities!$O$2)+ VLOOKUP(INDEX(Quantities!$A$46:$A$48,MATCH($A40,Quantities!$C$46:$C$48)),Quantities!$A$46:$AN$48,Quantities!$Q$2)+ VLOOKUP(INDEX(Quantities!$A$46:$A$48,MATCH($A40,Quantities!$C$46:$C$48)),Quantities!$A$46:$AN$48,Quantities!$S$2), IF(OR(B40="D",B40="Q"), SUM(VLOOKUP($A40,Quantities[],Quantities!$O$2),VLOOKUP($A40,Quantities[],Quantities!$Q$2),VLOOKUP($A40,Quantities[],Quantities!$S$2)), VLOOKUP(A40,Quantities[],Quantities!$G$2) )))) -> 90 | J40: =IF(LEFT(D40,2)="Mg", VLOOKUP(A40,Quantities[],Quantities!$H$2), IF(OR(AND(LEFT(D40,2)="Sc",B40="A",OR(C40="d",C40="f"))), (SUM(VLOOKUP($A40,Quantities[],Quantities!$P$2)*VLOOKUP($A40,Quantities[],Quantities!$O$2),VLOOKUP($A40,Quantities[],Quantities!$R$2)*VLOOKUP($A40,Quantities[],Quantities!$Q$2),VLOOKUP($A40,Quantities[],Quantities!$T$2)*VLOOKUP($A40,Quantities[],Quantities!$S$2)))/SUM(VLOOKUP($A40,Quantities[],Quantities!$O$2),VLOOKUP($A40,Quantities[],Quantities!$Q$2),VLOOKUP($A40,Quantities[],Quantities!$S$2)), IF(AND(LEFT(D40,2)="Sc",OR(C40="a",C40="f")), VLOOKUP(A40,Quantities[],Quantities!$J$2), IF(AND(B40="D",C40="b", (VLOOKUP(INDEX(Quantities!$A$46:$A$48,MATCH($A40,Quantities!$C$46:$C$48)),Quantities[],Quantities!$O$2)+VLOOKUP(INDEX(Quantities!$A$46:$A$48,MATCH($A40,Quantities!$C$46:$C$48)),Quantities[],Quantities!$Q$2)+VLOOKUP(INDEX(Quantities!$A$46:$A$48,MATCH($A40,Quantities!$C$46:$C$48)),Quantities[],Quantities!$S$2))>0), (VLOOKUP(INDEX(Quantities!$A$46:$A$48,MATCH($A40,Quantities!$C$46:$C$48)),Quantities[],Quantities!$P$2)*VLOOKUP(INDEX(Quantities!$A$46:$A$48,MATCH($A40,Quantities!$C$46:$C$48)),Quantities[],Quantities!$O$2) +VLOOKUP(INDEX(Quantities!$A$46:$A$48,MATCH($A40,Quantities!$C$46:$C$48)),Quantities[],Quantities!$R$2)*VLOOKUP(INDEX(Quantities!$A$46:$A$48,MATCH($A40,Quantities!$C$46:$C$48)),Quantities[],Quantities!$Q$2) +VLOOKUP(INDEX(Quantities!$A$46:$A$48,MATCH($A40,Quantities!$C$46:$C$48)),Quantities[],Quantities!$T$2)*VLOOKUP(INDEX(Quantities!$A$46:$A$48,MATCH($A40,Quantities!$C$46:$C$48)),Quantities[],Quantities!$S$2))/ (VLOOKUP(INDEX(Quantities!$A$46:$A$48,MATCH($A40,Quantities!$C$46:$C$48)),Quantities[],Quantities!$O$2)+VLOOKUP(INDEX(Quantities!$A$46:$A$48,MATCH($A40,Quantities!$C$46:$C$48)),Quantities[],Quantities!$Q$2)+VLOOKUP(A40,Quantities[],Quantities!$S$2)), IF(AND(B40="D", (VLOOKUP(A40,Quantities[],Quantities!$O$2)+VLOOKUP(A40,Quantities[],Quantities!$Q$2)+VLOOKUP(A40,Quantities[],Quantities!$S$2))>0), (VLOOKUP(A40,Quantities[],Quantities!$P$2)*VLOOKUP(A40,Quantities[],Quantities!$O$2) +VLOOKUP(A40,Quantities[],Quantities!$R$2)*VLOOKUP(A40,Quantities[],Quantities!$Q$2) +VLOOKUP(A40,Quantities[],Quantities!$T$2)*VLOOKUP(A40,Quantities[],Quantities!$S$2))/ (VLOOKUP(A40,Quantities[],Quantities!$O$2)+VLOOKUP(A40,Quantities[],Quantities!$Q$2)+VLOOKUP(A40,Quantities[],Quantities!$S$2)), IF($B40="Q", (SUM(VLOOKUP($A40,Quantities[],Quantities!$P$2)*VLOOKUP($A40,Quantities[],Quantities!$O$2),VLOOKUP($A40,Quantities[],Quantities!$R$2)*VLOOKUP($A40,Quantities[],Quantities!$Q$2),VLOOKUP($A40,Quantities[],Quantities!$T$2)*VLOOKUP($A40,Quantities[],Quantities!$S$2)))/SUM(VLOOKUP($A40,Quantities[],Quantities!$O$2),VLOOKUP($A40,Quantities[],Quantities!$Q$2),VLOOKUP($A40,Quantities[],Quantities!$S$2)), VLOOKUP(A40,Quantities[],Quantities!$H$2) )))))) -> - | K40: =IF(LEFT(D40,1)="U","-",VLOOKUP(D40,Equipment[],Equipment!$B$2)) -> Hitachi EX3600-5
A41: =Quantities!$A$23 -> 1700 | B41: C | C41: b | D41: =B8 -> Sh1 | E41: 1700-C-b-Sh1 | F41: =IF(D41="Comb1",CONCATENATE(VLOOKUP(B41,'Activity-Material_Codes'!$A$2:$B$28,Quantities!$B$2),"-",VLOOKUP(A41,Quantities[],Quantities!$D$2)), CONCATENATE( VLOOKUP(B41,'Activity-Material_Codes'!$A$2:$B$30,Quantities!$B$2), IF(AND(B41="B",C41="a"), " Scraper Grading", ""), IF(C41="b","","-"), IF(C41="b","",VLOOKUP(A41,Quantities[],Quantities!$D$2)), IF(LEFT(TEXT(A41,"0"),1)="5","","-"), IF(LEFT(TEXT(A41,"0"),1)="5","",VLOOKUP(C41,'Activity-Material_Codes'!$A$34:$B$40,Quantities!$B$2)) )) -> Load-Cover | G41: =IF(C41="f",VLOOKUP(A41,Quantities[],Quantities!$B$2), CONCATENATE( IF(OR(RIGHT(TEXT($A41,"0"),Quantities!$B$2)="00",LEFT(TEXT($A41,"0"),1)="5",OR($C41="b",$C41="f")),"",VLOOKUP($A41,Quantities[],Quantities!$B$2)), IF(LEFT(TEXT($A41,"0"),1)="5",""," "), IF(OR(C41="a",C41="c",C41="d",C41="e"),IF(OR(RIGHT(TEXT($A41,"0"),Quantities!$B$2)="00",LEFT(TEXT($A41,"0"),1)="5"),VLOOKUP($A41,Quantities[],Quantities!$B$2),""), IF(LEFT(TEXT($A41,"0"),1)="5",VLOOKUP($A41,Quantities[],Quantities!$B$2), VLOOKUP(INDEX(Quantities!$A$46:$A$48,MATCH($A41,Quantities!$C$46:$C$48)),Quantities!$A$46:$B$48,Quantities!$B$2))))) -> North Stockpile | H41: =IF(C41="f","Deadman Diversion", IF(LEFT(TEXT(A41,"0"),1)="5", VLOOKUP(VLOOKUP(A41,Quantities!$A$4:$D$48,Quantities!$C$2),Quantities!$A$4:$D$48,Quantities!$C$2), IF(OR(C41="a",C41="c",C41="d",C41="e"), "-", IF(RIGHT(TEXT(A41,"0"),2)="00",VLOOKUP(A41,Quantities[],Quantities!$B$2), IF(C41="f",VLOOKUP(A41,Quantities[],Quantities!$B$2), VLOOKUP(A41,Quantities[],Quantities!$C$2)) )))) -> Deadman Diversion | I41: =IF(OR(AND(LEFT(D41,2)="Sc",B41="A",OR(C41="d",C41="f")),AND(C41="f",B41="D")), SUM(VLOOKUP($A41,Quantities[],Quantities!$O$2),VLOOKUP($A41,Quantities[],Quantities!$Q$2),VLOOKUP($A41,Quantities[],Quantities!$S$2),VLOOKUP($A41,Quantities[],Quantities!$I$2)), IF(AND(LEFT(D41,2)="Sc",OR(C41="a",C41="f")), VLOOKUP(A41,Quantities[],Quantities!$I$2), IF(AND(B41="D",C41="b"), VLOOKUP(INDEX(Quantities!$A$46:$A$48,MATCH($A41,Quantities!$C$46:$C$48)),Quantities!$A$46:$AN$48,Quantities!$O$2)+ VLOOKUP(INDEX(Quantities!$A$46:$A$48,MATCH($A41,Quantities!$C$46:$C$48)),Quantities!$A$46:$AN$48,Quantities!$Q$2)+ VLOOKUP(INDEX(Quantities!$A$46:$A$48,MATCH($A41,Quantities!$C$46:$C$48)),Quantities!$A$46:$AN$48,Quantities!$S$2), IF(OR(B41="D",B41="Q"), SUM(VLOOKUP($A41,Quantities[],Quantities!$O$2),VLOOKUP($A41,Quantities[],Quantities!$Q$2),VLOOKUP($A41,Quantities[],Quantities!$S$2)), VLOOKUP(A41,Quantities[],Quantities!$G$2) )))) -> 0 | J41: =IF(LEFT(D41,2)="Mg", VLOOKUP(A41,Quantities[],Quantities!$H$2), IF(OR(AND(LEFT(D41,2)="Sc",B41="A",OR(C41="d",C41="f"))), (SUM(VLOOKUP($A41,Quantities[],Quantities!$P$2)*VLOOKUP($A41,Quantities[],Quantities!$O$2),VLOOKUP($A41,Quantities[],Quantities!$R$2)*VLOOKUP($A41,Quantities[],Quantities!$Q$2),VLOOKUP($A41,Quantities[],Quantities!$T$2)*VLOOKUP($A41,Quantities[],Quantities!$S$2)))/SUM(VLOOKUP($A41,Quantities[],Quantities!$O$2),VLOOKUP($A41,Quantities[],Quantities!$Q$2),VLOOKUP($A41,Quantities[],Quantities!$S$2)), IF(AND(LEFT(D41,2)="Sc",OR(C41="a",C41="f")), VLOOKUP(A41,Quantities[],Quantities!$J$2), IF(AND(B41="D",C41="b", (VLOOKUP(INDEX(Quantities!$A$46:$A$48,MATCH($A41,Quantities!$C$46:$C$48)),Quantities[],Quantities!$O$2)+VLOOKUP(INDEX(Quantities!$A$46:$A$48,MATCH($A41,Quantities!$C$46:$C$48)),Quantities[],Quantities!$Q$2)+VLOOKUP(INDEX(Quantities!$A$46:$A$48,MATCH($A41,Quantities!$C$46:$C$48)),Quantities[],Quantities!$S$2))>0), (VLOOKUP(INDEX(Quantities!$A$46:$A$48,MATCH($A41,Quantities!$C$46:$C$48)),Quantities[],Quantities!$P$2)*VLOOKUP(INDEX(Quantities!$A$46:$A$48,MATCH($A41,Quantities!$C$46:$C$48)),Quantities[],Quantities!$O$2) +VLOOKUP(INDEX(Quantities!$A$46:$A$48,MATCH($A41,Quantities!$C$46:$C$48)),Quantities[],Quantities!$R$2)*VLOOKUP(INDEX(Quantities!$A$46:$A$48,MATCH($A41,Quantities!$C$46:$C$48)),Quantities[],Quantities!$Q$2) +VLOOKUP(INDEX(Quantities!$A$46:$A$48,MATCH($A41,Quantities!$C$46:$C$48)),Quantities[],Quantities!$T$2)*VLOOKUP(INDEX(Quantities!$A$46:$A$48,MATCH($A41,Quantities!$C$46:$C$48)),Quantities[],Quantities!$S$2))/ (VLOOKUP(INDEX(Quantities!$A$46:$A$48,MATCH($A41,Quantities!$C$46:$C$48)),Quantities[],Quantities!$O$2)+VLOOKUP(INDEX(Quantities!$A$46:$A$48,MATCH($A41,Quantities!$C$46:$C$48)),Quantities[],Quantities!$Q$2)+VLOOKUP(A41,Quantities[],Quantities!$S$2)), IF(AND(B41="D", (VLOOKUP(A41,Quantities[],Quantities!$O$2)+VLOOKUP(A41,Quantities[],Quantities!$Q$2)+VLOOKUP(A41,Quantities[],Quantities!$S$2))>0), (VLOOKUP(A41,Quantities[],Quantities!$P$2)*VLOOKUP(A41,Quantities[],Quantities!$O$2) +VLOOKUP(A41,Quantities[],Quantities!$R$2)*VLOOKUP(A41,Quantities[],Quantities!$Q$2) +VLOOKUP(A41,Quantities[],Quantities!$T$2)*VLOOKUP(A41,Quantities[],Quantities!$S$2))/ (VLOOKUP(A41,Quantities[],Quantities!$O$2)+VLOOKUP(A41,Quantities[],Quantities!$Q$2)+VLOOKUP(A41,Quantities[],Quantities!$S$2)), IF($B41="Q", (SUM(VLOOKUP($A41,Quantities[],Quantities!$P$2)*VLOOKUP($A41,Quantities[],Quantities!$O$2),VLOOKUP($A41,Quantities[],Quantities!$R$2)*VLOOKUP($A41,Quantities[],Quantities!$Q$2),VLOOKUP($A41,Quantities[],Quantities!$T$2)*VLOOKUP($A41,Quantities[],Quantities!$S$2)))/SUM(VLOOKUP($A41,Quantities[],Quantities!$O$2),VLOOKUP($A41,Quantities[],Quantities!$Q$2),VLOOKUP($A41,Quantities[],Quantities!$S$2)), VLOOKUP(A41,Quantities[],Quantities!$H$2) )))))) -> 0 | K41: =IF(LEFT(D41,1)="U","-",VLOOKUP(D41,Equipment[],Equipment!$B$2)) -> Hitachi EX3600-5
A42: =Quantities!$A$45 -> 2200 | B42: C | C42: b | D42: =B8 -> Sh1 | E42: 2200-C-b-Sh1 | F42: =IF(D42="Comb1",CONCATENATE(VLOOKUP(B42,'Activity-Material_Codes'!$A$2:$B$28,Quantities!$B$2),"-",VLOOKUP(A42,Quantities[],Quantities!$D$2)), CONCATENATE( VLOOKUP(B42,'Activity-Material_Codes'!$A$2:$B$30,Quantities!$B$2), IF(AND(B42="B",C42="a"), " Scraper Grading", ""), IF(C42="b","","-"), IF(C42="b","",VLOOKUP(A42,Quantities[],Quantities!$D$2)), IF(LEFT(TEXT(A42,"0"),1)="5","","-"), IF(LEFT(TEXT(A42,"0"),1)="5","",VLOOKUP(C42,'Activity-Material_Codes'!$A$34:$B$40,Quantities!$B$2)) )) -> Load-Cover | G42: =IF(C42="f",VLOOKUP(A42,Quantities[],Quantities!$B$2), CONCATENATE( IF(OR(RIGHT(TEXT($A42,"0"),Quantities!$B$2)="00",LEFT(TEXT($A42,"0"),1)="5",OR($C42="b",$C42="f")),"",VLOOKUP($A42,Quantities[],Quantities!$B$2)), IF(LEFT(TEXT($A42,"0"),1)="5",""," "), IF(OR(C42="a",C42="c",C42="d",C42="e"),IF(OR(RIGHT(TEXT($A42,"0"),Quantities!$B$2)="00",LEFT(TEXT($A42,"0"),1)="5"),VLOOKUP($A42,Quantities[],Quantities!$B$2),""), IF(LEFT(TEXT($A42,"0"),1)="5",VLOOKUP($A42,Quantities[],Quantities!$B$2), VLOOKUP(INDEX(Quantities!$A$46:$A$48,MATCH($A42,Quantities!$C$46:$C$48)),Quantities!$A$46:$B$48,Quantities!$B$2))))) -> North Stockpile | H42: =IF(C42="f","Deadman Diversion", IF(LEFT(TEXT(A42,"0"),1)="5", VLOOKUP(VLOOKUP(A42,Quantities!$A$4:$D$48,Quantities!$C$2),Quantities!$A$4:$D$48,Quantities!$C$2), IF(OR(C42="a",C42="c",C42="d",C42="e"), "-", IF(RIGHT(TEXT(A42,"0"),2)="00",VLOOKUP(A42,Quantities[],Quantities!$B$2), IF(C42="f",VLOOKUP(A42,Quantities[],Quantities!$B$2), VLOOKUP(A42,Quantities[],Quantities!$C$2)) )))) -> Allowance for Other Disturbed Areas | I42: =IF(OR(AND(LEFT(D42,2)="Sc",B42="A",OR(C42="d",C42="f")),AND(C42="f",B42="D")), SUM(VLOOKUP($A42,Quantities[],Quantities!$O$2),VLOOKUP($A42,Quantities[],Quantities!$Q$2),VLOOKUP($A42,Quantities[],Quantities!$S$2),VLOOKUP($A42,Quantities[],Quantities!$I$2)), IF(AND(LEFT(D42,2)="Sc",OR(C42="a",C42="f")), VLOOKUP(A42,Quantities[],Quantities!$I$2), IF(AND(B42="D",C42="b"), VLOOKUP(INDEX(Quantities!$A$46:$A$48,MATCH($A42,Quantities!$C$46:$C$48)),Quantities!$A$46:$AN$48,Quantities!$O$2)+ VLOOKUP(INDEX(Quantities!$A$46:$A$48,MATCH($A42,Quantities!$C$46:$C$48)),Quantities!$A$46:$AN$48,Quantities!$Q$2)+ VLOOKUP(INDEX(Quantities!$A$46:$A$48,MATCH($A42,Quantities!$C$46:$C$48)),Quantities!$A$46:$AN$48,Quantities!$S$2), IF(OR(B42="D",B42="Q"), SUM(VLOOKUP($A42,Quantities[],Quantities!$O$2),VLOOKUP($A42,Quantities[],Quantities!$Q$2),VLOOKUP($A42,Quantities[],Quantities!$S$2)), VLOOKUP(A42,Quantities[],Quantities!$G$2) )))) -> 0 | J42: =IF(LEFT(D42,2)="Mg", VLOOKUP(A42,Quantities[],Quantities!$H$2), IF(OR(AND(LEFT(D42,2)="Sc",B42="A",OR(C42="d",C42="f"))), (SUM(VLOOKUP($A42,Quantities[],Quantities!$P$2)*VLOOKUP($A42,Quantities[],Quantities!$O$2),VLOOKUP($A42,Quantities[],Quantities!$R$2)*VLOOKUP($A42,Quantities[],Quantities!$Q$2),VLOOKUP($A42,Quantities[],Quantities!$T$2)*VLOOKUP($A42,Quantities[],Quantities!$S$2)))/SUM(VLOOKUP($A42,Quantities[],Quantities!$O$2),VLOOKUP($A42,Quantities[],Quantities!$Q$2),VLOOKUP($A42,Quantities[],Quantities!$S$2)), IF(AND(LEFT(D42,2)="Sc",OR(C42="a",C42="f")), VLOOKUP(A42,Quantities[],Quantities!$J$2), IF(AND(B42="D",C42="b", (VLOOKUP(INDEX(Quantities!$A$46:$A$48,MATCH($A42,Quantities!$C$46:$C$48)),Quantities[],Quantities!$O$2)+VLOOKUP(INDEX(Quantities!$A$46:$A$48,MATCH($A42,Quantities!$C$46:$C$48)),Quantities[],Quantities!$Q$2)+VLOOKUP(INDEX(Quantities!$A$46:$A$48,MATCH($A42,Quantities!$C$46:$C$48)),Quantities[],Quantities!$S$2))>0), (VLOOKUP(INDEX(Quantities!$A$46:$A$48,MATCH($A42,Quantities!$C$46:$C$48)),Quantities[],Quantities!$P$2)*VLOOKUP(INDEX(Quantities!$A$46:$A$48,MATCH($A42,Quantities!$C$46:$C$48)),Quantities[],Quantities!$O$2) +VLOOKUP(INDEX(Quantities!$A$46:$A$48,MATCH($A42,Quantities!$C$46:$C$48)),Quantities[],Quantities!$R$2)*VLOOKUP(INDEX(Quantities!$A$46:$A$48,MATCH($A42,Quantities!$C$46:$C$48)),Quantities[],Quantities!$Q$2) +VLOOKUP(INDEX(Quantities!$A$46:$A$48,MATCH($A42,Quantities!$C$46:$C$48)),Quantities[],Quantities!$T$2)*VLOOKUP(INDEX(Quantities!$A$46:$A$48,MATCH($A42,Quantities!$C$46:$C$48)),Quantities[],Quantities!$S$2))/ (VLOOKUP(INDEX(Quantities!$A$46:$A$48,MATCH($A42,Quantities!$C$46:$C$48)),Quantities[],Quantities!$O$2)+VLOOKUP(INDEX(Quantities!$A$46:$A$48,MATCH($A42,Quantities!$C$46:$C$48)),Quantities[],Quantities!$Q$2)+VLOOKUP(A42,Quantities[],Quantities!$S$2)), IF(AND(B42="D", (VLOOKUP(A42,Quantities[],Quantities!$O$2)+VLOOKUP(A42,Quantities[],Quantities!$Q$2)+VLOOKUP(A42,Quantities[],Quantities!$S$2))>0), (VLOOKUP(A42,Quantities[],Quantities!$P$2)*VLOOKUP(A42,Quantities[],Quantities!$O$2) +VLOOKUP(A42,Quantities[],Quantities!$R$2)*VLOOKUP(A42,Quantities[],Quantities!$Q$2) +VLOOKUP(A42,Quantities[],Quantities!$T$2)*VLOOKUP(A42,Quantities[],Quantities!$S$2))/ (VLOOKUP(A42,Quantities[],Quantities!$O$2)+VLOOKUP(A42,Quantities[],Quantities!$Q$2)+VLOOKUP(A42,Quantities[],Quantities!$S$2)), IF($B42="Q", (SUM(VLOOKUP($A42,Quantities[],Quantities!$P$2)*VLOOKUP($A42,Quantities[],Quantities!$O$2),VLOOKUP($A42,Quantities[],Quantities!$R$2)*VLOOKUP($A42,Quantities[],Quantities!$Q$2),VLOOKUP($A42,Quantities[],Quantities!$T$2)*VLOOKUP($A42,Quantities[],Quantities!$S$2)))/SUM(VLOOKUP($A42,Quantities[],Quantities!$O$2),VLOOKUP($A42,Quantities[],Quantities!$Q$2),VLOOKUP($A42,Quantities[],Quantities!$S$2)), VLOOKUP(A42,Quantities[],Quantities!$H$2) )))))) -> 0.01 | K42: =IF(LEFT(D42,1)="U","-",VLOOKUP(D42,Equipment[],Equipment!$B$2)) -> Hitachi EX3600-5
A43: =Quantities!$A$24 -> 1701 | B43: B | C43: f | D43: Dz3 | E43: 1701-B-f-Dz3 | F43: =IF(D43="Comb1",CONCATENATE(VLOOKUP(B43,'Activity-Material_Codes'!$A$2:$B$28,Quantities!$B$2),"-",VLOOKUP(A43,Quantities[],Quantities!$D$2)), CONCATENATE( VLOOKUP(B43,'Activity-Material_Codes'!$A$2:$B$30,Quantities!$B$2), IF(AND(B43="B",C43="a"), " Scraper Grading", ""), IF(C43="b","","-"), IF(C43="b","",VLOOKUP(A43,Quantities[],Quantities!$D$2)), IF(LEFT(TEXT(A43,"0"),1)="5","","-"), IF(LEFT(TEXT(A43,"0"),1)="5","",VLOOKUP(C43,'Activity-Material_Codes'!$A$34:$B$40,Quantities!$B$2)) )) -> Dozer Assist-Cut/Fill-Fill/Stockpile Material | G43: =IF(C43="f",VLOOKUP(A43,Quantities[],Quantities!$B$2), CONCATENATE( IF(OR(RIGHT(TEXT($A43,"0"),Quantities!$B$2)="00",LEFT(TEXT($A43,"0"),1)="5",OR($C43="b",$C43="f")),"",VLOOKUP($A43,Quantities[],Quantities!$B$2)), IF(LEFT(TEXT($A43,"0"),1)="5",""," "), IF(OR(C43="a",C43="c",C43="d",C43="e"),IF(OR(RIGHT(TEXT($A43,"0"),Quantities!$B$2)="00",LEFT(TEXT($A43,"0"),1)="5"),VLOOKUP($A43,Quantities[],Quantities!$B$2),""), IF(LEFT(TEXT($A43,"0"),1)="5",VLOOKUP($A43,Quantities[],Quantities!$B$2), VLOOKUP(INDEX(Quantities!$A$46:$A$48,MATCH($A43,Quantities!$C$46:$C$48)),Quantities!$A$46:$B$48,Quantities!$B$2))))) -> East In-Pit Fill Material | H43: =IF(C43="f","Deadman Diversion", IF(LEFT(TEXT(A43,"0"),1)="5", VLOOKUP(VLOOKUP(A43,Quantities!$A$4:$D$48,Quantities!$C$2),Quantities!$A$4:$D$48,Quantities!$C$2), IF(OR(C43="a",C43="c",C43="d",C43="e"), "-", IF(RIGHT(TEXT(A43,"0"),2)="00",VLOOKUP(A43,Quantities[],Quantities!$B$2), IF(C43="f",VLOOKUP(A43,Quantities[],Quantities!$B$2), VLOOKUP(A43,Quantities[],Quantities!$C$2)) )))) -> Deadman Diversion | I43: =IF(OR(AND(LEFT(D43,2)="Sc",B43="A",OR(C43="d",C43="f")),AND(C43="f",B43="D")), SUM(VLOOKUP($A43,Quantities[],Quantities!$O$2),VLOOKUP($A43,Quantities[],Quantities!$Q$2),VLOOKUP($A43,Quantities[],Quantities!$S$2),VLOOKUP($A43,Quantities[],Quantities!$I$2)), IF(AND(LEFT(D43,2)="Sc",OR(C43="a",C43="f")), VLOOKUP(A43,Quantities[],Quantities!$I$2), IF(AND(B43="D",C43="b"), VLOOKUP(INDEX(Quantities!$A$46:$A$48,MATCH($A43,Quantities!$C$46:$C$48)),Quantities!$A$46:$AN$48,Quantities!$O$2)+ VLOOKUP(INDEX(Quantities!$A$46:$A$48,MATCH($A43,Quantities!$C$46:$C$48)),Quantities!$A$46:$AN$48,Quantities!$Q$2)+ VLOOKUP(INDEX(Quantities!$A$46:$A$48,MATCH($A43,Quantities!$C$46:$C$48)),Quantities!$A$46:$AN$48,Quantities!$S$2), IF(OR(B43="D",B43="Q"), SUM(VLOOKUP($A43,Quantities[],Quantities!$O$2),VLOOKUP($A43,Quantities[],Quantities!$Q$2),VLOOKUP($A43,Quantities[],Quantities!$S$2)), VLOOKUP(A43,Quantities[],Quantities!$G$2) )))) -> 0 | J43: =IF(LEFT(D43,2)="Mg", VLOOKUP(A43,Quantities[],Quantities!$H$2), IF(OR(AND(LEFT(D43,2)="Sc",B43="A",OR(C43="d",C43="f"))), (SUM(VLOOKUP($A43,Quantities[],Quantities!$P$2)*VLOOKUP($A43,Quantities[],Quantities!$O$2),VLOOKUP($A43,Quantities[],Quantities!$R$2)*VLOOKUP($A43,Quantities[],Quantities!$Q$2),VLOOKUP($A43,Quantities[],Quantities!$T$2)*VLOOKUP($A43,Quantities[],Quantities!$S$2)))/SUM(VLOOKUP($A43,Quantities[],Quantities!$O$2),VLOOKUP($A43,Quantities[],Quantities!$Q$2),VLOOKUP($A43,Quantities[],Quantities!$S$2)), IF(AND(LEFT(D43,2)="Sc",OR(C43="a",C43="f")), VLOOKUP(A43,Quantities[],Quantities!$J$2), IF(AND(B43="D",C43="b", (VLOOKUP(INDEX(Quantities!$A$46:$A$48,MATCH($A43,Quantities!$C$46:$C$48)),Quantities[],Quantities!$O$2)+VLOOKUP(INDEX(Quantities!$A$46:$A$48,MATCH($A43,Quantities!$C$46:$C$48)),Quantities[],Quantities!$Q$2)+VLOOKUP(INDEX(Quantities!$A$46:$A$48,MATCH($A43,Quantities!$C$46:$C$48)),Quantities[],Quantities!$S$2))>0), (VLOOKUP(INDEX(Quantities!$A$46:$A$48,MATCH($A43,Quantities!$C$46:$C$48)),Quantities[],Quantities!$P$2)*VLOOKUP(INDEX(Quantities!$A$46:$A$48,MATCH($A43,Quantities!$C$46:$C$48)),Quantities[],Quantities!$O$2) +VLOOKUP(INDEX(Quantities!$A$46:$A$48,MATCH($A43,Quantities!$C$46:$C$48)),Quantities[],Quantities!$R$2)*VLOOKUP(INDEX(Quantities!$A$46:$A$48,MATCH($A43,Quantities!$C$46:$C$48)),Quantities[],Quantities!$Q$2) +VLOOKUP(INDEX(Quantities!$A$46:$A$48,MATCH($A43,Quantities!$C$46:$C$48)),Quantities[],Quantities!$T$2)*VLOOKUP(INDEX(Quantities!$A$46:$A$48,MATCH($A43,Quantities!$C$46:$C$48)),Quantities[],Quantities!$S$2))/ (VLOOKUP(INDEX(Quantities!$A$46:$A$48,MATCH($A43,Quantities!$C$46:$C$48)),Quantities[],Quantities!$O$2)+VLOOKUP(INDEX(Quantities!$A$46:$A$48,MATCH($A43,Quantities!$C$46:$C$48)),Quantities[],Quantities!$Q$2)+VLOOKUP(A43,Quantities[],Quantities!$S$2)), IF(AND(B43="D", (VLOOKUP(A43,Quantities[],Quantities!$O$2)+VLOOKUP(A43,Quantities[],Quantities!$Q$2)+VLOOKUP(A43,Quantities[],Quantities!$S$2))>0), (VLOOKUP(A43,Quantities[],Quantities!$P$2)*VLOOKUP(A43,Quantities[],Quantities!$O$2) +VLOOKUP(A43,Quantities[],Quantities!$R$2)*VLOOKUP(A43,Quantities[],Quantities!$Q$2) +VLOOKUP(A43,Quantities[],Quantities!$T$2)*VLOOKUP(A43,Quantities[],Quantities!$S$2))/ (VLOOKUP(A43,Quantities[],Quantities!$O$2)+VLOOKUP(A43,Quantities[],Quantities!$Q$2)+VLOOKUP(A43,Quantities[],Quantities!$S$2)), IF($B43="Q", (SUM(VLOOKUP($A43,Quantities[],Quantities!$P$2)*VLOOKUP($A43,Quantities[],Quantities!$O$2),VLOOKUP($A43,Quantities[],Quantities!$R$2)*VLOOKUP($A43,Quantities[],Quantities!$Q$2),VLOOKUP($A43,Quantities[],Quantities!$T$2)*VLOOKUP($A43,Quantities[],Quantities!$S$2)))/SUM(VLOOKUP($A43,Quantities[],Quantities!$O$2),VLOOKUP($A43,Quantities[],Quantities!$Q$2),VLOOKUP($A43,Quantities[],Quantities!$S$2)), VLOOKUP(A43,Quantities[],Quantities!$H$2) )))))) -> 0 | K43: =IF(LEFT(D43,1)="U","-",VLOOKUP(D43,Equipment[],Equipment!$B$2)) -> Cat D9T, SU Blade
A44: =Quantities!$A$25 -> 1702 | B44: B | C44: f | D44: Dz3 | E44: 1702-B-f-Dz3 | F44: =IF(D44="Comb1",CONCATENATE(VLOOKUP(B44,'Activity-Material_Codes'!$A$2:$B$28,Quantities!$B$2),"-",VLOOKUP(A44,Quantities[],Quantities!$D$2)), CONCATENATE( VLOOKUP(B44,'Activity-Material_Codes'!$A$2:$B$30,Quantities!$B$2), IF(AND(B44="B",C44="a"), " Scraper Grading", ""), IF(C44="b","","-"), IF(C44="b","",VLOOKUP(A44,Quantities[],Quantities!$D$2)), IF(LEFT(TEXT(A44,"0"),1)="5","","-"), IF(LEFT(TEXT(A44,"0"),1)="5","",VLOOKUP(C44,'Activity-Material_Codes'!$A$34:$B$40,Quantities!$B$2)) )) -> Dozer Assist-Cut/Fill-Fill/Stockpile Material | G44: =IF(C44="f",VLOOKUP(A44,Quantities[],Quantities!$B$2), CONCATENATE( IF(OR(RIGHT(TEXT($A44,"0"),Quantities!$B$2)="00",LEFT(TEXT($A44,"0"),1)="5",OR($C44="b",$C44="f")),"",VLOOKUP($A44,Quantities[],Quantities!$B$2)), IF(LEFT(TEXT($A44,"0"),1)="5",""," "), IF(OR(C44="a",C44="c",C44="d",C44="e"),IF(OR(RIGHT(TEXT($A44,"0"),Quantities!$B$2)="00",LEFT(TEXT($A44,"0"),1)="5"),VLOOKUP($A44,Quantities[],Quantities!$B$2),""), IF(LEFT(TEXT($A44,"0"),1)="5",VLOOKUP($A44,Quantities[],Quantities!$B$2), VLOOKUP(INDEX(Quantities!$A$46:$A$48,MATCH($A44,Quantities!$C$46:$C$48)),Quantities!$A$46:$B$48,Quantities!$B$2))))) -> Northern Haul Road Fill Material | H44: =IF(C44="f","Deadman Diversion", IF(LEFT(TEXT(A44,"0"),1)="5", VLOOKUP(VLOOKUP(A44,Quantities!$A$4:$D$48,Quantities!$C$2),Quantities!$A$4:$D$48,Quantities!$C$2), IF(OR(C44="a",C44="c",C44="d",C44="e"), "-", IF(RIGHT(TEXT(A44,"0"),2)="00",VLOOKUP(A44,Quantities[],Quantities!$B$2), IF(C44="f",VLOOKUP(A44,Quantities[],Quantities!$B$2), VLOOKUP(A44,Quantities[],Quantities!$C$2)) )))) -> Deadman Diversion | I44: =IF(OR(AND(LEFT(D44,2)="Sc",B44="A",OR(C44="d",C44="f")),AND(C44="f",B44="D")), SUM(VLOOKUP($A44,Quantities[],Quantities!$O$2),VLOOKUP($A44,Quantities[],Quantities!$Q$2),VLOOKUP($A44,Quantities[],Quantities!$S$2),VLOOKUP($A44,Quantities[],Quantities!$I$2)), IF(AND(LEFT(D44,2)="Sc",OR(C44="a",C44="f")), VLOOKUP(A44,Quantities[],Quantities!$I$2), IF(AND(B44="D",C44="b"), VLOOKUP(INDEX(Quantities!$A$46:$A$48,MATCH($A44,Quantities!$C$46:$C$48)),Quantities!$A$46:$AN$48,Quantities!$O$2)+ VLOOKUP(INDEX(Quantities!$A$46:$A$48,MATCH($A44,Quantities!$C$46:$C$48)),Quantities!$A$46:$AN$48,Quantities!$Q$2)+ VLOOKUP(INDEX(Quantities!$A$46:$A$48,MATCH($A44,Quantities!$C$46:$C$48)),Quantities!$A$46:$AN$48,Quantities!$S$2), IF(OR(B44="D",B44="Q"), SUM(VLOOKUP($A44,Quantities[],Quantities!$O$2),VLOOKUP($A44,Quantities[],Quantities!$Q$2),VLOOKUP($A44,Quantities[],Quantities!$S$2)), VLOOKUP(A44,Quantities[],Quantities!$G$2) )))) -> 0 | J44: =IF(LEFT(D44,2)="Mg", VLOOKUP(A44,Quantities[],Quantities!$H$2), IF(OR(AND(LEFT(D44,2)="Sc",B44="A",OR(C44="d",C44="f"))), (SUM(VLOOKUP($A44,Quantities[],Quantities!$P$2)*VLOOKUP($A44,Quantities[],Quantities!$O$2),VLOOKUP($A44,Quantities[],Quantities!$R$2)*VLOOKUP($A44,Quantities[],Quantities!$Q$2),VLOOKUP($A44,Quantities[],Quantities!$T$2)*VLOOKUP($A44,Quantities[],Quantities!$S$2)))/SUM(VLOOKUP($A44,Quantities[],Quantities!$O$2),VLOOKUP($A44,Quantities[],Quantities!$Q$2),VLOOKUP($A44,Quantities[],Quantities!$S$2)), IF(AND(LEFT(D44,2)="Sc",OR(C44="a",C44="f")), VLOOKUP(A44,Quantities[],Quantities!$J$2), IF(AND(B44="D",C44="b", (VLOOKUP(INDEX(Quantities!$A$46:$A$48,MATCH($A44,Quantities!$C$46:$C$48)),Quantities[],Quantities!$O$2)+VLOOKUP(INDEX(Quantities!$A$46:$A$48,MATCH($A44,Quantities!$C$46:$C$48)),Quantities[],Quantities!$Q$2)+VLOOKUP(INDEX(Quantities!$A$46:$A$48,MATCH($A44,Quantities!$C$46:$C$48)),Quantities[],Quantities!$S$2))>0), (VLOOKUP(INDEX(Quantities!$A$46:$A$48,MATCH($A44,Quantities!$C$46:$C$48)),Quantities[],Quantities!$P$2)*VLOOKUP(INDEX(Quantities!$A$46:$A$48,MATCH($A44,Quantities!$C$46:$C$48)),Quantities[],Quantities!$O$2) +VLOOKUP(INDEX(Quantities!$A$46:$A$48,MATCH($A44,Quantities!$C$46:$C$48)),Quantities[],Quantities!$R$2)*VLOOKUP(INDEX(Quantities!$A$46:$A$48,MATCH($A44,Quantities!$C$46:$C$48)),Quantities[],Quantities!$Q$2) +VLOOKUP(INDEX(Quantities!$A$46:$A$48,MATCH($A44,Quantities!$C$46:$C$48)),Quantities[],Quantities!$T$2)*VLOOKUP(INDEX(Quantities!$A$46:$A$48,MATCH($A44,Quantities!$C$46:$C$48)),Quantities[],Quantities!$S$2))/ (VLOOKUP(INDEX(Quantities!$A$46:$A$48,MATCH($A44,Quantities!$C$46:$C$48)),Quantities[],Quantities!$O$2)+VLOOKUP(INDEX(Quantities!$A$46:$A$48,MATCH($A44,Quantities!$C$46:$C$48)),Quantities[],Quantities!$Q$2)+VLOOKUP(A44,Quantities[],Quantities!$S$2)), IF(AND(B44="D", (VLOOKUP(A44,Quantities[],Quantities!$O$2)+VLOOKUP(A44,Quantities[],Quantities!$Q$2)+VLOOKUP(A44,Quantities[],Quantities!$S$2))>0), (VLOOKUP(A44,Quantities[],Quantities!$P$2)*VLOOKUP(A44,Quantities[],Quantities!$O$2) +VLOOKUP(A44,Quantities[],Quantities!$R$2)*VLOOKUP(A44,Quantities[],Quantities!$Q$2) +VLOOKUP(A44,Quantities[],Quantities!$T$2)*VLOOKUP(A44,Quantities[],Quantities!$S$2))/ (VLOOKUP(A44,Quantities[],Quantities!$O$2)+VLOOKUP(A44,Quantities[],Quantities!$Q$2)+VLOOKUP(A44,Quantities[],Quantities!$S$2)), IF($B44="Q", (SUM(VLOOKUP($A44,Quantities[],Quantities!$P$2)*VLOOKUP($A44,Quantities[],Quantities!$O$2),VLOOKUP($A44,Quantities[],Quantities!$R$2)*VLOOKUP($A44,Quantities[],Quantities!$Q$2),VLOOKUP($A44,Quantities[],Quantities!$T$2)*VLOOKUP($A44,Quantities[],Quantities!$S$2)))/SUM(VLOOKUP($A44,Quantities[],Quantities!$O$2),VLOOKUP($A44,Quantities[],Quantities!$Q$2),VLOOKUP($A44,Quantities[],Quantities!$S$2)), VLOOKUP(A44,Quantities[],Quantities!$H$2) )))))) -> -0.29 | K44: =IF(LEFT(D44,1)="U","-",VLOOKUP(D44,Equipment[],Equipment!$B$2)) -> Cat D9T, SU Blade
A45: =Quantities!$A$26 -> 1703 | B45: B | C45: f | D45: Dz3 | E45: 1703-B-f-Dz3 | F45: =IF(D45="Comb1",CONCATENATE(VLOOKUP(B45,'Activity-Material_Codes'!$A$2:$B$28,Quantities!$B$2),"-",VLOOKUP(A45,Quantities[],Quantities!$D$2)), CONCATENATE( VLOOKUP(B45,'Activity-Material_Codes'!$A$2:$B$30,Quantities!$B$2), IF(AND(B45="B",C45="a"), " Scraper Grading", ""), IF(C45="b","","-"), IF(C45="b","",VLOOKUP(A45,Quantities[],Quantities!$D$2)), IF(LEFT(TEXT(A45,"0"),1)="5","","-"), IF(LEFT(TEXT(A45,"0"),1)="5","",VLOOKUP(C45,'Activity-Material_Codes'!$A$34:$B$40,Quantities!$B$2)) )) -> Dozer Assist-Cut/Fill-Fill/Stockpile Material | G45: =IF(C45="f",VLOOKUP(A45,Quantities[],Quantities!$B$2), CONCATENATE( IF(OR(RIGHT(TEXT($A45,"0"),Quantities!$B$2)="00",LEFT(TEXT($A45,"0"),1)="5",OR($C45="b",$C45="f")),"",VLOOKUP($A45,Quantities[],Quantities!$B$2)), IF(LEFT(TEXT($A45,"0"),1)="5",""," "), IF(OR(C45="a",C45="c",C45="d",C45="e"),IF(OR(RIGHT(TEXT($A45,"0"),Quantities!$B$2)="00",LEFT(TEXT($A45,"0"),1)="5"),VLOOKUP($A45,Quantities[],Quantities!$B$2),""), IF(LEFT(TEXT($A45,"0"),1)="5",VLOOKUP($A45,Quantities[],Quantities!$B$2), VLOOKUP(INDEX(Quantities!$A$46:$A$48,MATCH($A45,Quantities!$C$46:$C$48)),Quantities!$A$46:$B$48,Quantities!$B$2))))) -> Deadman Diversion and Spanning Arch Culvert Area Cut & Relocate | H45: =IF(C45="f","Deadman Diversion", IF(LEFT(TEXT(A45,"0"),1)="5", VLOOKUP(VLOOKUP(A45,Quantities!$A$4:$D$48,Quantities!$C$2),Quantities!$A$4:$D$48,Quantities!$C$2), IF(OR(C45="a",C45="c",C45="d",C45="e"), "-", IF(RIGHT(TEXT(A45,"0"),2)="00",VLOOKUP(A45,Quantities[],Quantities!$B$2), IF(C45="f",VLOOKUP(A45,Quantities[],Quantities!$B$2), VLOOKUP(A45,Quantities[],Quantities!$C$2)) )))) -> Deadman Diversion | I45: =IF(OR(AND(LEFT(D45,2)="Sc",B45="A",OR(C45="d",C45="f")),AND(C45="f",B45="D")), SUM(VLOOKUP($A45,Quantities[],Quantities!$O$2),VLOOKUP($A45,Quantities[],Quantities!$Q$2),VLOOKUP($A45,Quantities[],Quantities!$S$2),VLOOKUP($A45,Quantities[],Quantities!$I$2)), IF(AND(LEFT(D45,2)="Sc",OR(C45="a",C45="f")), VLOOKUP(A45,Quantities[],Quantities!$I$2), IF(AND(B45="D",C45="b"), VLOOKUP(INDEX(Quantities!$A$46:$A$48,MATCH($A45,Quantities!$C$46:$C$48)),Quantities!$A$46:$AN$48,Quantities!$O$2)+ VLOOKUP(INDEX(Quantities!$A$46:$A$48,MATCH($A45,Quantities!$C$46:$C$48)),Quantities!$A$46:$AN$48,Quantities!$Q$2)+ VLOOKUP(INDEX(Quantities!$A$46:$A$48,MATCH($A45,Quantities!$C$46:$C$48)),Quantities!$A$46:$AN$48,Quantities!$S$2), IF(OR(B45="D",B45="Q"), SUM(VLOOKUP($A45,Quantities[],Quantities!$O$2),VLOOKUP($A45,Quantities[],Quantities!$Q$2),VLOOKUP($A45,Quantities[],Quantities!$S$2)), VLOOKUP(A45,Quantities[],Quantities!$G$2) )))) -> 0 | J45: =IF(LEFT(D45,2)="Mg", VLOOKUP(A45,Quantities[],Quantities!$H$2), IF(OR(AND(LEFT(D45,2)="Sc",B45="A",OR(C45="d",C45="f"))), (SUM(VLOOKUP($A45,Quantities[],Quantities!$P$2)*VLOOKUP($A45,Quantities[],Quantities!$O$2),VLOOKUP($A45,Quantities[],Quantities!$R$2)*VLOOKUP($A45,Quantities[],Quantities!$Q$2),VLOOKUP($A45,Quantities[],Quantities!$T$2)*VLOOKUP($A45,Quantities[],Quantities!$S$2)))/SUM(VLOOKUP($A45,Quantities[],Quantities!$O$2),VLOOKUP($A45,Quantities[],Quantities!$Q$2),VLOOKUP($A45,Quantities[],Quantities!$S$2)), IF(AND(LEFT(D45,2)="Sc",OR(C45="a",C45="f")), VLOOKUP(A45,Quantities[],Quantities!$J$2), IF(AND(B45="D",C45="b", (VLOOKUP(INDEX(Quantities!$A$46:$A$48,MATCH($A45,Quantities!$C$46:$C$48)),Quantities[],Quantities!$O$2)+VLOOKUP(INDEX(Quantities!$A$46:$A$48,MATCH($A45,Quantities!$C$46:$C$48)),Quantities[],Quantities!$Q$2)+VLOOKUP(INDEX(Quantities!$A$46:$A$48,MATCH($A45,Quantities!$C$46:$C$48)),Quantities[],Quantities!$S$2))>0), (VLOOKUP(INDEX(Quantities!$A$46:$A$48,MATCH($A45,Quantities!$C$46:$C$48)),Quantities[],Quantities!$P$2)*VLOOKUP(INDEX(Quantities!$A$46:$A$48,MATCH($A45,Quantities!$C$46:$C$48)),Quantities[],Quantities!$O$2) +VLOOKUP(INDEX(Quantities!$A$46:$A$48,MATCH($A45,Quantities!$C$46:$C$48)),Quantities[],Quantities!$R$2)*VLOOKUP(INDEX(Quantities!$A$46:$A$48,MATCH($A45,Quantities!$C$46:$C$48)),Quantities[],Quantities!$Q$2) +VLOOKUP(INDEX(Quantities!$A$46:$A$48,MATCH($A45,Quantities!$C$46:$C$48)),Quantities[],Quantities!$T$2)*VLOOKUP(INDEX(Quantities!$A$46:$A$48,MATCH($A45,Quantities!$C$46:$C$48)),Quantities[],Quantities!$S$2))/ (VLOOKUP(INDEX(Quantities!$A$46:$A$48,MATCH($A45,Quantities!$C$46:$C$48)),Quantities[],Quantities!$O$2)+VLOOKUP(INDEX(Quantities!$A$46:$A$48,MATCH($A45,Quantities!$C$46:$C$48)),Quantities[],Quantities!$Q$2)+VLOOKUP(A45,Quantities[],Quantities!$S$2)), IF(AND(B45="D", (VLOOKUP(A45,Quantities[],Quantities!$O$2)+VLOOKUP(A45,Quantities[],Quantities!$Q$2)+VLOOKUP(A45,Quantities[],Quantities!$S$2))>0), (VLOOKUP(A45,Quantities[],Quantities!$P$2)*VLOOKUP(A45,Quantities[],Quantities!$O$2) +VLOOKUP(A45,Quantities[],Quantities!$R$2)*VLOOKUP(A45,Quantities[],Quantities!$Q$2) +VLOOKUP(A45,Quantities[],Quantities!$T$2)*VLOOKUP(A45,Quantities[],Quantities!$S$2))/ (VLOOKUP(A45,Quantities[],Quantities!$O$2)+VLOOKUP(A45,Quantities[],Quantities!$Q$2)+VLOOKUP(A45,Quantities[],Quantities!$S$2)), IF($B45="Q", (SUM(VLOOKUP($A45,Quantities[],Quantities!$P$2)*VLOOKUP($A45,Quantities[],Quantities!$O$2),VLOOKUP($A45,Quantities[],Quantities!$R$2)*VLOOKUP($A45,Quantities[],Quantities!$Q$2),VLOOKUP($A45,Quantities[],Quantities!$T$2)*VLOOKUP($A45,Quantities[],Quantities!$S$2)))/SUM(VLOOKUP($A45,Quantities[],Quantities!$O$2),VLOOKUP($A45,Quantities[],Quantities!$Q$2),VLOOKUP($A45,Quantities[],Quantities!$S$2)), VLOOKUP(A45,Quantities[],Quantities!$H$2) )))))) -> -0.29 | K45: =IF(LEFT(D45,1)="U","-",VLOOKUP(D45,Equipment[],Equipment!$B$2)) -> Cat D9T, SU Blade
A46: =Quantities!$A$4 -> 1000 | B46: D | C46: b | D46: =$B$7 -> Tk4 | E46: 1000-D-b-Tk4 | F46: =IF(D46="Comb1",CONCATENATE(VLOOKUP(B46,'Activity-Material_Codes'!$A$2:$B$28,Quantities!$B$2),"-",VLOOKUP(A46,Quantities[],Quantities!$D$2)), CONCATENATE( VLOOKUP(B46,'Activity-Material_Codes'!$A$2:$B$30,Quantities!$B$2), IF(AND(B46="B",C46="a"), " Scraper Grading", ""), IF(C46="b","","-"), IF(C46="b","",VLOOKUP(A46,Quantities[],Quantities!$D$2)), IF(LEFT(TEXT(A46,"0"),1)="5","","-"), IF(LEFT(TEXT(A46,"0"),1)="5","",VLOOKUP(C46,'Activity-Material_Codes'!$A$34:$B$40,Quantities!$B$2)) )) -> Haul-Cover | G46: =IF(C46="f",VLOOKUP(A46,Quantities[],Quantities!$B$2), CONCATENATE( IF(OR(RIGHT(TEXT($A46,"0"),Quantities!$B$2)="00",LEFT(TEXT($A46,"0"),1)="5",OR($C46="b",$C46="f")),"",VLOOKUP($A46,Quantities[],Quantities!$B$2)), IF(LEFT(TEXT($A46,"0"),1)="5",""," "), IF(OR(C46="a",C46="c",C46="d",C46="e"),IF(OR(RIGHT(TEXT($A46,"0"),Quantities!$B$2)="00",LEFT(TEXT($A46,"0"),1)="5"),VLOOKUP($A46,Quantities[],Quantities!$B$2),""), IF(LEFT(TEXT($A46,"0"),1)="5",VLOOKUP($A46,Quantities[],Quantities!$B$2), VLOOKUP(INDEX(Quantities!$A$46:$A$48,MATCH($A46,Quantities!$C$46:$C$48)),Quantities!$A$46:$B$48,Quantities!$B$2))))) -> North Stockpile | H46: =IF(C46="f","Deadman Diversion", IF(LEFT(TEXT(A46,"0"),1)="5", VLOOKUP(VLOOKUP(A46,Quantities!$A$4:$D$48,Quantities!$C$2),Quantities!$A$4:$D$48,Quantities!$C$2), IF(OR(C46="a",C46="c",C46="d",C46="e"), "-", IF(RIGHT(TEXT(A46,"0"),2)="00",VLOOKUP(A46,Quantities[],Quantities!$B$2), IF(C46="f",VLOOKUP(A46,Quantities[],Quantities!$B$2), VLOOKUP(A46,Quantities[],Quantities!$C$2)) )))) -> West In-Pit Waste | I46: =IF(OR(AND(LEFT(D46,2)="Sc",B46="A",OR(C46="d",C46="f")),AND(C46="f",B46="D")), SUM(VLOOKUP($A46,Quantities[],Quantities!$O$2),VLOOKUP($A46,Quantities[],Quantities!$Q$2),VLOOKUP($A46,Quantities[],Quantities!$S$2),VLOOKUP($A46,Quantities[],Quantities!$I$2)), IF(AND(LEFT(D46,2)="Sc",OR(C46="a",C46="f")), VLOOKUP(A46,Quantities[],Quantities!$I$2), IF(AND(B46="D",C46="b"), VLOOKUP(INDEX(Quantities!$A$46:$A$48,MATCH($A46,Quantities!$C$46:$C$48)),Quantities!$A$46:$AN$48,Quantities!$O$2)+ VLOOKUP(INDEX(Quantities!$A$46:$A$48,MATCH($A46,Quantities!$C$46:$C$48)),Quantities!$A$46:$AN$48,Quantities!$Q$2)+ VLOOKUP(INDEX(Quantities!$A$46:$A$48,MATCH($A46,Quantities!$C$46:$C$48)),Quantities!$A$46:$AN$48,Quantities!$S$2), IF(OR(B46="D",B46="Q"), SUM(VLOOKUP($A46,Quantities[],Quantities!$O$2),VLOOKUP($A46,Quantities[],Quantities!$Q$2),VLOOKUP($A46,Quantities[],Quantities!$S$2)), VLOOKUP(A46,Quantities[],Quantities!$G$2) )))) -> 3875 | J46: =IF(LEFT(D46,2)="Mg", VLOOKUP(A46,Quantities[],Quantities!$H$2), IF(OR(AND(LEFT(D46,2)="Sc",B46="A",OR(C46="d",C46="f"))), (SUM(VLOOKUP($A46,Quantities[],Quantities!$P$2)*VLOOKUP($A46,Quantities[],Quantities!$O$2),VLOOKUP($A46,Quantities[],Quantities!$R$2)*VLOOKUP($A46,Quantities[],Quantities!$Q$2),VLOOKUP($A46,Quantities[],Quantities!$T$2)*VLOOKUP($A46,Quantities[],Quantities!$S$2)))/SUM(VLOOKUP($A46,Quantities[],Quantities!$O$2),VLOOKUP($A46,Quantities[],Quantities!$Q$2),VLOOKUP($A46,Quantities[],Quantities!$S$2)), IF(AND(LEFT(D46,2)="Sc",OR(C46="a",C46="f")), VLOOKUP(A46,Quantities[],Quantities!$J$2), IF(AND(B46="D",C46="b", (VLOOKUP(INDEX(Quantities!$A$46:$A$48,MATCH($A46,Quantities!$C$46:$C$48)),Quantities[],Quantities!$O$2)+VLOOKUP(INDEX(Quantities!$A$46:$A$48,MATCH($A46,Quantities!$C$46:$C$48)),Quantities[],Quantities!$Q$2)+VLOOKUP(INDEX(Quantities!$A$46:$A$48,MATCH($A46,Quantities!$C$46:$C$48)),Quantities[],Quantities!$S$2))>0), (VLOOKUP(INDEX(Quantities!$A$46:$A$48,MATCH($A46,Quantities!$C$46:$C$48)),Quantities[],Quantities!$P$2)*VLOOKUP(INDEX(Quantities!$A$46:$A$48,MATCH($A46,Quantities!$C$46:$C$48)),Quantities[],Quantities!$O$2) +VLOOKUP(INDEX(Quantities!$A$46:$A$48,MATCH($A46,Quantities!$C$46:$C$48)),Quantities[],Quantities!$R$2)*VLOOKUP(INDEX(Quantities!$A$46:$A$48,MATCH($A46,Quantities!$C$46:$C$48)),Quantities[],Quantities!$Q$2) +VLOOKUP(INDEX(Quantities!$A$46:$A$48,MATCH($A46,Quantities!$C$46:$C$48)),Quantities[],Quantities!$T$2)*VLOOKUP(INDEX(Quantities!$A$46:$A$48,MATCH($A46,Quantities!$C$46:$C$48)),Quantities[],Quantities!$S$2))/ (VLOOKUP(INDEX(Quantities!$A$46:$A$48,MATCH($A46,Quantities!$C$46:$C$48)),Quantities[],Quantities!$O$2)+VLOOKUP(INDEX(Quantities!$A$46:$A$48,MATCH($A46,Quantities!$C$46:$C$48)),Quantities[],Quantities!$Q$2)+VLOOKUP(A46,Quantities[],Quantities!$S$2)), IF(AND(B46="D", (VLOOKUP(A46,Quantities[],Quantities!$O$2)+VLOOKUP(A46,Quantities[],Quantities!$Q$2)+VLOOKUP(A46,Quantities[],Quantities!$S$2))>0), (VLOOKUP(A46,Quantities[],Quantities!$P$2)*VLOOKUP(A46,Quantities[],Quantities!$O$2) +VLOOKUP(A46,Quantities[],Quantities!$R$2)*VLOOKUP(A46,Quantities[],Quantities!$Q$2) +VLOOKUP(A46,Quantities[],Quantities!$T$2)*VLOOKUP(A46,Quantities[],Quantities!$S$2))/ (VLOOKUP(A46,Quantities[],Quantities!$O$2)+VLOOKUP(A46,Quantities[],Quantities!$Q$2)+VLOOKUP(A46,Quantities[],Quantities!$S$2)), IF($B46="Q", (SUM(VLOOKUP($A46,Quantities[],Quantities!$P$2)*VLOOKUP($A46,Quantities[],Quantities!$O$2),VLOOKUP($A46,Quantities[],Quantities!$R$2)*VLOOKUP($A46,Quantities[],Quantities!$Q$2),VLOOKUP($A46,Quantities[],Quantities!$T$2)*VLOOKUP($A46,Quantities[],Quantities!$S$2)))/SUM(VLOOKUP($A46,Quantities[],Quantities!$O$2),VLOOKUP($A46,Quantities[],Quantities!$Q$2),VLOOKUP($A46,Quantities[],Quantities!$S$2)), VLOOKUP(A46,Quantities[],Quantities!$H$2) )))))) -> 0.06129032258 | K46: =IF(LEFT(D46,1)="U","-",VLOOKUP(D46,Equipment[],Equipment!$B$2)) -> Komatsu 730E
A47: =Quantities!$A$7 -> 1100 | B47: D | C47: b | D47: =$B$7 -> Tk4 | E47: 1100-D-b-Tk4 | F47: =IF(D47="Comb1",CONCATENATE(VLOOKUP(B47,'Activity-Material_Codes'!$A$2:$B$28,Quantities!$B$2),"-",VLOOKUP(A47,Quantities[],Quantities!$D$2)), CONCATENATE( VLOOKUP(B47,'Activity-Material_Codes'!$A$2:$B$30,Quantities!$B$2), IF(AND(B47="B",C47="a"), " Scraper Grading", ""), IF(C47="b","","-"), IF(C47="b","",VLOOKUP(A47,Quantities[],Quantities!$D$2)), IF(LEFT(TEXT(A47,"0"),1)="5","","-"), IF(LEFT(TEXT(A47,"0"),1)="5","",VLOOKUP(C47,'Activity-Material_Codes'!$A$34:$B$40,Quantities!$B$2)) )) -> Haul-Cover | G47: =IF(C47="f",VLOOKUP(A47,Quantities[],Quantities!$B$2), CONCATENATE( IF(OR(RIGHT(TEXT($A47,"0"),Quantities!$B$2)="00",LEFT(TEXT($A47,"0"),1)="5",OR($C47="b",$C47="f")),"",VLOOKUP($A47,Quantities[],Quantities!$B$2)), IF(LEFT(TEXT($A47,"0"),1)="5",""," "), IF(OR(C47="a",C47="c",C47="d",C47="e"),IF(OR(RIGHT(TEXT($A47,"0"),Quantities!$B$2)="00",LEFT(TEXT($A47,"0"),1)="5"),VLOOKUP($A47,Quantities[],Quantities!$B$2),""), IF(LEFT(TEXT($A47,"0"),1)="5",VLOOKUP($A47,Quantities[],Quantities!$B$2), VLOOKUP(INDEX(Quantities!$A$46:$A$48,MATCH($A47,Quantities!$C$46:$C$48)),Quantities!$A$46:$B$48,Quantities!$B$2))))) -> North Stockpile | H47: =IF(C47="f","Deadman Diversion", IF(LEFT(TEXT(A47,"0"),1)="5", VLOOKUP(VLOOKUP(A47,Quantities!$A$4:$D$48,Quantities!$C$2),Quantities!$A$4:$D$48,Quantities!$C$2), IF(OR(C47="a",C47="c",C47="d",C47="e"), "-", IF(RIGHT(TEXT(A47,"0"),2)="00",VLOOKUP(A47,Quantities[],Quantities!$B$2), IF(C47="f",VLOOKUP(A47,Quantities[],Quantities!$B$2), VLOOKUP(A47,Quantities[],Quantities!$C$2)) )))) -> East In-Pit Waste | I47: =IF(OR(AND(LEFT(D47,2)="Sc",B47="A",OR(C47="d",C47="f")),AND(C47="f",B47="D")), SUM(VLOOKUP($A47,Quantities[],Quantities!$O$2),VLOOKUP($A47,Quantities[],Quantities!$Q$2),VLOOKUP($A47,Quantities[],Quantities!$S$2),VLOOKUP($A47,Quantities[],Quantities!$I$2)), IF(AND(LEFT(D47,2)="Sc",OR(C47="a",C47="f")), VLOOKUP(A47,Quantities[],Quantities!$I$2), IF(AND(B47="D",C47="b"), VLOOKUP(INDEX(Quantities!$A$46:$A$48,MATCH($A47,Quantities!$C$46:$C$48)),Quantities!$A$46:$AN$48,Quantities!$O$2)+ VLOOKUP(INDEX(Quantities!$A$46:$A$48,MATCH($A47,Quantities!$C$46:$C$48)),Quantities!$A$46:$AN$48,Quantities!$Q$2)+ VLOOKUP(INDEX(Quantities!$A$46:$A$48,MATCH($A47,Quantities!$C$46:$C$48)),Quantities!$A$46:$AN$48,Quantities!$S$2), IF(OR(B47="D",B47="Q"), SUM(VLOOKUP($A47,Quantities[],Quantities!$O$2),VLOOKUP($A47,Quantities[],Quantities!$Q$2),VLOOKUP($A47,Quantities[],Quantities!$S$2)), VLOOKUP(A47,Quantities[],Quantities!$G$2) )))) -> 6700 | J47: =IF(LEFT(D47,2)="Mg", VLOOKUP(A47,Quantities[],Quantities!$H$2), IF(OR(AND(LEFT(D47,2)="Sc",B47="A",OR(C47="d",C47="f"))), (SUM(VLOOKUP($A47,Quantities[],Quantities!$P$2)*VLOOKUP($A47,Quantities[],Quantities!$O$2),VLOOKUP($A47,Quantities[],Quantities!$R$2)*VLOOKUP($A47,Quantities[],Quantities!$Q$2),VLOOKUP($A47,Quantities[],Quantities!$T$2)*VLOOKUP($A47,Quantities[],Quantities!$S$2)))/SUM(VLOOKUP($A47,Quantities[],Quantities!$O$2),VLOOKUP($A47,Quantities[],Quantities!$Q$2),VLOOKUP($A47,Quantities[],Quantities!$S$2)), IF(AND(LEFT(D47,2)="Sc",OR(C47="a",C47="f")), VLOOKUP(A47,Quantities[],Quantities!$J$2), IF(AND(B47="D",C47="b", (VLOOKUP(INDEX(Quantities!$A$46:$A$48,MATCH($A47,Quantities!$C$46:$C$48)),Quantities[],Quantities!$O$2)+VLOOKUP(INDEX(Quantities!$A$46:$A$48,MATCH($A47,Quantities!$C$46:$C$48)),Quantities[],Quantities!$Q$2)+VLOOKUP(INDEX(Quantities!$A$46:$A$48,MATCH($A47,Quantities!$C$46:$C$48)),Quantities[],Quantities!$S$2))>0), (VLOOKUP(INDEX(Quantities!$A$46:$A$48,MATCH($A47,Quantities!$C$46:$C$48)),Quantities[],Quantities!$P$2)*VLOOKUP(INDEX(Quantities!$A$46:$A$48,MATCH($A47,Quantities!$C$46:$C$48)),Quantities[],Quantities!$O$2) +VLOOKUP(INDEX(Quantities!$A$46:$A$48,MATCH($A47,Quantities!$C$46:$C$48)),Quantities[],Quantities!$R$2)*VLOOKUP(INDEX(Quantities!$A$46:$A$48,MATCH($A47,Quantities!$C$46:$C$48)),Quantities[],Quantities!$Q$2) +VLOOKUP(INDEX(Quantities!$A$46:$A$48,MATCH($A47,Quantities!$C$46:$C$48)),Quantities[],Quantities!$T$2)*VLOOKUP(INDEX(Quantities!$A$46:$A$48,MATCH($A47,Quantities!$C$46:$C$48)),Quantities[],Quantities!$S$2))/ (VLOOKUP(INDEX(Quantities!$A$46:$A$48,MATCH($A47,Quantities!$C$46:$C$48)),Quantities[],Quantities!$O$2)+VLOOKUP(INDEX(Quantities!$A$46:$A$48,MATCH($A47,Quantities!$C$46:$C$48)),Quantities[],Quantities!$Q$2)+VLOOKUP(A47,Quantities[],Quantities!$S$2)), IF(AND(B47="D", (VLOOKUP(A47,Quantities[],Quantities!$O$2)+VLOOKUP(A47,Quantities[],Quantities!$Q$2)+VLOOKUP(A47,Quantities[],Quantities!$S$2))>0), (VLOOKUP(A47,Quantities[],Quantities!$P$2)*VLOOKUP(A47,Quantities[],Quantities!$O$2) +VLOOKUP(A47,Quantities[],Quantities!$R$2)*VLOOKUP(A47,Quantities[],Quantities!$Q$2) +VLOOKUP(A47,Quantities[],Quantities!$T$2)*VLOOKUP(A47,Quantities[],Quantities!$S$2))/ (VLOOKUP(A47,Quantities[],Quantities!$O$2)+VLOOKUP(A47,Quantities[],Quantities!$Q$2)+VLOOKUP(A47,Quantities[],Quantities!$S$2)), IF($B47="Q", (SUM(VLOOKUP($A47,Quantities[],Quantities!$P$2)*VLOOKUP($A47,Quantities[],Quantities!$O$2),VLOOKUP($A47,Quantities[],Quantities!$R$2)*VLOOKUP($A47,Quantities[],Quantities!$Q$2),VLOOKUP($A47,Quantities[],Quantities!$T$2)*VLOOKUP($A47,Quantities[],Quantities!$S$2)))/SUM(VLOOKUP($A47,Quantities[],Quantities!$O$2),VLOOKUP($A47,Quantities[],Quantities!$Q$2),VLOOKUP($A47,Quantities[],Quantities!$S$2)), VLOOKUP(A47,Quantities[],Quantities!$H$2) )))))) -> -0.06221186441 | K47: =IF(LEFT(D47,1)="U","-",VLOOKUP(D47,Equipment[],Equipment!$B$2)) -> Komatsu 730E
A48: =Quantities!$A$12 -> 1300 | B48: D | C48: b | D48: Tk4 | E48: 1300-D-b-Tk4 | F48: =IF(D48="Comb1",CONCATENATE(VLOOKUP(B48,'Activity-Material_Codes'!$A$2:$B$28,Quantities!$B$2),"-",VLOOKUP(A48,Quantities[],Quantities!$D$2)), CONCATENATE( VLOOKUP(B48,'Activity-Material_Codes'!$A$2:$B$30,Quantities!$B$2), IF(AND(B48="B",C48="a"), " Scraper Grading", ""), IF(C48="b","","-"), IF(C48="b","",VLOOKUP(A48,Quantities[],Quantities!$D$2)), IF(LEFT(TEXT(A48,"0"),1)="5","","-"), IF(LEFT(TEXT(A48,"0"),1)="5","",VLOOKUP(C48,'Activity-Material_Codes'!$A$34:$B$40,Quantities!$B$2)) )) -> Haul-Cover | G48: =IF(C48="f",VLOOKUP(A48,Quantities[],Quantities!$B$2), CONCATENATE( IF(OR(RIGHT(TEXT($A48,"0"),Quantities!$B$2)="00",LEFT(TEXT($A48,"0"),1)="5",OR($C48="b",$C48="f")),"",VLOOKUP($A48,Quantities[],Quantities!$B$2)), IF(LEFT(TEXT($A48,"0"),1)="5",""," "), IF(OR(C48="a",C48="c",C48="d",C48="e"),IF(OR(RIGHT(TEXT($A48,"0"),Quantities!$B$2)="00",LEFT(TEXT($A48,"0"),1)="5"),VLOOKUP($A48,Quantities[],Quantities!$B$2),""), IF(LEFT(TEXT($A48,"0"),1)="5",VLOOKUP($A48,Quantities[],Quantities!$B$2), VLOOKUP(INDEX(Quantities!$A$46:$A$48,MATCH($A48,Quantities!$C$46:$C$48)),Quantities!$A$46:$B$48,Quantities!$B$2))))) -> North Stockpile | H48: =IF(C48="f","Deadman Diversion", IF(LEFT(TEXT(A48,"0"),1)="5", VLOOKUP(VLOOKUP(A48,Quantities!$A$4:$D$48,Quantities!$C$2),Quantities!$A$4:$D$48,Quantities!$C$2), IF(OR(C48="a",C48="c",C48="d",C48="e"), "-", IF(RIGHT(TEXT(A48,"0"),2)="00",VLOOKUP(A48,Quantities[],Quantities!$B$2), IF(C48="f",VLOOKUP(A48,Quantities[],Quantities!$B$2), VLOOKUP(A48,Quantities[],Quantities!$C$2)) )))) -> NRW Waste | I48: =IF(OR(AND(LEFT(D48,2)="Sc",B48="A",OR(C48="d",C48="f")),AND(C48="f",B48="D")), SUM(VLOOKUP($A48,Quantities[],Quantities!$O$2),VLOOKUP($A48,Quantities[],Quantities!$Q$2),VLOOKUP($A48,Quantities[],Quantities!$S$2),VLOOKUP($A48,Quantities[],Quantities!$I$2)), IF(AND(LEFT(D48,2)="Sc",OR(C48="a",C48="f")), VLOOKUP(A48,Quantities[],Quantities!$I$2), IF(AND(B48="D",C48="b"), VLOOKUP(INDEX(Quantities!$A$46:$A$48,MATCH($A48,Quantities!$C$46:$C$48)),Quantities!$A$46:$AN$48,Quantities!$O$2)+ VLOOKUP(INDEX(Quantities!$A$46:$A$48,MATCH($A48,Quantities!$C$46:$C$48)),Quantities!$A$46:$AN$48,Quantities!$Q$2)+ VLOOKUP(INDEX(Quantities!$A$46:$A$48,MATCH($A48,Quantities!$C$46:$C$48)),Quantities!$A$46:$AN$48,Quantities!$S$2), IF(OR(B48="D",B48="Q"), SUM(VLOOKUP($A48,Quantities[],Quantities!$O$2),VLOOKUP($A48,Quantities[],Quantities!$Q$2),VLOOKUP($A48,Quantities[],Quantities!$S$2)), VLOOKUP(A48,Quantities[],Quantities!$G$2) )))) -> 3025 | J48: =IF(LEFT(D48,2)="Mg", VLOOKUP(A48,Quantities[],Quantities!$H$2), IF(OR(AND(LEFT(D48,2)="Sc",B48="A",OR(C48="d",C48="f"))), (SUM(VLOOKUP($A48,Quantities[],Quantities!$P$2)*VLOOKUP($A48,Quantities[],Quantities!$O$2),VLOOKUP($A48,Quantities[],Quantities!$R$2)*VLOOKUP($A48,Quantities[],Quantities!$Q$2),VLOOKUP($A48,Quantities[],Quantities!$T$2)*VLOOKUP($A48,Quantities[],Quantities!$S$2)))/SUM(VLOOKUP($A48,Quantities[],Quantities!$O$2),VLOOKUP($A48,Quantities[],Quantities!$Q$2),VLOOKUP($A48,Quantities[],Quantities!$S$2)), IF(AND(LEFT(D48,2)="Sc",OR(C48="a",C48="f")), VLOOKUP(A48,Quantities[],Quantities!$J$2), IF(AND(B48="D",C48="b", (VLOOKUP(INDEX(Quantities!$A$46:$A$48,MATCH($A48,Quantities!$C$46:$C$48)),Quantities[],Quantities!$O$2)+VLOOKUP(INDEX(Quantities!$A$46:$A$48,MATCH($A48,Quantities!$C$46:$C$48)),Quantities[],Quantities!$Q$2)+VLOOKUP(INDEX(Quantities!$A$46:$A$48,MATCH($A48,Quantities!$C$46:$C$48)),Quantities[],Quantities!$S$2))>0), (VLOOKUP(INDEX(Quantities!$A$46:$A$48,MATCH($A48,Quantities!$C$46:$C$48)),Quantities[],Quantities!$P$2)*VLOOKUP(INDEX(Quantities!$A$46:$A$48,MATCH($A48,Quantities!$C$46:$C$48)),Quantities[],Quantities!$O$2) +VLOOKUP(INDEX(Quantities!$A$46:$A$48,MATCH($A48,Quantities!$C$46:$C$48)),Quantities[],Quantities!$R$2)*VLOOKUP(INDEX(Quantities!$A$46:$A$48,MATCH($A48,Quantities!$C$46:$C$48)),Quantities[],Quantities!$Q$2) +VLOOKUP(INDEX(Quantities!$A$46:$A$48,MATCH($A48,Quantities!$C$46:$C$48)),Quantities[],Quantities!$T$2)*VLOOKUP(INDEX(Quantities!$A$46:$A$48,MATCH($A48,Quantities!$C$46:$C$48)),Quantities[],Quantities!$S$2))/ (VLOOKUP(INDEX(Quantities!$A$46:$A$48,MATCH($A48,Quantities!$C$46:$C$48)),Quantities[],Quantities!$O$2)+VLOOKUP(INDEX(Quantities!$A$46:$A$48,MATCH($A48,Quantities!$C$46:$C$48)),Quantities[],Quantities!$Q$2)+VLOOKUP(A48,Quantities[],Quantities!$S$2)), IF(AND(B48="D", (VLOOKUP(A48,Quantities[],Quantities!$O$2)+VLOOKUP(A48,Quantities[],Quantities!$Q$2)+VLOOKUP(A48,Quantities[],Quantities!$S$2))>0), (VLOOKUP(A48,Quantities[],Quantities!$P$2)*VLOOKUP(A48,Quantities[],Quantities!$O$2) +VLOOKUP(A48,Quantities[],Quantities!$R$2)*VLOOKUP(A48,Quantities[],Quantities!$Q$2) +VLOOKUP(A48,Quantities[],Quantities!$T$2)*VLOOKUP(A48,Quantities[],Quantities!$S$2))/ (VLOOKUP(A48,Quantities[],Quantities!$O$2)+VLOOKUP(A48,Quantities[],Quantities!$Q$2)+VLOOKUP(A48,Quantities[],Quantities!$S$2)), IF($B48="Q", (SUM(VLOOKUP($A48,Quantities[],Quantities!$P$2)*VLOOKUP($A48,Quantities[],Quantities!$O$2),VLOOKUP($A48,Quantities[],Quantities!$R$2)*VLOOKUP($A48,Quantities[],Quantities!$Q$2),VLOOKUP($A48,Quantities[],Quantities!$T$2)*VLOOKUP($A48,Quantities[],Quantities!$S$2)))/SUM(VLOOKUP($A48,Quantities[],Quantities!$O$2),VLOOKUP($A48,Quantities[],Quantities!$Q$2),VLOOKUP($A48,Quantities[],Quantities!$S$2)), VLOOKUP(A48,Quantities[],Quantities!$H$2) )))))) -> -0.04019607843 | K48: =IF(LEFT(D48,1)="U","-",VLOOKUP(D48,Equipment[],Equipment!$B$2)) -> Komatsu 730E
A49: =Quantities!$A$23 -> 1700 | B49: D | C49: b | D49: Tk4 | E49: 1700-D-b-Tk4 | F49: =IF(D49="Comb1",CONCATENATE(VLOOKUP(B49,'Activity-Material_Codes'!$A$2:$B$28,Quantities!$B$2),"-",VLOOKUP(A49,Quantities[],Quantities!$D$2)), CONCATENATE( VLOOKUP(B49,'Activity-Material_Codes'!$A$2:$B$30,Quantities!$B$2), IF(AND(B49="B",C49="a"), " Scraper Grading", ""), IF(C49="b","","-"), IF(C49="b","",VLOOKUP(A49,Quantities[],Quantities!$D$2)), IF(LEFT(TEXT(A49,"0"),1)="5","","-"), IF(LEFT(TEXT(A49,"0"),1)="5","",VLOOKUP(C49,'Activity-Material_Codes'!$A$34:$B$40,Quantities!$B$2)) )) -> Haul-Cover | G49: =IF(C49="f",VLOOKUP(A49,Quantities[],Quantities!$B$2), CONCATENATE( IF(OR(RIGHT(TEXT($A49,"0"),Quantities!$B$2)="00",LEFT(TEXT($A49,"0"),1)="5",OR($C49="b",$C49="f")),"",VLOOKUP($A49,Quantities[],Quantities!$B$2)), IF(LEFT(TEXT($A49,"0"),1)="5",""," "), IF(OR(C49="a",C49="c",C49="d",C49="e"),IF(OR(RIGHT(TEXT($A49,"0"),Quantities!$B$2)="00",LEFT(TEXT($A49,"0"),1)="5"),VLOOKUP($A49,Quantities[],Quantities!$B$2),""), IF(LEFT(TEXT($A49,"0"),1)="5",VLOOKUP($A49,Quantities[],Quantities!$B$2), VLOOKUP(INDEX(Quantities!$A$46:$A$48,MATCH($A49,Quantities!$C$46:$C$48)),Quantities!$A$46:$B$48,Quantities!$B$2))))) -> North Stockpile | H49: =IF(C49="f","Deadman Diversion", IF(LEFT(TEXT(A49,"0"),1)="5", VLOOKUP(VLOOKUP(A49,Quantities!$A$4:$D$48,Quantities!$C$2),Quantities!$A$4:$D$48,Quantities!$C$2), IF(OR(C49="a",C49="c",C49="d",C49="e"), "-", IF(RIGHT(TEXT(A49,"0"),2)="00",VLOOKUP(A49,Quantities[],Quantities!$B$2), IF(C49="f",VLOOKUP(A49,Quantities[],Quantities!$B$2), VLOOKUP(A49,Quantities[],Quantities!$C$2)) )))) -> Deadman Diversion | I49: =IF(OR(AND(LEFT(D49,2)="Sc",B49="A",OR(C49="d",C49="f")),AND(C49="f",B49="D")), SUM(VLOOKUP($A49,Quantities[],Quantities!$O$2),VLOOKUP($A49,Quantities[],Quantities!$Q$2),VLOOKUP($A49,Quantities[],Quantities!$S$2),VLOOKUP($A49,Quantities[],Quantities!$I$2)), IF(AND(LEFT(D49,2)="Sc",OR(C49="a",C49="f")), VLOOKUP(A49,Quantities[],Quantities!$I$2), IF(AND(B49="D",C49="b"), VLOOKUP(INDEX(Quantities!$A$46:$A$48,MATCH($A49,Quantities!$C$46:$C$48)),Quantities!$A$46:$AN$48,Quantities!$O$2)+ VLOOKUP(INDEX(Quantities!$A$46:$A$48,MATCH($A49,Quantities!$C$46:$C$48)),Quantities!$A$46:$AN$48,Quantities!$Q$2)+ VLOOKUP(INDEX(Quantities!$A$46:$A$48,MATCH($A49,Quantities!$C$46:$C$48)),Quantities!$A$46:$AN$48,Quantities!$S$2), IF(OR(B49="D",B49="Q"), SUM(VLOOKUP($A49,Quantities[],Quantities!$O$2),VLOOKUP($A49,Quantities[],Quantities!$Q$2),VLOOKUP($A49,Quantities[],Quantities!$S$2)), VLOOKUP(A49,Quantities[],Quantities!$G$2) )))) -> 3025 | J49: =IF(LEFT(D49,2)="Mg", VLOOKUP(A49,Quantities[],Quantities!$H$2), IF(OR(AND(LEFT(D49,2)="Sc",B49="A",OR(C49="d",C49="f"))), (SUM(VLOOKUP($A49,Quantities[],Quantities!$P$2)*VLOOKUP($A49,Quantities[],Quantities!$O$2),VLOOKUP($A49,Quantities[],Quantities!$R$2)*VLOOKUP($A49,Quantities[],Quantities!$Q$2),VLOOKUP($A49,Quantities[],Quantities!$T$2)*VLOOKUP($A49,Quantities[],Quantities!$S$2)))/SUM(VLOOKUP($A49,Quantities[],Quantities!$O$2),VLOOKUP($A49,Quantities[],Quantities!$Q$2),VLOOKUP($A49,Quantities[],Quantities!$S$2)), IF(AND(LEFT(D49,2)="Sc",OR(C49="a",C49="f")), VLOOKUP(A49,Quantities[],Quantities!$J$2), IF(AND(B49="D",C49="b", (VLOOKUP(INDEX(Quantities!$A$46:$A$48,MATCH($A49,Quantities!$C$46:$C$48)),Quantities[],Quantities!$O$2)+VLOOKUP(INDEX(Quantities!$A$46:$A$48,MATCH($A49,Quantities!$C$46:$C$48)),Quantities[],Quantities!$Q$2)+VLOOKUP(INDEX(Quantities!$A$46:$A$48,MATCH($A49,Quantities!$C$46:$C$48)),Quantities[],Quantities!$S$2))>0), (VLOOKUP(INDEX(Quantities!$A$46:$A$48,MATCH($A49,Quantities!$C$46:$C$48)),Quantities[],Quantities!$P$2)*VLOOKUP(INDEX(Quantities!$A$46:$A$48,MATCH($A49,Quantities!$C$46:$C$48)),Quantities[],Quantities!$O$2) +VLOOKUP(INDEX(Quantities!$A$46:$A$48,MATCH($A49,Quantities!$C$46:$C$48)),Quantities[],Quantities!$R$2)*VLOOKUP(INDEX(Quantities!$A$46:$A$48,MATCH($A49,Quantities!$C$46:$C$48)),Quantities[],Quantities!$Q$2) +VLOOKUP(INDEX(Quantities!$A$46:$A$48,MATCH($A49,Quantities!$C$46:$C$48)),Quantities[],Quantities!$T$2)*VLOOKUP(INDEX(Quantities!$A$46:$A$48,MATCH($A49,Quantities!$C$46:$C$48)),Quantities[],Quantities!$S$2))/ (VLOOKUP(INDEX(Quantities!$A$46:$A$48,MATCH($A49,Quantities!$C$46:$C$48)),Quantities[],Quantities!$O$2)+VLOOKUP(INDEX(Quantities!$A$46:$A$48,MATCH($A49,Quantities!$C$46:$C$48)),Quantities[],Quantities!$Q$2)+VLOOKUP(A49,Quantities[],Quantities!$S$2)), IF(AND(B49="D", (VLOOKUP(A49,Quantities[],Quantities!$O$2)+VLOOKUP(A49,Quantities[],Quantities!$Q$2)+VLOOKUP(A49,Quantities[],Quantities!$S$2))>0), (VLOOKUP(A49,Quantities[],Quantities!$P$2)*VLOOKUP(A49,Quantities[],Quantities!$O$2) +VLOOKUP(A49,Quantities[],Quantities!$R$2)*VLOOKUP(A49,Quantities[],Quantities!$Q$2) +VLOOKUP(A49,Quantities[],Quantities!$T$2)*VLOOKUP(A49,Quantities[],Quantities!$S$2))/ (VLOOKUP(A49,Quantities[],Quantities!$O$2)+VLOOKUP(A49,Quantities[],Quantities!$Q$2)+VLOOKUP(A49,Quantities[],Quantities!$S$2)), IF($B49="Q", (SUM(VLOOKUP($A49,Quantities[],Quantities!$P$2)*VLOOKUP($A49,Quantities[],Quantities!$O$2),VLOOKUP($A49,Quantities[],Quantities!$R$2)*VLOOKUP($A49,Quantities[],Quantities!$Q$2),VLOOKUP($A49,Quantities[],Quantities!$T$2)*VLOOKUP($A49,Quantities[],Quantities!$S$2)))/SUM(VLOOKUP($A49,Quantities[],Quantities!$O$2),VLOOKUP($A49,Quantities[],Quantities!$Q$2),VLOOKUP($A49,Quantities[],Quantities!$S$2)), VLOOKUP(A49,Quantities[],Quantities!$H$2) )))))) -> -0.04019607843 | K49: =IF(LEFT(D49,1)="U","-",VLOOKUP(D49,Equipment[],Equipment!$B$2)) -> Komatsu 730E
A50: =Quantities!$A$45 -> 2200 | B50: D | C50: b | D50: Tk4 | E50: 2200-D-b-Tk4 | F50: =IF(D50="Comb1",CONCATENATE(VLOOKUP(B50,'Activity-Material_Codes'!$A$2:$B$28,Quantities!$B$2),"-",VLOOKUP(A50,Quantities[],Quantities!$D$2)), CONCATENATE( VLOOKUP(B50,'Activity-Material_Codes'!$A$2:$B$30,Quantities!$B$2), IF(AND(B50="B",C50="a"), " Scraper Grading", ""), IF(C50="b","","-"), IF(C50="b","",VLOOKUP(A50,Quantities[],Quantities!$D$2)), IF(LEFT(TEXT(A50,"0"),1)="5","","-"), IF(LEFT(TEXT(A50,"0"),1)="5","",VLOOKUP(C50,'Activity-Material_Codes'!$A$34:$B$40,Quantities!$B$2)) )) -> Haul-Cover | G50: =IF(C50="f",VLOOKUP(A50,Quantities[],Quantities!$B$2), CONCATENATE( IF(OR(RIGHT(TEXT($A50,"0"),Quantities!$B$2)="00",LEFT(TEXT($A50,"0"),1)="5",OR($C50="b",$C50="f")),"",VLOOKUP($A50,Quantities[],Quantities!$B$2)), IF(LEFT(TEXT($A50,"0"),1)="5",""," "), IF(OR(C50="a",C50="c",C50="d",C50="e"),IF(OR(RIGHT(TEXT($A50,"0"),Quantities!$B$2)="00",LEFT(TEXT($A50,"0"),1)="5"),VLOOKUP($A50,Quantities[],Quantities!$B$2),""), IF(LEFT(TEXT($A50,"0"),1)="5",VLOOKUP($A50,Quantities[],Quantities!$B$2), VLOOKUP(INDEX(Quantities!$A$46:$A$48,MATCH($A50,Quantities!$C$46:$C$48)),Quantities!$A$46:$B$48,Quantities!$B$2))))) -> North Stockpile | H50: =IF(C50="f","Deadman Diversion", IF(LEFT(TEXT(A50,"0"),1)="5", VLOOKUP(VLOOKUP(A50,Quantities!$A$4:$D$48,Quantities!$C$2),Quantities!$A$4:$D$48,Quantities!$C$2), IF(OR(C50="a",C50="c",C50="d",C50="e"), "-", IF(RIGHT(TEXT(A50,"0"),2)="00",VLOOKUP(A50,Quantities[],Quantities!$B$2), IF(C50="f",VLOOKUP(A50,Quantities[],Quantities!$B$2), VLOOKUP(A50,Quantities[],Quantities!$C$2)) )))) -> Allowance for Other Disturbed Areas | I50: =IF(OR(AND(LEFT(D50,2)="Sc",B50="A",OR(C50="d",C50="f")),AND(C50="f",B50="D")), SUM(VLOOKUP($A50,Quantities[],Quantities!$O$2),VLOOKUP($A50,Quantities[],Quantities!$Q$2),VLOOKUP($A50,Quantities[],Quantities!$S$2),VLOOKUP($A50,Quantities[],Quantities!$I$2)), IF(AND(LEFT(D50,2)="Sc",OR(C50="a",C50="f")), VLOOKUP(A50,Quantities[],Quantities!$I$2), IF(AND(B50="D",C50="b"), VLOOKUP(INDEX(Quantities!$A$46:$A$48,MATCH($A50,Quantities!$C$46:$C$48)),Quantities!$A$46:$AN$48,Quantities!$O$2)+ VLOOKUP(INDEX(Quantities!$A$46:$A$48,MATCH($A50,Quantities!$C$46:$C$48)),Quantities!$A$46:$AN$48,Quantities!$Q$2)+ VLOOKUP(INDEX(Quantities!$A$46:$A$48,MATCH($A50,Quantities!$C$46:$C$48)),Quantities!$A$46:$AN$48,Quantities!$S$2), IF(OR(B50="D",B50="Q"), SUM(VLOOKUP($A50,Quantities[],Quantities!$O$2),VLOOKUP($A50,Quantities[],Quantities!$Q$2),VLOOKUP($A50,Quantities[],Quantities!$S$2)), VLOOKUP(A50,Quantities[],Quantities!$G$2) )))) -> 3025 | J50: =IF(LEFT(D50,2)="Mg", VLOOKUP(A50,Quantities[],Quantities!$H$2), IF(OR(AND(LEFT(D50,2)="Sc",B50="A",OR(C50="d",C50="f"))), (SUM(VLOOKUP($A50,Quantities[],Quantities!$P$2)*VLOOKUP($A50,Quantities[],Quantities!$O$2),VLOOKUP($A50,Quantities[],Quantities!$R$2)*VLOOKUP($A50,Quantities[],Quantities!$Q$2),VLOOKUP($A50,Quantities[],Quantities!$T$2)*VLOOKUP($A50,Quantities[],Quantities!$S$2)))/SUM(VLOOKUP($A50,Quantities[],Quantities!$O$2),VLOOKUP($A50,Quantities[],Quantities!$Q$2),VLOOKUP($A50,Quantities[],Quantities!$S$2)), IF(AND(LEFT(D50,2)="Sc",OR(C50="a",C50="f")), VLOOKUP(A50,Quantities[],Quantities!$J$2), IF(AND(B50="D",C50="b", (VLOOKUP(INDEX(Quantities!$A$46:$A$48,MATCH($A50,Quantities!$C$46:$C$48)),Quantities[],Quantities!$O$2)+VLOOKUP(INDEX(Quantities!$A$46:$A$48,MATCH($A50,Quantities!$C$46:$C$48)),Quantities[],Quantities!$Q$2)+VLOOKUP(INDEX(Quantities!$A$46:$A$48,MATCH($A50,Quantities!$C$46:$C$48)),Quantities[],Quantities!$S$2))>0), (VLOOKUP(INDEX(Quantities!$A$46:$A$48,MATCH($A50,Quantities!$C$46:$C$48)),Quantities[],Quantities!$P$2)*VLOOKUP(INDEX(Quantities!$A$46:$A$48,MATCH($A50,Quantities!$C$46:$C$48)),Quantities[],Quantities!$O$2) +VLOOKUP(INDEX(Quantities!$A$46:$A$48,MATCH($A50,Quantities!$C$46:$C$48)),Quantities[],Quantities!$R$2)*VLOOKUP(INDEX(Quantities!$A$46:$A$48,MATCH($A50,Quantities!$C$46:$C$48)),Quantities[],Quantities!$Q$2) +VLOOKUP(INDEX(Quantities!$A$46:$A$48,MATCH($A50,Quantities!$C$46:$C$48)),Quantities[],Quantities!$T$2)*VLOOKUP(INDEX(Quantities!$A$46:$A$48,MATCH($A50,Quantities!$C$46:$C$48)),Quantities[],Quantities!$S$2))/ (VLOOKUP(INDEX(Quantities!$A$46:$A$48,MATCH($A50,Quantities!$C$46:$C$48)),Quantities[],Quantities!$O$2)+VLOOKUP(INDEX(Quantities!$A$46:$A$48,MATCH($A50,Quantities!$C$46:$C$48)),Quantities[],Quantities!$Q$2)+VLOOKUP(A50,Quantities[],Quantities!$S$2)), IF(AND(B50="D", (VLOOKUP(A50,Quantities[],Quantities!$O$2)+VLOOKUP(A50,Quantities[],Quantities!$Q$2)+VLOOKUP(A50,Quantities[],Quantities!$S$2))>0), (VLOOKUP(A50,Quantities[],Quantities!$P$2)*VLOOKUP(A50,Quantities[],Quantities!$O$2) +VLOOKUP(A50,Quantities[],Quantities!$R$2)*VLOOKUP(A50,Quantities[],Quantities!$Q$2) +VLOOKUP(A50,Quantities[],Quantities!$T$2)*VLOOKUP(A50,Quantities[],Quantities!$S$2))/ (VLOOKUP(A50,Quantities[],Quantities!$O$2)+VLOOKUP(A50,Quantities[],Quantities!$Q$2)+VLOOKUP(A50,Quantities[],Quantities!$S$2)), IF($B50="Q", (SUM(VLOOKUP($A50,Quantities[],Quantities!$P$2)*VLOOKUP($A50,Quantities[],Quantities!$O$2),VLOOKUP($A50,Quantities[],Quantities!$R$2)*VLOOKUP($A50,Quantities[],Quantities!$Q$2),VLOOKUP($A50,Quantities[],Quantities!$T$2)*VLOOKUP($A50,Quantities[],Quantities!$S$2)))/SUM(VLOOKUP($A50,Quantities[],Quantities!$O$2),VLOOKUP($A50,Quantities[],Quantities!$Q$2),VLOOKUP($A50,Quantities[],Quantities!$S$2)), VLOOKUP(A50,Quantities[],Quantities!$H$2) )))))) -> -0.04019607843 | K50: =IF(LEFT(D50,1)="U","-",VLOOKUP(D50,Equipment[],Equipment!$B$2)) -> Komatsu 730E
A51: =Quantities!$A$24 -> 1701 | B51: A | C51: f | D51: Sc2 | E51: 1701-A-f-Sc2 | F51: =IF(D51="Comb1",CONCATENATE(VLOOKUP(B51,'Activity-Material_Codes'!$A$2:$B$28,Quantities!$B$2),"-",VLOOKUP(A51,Quantities[],Quantities!$D$2)), CONCATENATE( VLOOKUP(B51,'Activity-Material_Codes'!$A$2:$B$30,Quantities!$B$2), IF(AND(B51="B",C51="a"), " Scraper Grading", ""), IF(C51="b","","-"), IF(C51="b","",VLOOKUP(A51,Quantities[],Quantities!$D$2)), IF(LEFT(TEXT(A51,"0"),1)="5","","-"), IF(LEFT(TEXT(A51,"0"),1)="5","",VLOOKUP(C51,'Activity-Material_Codes'!$A$34:$B$40,Quantities!$B$2)) )) -> Grade-Cut/Fill-Fill/Stockpile Material | G51: =IF(C51="f",VLOOKUP(A51,Quantities[],Quantities!$B$2), CONCATENATE( IF(OR(RIGHT(TEXT($A51,"0"),Quantities!$B$2)="00",LEFT(TEXT($A51,"0"),1)="5",OR($C51="b",$C51="f")),"",VLOOKUP($A51,Quantities[],Quantities!$B$2)), IF(LEFT(TEXT($A51,"0"),1)="5",""," "), IF(OR(C51="a",C51="c",C51="d",C51="e"),IF(OR(RIGHT(TEXT($A51,"0"),Quantities!$B$2)="00",LEFT(TEXT($A51,"0"),1)="5"),VLOOKUP($A51,Quantities[],Quantities!$B$2),""), IF(LEFT(TEXT($A51,"0"),1)="5",VLOOKUP($A51,Quantities[],Quantities!$B$2), VLOOKUP(INDEX(Quantities!$A$46:$A$48,MATCH($A51,Quantities!$C$46:$C$48)),Quantities!$A$46:$B$48,Quantities!$B$2))))) -> East In-Pit Fill Material | H51: =IF(C51="f","Deadman Diversion", IF(LEFT(TEXT(A51,"0"),1)="5", VLOOKUP(VLOOKUP(A51,Quantities!$A$4:$D$48,Quantities!$C$2),Quantities!$A$4:$D$48,Quantities!$C$2), IF(OR(C51="a",C51="c",C51="d",C51="e"), "-", IF(RIGHT(TEXT(A51,"0"),2)="00",VLOOKUP(A51,Quantities[],Quantities!$B$2), IF(C51="f",VLOOKUP(A51,Quantities[],Quantities!$B$2), VLOOKUP(A51,Quantities[],Quantities!$C$2)) )))) -> Deadman Diversion | I51: =IF(OR(AND(LEFT(D51,2)="Sc",B51="A",OR(C51="d",C51="f")),AND(C51="f",B51="D")), SUM(VLOOKUP($A51,Quantities[],Quantities!$O$2),VLOOKUP($A51,Quantities[],Quantities!$Q$2),VLOOKUP($A51,Quantities[],Quantities!$S$2),VLOOKUP($A51,Quantities[],Quantities!$I$2)), IF(AND(LEFT(D51,2)="Sc",OR(C51="a",C51="f")), VLOOKUP(A51,Quantities[],Quantities!$I$2), IF(AND(B51="D",C51="b"), VLOOKUP(INDEX(Quantities!$A$46:$A$48,MATCH($A51,Quantities!$C$46:$C$48)),Quantities!$A$46:$AN$48,Quantities!$O$2)+ VLOOKUP(INDEX(Quantities!$A$46:$A$48,MATCH($A51,Quantities!$C$46:$C$48)),Quantities!$A$46:$AN$48,Quantities!$Q$2)+ VLOOKUP(INDEX(Quantities!$A$46:$A$48,MATCH($A51,Quantities!$C$46:$C$48)),Quantities!$A$46:$AN$48,Quantities!$S$2), IF(OR(B51="D",B51="Q"), SUM(VLOOKUP($A51,Quantities[],Quantities!$O$2),VLOOKUP($A51,Quantities[],Quantities!$Q$2),VLOOKUP($A51,Quantities[],Quantities!$S$2)), VLOOKUP(A51,Quantities[],Quantities!$G$2) )))) -> 763 | J51: =IF(LEFT(D51,2)="Mg", VLOOKUP(A51,Quantities[],Quantities!$H$2), IF(OR(AND(LEFT(D51,2)="Sc",B51="A",OR(C51="d",C51="f"))), (SUM(VLOOKUP($A51,Quantities[],Quantities!$P$2)*VLOOKUP($A51,Quantities[],Quantities!$O$2),VLOOKUP($A51,Quantities[],Quantities!$R$2)*VLOOKUP($A51,Quantities[],Quantities!$Q$2),VLOOKUP($A51,Quantities[],Quantities!$T$2)*VLOOKUP($A51,Quantities[],Quantities!$S$2)))/SUM(VLOOKUP($A51,Quantities[],Quantities!$O$2),VLOOKUP($A51,Quantities[],Quantities!$Q$2),VLOOKUP($A51,Quantities[],Quantities!$S$2)), IF(AND(LEFT(D51,2)="Sc",OR(C51="a",C51="f")), VLOOKUP(A51,Quantities[],Quantities!$J$2), IF(AND(B51="D",C51="b", (VLOOKUP(INDEX(Quantities!$A$46:$A$48,MATCH($A51,Quantities!$C$46:$C$48)),Quantities[],Quantities!$O$2)+VLOOKUP(INDEX(Quantities!$A$46:$A$48,MATCH($A51,Quantities!$C$46:$C$48)),Quantities[],Quantities!$Q$2)+VLOOKUP(INDEX(Quantities!$A$46:$A$48,MATCH($A51,Quantities!$C$46:$C$48)),Quantities[],Quantities!$S$2))>0), (VLOOKUP(INDEX(Quantities!$A$46:$A$48,MATCH($A51,Quantities!$C$46:$C$48)),Quantities[],Quantities!$P$2)*VLOOKUP(INDEX(Quantities!$A$46:$A$48,MATCH($A51,Quantities!$C$46:$C$48)),Quantities[],Quantities!$O$2) +VLOOKUP(INDEX(Quantities!$A$46:$A$48,MATCH($A51,Quantities!$C$46:$C$48)),Quantities[],Quantities!$R$2)*VLOOKUP(INDEX(Quantities!$A$46:$A$48,MATCH($A51,Quantities!$C$46:$C$48)),Quantities[],Quantities!$Q$2) +VLOOKUP(INDEX(Quantities!$A$46:$A$48,MATCH($A51,Quantities!$C$46:$C$48)),Quantities[],Quantities!$T$2)*VLOOKUP(INDEX(Quantities!$A$46:$A$48,MATCH($A51,Quantities!$C$46:$C$48)),Quantities[],Quantities!$S$2))/ (VLOOKUP(INDEX(Quantities!$A$46:$A$48,MATCH($A51,Quantities!$C$46:$C$48)),Quantities[],Quantities!$O$2)+VLOOKUP(INDEX(Quantities!$A$46:$A$48,MATCH($A51,Quantities!$C$46:$C$48)),Quantities[],Quantities!$Q$2)+VLOOKUP(A51,Quantities[],Quantities!$S$2)), IF(AND(B51="D", (VLOOKUP(A51,Quantities[],Quantities!$O$2)+VLOOKUP(A51,Quantities[],Quantities!$Q$2)+VLOOKUP(A51,Quantities[],Quantities!$S$2))>0), (VLOOKUP(A51,Quantities[],Quantities!$P$2)*VLOOKUP(A51,Quantities[],Quantities!$O$2) +VLOOKUP(A51,Quantities[],Quantities!$R$2)*VLOOKUP(A51,Quantities[],Quantities!$Q$2) +VLOOKUP(A51,Quantities[],Quantities!$T$2)*VLOOKUP(A51,Quantities[],Quantities!$S$2))/ (VLOOKUP(A51,Quantities[],Quantities!$O$2)+VLOOKUP(A51,Quantities[],Quantities!$Q$2)+VLOOKUP(A51,Quantities[],Quantities!$S$2)), IF($B51="Q", (SUM(VLOOKUP($A51,Quantities[],Quantities!$P$2)*VLOOKUP($A51,Quantities[],Quantities!$O$2),VLOOKUP($A51,Quantities[],Quantities!$R$2)*VLOOKUP($A51,Quantities[],Quantities!$Q$2),VLOOKUP($A51,Quantities[],Quantities!$T$2)*VLOOKUP($A51,Quantities[],Quantities!$S$2)))/SUM(VLOOKUP($A51,Quantities[],Quantities!$O$2),VLOOKUP($A51,Quantities[],Quantities!$Q$2),VLOOKUP($A51,Quantities[],Quantities!$S$2)), VLOOKUP(A51,Quantities[],Quantities!$H$2) )))))) -> 0.08707624509 | K51: =IF(LEFT(D51,1)="U","-",VLOOKUP(D51,Equipment[],Equipment!$B$2)) -> Cat 657G
A52: =Quantities!$A$25 -> 1702 | B52: A | C52: f | D52: Sc2 | E52: 1702-A-f-Sc2 | F52: =IF(D52="Comb1",CONCATENATE(VLOOKUP(B52,'Activity-Material_Codes'!$A$2:$B$28,Quantities!$B$2),"-",VLOOKUP(A52,Quantities[],Quantities!$D$2)), CONCATENATE( VLOOKUP(B52,'Activity-Material_Codes'!$A$2:$B$30,Quantities!$B$2), IF(AND(B52="B",C52="a"), " Scraper Grading", ""), IF(C52="b","","-"), IF(C52="b","",VLOOKUP(A52,Quantities[],Quantities!$D$2)), IF(LEFT(TEXT(A52,"0"),1)="5","","-"), IF(LEFT(TEXT(A52,"0"),1)="5","",VLOOKUP(C52,'Activity-Material_Codes'!$A$34:$B$40,Quantities!$B$2)) )) -> Grade-Cut/Fill-Fill/Stockpile Material | G52: =IF(C52="f",VLOOKUP(A52,Quantities[],Quantities!$B$2), CONCATENATE( IF(OR(RIGHT(TEXT($A52,"0"),Quantities!$B$2)="00",LEFT(TEXT($A52,"0"),1)="5",OR($C52="b",$C52="f")),"",VLOOKUP($A52,Quantities[],Quantities!$B$2)), IF(LEFT(TEXT($A52,"0"),1)="5",""," "), IF(OR(C52="a",C52="c",C52="d",C52="e"),IF(OR(RIGHT(TEXT($A52,"0"),Quantities!$B$2)="00",LEFT(TEXT($A52,"0"),1)="5"),VLOOKUP($A52,Quantities[],Quantities!$B$2),""), IF(LEFT(TEXT($A52,"0"),1)="5",VLOOKUP($A52,Quantities[],Quantities!$B$2), VLOOKUP(INDEX(Quantities!$A$46:$A$48,MATCH($A52,Quantities!$C$46:$C$48)),Quantities!$A$46:$B$48,Quantities!$B$2))))) -> Northern Haul Road Fill Material | H52: =IF(C52="f","Deadman Diversion", IF(LEFT(TEXT(A52,"0"),1)="5", VLOOKUP(VLOOKUP(A52,Quantities!$A$4:$D$48,Quantities!$C$2),Quantities!$A$4:$D$48,Quantities!$C$2), IF(OR(C52="a",C52="c",C52="d",C52="e"), "-", IF(RIGHT(TEXT(A52,"0"),2)="00",VLOOKUP(A52,Quantities[],Quantities!$B$2), IF(C52="f",VLOOKUP(A52,Quantities[],Quantities!$B$2), VLOOKUP(A52,Quantities[],Quantities!$C$2)) )))) -> Deadman Diversion | I52: =IF(OR(AND(LEFT(D52,2)="Sc",B52="A",OR(C52="d",C52="f")),AND(C52="f",B52="D")), SUM(VLOOKUP($A52,Quantities[],Quantities!$O$2),VLOOKUP($A52,Quantities[],Quantities!$Q$2),VLOOKUP($A52,Quantities[],Quantities!$S$2),VLOOKUP($A52,Quantities[],Quantities!$I$2)), IF(AND(LEFT(D52,2)="Sc",OR(C52="a",C52="f")), VLOOKUP(A52,Quantities[],Quantities!$I$2), IF(AND(B52="D",C52="b"), VLOOKUP(INDEX(Quantities!$A$46:$A$48,MATCH($A52,Quantities!$C$46:$C$48)),Quantities!$A$46:$AN$48,Quantities!$O$2)+ VLOOKUP(INDEX(Quantities!$A$46:$A$48,MATCH($A52,Quantities!$C$46:$C$48)),Quantities!$A$46:$AN$48,Quantities!$Q$2)+ VLOOKUP(INDEX(Quantities!$A$46:$A$48,MATCH($A52,Quantities!$C$46:$C$48)),Quantities!$A$46:$AN$48,Quantities!$S$2), IF(OR(B52="D",B52="Q"), SUM(VLOOKUP($A52,Quantities[],Quantities!$O$2),VLOOKUP($A52,Quantities[],Quantities!$Q$2),VLOOKUP($A52,Quantities[],Quantities!$S$2)), VLOOKUP(A52,Quantities[],Quantities!$G$2) )))) -> 736 | J52: =IF(LEFT(D52,2)="Mg", VLOOKUP(A52,Quantities[],Quantities!$H$2), IF(OR(AND(LEFT(D52,2)="Sc",B52="A",OR(C52="d",C52="f"))), (SUM(VLOOKUP($A52,Quantities[],Quantities!$P$2)*VLOOKUP($A52,Quantities[],Quantities!$O$2),VLOOKUP($A52,Quantities[],Quantities!$R$2)*VLOOKUP($A52,Quantities[],Quantities!$Q$2),VLOOKUP($A52,Quantities[],Quantities!$T$2)*VLOOKUP($A52,Quantities[],Quantities!$S$2)))/SUM(VLOOKUP($A52,Quantities[],Quantities!$O$2),VLOOKUP($A52,Quantities[],Quantities!$Q$2),VLOOKUP($A52,Quantities[],Quantities!$S$2)), IF(AND(LEFT(D52,2)="Sc",OR(C52="a",C52="f")), VLOOKUP(A52,Quantities[],Quantities!$J$2), IF(AND(B52="D",C52="b", (VLOOKUP(INDEX(Quantities!$A$46:$A$48,MATCH($A52,Quantities!$C$46:$C$48)),Quantities[],Quantities!$O$2)+VLOOKUP(INDEX(Quantities!$A$46:$A$48,MATCH($A52,Quantities!$C$46:$C$48)),Quantities[],Quantities!$Q$2)+VLOOKUP(INDEX(Quantities!$A$46:$A$48,MATCH($A52,Quantities!$C$46:$C$48)),Quantities[],Quantities!$S$2))>0), (VLOOKUP(INDEX(Quantities!$A$46:$A$48,MATCH($A52,Quantities!$C$46:$C$48)),Quantities[],Quantities!$P$2)*VLOOKUP(INDEX(Quantities!$A$46:$A$48,MATCH($A52,Quantities!$C$46:$C$48)),Quantities[],Quantities!$O$2) +VLOOKUP(INDEX(Quantities!$A$46:$A$48,MATCH($A52,Quantities!$C$46:$C$48)),Quantities[],Quantities!$R$2)*VLOOKUP(INDEX(Quantities!$A$46:$A$48,MATCH($A52,Quantities!$C$46:$C$48)),Quantities[],Quantities!$Q$2) +VLOOKUP(INDEX(Quantities!$A$46:$A$48,MATCH($A52,Quantities!$C$46:$C$48)),Quantities[],Quantities!$T$2)*VLOOKUP(INDEX(Quantities!$A$46:$A$48,MATCH($A52,Quantities!$C$46:$C$48)),Quantities[],Quantities!$S$2))/ (VLOOKUP(INDEX(Quantities!$A$46:$A$48,MATCH($A52,Quantities!$C$46:$C$48)),Quantities[],Quantities!$O$2)+VLOOKUP(INDEX(Quantities!$A$46:$A$48,MATCH($A52,Quantities!$C$46:$C$48)),Quantities[],Quantities!$Q$2)+VLOOKUP(A52,Quantities[],Quantities!$S$2)), IF(AND(B52="D", (VLOOKUP(A52,Quantities[],Quantities!$O$2)+VLOOKUP(A52,Quantities[],Quantities!$Q$2)+VLOOKUP(A52,Quantities[],Quantities!$S$2))>0), (VLOOKUP(A52,Quantities[],Quantities!$P$2)*VLOOKUP(A52,Quantities[],Quantities!$O$2) +VLOOKUP(A52,Quantities[],Quantities!$R$2)*VLOOKUP(A52,Quantities[],Quantities!$Q$2) +VLOOKUP(A52,Quantities[],Quantities!$T$2)*VLOOKUP(A52,Quantities[],Quantities!$S$2))/ (VLOOKUP(A52,Quantities[],Quantities!$O$2)+VLOOKUP(A52,Quantities[],Quantities!$Q$2)+VLOOKUP(A52,Quantities[],Quantities!$S$2)), IF($B52="Q", (SUM(VLOOKUP($A52,Quantities[],Quantities!$P$2)*VLOOKUP($A52,Quantities[],Quantities!$O$2),VLOOKUP($A52,Quantities[],Quantities!$R$2)*VLOOKUP($A52,Quantities[],Quantities!$Q$2),VLOOKUP($A52,Quantities[],Quantities!$T$2)*VLOOKUP($A52,Quantities[],Quantities!$S$2)))/SUM(VLOOKUP($A52,Quantities[],Quantities!$O$2),VLOOKUP($A52,Quantities[],Quantities!$Q$2),VLOOKUP($A52,Quantities[],Quantities!$S$2)), VLOOKUP(A52,Quantities[],Quantities!$H$2) )))))) -> -0.0003255434783 | K52: =IF(LEFT(D52,1)="U","-",VLOOKUP(D52,Equipment[],Equipment!$B$2)) -> Cat 657G
